Workbook

Sheet Sub Sec
D1: =Result!$A$9 -> X | E1: =Result!$A$10 -> 0 | F1: =Result!$A$11 -> 0 | G1: =Result!$A$12 -> 0 | H1: =Result!$A$13 -> 0 | I1: =Result!$A$114 -> 0 | J1: =Result!$A$15 -> 0 | K1: =Result!$A$16 -> 0 | L1: =Result!$A$17 -> 0 | M1: =Result!$A$18 -> 0 | N1: =Result!$A$19 -> 0 | O1: =Result!$A$20 -> 0
D2: ="Filtered Total and %" &" "& H2 -> Filtered Total and % , (No Filter Applied) | H2: =IF(D3="",", (No Filter Applied)","") -> , (No Filter Applied)
A3: Letting: | B3: Contract No: | D3: =IF(SUBTOTAL(9,D8:D700)=D5,"",(SUBTOTAL(9,D8:D700))) ->  | E3: =IF(SUBTOTAL(9,E8:E700)=E5,"",(SUBTOTAL(9,E8:E700))) ->  | F3: =IF(SUBTOTAL(9,F8:F700)=F5,"",(SUBTOTAL(9,F8:F700))) ->  | G3: =IF(SUBTOTAL(9,G8:G700)=G5,"",(SUBTOTAL(9,G8:G700))) ->  | H3: =IF(SUBTOTAL(9,H8:H700)=H5,"",(SUBTOTAL(9,H8:H700))) ->  | L3: =IF(SUBTOTAL(9,L8:L700)=L5,"",(SUBTOTAL(9,L8:L700))) ->  | P3: =IF(SUBTOTAL(9,P8:P700)=P5,"",(SUBTOTAL(9,P8:P700))) -> 
A4: =Result!C3 -> 2012-01-12 | B4: =Result!C2 -> 30201 | D4: =IF(D3="","",D3/D5) ->  | E4: =IF(E3="","",E3/E5) ->  | G4: =IF(G3="","",G3/G5) ->  | L4: =IF(L3="","",L3/L5) ->  | P4: =IF(P3="","",P3/P5) -> 
A5: =MIN(IF(D5:W5>0,D5:W5)) -> 10152470.02 | C5: Total Amount : | D5: =Result!$C$9 -> 10152470.02 | E5: =Result!$C$10 -> 10364675.84 | F5: =Result!$C$11 -> 10578000 | G5: =Result!$C$12 -> 11550412.12 | H5: =Result!$C$13 -> 0 | I5: =Result!$C$14 -> 0 | J5: =Result!$C$15 -> 0 | K5: =Result!$C$16 -> 0 | L5: =Result!$C$17 -> 0 | M5: =Result!$C$18 -> 0 | N5: =Result!$C$19 -> 0 | O5: =Result!$C$20 -> 0 | P5: =Result!$C$21 -> 0 | Q5: =Result!$C$22 -> 0 | R5: =Result!$C$23 -> 0
A6: Amount $ | D6: Contractor
A7: Main Sec | B7: Sub Sec. No. | C7: Sub-Section | D7: 01. Superior Construction Company | E7: 02. Walsh Construction Company Ii Llc | F7: 03. Milestone Contractors, L.P. | G7: 04. Rieth-Riley Construction
A8: 100 | B8: 105 | C8: Control Of Work | D8: 308000 | E8: 272827.14 | F8: 95000 | G8: 220000
B9: 109 | C9: Measurement And Payment | D9: 7 | E9: 7 | F9: 7 | G9: 7
B10: 110 | C10: Mobilization And Demobilization | D10: 532000 | E10: 518000 | F10: 528244.17 | G10: 1100000
A11: 200 | B11: 201 | C11: Clearing And Grubbing | D11: 212000 | E11: 257000 | F11: 57000 | G11: 156400
B12: 202 | C12: Removal Of Structures And Obstructions | D12: 269570.25 | E12: 224628.56 | F12: 333596.65 | G12: 313124.9
B13: 203 | C13: Excavation And Embankment | D13: 335811.15 | E13: 545636.15 | F13: 640305 | G13: 630386.5
B14: 205 | C14: Temporary Erosion And Sediment Control | D14: 110602 | E14: 115194.28 | F14: 108572 | G14: 72959.35
B15: 207 | C15: Subgrade | D15: 640919 | E15: 733267.61 | F15: 807746.4 | G15: 832571.75
B16: 211 | C16: B Borrow And Structure Backfill | D16: 33975 | E16: 48415.86 | F16: 32265 | G16: 32265
B17: 213 | C17: Flowable Backfill | D17: 49040 | E17: 55304.86 | F17: 55170 | G17: 52196.95
A18: 300 | B18: 301 | C18: Aggregate Base | D18: 127772 | E18: 132206.44 | F18: 135288 | G18: 139046
B19: 302 | C19: Subbase | D19: 917400 | E19: 732207.52 | F19: 856240 | G19: 996908
B20: 303 | C20: Aggregate Pavements Or Shoulders | D20: 2250 | E20: 1518.6 | F20: 1500 | G20: 1101
B21: 306 | C21: Milling | D21: 9117 | E21: 3373.29 | F21: 24312 | G21: 8053.35
A22: 400 | B22: 402 | C22: Hot Mix Asphalt, HMA, Pavement | D22: 183807.39 | E22: 183807.39 | F22: 230685 | G22: 248718
B23: 406 | C23: Tack Coat | D23: 3600 | E23: 3600 | F23: 600 | G23: 6
A24: 500 | B24: 501 | C24: Quality Control/Quality Assurance, QC/QA, Portland Cement Concrete Pavement, PCCP | D24: 3173006.1 | E24: 3097190.91 | F24: 3369564 | G24: 3556762
B25: 503 | C25: PCCP Joints | D25: 478701 | E25: 545187.25 | F25: 425512 | G25: 587738.45
A26: 600 | B26: 601 | C26: Guardrail | D26: 218883.75 | E26: 195994 | F26: 218883.75 | G26: 218283.75
B27: 603 | C27: Fences | D27: 18697.75 | E27: 13152.9 | F27: 18697.75 | G27: 18697.75
B28: 605 | C28: Curbing | D28: 182270 | E28: 239785.02 | F28: 246557 | G28: 265091.2
B29: 610 | C29: Approaches And Crossovers | D29: 245376 | E29: 225393.84 | F29: 243144 | G29: 271644
B30: 611 | C30: Mailbox Installations | D30: 705 | E30: 470 | F30: 705 | G30: 705
B31: 615 | C31: Monuments, Markers, And Parking Barriers | D31: 24277 | E31: 26150 | F31: 24277 | G31: 24277
B32: 616 | C32: Riprap And Slopewall | D32: 27163.1 | E32: 24318.43 | F32: 24106.5 | G32: 23621.55
B33: 621 | C33: Seeding And Sodding | D33: 278411.17 | E33: 293663.62 | F33: 320265.54 | G33: 112930.75
B34: 628 | C34: Field Office, Field Laboratory, Computer Systems, Office Machines And Communications | D34: 44301 | E34: 51825.95 | F34: 56231 | G34: 42776
B35: 619 | C35: Painting Bridge Steel | D35: 110000 | E35: 150000 | F35: 122000 | G35: 110000
A36: 700 | B36: 702 | C36: Structural Concrete | D36: 25201 | E36: 37151.49 | F36: 41870 | G36: 44658.7
B37: 703 | C37: Reinforcing Bars | D37: 7738 | E37: 4139.83 | F37: 15476 | G37: 7738
B38: 706 | C38: Bridge Railings | D38: 12800 | E38: 11764 | F38: 18000 | G38: 17560
B39: 709 | C39: Portland Cement Concrete Sealers | D39: 9000 | E39: 10000 | F39: 8500 | G39: 7500
B40: 714 | C40: Reinforced Concrete Box Structures | D40: 223075 | E40: 186875 | F40: 167650 | G40: 167239
B41: 715 | C41: Pipe Culverts, And Storm And Sanitary Sewers | D41: 286782.47 | E41: 246718.02 | F41: 286442 | G41: 268802.63
B42: 718 | C42: Underdrains | D42: 81768 | E42: 74941.76 | F42: 62000 | G42: 81918
B43: 720 | C43: Manholes, Inlets, And Catch Basins | D43: 46795 | E43: 45370.88 | F43: 32002 | G43: 31997.46
B44: 723 | C44: Reinforced Concrete Three Sided Structures | D44: 54720 | E44: 31166.08 | F44: 52896 | G44: 52889.92
B45: 727 | C45: Structural Concrete Repair By Epoxy Injection | D45: 5814.03 | E45: 5355.62 | F45: 8102.4 | G45: 14217
A46: 800 | B46: 801 | C46: Traffic Controls For Construction And Maintenance Operations | D46: 345787.8 | E46: 505948.93 | F46: 393259.5 | G46: 304294.1
B47: 802 | C47: Signs | D47: 153456.71 | E47: 153456.71 | F47: 153456.71 | G47: 153456.71
B48: 804 | C48: Delineators | D48: 1750 | E48: 1650 | F48: 2000 | G48: 1750
B49: 805 | C49: Traffic Signals | D49: 242473.44 | E49: 242473.44 | F49: 242473.44 | G49: 242473.44
B50: 807 | C50: Highway Illumination | D50: 67202.25 | E50: 67202.25 | F50: 67202.25 | G50: 67202.25
B51: 808 | C51: Pavement Traffic Markings | D51: 50443.66 | E51: 50335.21 | F51: 50194.94 | G51: 50443.66
D52: 0 | E52: 0 | F52: 0 | G52: 0

Sheet Main Sec
C1: =Result!$A$9 -> X | D1: =Result!$A$10 -> 0 | E1: =Result!$A$11 -> 0 | F1: =Result!$A$12 -> 0 | G1: =Result!$A$13 -> 0 | H1: =Result!$A$114 -> 0 | I1: =Result!$A$15 -> 0 | J1: =Result!$A$16 -> 0 | K1: =Result!$A$17 -> 0 | L1: =Result!$A$18 -> 0 | M1: =Result!$A$19 -> 0 | N1: =Result!$A$20 -> 0
C2: ="Filtered Total and %" &" "& J2 -> Filtered Total and % ', (No Filter Applied) | J2: =IF(C3="","', (No Filter Applied)","") -> ', (No Filter Applied)
A3: Letting: | B3: Contract: | C3: =IF(SUBTOTAL(9,C7:C699)=C5,"",(SUBTOTAL(9,C7:C699))) ->  | D3: =IF(SUBTOTAL(9,D7:D699)=D5,"",(SUBTOTAL(9,D7:D699))) ->  | F3: =IF(SUBTOTAL(9,F7:F699)=F5,"",(SUBTOTAL(9,F7:F699))) ->  | O3: =IF(SUBTOTAL(9,O7:O699)=O5,"",(SUBTOTAL(9,O7:O699))) -> 
A4: =Result!C3 -> 2012-01-12 | B4: =Result!C2 -> 30201 | C4: =IF(C3="","",C3/C5) ->  | D4: =IF(D3="","",D3/D5) ->  | F4: =IF(F3="","",F3/F5) ->  | O4: =IF(O3="","",O3/O5) -> 
A5: =MIN(IF(C5:W5>0,C5:W5)) -> 10152470.02 | B5: Total Amount : | C5: =Result!$C9 -> 10152470.02 | D5: =Result!$C10 -> 10364675.84 | E5: =Result!$C11 -> 10578000 | F5: =Result!$C12 -> 11550412.12 | G5: =Result!$C13 -> 0 | H5: =Result!$C14 -> 0 | I5: =Result!$C15 -> 0 | J5: =Result!$C16 -> 0 | K5: =Result!$C17 -> 0 | L5: =Result!$C18 -> 0 | M5: =Result!$C19 -> 0 | N5: =Result!$C20 -> 0 | O5: =Result!$C21 -> 0 | P5: =Result!$C22 -> 0 | Q5: =Result!$C23 -> 0
A6: Amount $ | C6: Contractor
A7: Main Sec | B7: Section | C7: 01. Superior Construction Company | D7: 02. Walsh Construction Company Ii Llc | E7: 03. Milestone Contractors, L.P. | F7: 04. Rieth-Riley Construction
A8: 100 | B8: General Provisions | C8: 840007 | D8: 790834.14 | E8: 623251.17 | F8: 1320007
A9: 200 | B9: Earthwork | C9: 1651917.4 | D9: 1979447.32 | E9: 2034655.05 | F9: 2089904.45
A10: 300 | B10: Aggregate Pavement And Bases | C10: 1056539 | D10: 869305.85 | E10: 1017340 | F10: 1145108.35
A11: 400 | B11: Asphalt Pavements | C11: 187407.39 | D11: 187407.39 | E11: 231285 | F11: 248724
A12: 500 | B12: Concrete Pavement | C12: 3651707.1 | D12: 3642378.16 | E12: 3795076 | F12: 4144500.45
A13: 600 | B13: Incidental Construction | C13: 1150084.77 | D13: 1220753.76 | E13: 1274867.54 | F13: 1088027
A14: 700 | B14: Structures | C14: 753693.5 | D14: 653482.68 | E14: 692938.4 | F14: 694520.71
A15: 800 | B15: Traffic Control Devices And Lighting | C15: 861113.86 | D15: 1021066.54 | E15: 908586.84 | F15: 819620.16
C16: 0 | D16: 0 | E16: 0 | F16: 0

Sheet UT Low 4
E1: Filtered Data | G1: Total | H1: =IF(SUBTOTAL(9,I8:I700)=H6,"",(SUBTOTAL(9,I8:I700))) ->  | J1: =IF(SUBTOTAL(9,K8:K700)=J6,"",(SUBTOTAL(9,K8:K700))) ->  | L1: =IF(SUBTOTAL(9,M8:M700)=L6,"",(SUBTOTAL(9,M8:M700))) ->  | N1: =IF(SUBTOTAL(9,O8:O700)=N6,"",(SUBTOTAL(9,O8:O700))) -> 
A2: Letting: | B2: Contract: | G2: % | H2: =IF(H1="","",H1/H6) ->  | J2: =IF(J1="","",J1/J6) ->  | L2: =IF(L1="","",L1/L6) ->  | N2: =IF(N1="","",N1/N6) -> 
A3: =Result!C3 -> 2012-01-12 | B3: =Result!C2 -> 30201 | E3: =IF(SUBTOTAL(9,I8:I700)=H6,"No Filter Applied","Filter Applied") -> No Filter Applied | H3: =IF(Result!A9="X","Awarded","") -> Awarded | J3: =IF(Result!A10="X","Awarded","") ->  | L3: =IF(Result!A11="X","Awarded","") ->  | N3: =IF(Result!A12="X","Awarded","") -> 
H4: Low 1 | J4: Low 2 | L4: Low 3 | N4: Low 4
H5: =Result!B9 -> 01. Superior Construction Company | J5: =Result!B10 -> 02. Walsh Construction Company Ii Llc | L5: =Result!B11 -> 03. Milestone Contractors, L.P. | N5: =Result!B12 -> 04. Rieth-Riley Construction
H6: =Result!C9 -> 10152470.02 | J6: =Result!C10 -> 10364675.84 | L6: =Result!C11 -> 10578000 | N6: =Result!C12 -> 11550412.12
A7: Item No | B7: Desc. | C7: Print | D7: Main Sec | E7: Sub Sec | F7: Quantity | G7: Unit | H7: $ Unit | I7: Amount | J7: $ Unit | K7: Amount | L7: $ Unit | M7: Amount | N7: $ Unit | O7: Amount
A8: =IF(Items!A8="","",Items!A8) -> 105-06845 | B8: =IF(Items!B8="","",Items!B8) -> CONSTRUCTION ENGINEERING | C8: =IF(A8="","","x") -> x | D8: =IF(A8="","",LEFT(A8,1)*100) -> 100 | E8: =IF(A8="","",LEFT(A8,3)) -> 105 | F8: =IF(A8="","",VLOOKUP(A8,Items!$A$8:$AJ$701,34,FALSE)) -> 1 | G8: =IF(A8="","",VLOOKUP(A8,Items!$A$8:$J$701,3,FALSE)) -> L.S. | H8: =IF(OR($F8="",$F8=0),"",I8/$F8) -> 296000 | I8: =IF($A8="","",VLOOKUP($A8,Items!$A$8:$J$701,5,FALSE)) -> 296000 | J8: =IF(OR($F8="",$F8=0),"",K8/$F8) -> 197827.14 | K8: =IF($A8="","",VLOOKUP($A8,Items!$A$8:$J$701,7,FALSE)) -> 197827.14 | L8: =IF(OR($F8="",$F8=0),"",M8/$F8) -> 70000 | M8: =IF($A8="","",VLOOKUP($A8,Items!$A$8:$J$701,9,FALSE)) -> 70000 | N8: =IF(OR($F8="",$F8=0),"",O8/$F8) -> 200000 | O8: =IF($A8="","",VLOOKUP($A8,Items!$A$8:$K$701,11,FALSE)) -> 200000
A9: =IF(Items!A9="","",Items!A9) -> 105-09645 | B9: =IF(Items!B9="","",Items!B9) -> CONSTRUCTION ENGINEERING AND INSPECTION | C9: =IF(A9="","","x") -> x | D9: =IF(A9="","",LEFT(A9,1)*100) -> 100 | E9: =IF(A9="","",LEFT(A9,3)) -> 105 | F9: =IF(A9="","",VLOOKUP(A9,Items!$A$8:$AJ$701,34,FALSE)) -> 1 | G9: =IF(A9="","",VLOOKUP(A9,Items!$A$8:$J$701,3,FALSE)) -> L.S. | H9: =IF(OR($F9="",$F9=0),"",I9/$F9) -> 12000 | I9: =IF($A9="","",VLOOKUP($A9,Items!$A$8:$J$701,5,FALSE)) -> 12000 | J9: =IF(OR($F9="",$F9=0),"",K9/$F9) -> 75000 | K9: =IF($A9="","",VLOOKUP($A9,Items!$A$8:$J$701,7,FALSE)) -> 75000 | L9: =IF(OR($F9="",$F9=0),"",M9/$F9) -> 25000 | M9: =IF($A9="","",VLOOKUP($A9,Items!$A$8:$J$701,9,FALSE)) -> 25000 | N9: =IF(OR($F9="",$F9=0),"",O9/$F9) -> 20000 | O9: =IF($A9="","",VLOOKUP($A9,Items!$A$8:$K$701,11,FALSE)) -> 20000
A10: =IF(Items!A10="","",Items!A10) -> 109-08359 | B10: =IF(Items!B10="","",Items!B10) -> LIQUIDATED DAMAGES | C10: x | D10: 100 | E10: 109 | F10: =IF(A10="","",VLOOKUP(A10,Items!$A$8:$AJ$701,34,FALSE)) -> 1 | G10: =IF(A10="","",VLOOKUP(A10,Items!$A$8:$J$701,3,FALSE)) -> $ | H10: 1 | I10: =IF($A10="","",VLOOKUP($A10,Items!$A$8:$J$701,5,FALSE)) -> 1 | J10: 1 | K10: =IF($A10="","",VLOOKUP($A10,Items!$A$8:$J$701,7,FALSE)) -> 1 | L10: 1 | M10: =IF($A10="","",VLOOKUP($A10,Items!$A$8:$J$701,9,FALSE)) -> 1 | N10: 1 | O10: =IF($A10="","",VLOOKUP($A10,Items!$A$8:$K$701,11,FALSE)) -> 1
A11: =IF(Items!A11="","",Items!A11) -> 109-08360 | B11: =IF(Items!B11="","",Items!B11) -> CONTRACT LIENS | C11: x | D11: 100 | E11: 109 | F11: =IF(A11="","",VLOOKUP(A11,Items!$A$8:$AJ$701,34,FALSE)) -> 1 | G11: =IF(A11="","",VLOOKUP(A11,Items!$A$8:$J$701,3,FALSE)) -> $ | H11: 1 | I11: =IF($A11="","",VLOOKUP($A11,Items!$A$8:$J$701,5,FALSE)) -> 1 | J11: 1 | K11: =IF($A11="","",VLOOKUP($A11,Items!$A$8:$J$701,7,FALSE)) -> 1 | L11: 1 | M11: =IF($A11="","",VLOOKUP($A11,Items!$A$8:$J$701,9,FALSE)) -> 1 | N11: 1 | O11: =IF($A11="","",VLOOKUP($A11,Items!$A$8:$K$701,11,FALSE)) -> 1
A12: =IF(Items!A12="","",Items!A12) -> 109-08443 | B12: =IF(Items!B12="","",Items!B12) -> QUALITY ADJUSTMENTS, TEMPORARY TRAFFIC CONTRO | C12: x | D12: 100 | E12: 109 | F12: =IF(A12="","",VLOOKUP(A12,Items!$A$8:$AJ$701,34,FALSE)) -> 1 | G12: =IF(A12="","",VLOOKUP(A12,Items!$A$8:$J$701,3,FALSE)) -> $ | H12: 1 | I12: =IF($A12="","",VLOOKUP($A12,Items!$A$8:$J$701,5,FALSE)) -> 1 | J12: 1 | K12: =IF($A12="","",VLOOKUP($A12,Items!$A$8:$J$701,7,FALSE)) -> 1 | L12: 1 | M12: =IF($A12="","",VLOOKUP($A12,Items!$A$8:$J$701,9,FALSE)) -> 1 | N12: 1 | O12: =IF($A12="","",VLOOKUP($A12,Items!$A$8:$K$701,11,FALSE)) -> 1
A13: =IF(Items!A13="","",Items!A13) -> 109-08444 | B13: =IF(Items!B13="","",Items!B13) -> QUALITY ADJUSTMENTS, FAILED MATERIALS | C13: x | D13: 100 | E13: 109 | F13: =IF(A13="","",VLOOKUP(A13,Items!$A$8:$AJ$701,34,FALSE)) -> 1 | G13: =IF(A13="","",VLOOKUP(A13,Items!$A$8:$J$701,3,FALSE)) -> $ | H13: 1 | I13: =IF($A13="","",VLOOKUP($A13,Items!$A$8:$J$701,5,FALSE)) -> 1 | J13: 1 | K13: =IF($A13="","",VLOOKUP($A13,Items!$A$8:$J$701,7,FALSE)) -> 1 | L13: 1 | M13: =IF($A13="","",VLOOKUP($A13,Items!$A$8:$J$701,9,FALSE)) -> 1 | N13: 1 | O13: =IF($A13="","",VLOOKUP($A13,Items!$A$8:$K$701,11,FALSE)) -> 1
A14: =IF(Items!A14="","",Items!A14) -> 109-08463 | B14: =IF(Items!B14="","",Items!B14) -> PROJECT ESTIMATE ADJUSTMENT | C14: x | D14: 100 | E14: 109 | F14: =IF(A14="","",VLOOKUP(A14,Items!$A$8:$AJ$701,34,FALSE)) -> 1 | G14: =IF(A14="","",VLOOKUP(A14,Items!$A$8:$J$701,3,FALSE)) -> $ | H14: 1 | I14: =IF($A14="","",VLOOKUP($A14,Items!$A$8:$J$701,5,FALSE)) -> 1 | J14: 1 | K14: =IF($A14="","",VLOOKUP($A14,Items!$A$8:$J$701,7,FALSE)) -> 1 | L14: 1 | M14: =IF($A14="","",VLOOKUP($A14,Items!$A$8:$J$701,9,FALSE)) -> 1 | N14: 1 | O14: =IF($A14="","",VLOOKUP($A14,Items!$A$8:$K$701,11,FALSE)) -> 1
A15: =IF(Items!A15="","",Items!A15) -> 109-09377 | B15: =IF(Items!B15="","",Items!B15) -> QUALITY ADJUSTMENT, PAVEMENT TRAFFIC | C15: x | D15: 100 | E15: 109 | F15: =IF(A15="","",VLOOKUP(A15,Items!$A$8:$AJ$701,34,FALSE)) -> 1 | G15: =IF(A15="","",VLOOKUP(A15,Items!$A$8:$J$701,3,FALSE)) -> $ | H15: 1 | I15: =IF($A15="","",VLOOKUP($A15,Items!$A$8:$J$701,5,FALSE)) -> 1 | J15: 1 | K15: =IF($A15="","",VLOOKUP($A15,Items!$A$8:$J$701,7,FALSE)) -> 1 | L15: 1 | M15: =IF($A15="","",VLOOKUP($A15,Items!$A$8:$J$701,9,FALSE)) -> 1 | N15: 1 | O15: =IF($A15="","",VLOOKUP($A15,Items!$A$8:$K$701,11,FALSE)) -> 1
A16: =IF(Items!A16="","",Items!A16) -> 109-09489 | B16: =IF(Items!B16="","",Items!B16) -> PAYMENT ADJUSTMENT, PG ASPHALT BINDER | C16: x | D16: 100 | E16: 109 | F16: =IF(A16="","",VLOOKUP(A16,Items!$A$8:$AJ$701,34,FALSE)) -> 1 | G16: =IF(A16="","",VLOOKUP(A16,Items!$A$8:$J$701,3,FALSE)) -> $ | H16: 1 | I16: =IF($A16="","",VLOOKUP($A16,Items!$A$8:$J$701,5,FALSE)) -> 1 | J16: 1 | K16: =IF($A16="","",VLOOKUP($A16,Items!$A$8:$J$701,7,FALSE)) -> 1 | L16: 1 | M16: =IF($A16="","",VLOOKUP($A16,Items!$A$8:$J$701,9,FALSE)) -> 1 | N16: 1 | O16: =IF($A16="","",VLOOKUP($A16,Items!$A$8:$K$701,11,FALSE)) -> 1
A17: =IF(Items!A17="","",Items!A17) -> 110-01001 | B17: =IF(Items!B17="","",Items!B17) -> MOBILIZATION AND DEMOBILIZATION | C17: x | D17: 100 | E17: 110 | F17: =IF(A17="","",VLOOKUP(A17,Items!$A$8:$AJ$701,34,FALSE)) -> 1 | G17: =IF(A17="","",VLOOKUP(A17,Items!$A$8:$J$701,3,FALSE)) -> L.S. | H17: 532000 | I17: =IF($A17="","",VLOOKUP($A17,Items!$A$8:$J$701,5,FALSE)) -> 532000 | J17: 518000 | K17: =IF($A17="","",VLOOKUP($A17,Items!$A$8:$J$701,7,FALSE)) -> 518000 | L17: 528244.17 | M17: =IF($A17="","",VLOOKUP($A17,Items!$A$8:$J$701,9,FALSE)) -> 528244.17 | N17: 1100000 | O17: =IF($A17="","",VLOOKUP($A17,Items!$A$8:$K$701,11,FALSE)) -> 1100000
A18: =IF(Items!A18="","",Items!A18) -> 201-52370 | B18: =IF(Items!B18="","",Items!B18) -> CLEARING RIGHT OF WAY | C18: x | D18: 200 | E18: 201 | F18: =IF(A18="","",VLOOKUP(A18,Items!$A$8:$AJ$701,34,FALSE)) -> 1 | G18: =IF(A18="","",VLOOKUP(A18,Items!$A$8:$J$701,3,FALSE)) -> L.S. | H18: 200000 | I18: =IF($A18="","",VLOOKUP($A18,Items!$A$8:$J$701,5,FALSE)) -> 200000 | J18: 207000 | K18: =IF($A18="","",VLOOKUP($A18,Items!$A$8:$J$701,7,FALSE)) -> 207000 | L18: 50000 | M18: =IF($A18="","",VLOOKUP($A18,Items!$A$8:$J$701,9,FALSE)) -> 50000 | N18: 150000 | O18: =IF($A18="","",VLOOKUP($A18,Items!$A$8:$K$701,11,FALSE)) -> 150000
A19: =IF(Items!A19="","",Items!A19) -> 201-90788 | B19: =IF(Items!B19="","",Items!B19) -> DEBRIS, REMOVE | C19: x | D19: 200 | E19: 201 | F19: =IF(A19="","",VLOOKUP(A19,Items!$A$8:$AJ$701,34,FALSE)) -> 1 | G19: =IF(A19="","",VLOOKUP(A19,Items!$A$8:$J$701,3,FALSE)) -> L.S. | H19: 12000 | I19: =IF($A19="","",VLOOKUP($A19,Items!$A$8:$J$701,5,FALSE)) -> 12000 | J19: 50000 | K19: =IF($A19="","",VLOOKUP($A19,Items!$A$8:$J$701,7,FALSE)) -> 50000 | L19: 7000 | M19: =IF($A19="","",VLOOKUP($A19,Items!$A$8:$J$701,9,FALSE)) -> 7000 | N19: 6400 | O19: =IF($A19="","",VLOOKUP($A19,Items!$A$8:$K$701,11,FALSE)) -> 6400
A20: =IF(Items!A20="","",Items!A20) -> 202-01405 | B20: =IF(Items!B20="","",Items!B20) -> CONTAMINATED SOIL, REMOVE AND DISPOSE | C20: x | D20: 200 | E20: 202 | F20: =IF(A20="","",VLOOKUP(A20,Items!$A$8:$AJ$701,34,FALSE)) -> 20 | G20: =IF(A20="","",VLOOKUP(A20,Items!$A$8:$J$701,3,FALSE)) -> C.Y. | H20: 200 | I20: =IF($A20="","",VLOOKUP($A20,Items!$A$8:$J$701,5,FALSE)) -> 4000 | J20: 240.49 | K20: =IF($A20="","",VLOOKUP($A20,Items!$A$8:$J$701,7,FALSE)) -> 4809.8 | L20: 150.52 | M20: =IF($A20="","",VLOOKUP($A20,Items!$A$8:$J$701,9,FALSE)) -> 3010.4 | N20: 150.55 | O20: =IF($A20="","",VLOOKUP($A20,Items!$A$8:$K$701,11,FALSE)) -> 3011
A21: =IF(Items!A21="","",Items!A21) -> 202-02240 | B21: =IF(Items!B21="","",Items!B21) -> PAVEMENT, REMOVE | C21: x | D21: 200 | E21: 202 | F21: =IF(A21="","",VLOOKUP(A21,Items!$A$8:$AJ$701,34,FALSE)) -> 28674 | G21: =IF(A21="","",VLOOKUP(A21,Items!$A$8:$J$701,3,FALSE)) -> S.Y. | H21: 7.5 | I21: =IF($A21="","",VLOOKUP($A21,Items!$A$8:$J$701,5,FALSE)) -> 215055 | J21: 6.34 | K21: =IF($A21="","",VLOOKUP($A21,Items!$A$8:$J$701,7,FALSE)) -> 181793.16 | L21: 10 | M21: =IF($A21="","",VLOOKUP($A21,Items!$A$8:$J$701,9,FALSE)) -> 286740 | N21: 9.3 | O21: =IF($A21="","",VLOOKUP($A21,Items!$A$8:$K$701,11,FALSE)) -> 266668.2
A22: =IF(Items!A22="","",Items!A22) -> 202-02271 | B22: =IF(Items!B22="","",Items!B22) -> HEADWALL, REMOVE | C22: x | D22: 200 | E22: 202 | F22: =IF(A22="","",VLOOKUP(A22,Items!$A$8:$AJ$701,34,FALSE)) -> 16 | G22: =IF(A22="","",VLOOKUP(A22,Items!$A$8:$J$701,3,FALSE)) -> EACH | H22: 400 | I22: =IF($A22="","",VLOOKUP($A22,Items!$A$8:$J$701,5,FALSE)) -> 6400 | J22: 149.19 | K22: =IF($A22="","",VLOOKUP($A22,Items!$A$8:$J$701,7,FALSE)) -> 2387.04 | L22: 122 | M22: =IF($A22="","",VLOOKUP($A22,Items!$A$8:$J$701,9,FALSE)) -> 1952 | N22: 120 | O22: =IF($A22="","",VLOOKUP($A22,Items!$A$8:$K$701,11,FALSE)) -> 1920
A23: =IF(Items!A23="","",Items!A23) -> 202-02272 | B23: =IF(Items!B23="","",Items!B23) -> PAVED SIDE DITCH, REMOVE | C23: x | D23: 200 | E23: 202 | F23: =IF(A23="","",VLOOKUP(A23,Items!$A$8:$AJ$701,34,FALSE)) -> 344 | G23: =IF(A23="","",VLOOKUP(A23,Items!$A$8:$J$701,3,FALSE)) -> L.F. | H23: 20 | I23: =IF($A23="","",VLOOKUP($A23,Items!$A$8:$J$701,5,FALSE)) -> 6880 | J23: 11.51 | K23: =IF($A23="","",VLOOKUP($A23,Items!$A$8:$J$701,7,FALSE)) -> 3959.44 | L23: 5 | M23: =IF($A23="","",VLOOKUP($A23,Items!$A$8:$J$701,9,FALSE)) -> 1720 | N23: 4.1 | O23: =IF($A23="","",VLOOKUP($A23,Items!$A$8:$K$701,11,FALSE)) -> 1410.4
A24: =IF(Items!A24="","",Items!A24) -> 202-02279 | B24: =IF(Items!B24="","",Items!B24) -> CURB AND GUTTER, REMOVE | C24: x | D24: 200 | E24: 202 | F24: =IF(A24="","",VLOOKUP(A24,Items!$A$8:$AJ$701,34,FALSE)) -> 961 | G24: =IF(A24="","",VLOOKUP(A24,Items!$A$8:$J$701,3,FALSE)) -> L.F. | H24: 12 | I24: =IF($A24="","",VLOOKUP($A24,Items!$A$8:$J$701,5,FALSE)) -> 11532 | J24: 3.84 | K24: =IF($A24="","",VLOOKUP($A24,Items!$A$8:$J$701,7,FALSE)) -> 3690.24 | L24: 3 | M24: =IF($A24="","",VLOOKUP($A24,Items!$A$8:$J$701,9,FALSE)) -> 2883 | N24: 2.85 | O24: =IF($A24="","",VLOOKUP($A24,Items!$A$8:$K$701,11,FALSE)) -> 2738.85
A25: =IF(Items!A25="","",Items!A25) -> 202-74045 | B25: =IF(Items!B25="","",Items!B25) -> SIGNS AND SUPPORTS, CHANNEL POSTS, REMOVE | C25: x | D25: 200 | E25: 202 | F25: =IF(A25="","",VLOOKUP(A25,Items!$A$8:$AJ$701,34,FALSE)) -> 74 | G25: =IF(A25="","",VLOOKUP(A25,Items!$A$8:$J$701,3,FALSE)) -> EACH | H25: 30 | I25: =IF($A25="","",VLOOKUP($A25,Items!$A$8:$J$701,5,FALSE)) -> 2220 | J25: 30 | K25: =IF($A25="","",VLOOKUP($A25,Items!$A$8:$J$701,7,FALSE)) -> 2220 | L25: 30 | M25: =IF($A25="","",VLOOKUP($A25,Items!$A$8:$J$701,9,FALSE)) -> 2220 | N25: 30 | O25: =IF($A25="","",VLOOKUP($A25,Items!$A$8:$K$701,11,FALSE)) -> 2220
A26: =IF(Items!A26="","",Items!A26) -> 202-74080 | B26: =IF(Items!B26="","",Items!B26) -> OVERHEAD SIGN STRUCTURE, CANTILEVER, REMOVE | C26: x | D26: 200 | E26: 202 | F26: =IF(A26="","",VLOOKUP(A26,Items!$A$8:$AJ$701,34,FALSE)) -> 2 | G26: =IF(A26="","",VLOOKUP(A26,Items!$A$8:$J$701,3,FALSE)) -> EACH | H26: 1600 | I26: =IF($A26="","",VLOOKUP($A26,Items!$A$8:$J$701,5,FALSE)) -> 3200 | J26: 1600 | K26: =IF($A26="","",VLOOKUP($A26,Items!$A$8:$J$701,7,FALSE)) -> 3200 | L26: 1600 | M26: =IF($A26="","",VLOOKUP($A26,Items!$A$8:$J$701,9,FALSE)) -> 3200 | N26: 1600 | O26: =IF($A26="","",VLOOKUP($A26,Items!$A$8:$K$701,11,FALSE)) -> 3200
A27: =IF(Items!A27="","",Items!A27) -> 202-82066 | B27: =IF(Items!B27="","",Items!B27) -> SIGN CIRCUITRY, CANTILEVERS, REMOVE | C27: x | D27: 200 | E27: 202 | F27: =IF(A27="","",VLOOKUP(A27,Items!$A$8:$AJ$701,34,FALSE)) -> 2 | G27: =IF(A27="","",VLOOKUP(A27,Items!$A$8:$J$701,3,FALSE)) -> EACH | H27: 250 | I27: =IF($A27="","",VLOOKUP($A27,Items!$A$8:$J$701,5,FALSE)) -> 500 | J27: 250 | K27: =IF($A27="","",VLOOKUP($A27,Items!$A$8:$J$701,7,FALSE)) -> 500 | L27: 250 | M27: =IF($A27="","",VLOOKUP($A27,Items!$A$8:$J$701,9,FALSE)) -> 500 | N27: 250 | O27: =IF($A27="","",VLOOKUP($A27,Items!$A$8:$K$701,11,FALSE)) -> 500
A28: =IF(Items!A28="","",Items!A28) -> 202-86946 | B28: =IF(Items!B28="","",Items!B28) -> HANDHOLE, REMOVE | C28: x | D28: 200 | E28: 202 | F28: =IF(A28="","",VLOOKUP(A28,Items!$A$8:$AJ$701,34,FALSE)) -> 3 | G28: =IF(A28="","",VLOOKUP(A28,Items!$A$8:$J$701,3,FALSE)) -> EACH | H28: 125 | I28: =IF($A28="","",VLOOKUP($A28,Items!$A$8:$J$701,5,FALSE)) -> 375 | J28: 125 | K28: =IF($A28="","",VLOOKUP($A28,Items!$A$8:$J$701,7,FALSE)) -> 375 | L28: 125 | M28: =IF($A28="","",VLOOKUP($A28,Items!$A$8:$J$701,9,FALSE)) -> 375 | N28: 125 | O28: =IF($A28="","",VLOOKUP($A28,Items!$A$8:$K$701,11,FALSE)) -> 375
A29: =IF(Items!A29="","",Items!A29) -> 202-92222 | B29: =IF(Items!B29="","",Items!B29) -> TESTING FOR CONTAMINATED MATERIALS, TPH (SOIL | C29: x | D29: 200 | E29: 202 | F29: =IF(A29="","",VLOOKUP(A29,Items!$A$8:$AJ$701,34,FALSE)) -> 5 | G29: =IF(A29="","",VLOOKUP(A29,Items!$A$8:$J$701,3,FALSE)) -> EACH | H29: 1000 | I29: =IF($A29="","",VLOOKUP($A29,Items!$A$8:$J$701,5,FALSE)) -> 5000 | J29: 500 | K29: =IF($A29="","",VLOOKUP($A29,Items!$A$8:$J$701,7,FALSE)) -> 2500 | L29: 600 | M29: =IF($A29="","",VLOOKUP($A29,Items!$A$8:$J$701,9,FALSE)) -> 3000 | N29: 750 | O29: =IF($A29="","",VLOOKUP($A29,Items!$A$8:$K$701,11,FALSE)) -> 3750
A30: =IF(Items!A30="","",Items!A30) -> 202-93763 | B30: =IF(Items!B30="","",Items!B30) -> LIGHT STANDARD AND FOUNDATION,REMOVE | C30: x | D30: 200 | E30: 202 | F30: =IF(A30="","",VLOOKUP(A30,Items!$A$8:$AJ$701,34,FALSE)) -> 8 | G30: =IF(A30="","",VLOOKUP(A30,Items!$A$8:$J$701,3,FALSE)) -> EACH | H30: 350 | I30: =IF($A30="","",VLOOKUP($A30,Items!$A$8:$J$701,5,FALSE)) -> 2800 | J30: 350 | K30: =IF($A30="","",VLOOKUP($A30,Items!$A$8:$J$701,7,FALSE)) -> 2800 | L30: 350 | M30: =IF($A30="","",VLOOKUP($A30,Items!$A$8:$J$701,9,FALSE)) -> 2800 | N30: 350 | O30: =IF($A30="","",VLOOKUP($A30,Items!$A$8:$K$701,11,FALSE)) -> 2800
A31: =IF(Items!A31="","",Items!A31) -> 202-95579 | B31: =IF(Items!B31="","",Items!B31) -> SERVICE POINT, REMOVE | C31: x | D31: 200 | E31: 202 | F31: =IF(A31="","",VLOOKUP(A31,Items!$A$8:$AJ$701,34,FALSE)) -> 2 | G31: =IF(A31="","",VLOOKUP(A31,Items!$A$8:$J$701,3,FALSE)) -> EACH | H31: 150 | I31: =IF($A31="","",VLOOKUP($A31,Items!$A$8:$J$701,5,FALSE)) -> 300 | J31: 150 | K31: =IF($A31="","",VLOOKUP($A31,Items!$A$8:$J$701,7,FALSE)) -> 300 | L31: 150 | M31: =IF($A31="","",VLOOKUP($A31,Items!$A$8:$J$701,9,FALSE)) -> 300 | N31: 150 | O31: =IF($A31="","",VLOOKUP($A31,Items!$A$8:$K$701,11,FALSE)) -> 300
A32: =IF(Items!A32="","",Items!A32) -> 202-96035 | B32: =IF(Items!B32="","",Items!B32) -> CONCRETE WALL, REMOVE | C32: x | D32: 200 | E32: 202 | F32: =IF(A32="","",VLOOKUP(A32,Items!$A$8:$AJ$701,34,FALSE)) -> 20 | G32: =IF(A32="","",VLOOKUP(A32,Items!$A$8:$J$701,3,FALSE)) -> L.F. | H32: 100 | I32: =IF($A32="","",VLOOKUP($A32,Items!$A$8:$J$701,5,FALSE)) -> 2000 | J32: 87.28 | K32: =IF($A32="","",VLOOKUP($A32,Items!$A$8:$J$701,7,FALSE)) -> 1745.6 | L32: 170 | M32: =IF($A32="","",VLOOKUP($A32,Items!$A$8:$J$701,9,FALSE)) -> 3400 | N32: 170 | O32: =IF($A32="","",VLOOKUP($A32,Items!$A$8:$K$701,11,FALSE)) -> 3400
A33: =IF(Items!A33="","",Items!A33) -> 202-96133 | B33: =IF(Items!B33="","",Items!B33) -> PIPE, REMOVE | C33: x | D33: 200 | E33: 202 | F33: =IF(A33="","",VLOOKUP(A33,Items!$A$8:$AJ$701,34,FALSE)) -> 1108 | G33: =IF(A33="","",VLOOKUP(A33,Items!$A$8:$J$701,3,FALSE)) -> L.F. | H33: 2 | I33: =IF($A33="","",VLOOKUP($A33,Items!$A$8:$J$701,5,FALSE)) -> 2216 | J33: 8.76 | K33: =IF($A33="","",VLOOKUP($A33,Items!$A$8:$J$701,7,FALSE)) -> 9706.08 | L33: 13 | M33: =IF($A33="","",VLOOKUP($A33,Items!$A$8:$J$701,9,FALSE)) -> 14404 | N33: 12.4 | O33: =IF($A33="","",VLOOKUP($A33,Items!$A$8:$K$701,11,FALSE)) -> 13739.2
A34: =IF(Items!A34="","",Items!A34) -> 202-99187 | B34: =IF(Items!B34="","",Items!B34) -> FENCE, FARM FIELD, REMOVE | C34: x | D34: 200 | E34: 202 | F34: =IF(A34="","",VLOOKUP(A34,Items!$A$8:$AJ$701,34,FALSE)) -> 2579 | G34: =IF(A34="","",VLOOKUP(A34,Items!$A$8:$J$701,3,FALSE)) -> L.F. | H34: 2.75 | I34: =IF($A34="","",VLOOKUP($A34,Items!$A$8:$J$701,5,FALSE)) -> 7092.25 | J34: 1.8 | K34: =IF($A34="","",VLOOKUP($A34,Items!$A$8:$J$701,7,FALSE)) -> 4642.2 | L34: 2.75 | M34: =IF($A34="","",VLOOKUP($A34,Items!$A$8:$J$701,9,FALSE)) -> 7092.25 | N34: 2.75 | O34: =IF($A34="","",VLOOKUP($A34,Items!$A$8:$K$701,11,FALSE)) -> 7092.25
A35: =IF(Items!A35="","",Items!A35) -> 203-02000 | B35: =IF(Items!B35="","",Items!B35) -> EXCAVATION, COMMON | C35: x | D35: 200 | E35: 203 | F35: =IF(A35="","",VLOOKUP(A35,Items!$A$8:$AJ$701,34,FALSE)) -> 41965 | G35: =IF(A35="","",VLOOKUP(A35,Items!$A$8:$J$701,3,FALSE)) -> C.Y. | H35: 8 | I35: =IF($A35="","",VLOOKUP($A35,Items!$A$8:$J$701,5,FALSE)) -> 335720 | J35: 13 | K35: =IF($A35="","",VLOOKUP($A35,Items!$A$8:$J$701,7,FALSE)) -> 545545 | L35: 12 | M35: =IF($A35="","",VLOOKUP($A35,Items!$A$8:$J$701,9,FALSE)) -> 503580 | N35: 15 | O35: =IF($A35="","",VLOOKUP($A35,Items!$A$8:$K$701,11,FALSE)) -> 629475
A36: =IF(Items!A36="","",Items!A36) -> 203-02070 | B36: =IF(Items!B36="","",Items!B36) -> BORROW | C36: x | D36: 200 | E36: 203 | F36: =IF(A36="","",VLOOKUP(A36,Items!$A$8:$AJ$701,34,FALSE)) -> 9115 | G36: =IF(A36="","",VLOOKUP(A36,Items!$A$8:$J$701,3,FALSE)) -> C.Y. | H36: 0.01 | I36: =IF($A36="","",VLOOKUP($A36,Items!$A$8:$J$701,5,FALSE)) -> 91.15 | J36: 0.01 | K36: =IF($A36="","",VLOOKUP($A36,Items!$A$8:$J$701,7,FALSE)) -> 91.15 | L36: 15 | M36: =IF($A36="","",VLOOKUP($A36,Items!$A$8:$J$701,9,FALSE)) -> 136725 | N36: 0.1 | O36: =IF($A36="","",VLOOKUP($A36,Items!$A$8:$K$701,11,FALSE)) -> 911.5
A37: =IF(Items!A37="","",Items!A37) -> 205-03371 | B37: =IF(Items!B37="","",Items!B37) -> SEDIMENT REMOVE | C37: x | D37: 200 | E37: 205 | F37: =IF(A37="","",VLOOKUP(A37,Items!$A$8:$AJ$701,34,FALSE)) -> 2051 | G37: =IF(A37="","",VLOOKUP(A37,Items!$A$8:$J$701,3,FALSE)) -> C.Y. | H37: 10 | I37: =IF($A37="","",VLOOKUP($A37,Items!$A$8:$J$701,5,FALSE)) -> 20510 | J37: 7.67 | K37: =IF($A37="","",VLOOKUP($A37,Items!$A$8:$J$701,7,FALSE)) -> 15731.17 | L37: 16 | M37: =IF($A37="","",VLOOKUP($A37,Items!$A$8:$J$701,9,FALSE)) -> 32816 | N37: 0.1 | O37: =IF($A37="","",VLOOKUP($A37,Items!$A$8:$K$701,11,FALSE)) -> 205.1
A38: =IF(Items!A38="","",Items!A38) -> 205-06931 | B38: =IF(Items!B38="","",Items!B38) -> TEMPORARY CHECK DAM, REVETMENT RIPRAP | C38: x | D38: 200 | E38: 205 | F38: =IF(A38="","",VLOOKUP(A38,Items!$A$8:$AJ$701,34,FALSE)) -> 253 | G38: =IF(A38="","",VLOOKUP(A38,Items!$A$8:$J$701,3,FALSE)) -> TON | H38: 65 | I38: =IF($A38="","",VLOOKUP($A38,Items!$A$8:$J$701,5,FALSE)) -> 16445 | J38: 73.69 | K38: =IF($A38="","",VLOOKUP($A38,Items!$A$8:$J$701,7,FALSE)) -> 18643.57 | L38: 45 | M38: =IF($A38="","",VLOOKUP($A38,Items!$A$8:$J$701,9,FALSE)) -> 11385 | N38: 52.75 | O38: =IF($A38="","",VLOOKUP($A38,Items!$A$8:$K$701,11,FALSE)) -> 13345.75
A39: =IF(Items!A39="","",Items!A39) -> 205-06932 | B39: =IF(Items!B39="","",Items!B39) -> TEMPORARY CHECK DAM, STRAW BALES | C39: x | D39: 200 | E39: 205 | F39: =IF(A39="","",VLOOKUP(A39,Items!$A$8:$AJ$701,34,FALSE)) -> 402 | G39: =IF(A39="","",VLOOKUP(A39,Items!$A$8:$J$701,3,FALSE)) -> L.F. | H39: 15 | I39: =IF($A39="","",VLOOKUP($A39,Items!$A$8:$J$701,5,FALSE)) -> 6030 | J39: 9.25 | K39: =IF($A39="","",VLOOKUP($A39,Items!$A$8:$J$701,7,FALSE)) -> 3718.5 | L39: 12 | M39: =IF($A39="","",VLOOKUP($A39,Items!$A$8:$J$701,9,FALSE)) -> 4824 | N39: 11.75 | O39: =IF($A39="","",VLOOKUP($A39,Items!$A$8:$K$701,11,FALSE)) -> 4723.5
A40: =IF(Items!A40="","",Items!A40) -> 205-06933 | B40: =IF(Items!B40="","",Items!B40) -> TEMPORARY DITCH INLET PROTECTION | C40: x | D40: 200 | E40: 205 | F40: =IF(A40="","",VLOOKUP(A40,Items!$A$8:$AJ$701,34,FALSE)) -> 7 | G40: =IF(A40="","",VLOOKUP(A40,Items!$A$8:$J$701,3,FALSE)) -> EACH | H40: 120 | I40: =IF($A40="","",VLOOKUP($A40,Items!$A$8:$J$701,5,FALSE)) -> 840 | J40: 85 | K40: =IF($A40="","",VLOOKUP($A40,Items!$A$8:$J$701,7,FALSE)) -> 595 | L40: 125 | M40: =IF($A40="","",VLOOKUP($A40,Items!$A$8:$J$701,9,FALSE)) -> 875 | N40: 175 | O40: =IF($A40="","",VLOOKUP($A40,Items!$A$8:$K$701,11,FALSE)) -> 1225
A41: =IF(Items!A41="","",Items!A41) -> 205-06934 | B41: =IF(Items!B41="","",Items!B41) -> TEMPORARY MULCHING | C41: x | D41: 200 | E41: 205 | F41: =IF(A41="","",VLOOKUP(A41,Items!$A$8:$AJ$701,34,FALSE)) -> 73 | G41: =IF(A41="","",VLOOKUP(A41,Items!$A$8:$J$701,3,FALSE)) -> TON | H41: 400 | I41: =IF($A41="","",VLOOKUP($A41,Items!$A$8:$J$701,5,FALSE)) -> 29200 | J41: 400 | K41: =IF($A41="","",VLOOKUP($A41,Items!$A$8:$J$701,7,FALSE)) -> 29200 | L41: 345 | M41: =IF($A41="","",VLOOKUP($A41,Items!$A$8:$J$701,9,FALSE)) -> 25185 | N41: 400 | O41: =IF($A41="","",VLOOKUP($A41,Items!$A$8:$K$701,11,FALSE)) -> 29200
A42: =IF(Items!A42="","",Items!A42) -> 205-06936 | B42: =IF(Items!B42="","",Items!B42) -> TEMPORARY SEDIMENT TRAP | C42: x | D42: 200 | E42: 205 | F42: =IF(A42="","",VLOOKUP(A42,Items!$A$8:$AJ$701,34,FALSE)) -> 20 | G42: =IF(A42="","",VLOOKUP(A42,Items!$A$8:$J$701,3,FALSE)) -> TON | H42: 82 | I42: =IF($A42="","",VLOOKUP($A42,Items!$A$8:$J$701,5,FALSE)) -> 1640 | J42: 154.11 | K42: =IF($A42="","",VLOOKUP($A42,Items!$A$8:$J$701,7,FALSE)) -> 3082.2 | L42: 65 | M42: =IF($A42="","",VLOOKUP($A42,Items!$A$8:$J$701,9,FALSE)) -> 1300 | N42: 75.6 | O42: =IF($A42="","",VLOOKUP($A42,Items!$A$8:$K$701,11,FALSE)) -> 1512
A43: =IF(Items!A43="","",Items!A43) -> 205-06937 | B43: =IF(Items!B43="","",Items!B43) -> TEMPORARY SILT FENCE | C43: x | D43: 200 | E43: 205 | F43: =IF(A43="","",VLOOKUP(A43,Items!$A$8:$AJ$701,34,FALSE)) -> 18458 | G43: =IF(A43="","",VLOOKUP(A43,Items!$A$8:$J$701,3,FALSE)) -> L.F. | H43: 1.5 | I43: =IF($A43="","",VLOOKUP($A43,Items!$A$8:$J$701,5,FALSE)) -> 27687 | J43: 1.98 | K43: =IF($A43="","",VLOOKUP($A43,Items!$A$8:$J$701,7,FALSE)) -> 36546.84 | L43: 1.5 | M43: =IF($A43="","",VLOOKUP($A43,Items!$A$8:$J$701,9,FALSE)) -> 27687 | N43: 1 | O43: =IF($A43="","",VLOOKUP($A43,Items!$A$8:$K$701,11,FALSE)) -> 18458
A44: =IF(Items!A44="","",Items!A44) -> 205-09543 | B44: =IF(Items!B44="","",Items!B44) -> NO 2 STONE | C44: x | D44: 200 | E44: 205 | F44: =IF(A44="","",VLOOKUP(A44,Items!$A$8:$AJ$701,34,FALSE)) -> 150 | G44: =IF(A44="","",VLOOKUP(A44,Items!$A$8:$J$701,3,FALSE)) -> TON | H44: 55 | I44: =IF($A44="","",VLOOKUP($A44,Items!$A$8:$J$701,5,FALSE)) -> 8250 | J44: 51.18 | K44: =IF($A44="","",VLOOKUP($A44,Items!$A$8:$J$701,7,FALSE)) -> 7677 | L44: 30 | M44: =IF($A44="","",VLOOKUP($A44,Items!$A$8:$J$701,9,FALSE)) -> 4500 | N44: 28.6 | O44: =IF($A44="","",VLOOKUP($A44,Items!$A$8:$K$701,11,FALSE)) -> 4290
A45: =IF(Items!A45="","",Items!A45) -> 207-08263 | B45: =IF(Items!B45="","",Items!B45) -> SUBGRADE TREATMENT, TYPE IA | C45: x | D45: 200 | E45: 207 | F45: =IF(A45="","",VLOOKUP(A45,Items!$A$8:$AJ$701,34,FALSE)) -> 111762 | G45: =IF(A45="","",VLOOKUP(A45,Items!$A$8:$J$701,3,FALSE)) -> S.Y. | H45: 5.354941751 | I45: =IF($A45="","",VLOOKUP($A45,Items!$A$8:$J$701,5,FALSE)) -> 598479 | J45: 5.988048353 | K45: =IF($A45="","",VLOOKUP($A45,Items!$A$8:$J$701,7,FALSE)) -> 669236.26 | L45: 6.776443693 | M45: =IF($A45="","",VLOOKUP($A45,Items!$A$8:$J$701,9,FALSE)) -> 757348.9 | N45: 6.592728298 | O45: =IF($A45="","",VLOOKUP($A45,Items!$A$8:$K$701,11,FALSE)) -> 736816.5
A46: =IF(Items!A46="","",Items!A46) -> 207-08267 | B46: =IF(Items!B46="","",Items!B46) -> SUBGRADE TREATMENT, TYPE IIIA | C46: x | D46: 200 | E46: 207 | F46: =IF(A46="","",VLOOKUP(A46,Items!$A$8:$AJ$701,34,FALSE)) -> 5305 | G46: =IF(A46="","",VLOOKUP(A46,Items!$A$8:$J$701,3,FALSE)) -> S.Y. | H46: 8 | I46: =IF($A46="","",VLOOKUP($A46,Items!$A$8:$J$701,5,FALSE)) -> 42440 | J46: 12.07 | K46: =IF($A46="","",VLOOKUP($A46,Items!$A$8:$J$701,7,FALSE)) -> 64031.35 | L46: 9.5 | M46: =IF($A46="","",VLOOKUP($A46,Items!$A$8:$J$701,9,FALSE)) -> 50397.5 | N46: 18.05 | O46: =IF($A46="","",VLOOKUP($A46,Items!$A$8:$K$701,11,FALSE)) -> 95755.25
A47: =IF(Items!A47="","",Items!A47) -> 211-09264 | B47: =IF(Items!B47="","",Items!B47) -> STRUCTURE BACKFILL, TYPE 1 | C47: x | D47: 200 | E47: 211 | F47: =IF(A47="","",VLOOKUP(A47,Items!$A$8:$AJ$701,34,FALSE)) -> 900 | G47: =IF(A47="","",VLOOKUP(A47,Items!$A$8:$J$701,3,FALSE)) -> C.Y. | H47: 3 | I47: =IF($A47="","",VLOOKUP($A47,Items!$A$8:$J$701,5,FALSE)) -> 2700 | J47: 20.63 | K47: =IF($A47="","",VLOOKUP($A47,Items!$A$8:$J$701,7,FALSE)) -> 18567 | L47: 15 | M47: =IF($A47="","",VLOOKUP($A47,Items!$A$8:$J$701,9,FALSE)) -> 13500 | N47: 15 | O47: =IF($A47="","",VLOOKUP($A47,Items!$A$8:$K$701,11,FALSE)) -> 13500
A48: =IF(Items!A48="","",Items!A48) -> 211-09265 | B48: =IF(Items!B48="","",Items!B48) -> STRUCTURE BACKFILL, TYPE 2 | C48: x | D48: 200 | E48: 211 | F48: =IF(A48="","",VLOOKUP(A48,Items!$A$8:$AJ$701,34,FALSE)) -> 1251 | G48: =IF(A48="","",VLOOKUP(A48,Items!$A$8:$J$701,3,FALSE)) -> C.Y. | H48: 25 | I48: =IF($A48="","",VLOOKUP($A48,Items!$A$8:$J$701,5,FALSE)) -> 31275 | J48: 23.86 | K48: =IF($A48="","",VLOOKUP($A48,Items!$A$8:$J$701,7,FALSE)) -> 29848.86 | L48: 15 | M48: =IF($A48="","",VLOOKUP($A48,Items!$A$8:$J$701,9,FALSE)) -> 18765 | N48: 15 | O48: =IF($A48="","",VLOOKUP($A48,Items!$A$8:$K$701,11,FALSE)) -> 18765
A49: =IF(Items!A49="","",Items!A49) -> 213-09269 | B49: =IF(Items!B49="","",Items!B49) -> FLOWABLE BACKFILL, NON-REMOVEABLE | C49: x | D49: 200 | E49: 213 | F49: =IF(A49="","",VLOOKUP(A49,Items!$A$8:$AJ$701,34,FALSE)) -> 613 | G49: =IF(A49="","",VLOOKUP(A49,Items!$A$8:$J$701,3,FALSE)) -> C.Y. | H49: 80 | I49: =IF($A49="","",VLOOKUP($A49,Items!$A$8:$J$701,5,FALSE)) -> 49040 | J49: 90.22 | K49: =IF($A49="","",VLOOKUP($A49,Items!$A$8:$J$701,7,FALSE)) -> 55304.86 | L49: 90 | M49: =IF($A49="","",VLOOKUP($A49,Items!$A$8:$J$701,9,FALSE)) -> 55170 | N49: 85.15 | O49: =IF($A49="","",VLOOKUP($A49,Items!$A$8:$K$701,11,FALSE)) -> 52196.95
A50: =IF(Items!A50="","",Items!A50) -> 301-07448 | B50: =IF(Items!B50="","",Items!B50) -> COMPACTED AGGREGATE, NO. 53, BASE | C50: x | D50: 300 | E50: 301 | F50: =IF(A50="","",VLOOKUP(A50,Items!$A$8:$AJ$701,34,FALSE)) -> 7516 | G50: =IF(A50="","",VLOOKUP(A50,Items!$A$8:$J$701,3,FALSE)) -> TON | H50: 17 | I50: =IF($A50="","",VLOOKUP($A50,Items!$A$8:$J$701,5,FALSE)) -> 127772 | J50: 17.59 | K50: =IF($A50="","",VLOOKUP($A50,Items!$A$8:$J$701,7,FALSE)) -> 132206.44 | L50: 18 | M50: =IF($A50="","",VLOOKUP($A50,Items!$A$8:$J$701,9,FALSE)) -> 135288 | N50: 18.5 | O50: =IF($A50="","",VLOOKUP($A50,Items!$A$8:$K$701,11,FALSE)) -> 139046
A51: =IF(Items!A51="","",Items!A51) -> 302-06464 | B51: =IF(Items!B51="","",Items!B51) -> SUBBASE FOR PCCP | C51: x | D51: 300 | E51: 302 | F51: =IF(A51="","",VLOOKUP(A51,Items!$A$8:$AJ$701,34,FALSE)) -> 24464 | G51: =IF(A51="","",VLOOKUP(A51,Items!$A$8:$J$701,3,FALSE)) -> C.Y. | H51: 37.5 | I51: =IF($A51="","",VLOOKUP($A51,Items!$A$8:$J$701,5,FALSE)) -> 917400 | J51: 29.93 | K51: =IF($A51="","",VLOOKUP($A51,Items!$A$8:$J$701,7,FALSE)) -> 732207.52 | L51: 35 | M51: =IF($A51="","",VLOOKUP($A51,Items!$A$8:$J$701,9,FALSE)) -> 856240 | N51: 40.75 | O51: =IF($A51="","",VLOOKUP($A51,Items!$A$8:$K$701,11,FALSE)) -> 996908
A52: =IF(Items!A52="","",Items!A52) -> 303-08210 | B52: =IF(Items!B52="","",Items!B52) -> COMPACTED AGGREGATE NO. 53, TEMPORARY FOR DRI | C52: x | D52: 300 | E52: 303 | F52: =IF(A52="","",VLOOKUP(A52,Items!$A$8:$AJ$701,34,FALSE)) -> 30 | G52: =IF(A52="","",VLOOKUP(A52,Items!$A$8:$J$701,3,FALSE)) -> TON | H52: 75 | I52: =IF($A52="","",VLOOKUP($A52,Items!$A$8:$J$701,5,FALSE)) -> 2250 | J52: 50.62 | K52: =IF($A52="","",VLOOKUP($A52,Items!$A$8:$J$701,7,FALSE)) -> 1518.6 | L52: 50 | M52: =IF($A52="","",VLOOKUP($A52,Items!$A$8:$J$701,9,FALSE)) -> 1500 | N52: 36.7 | O52: =IF($A52="","",VLOOKUP($A52,Items!$A$8:$K$701,11,FALSE)) -> 1101
A53: =IF(Items!A53="","",Items!A53) -> 306-08034 | B53: =IF(Items!B53="","",Items!B53) -> MILLING, ASPHALT, 1 1/2 IN. | C53: x | D53: 300 | E53: 306 | F53: =IF(A53="","",VLOOKUP(A53,Items!$A$8:$AJ$701,34,FALSE)) -> 3039 | G53: =IF(A53="","",VLOOKUP(A53,Items!$A$8:$J$701,3,FALSE)) -> S.Y. | H53: 3 | I53: =IF($A53="","",VLOOKUP($A53,Items!$A$8:$J$701,5,FALSE)) -> 9117 | J53: 1.11 | K53: =IF($A53="","",VLOOKUP($A53,Items!$A$8:$J$701,7,FALSE)) -> 3373.29 | L53: 8 | M53: =IF($A53="","",VLOOKUP($A53,Items!$A$8:$J$701,9,FALSE)) -> 24312 | N53: 2.65 | O53: =IF($A53="","",VLOOKUP($A53,Items!$A$8:$K$701,11,FALSE)) -> 8053.35
A54: =IF(Items!A54="","",Items!A54) -> 402-07784 | B54: =IF(Items!B54="","",Items!B54) -> HMA SURFACE, TYPE D | C54: x | D54: 400 | E54: 402 | F54: =IF(A54="","",VLOOKUP(A54,Items!$A$8:$AJ$701,34,FALSE)) -> 268 | G54: =IF(A54="","",VLOOKUP(A54,Items!$A$8:$J$701,3,FALSE)) -> TON | H54: 87.75 | I54: =IF($A54="","",VLOOKUP($A54,Items!$A$8:$J$701,5,FALSE)) -> 23517 | J54: 87.75 | K54: =IF($A54="","",VLOOKUP($A54,Items!$A$8:$J$701,7,FALSE)) -> 23517 | L54: 125 | M54: =IF($A54="","",VLOOKUP($A54,Items!$A$8:$J$701,9,FALSE)) -> 33500 | N54: 97.5 | O54: =IF($A54="","",VLOOKUP($A54,Items!$A$8:$K$701,11,FALSE)) -> 26130
A55: =IF(Items!A55="","",Items!A55) -> 402-07785 | B55: =IF(Items!B55="","",Items!B55) -> HMA INTERMEDIATE, TYPE D | C55: x | D55: 400 | E55: 402 | F55: =IF(A55="","",VLOOKUP(A55,Items!$A$8:$AJ$701,34,FALSE)) -> 67 | G55: =IF(A55="","",VLOOKUP(A55,Items!$A$8:$J$701,3,FALSE)) -> TON | H55: 89.85 | I55: =IF($A55="","",VLOOKUP($A55,Items!$A$8:$J$701,5,FALSE)) -> 6019.95 | J55: 89.85 | K55: =IF($A55="","",VLOOKUP($A55,Items!$A$8:$J$701,7,FALSE)) -> 6019.95 | L55: 100 | M55: =IF($A55="","",VLOOKUP($A55,Items!$A$8:$J$701,9,FALSE)) -> 6700 | N55: 94.5 | O55: =IF($A55="","",VLOOKUP($A55,Items!$A$8:$K$701,11,FALSE)) -> 6331.5
A56: =IF(Items!A56="","",Items!A56) -> 402-10083 | B56: =IF(Items!B56="","",Items!B56) -> HMA FOR TEMPORARY PAVEMENT, A | C56: x | D56: 400 | E56: 402 | F56: =IF(A56="","",VLOOKUP(A56,Items!$A$8:$AJ$701,34,FALSE)) -> 2241 | G56: =IF(A56="","",VLOOKUP(A56,Items!$A$8:$J$701,3,FALSE)) -> TON | H56: 68.84 | I56: =IF($A56="","",VLOOKUP($A56,Items!$A$8:$J$701,5,FALSE)) -> 154270.44 | J56: 68.84 | K56: =IF($A56="","",VLOOKUP($A56,Items!$A$8:$J$701,7,FALSE)) -> 154270.44 | L56: 85 | M56: =IF($A56="","",VLOOKUP($A56,Items!$A$8:$J$701,9,FALSE)) -> 190485 | N56: 96.5 | O56: =IF($A56="","",VLOOKUP($A56,Items!$A$8:$K$701,11,FALSE)) -> 216256.5
A57: =IF(Items!A57="","",Items!A57) -> 406-05520 | B57: =IF(Items!B57="","",Items!B57) -> ASPHALT MATERIAL FOR TACK COAT | C57: x | D57: 400 | E57: 406 | F57: =IF(A57="","",VLOOKUP(A57,Items!$A$8:$AJ$701,34,FALSE)) -> 6 | G57: =IF(A57="","",VLOOKUP(A57,Items!$A$8:$J$701,3,FALSE)) -> TON | H57: 600 | I57: =IF($A57="","",VLOOKUP($A57,Items!$A$8:$J$701,5,FALSE)) -> 3600 | J57: 600 | K57: =IF($A57="","",VLOOKUP($A57,Items!$A$8:$J$701,7,FALSE)) -> 3600 | L57: 100 | M57: =IF($A57="","",VLOOKUP($A57,Items!$A$8:$J$701,9,FALSE)) -> 600 | N57: 1 | O57: =IF($A57="","",VLOOKUP($A57,Items!$A$8:$K$701,11,FALSE)) -> 6
A58: =IF(Items!A58="","",Items!A58) -> 501-06321 | B58: =IF(Items!B58="","",Items!B58) -> QC/QA PCCP, 10 IN. | C58: x | D58: 500 | E58: 501 | F58: =IF(A58="","",VLOOKUP(A58,Items!$A$8:$AJ$701,34,FALSE)) -> 93599 | G58: =IF(A58="","",VLOOKUP(A58,Items!$A$8:$J$701,3,FALSE)) -> S.Y. | H58: 33.9 | I58: =IF($A58="","",VLOOKUP($A58,Items!$A$8:$J$701,5,FALSE)) -> 3173006.1 | J58: 33.09 | K58: =IF($A58="","",VLOOKUP($A58,Items!$A$8:$J$701,7,FALSE)) -> 3097190.91 | L58: 36 | M58: =IF($A58="","",VLOOKUP($A58,Items!$A$8:$J$701,9,FALSE)) -> 3369564 | N58: 38 | O58: =IF($A58="","",VLOOKUP($A58,Items!$A$8:$K$701,11,FALSE)) -> 3556762
A59: =IF(Items!A59="","",Items!A59) -> 503-05240 | B59: =IF(Items!B59="","",Items!B59) -> D-1 CONTRACTION JOINT | C59: x | D59: 500 | E59: 503 | F59: =IF(A59="","",VLOOKUP(A59,Items!$A$8:$AJ$701,34,FALSE)) -> 53189 | G59: =IF(A59="","",VLOOKUP(A59,Items!$A$8:$J$701,3,FALSE)) -> L.F. | H59: 9 | I59: =IF($A59="","",VLOOKUP($A59,Items!$A$8:$J$701,5,FALSE)) -> 478701 | J59: 10.25 | K59: =IF($A59="","",VLOOKUP($A59,Items!$A$8:$J$701,7,FALSE)) -> 545187.25 | L59: 8 | M59: =IF($A59="","",VLOOKUP($A59,Items!$A$8:$J$701,9,FALSE)) -> 425512 | N59: 11.05 | O59: =IF($A59="","",VLOOKUP($A59,Items!$A$8:$K$701,11,FALSE)) -> 587738.45
A60: =IF(Items!A60="","",Items!A60) -> 601-01522 | B60: =IF(Items!B60="","",Items!B60) -> GUARDRAIL TRANSITION TYPE TGB | C60: x | D60: 600 | E60: 601 | F60: =IF(A60="","",VLOOKUP(A60,Items!$A$8:$AJ$701,34,FALSE)) -> 2 | G60: =IF(A60="","",VLOOKUP(A60,Items!$A$8:$J$701,3,FALSE)) -> EACH | H60: 2100 | I60: =IF($A60="","",VLOOKUP($A60,Items!$A$8:$J$701,5,FALSE)) -> 4200 | J60: 1900 | K60: =IF($A60="","",VLOOKUP($A60,Items!$A$8:$J$701,7,FALSE)) -> 3800 | L60: 2100 | M60: =IF($A60="","",VLOOKUP($A60,Items!$A$8:$J$701,9,FALSE)) -> 4200 | N60: 2100 | O60: =IF($A60="","",VLOOKUP($A60,Items!$A$8:$K$701,11,FALSE)) -> 4200
A61: =IF(Items!A61="","",Items!A61) -> 601-01701 | B61: =IF(Items!B61="","",Items!B61) -> GUARDRAIL TERMINAL SYSTEM, W BEAM, CURVED, 2 | C61: x | D61: 600 | E61: 601 | F61: =IF(A61="","",VLOOKUP(A61,Items!$A$8:$AJ$701,34,FALSE)) -> 2 | G61: =IF(A61="","",VLOOKUP(A61,Items!$A$8:$J$701,3,FALSE)) -> EACH | H61: 1865 | I61: =IF($A61="","",VLOOKUP($A61,Items!$A$8:$J$701,5,FALSE)) -> 3730 | J61: 1800 | K61: =IF($A61="","",VLOOKUP($A61,Items!$A$8:$J$701,7,FALSE)) -> 3600 | L61: 1865 | M61: =IF($A61="","",VLOOKUP($A61,Items!$A$8:$J$701,9,FALSE)) -> 3730 | N61: 1865 | O61: =IF($A61="","",VLOOKUP($A61,Items!$A$8:$K$701,11,FALSE)) -> 3730
A62: =IF(Items!A62="","",Items!A62) -> 601-01848 | B62: =IF(Items!B62="","",Items!B62) -> GUARDRAIL TERMINAL SYSTEM, W-BEAM, CURVED, 5 | C62: x | D62: 600 | E62: 601 | F62: =IF(A62="","",VLOOKUP(A62,Items!$A$8:$AJ$701,34,FALSE)) -> 1 | G62: =IF(A62="","",VLOOKUP(A62,Items!$A$8:$J$701,3,FALSE)) -> EACH | H62: 2065 | I62: =IF($A62="","",VLOOKUP($A62,Items!$A$8:$J$701,5,FALSE)) -> 2065 | J62: 1800 | K62: =IF($A62="","",VLOOKUP($A62,Items!$A$8:$J$701,7,FALSE)) -> 1800 | L62: 2065 | M62: =IF($A62="","",VLOOKUP($A62,Items!$A$8:$J$701,9,FALSE)) -> 2065 | N62: 2065 | O62: =IF($A62="","",VLOOKUP($A62,Items!$A$8:$K$701,11,FALSE)) -> 2065
A63: =IF(Items!A63="","",Items!A63) -> 601-02241 | B63: =IF(Items!B63="","",Items!B63) -> GUARDRAIL, REMOVE | C63: x | D63: 600 | E63: 601 | F63: =IF(A63="","",VLOOKUP(A63,Items!$A$8:$AJ$701,34,FALSE)) -> 1325 | G63: =IF(A63="","",VLOOKUP(A63,Items!$A$8:$J$701,3,FALSE)) -> L.F. | H63: 4.5 | I63: =IF($A63="","",VLOOKUP($A63,Items!$A$8:$J$701,5,FALSE)) -> 5962.5 | J63: 4 | K63: =IF($A63="","",VLOOKUP($A63,Items!$A$8:$J$701,7,FALSE)) -> 5300 | L63: 4.5 | M63: =IF($A63="","",VLOOKUP($A63,Items!$A$8:$J$701,9,FALSE)) -> 5962.5 | N63: 4.5 | O63: =IF($A63="","",VLOOKUP($A63,Items!$A$8:$K$701,11,FALSE)) -> 5962.5
A64: =IF(Items!A64="","",Items!A64) -> 601-05071 | B64: =IF(Items!B64="","",Items!B64) -> GUARDRAIL TERMINAL SYSTEM, W-BEAM, CURVED, 7 | C64: x | D64: 600 | E64: 601 | F64: =IF(A64="","",VLOOKUP(A64,Items!$A$8:$AJ$701,34,FALSE)) -> 1 | G64: =IF(A64="","",VLOOKUP(A64,Items!$A$8:$J$701,3,FALSE)) -> EACH | H64: 2500 | I64: =IF($A64="","",VLOOKUP($A64,Items!$A$8:$J$701,5,FALSE)) -> 2500 | J64: 1800 | K64: =IF($A64="","",VLOOKUP($A64,Items!$A$8:$J$701,7,FALSE)) -> 1800 | L64: 2500 | M64: =IF($A64="","",VLOOKUP($A64,Items!$A$8:$J$701,9,FALSE)) -> 2500 | N64: 2500 | O64: =IF($A64="","",VLOOKUP($A64,Items!$A$8:$K$701,11,FALSE)) -> 2500
A65: =IF(Items!A65="","",Items!A65) -> 601-06854 | B65: =IF(Items!B65="","",Items!B65) -> GUARDRAIL, W-BEAM, NESTED | C65: x | D65: 600 | E65: 601 | F65: =IF(A65="","",VLOOKUP(A65,Items!$A$8:$AJ$701,34,FALSE)) -> 5 | G65: =IF(A65="","",VLOOKUP(A65,Items!$A$8:$J$701,3,FALSE)) -> EACH | H65: 2800 | I65: =IF($A65="","",VLOOKUP($A65,Items!$A$8:$J$701,5,FALSE)) -> 14000 | J65: 2300 | K65: =IF($A65="","",VLOOKUP($A65,Items!$A$8:$J$701,7,FALSE)) -> 11500 | L65: 2800 | M65: =IF($A65="","",VLOOKUP($A65,Items!$A$8:$J$701,9,FALSE)) -> 14000 | N65: 2800 | O65: =IF($A65="","",VLOOKUP($A65,Items!$A$8:$K$701,11,FALSE)) -> 14000
A66: =IF(Items!A66="","",Items!A66) -> 601-08433 | B66: =IF(Items!B66="","",Items!B66) -> GUARDRAIL END TREATMENT, TYPE OS, SPARE PARTS | C66: x | D66: 600 | E66: 601 | F66: =IF(A66="","",VLOOKUP(A66,Items!$A$8:$AJ$701,34,FALSE)) -> 1 | G66: =IF(A66="","",VLOOKUP(A66,Items!$A$8:$J$701,3,FALSE)) -> EACH | H66: 610 | I66: =IF($A66="","",VLOOKUP($A66,Items!$A$8:$J$701,5,FALSE)) -> 610 | J66: 1200 | K66: =IF($A66="","",VLOOKUP($A66,Items!$A$8:$J$701,7,FALSE)) -> 1200 | L66: 610 | M66: =IF($A66="","",VLOOKUP($A66,Items!$A$8:$J$701,9,FALSE)) -> 610 | N66: 610 | O66: =IF($A66="","",VLOOKUP($A66,Items!$A$8:$K$701,11,FALSE)) -> 610
A67: =IF(Items!A67="","",Items!A67) -> 601-08434 | B67: =IF(Items!B67="","",Items!B67) -> GUARDRAIL END TREATMENT, TYPE OS, SPARE PARTS | C67: x | D67: 600 | E67: 601 | F67: =IF(A67="","",VLOOKUP(A67,Items!$A$8:$AJ$701,34,FALSE)) -> 1 | G67: =IF(A67="","",VLOOKUP(A67,Items!$A$8:$J$701,3,FALSE)) -> EACH | H67: 110 | I67: =IF($A67="","",VLOOKUP($A67,Items!$A$8:$J$701,5,FALSE)) -> 110 | J67: 1400 | K67: =IF($A67="","",VLOOKUP($A67,Items!$A$8:$J$701,7,FALSE)) -> 1400 | L67: 110 | M67: =IF($A67="","",VLOOKUP($A67,Items!$A$8:$J$701,9,FALSE)) -> 110 | N67: 110 | O67: =IF($A67="","",VLOOKUP($A67,Items!$A$8:$K$701,11,FALSE)) -> 110
A68: =IF(Items!A68="","",Items!A68) -> 601-09149 | B68: =IF(Items!B68="","",Items!B68) -> IMPACT ATTENUATOR, CR1, W1, TL-3 | C68: x | D68: 600 | E68: 601 | F68: =IF(A68="","",VLOOKUP(A68,Items!$A$8:$AJ$701,34,FALSE)) -> 2 | G68: =IF(A68="","",VLOOKUP(A68,Items!$A$8:$J$701,3,FALSE)) -> EACH | H68: 33300 | I68: =IF($A68="","",VLOOKUP($A68,Items!$A$8:$J$701,5,FALSE)) -> 66600 | J68: 25500 | K68: =IF($A68="","",VLOOKUP($A68,Items!$A$8:$J$701,7,FALSE)) -> 51000 | L68: 33300 | M68: =IF($A68="","",VLOOKUP($A68,Items!$A$8:$J$701,9,FALSE)) -> 66600 | N68: 33000 | O68: =IF($A68="","",VLOOKUP($A68,Items!$A$8:$K$701,11,FALSE)) -> 66000
A69: =IF(Items!A69="","",Items!A69) -> 601-94689 | B69: =IF(Items!B69="","",Items!B69) -> GUARDRAIL END TREATMENT, OS | C69: x | D69: 600 | E69: 601 | F69: =IF(A69="","",VLOOKUP(A69,Items!$A$8:$AJ$701,34,FALSE)) -> 15 | G69: =IF(A69="","",VLOOKUP(A69,Items!$A$8:$J$701,3,FALSE)) -> EACH | H69: 2635 | I69: =IF($A69="","",VLOOKUP($A69,Items!$A$8:$J$701,5,FALSE)) -> 39525 | J69: 2700 | K69: =IF($A69="","",VLOOKUP($A69,Items!$A$8:$J$701,7,FALSE)) -> 40500 | L69: 2635 | M69: =IF($A69="","",VLOOKUP($A69,Items!$A$8:$J$701,9,FALSE)) -> 39525 | N69: 2635 | O69: =IF($A69="","",VLOOKUP($A69,Items!$A$8:$K$701,11,FALSE)) -> 39525
A70: =IF(Items!A70="","",Items!A70) -> 601-99105 | B70: =IF(Items!B70="","",Items!B70) -> GUARDRAIL, W BEAM, 6 FT. 3 IN. SPACING | C70: x | D70: 600 | E70: 601 | F70: =IF(A70="","",VLOOKUP(A70,Items!$A$8:$AJ$701,34,FALSE)) -> 3583 | G70: =IF(A70="","",VLOOKUP(A70,Items!$A$8:$J$701,3,FALSE)) -> L.F. | H70: 18.75 | I70: =IF($A70="","",VLOOKUP($A70,Items!$A$8:$J$701,5,FALSE)) -> 67181.25 | J70: 18 | K70: =IF($A70="","",VLOOKUP($A70,Items!$A$8:$J$701,7,FALSE)) -> 64494 | L70: 18.75 | M70: =IF($A70="","",VLOOKUP($A70,Items!$A$8:$J$701,9,FALSE)) -> 67181.25 | N70: 18.75 | O70: =IF($A70="","",VLOOKUP($A70,Items!$A$8:$K$701,11,FALSE)) -> 67181.25
A71: =IF(Items!A71="","",Items!A71) -> 601-99123 | B71: =IF(Items!B71="","",Items!B71) -> GUARDRAIL TRANSITION, GP | C71: x | D71: 600 | E71: 601 | F71: =IF(A71="","",VLOOKUP(A71,Items!$A$8:$AJ$701,34,FALSE)) -> 4 | G71: =IF(A71="","",VLOOKUP(A71,Items!$A$8:$J$701,3,FALSE)) -> EACH | H71: 3100 | I71: =IF($A71="","",VLOOKUP($A71,Items!$A$8:$J$701,5,FALSE)) -> 12400 | J71: 2400 | K71: =IF($A71="","",VLOOKUP($A71,Items!$A$8:$J$701,7,FALSE)) -> 9600 | L71: 3100 | M71: =IF($A71="","",VLOOKUP($A71,Items!$A$8:$J$701,9,FALSE)) -> 12400 | N71: 3100 | O71: =IF($A71="","",VLOOKUP($A71,Items!$A$8:$K$701,11,FALSE)) -> 12400
A72: =IF(Items!A72="","",Items!A72) -> 603-06040 | B72: =IF(Items!B72="","",Items!B72) -> FENCE, FARM FIELD, 47 IN. | C72: x | D72: 600 | E72: 603 | F72: =IF(A72="","",VLOOKUP(A72,Items!$A$8:$AJ$701,34,FALSE)) -> 2579 | G72: =IF(A72="","",VLOOKUP(A72,Items!$A$8:$J$701,3,FALSE)) -> L.F. | H72: 7.25 | I72: =IF($A72="","",VLOOKUP($A72,Items!$A$8:$J$701,5,FALSE)) -> 18697.75 | J72: 5.1 | K72: =IF($A72="","",VLOOKUP($A72,Items!$A$8:$J$701,7,FALSE)) -> 13152.9 | L72: 7.25 | M72: =IF($A72="","",VLOOKUP($A72,Items!$A$8:$J$701,9,FALSE)) -> 18697.75 | N72: 7.25 | O72: =IF($A72="","",VLOOKUP($A72,Items!$A$8:$K$701,11,FALSE)) -> 18697.75
A73: =IF(Items!A73="","",Items!A73) -> 605-06090 | B73: =IF(Items!B73="","",Items!B73) -> CURB, INTEGRAL, CONCRETE | C73: =IF(A73="","","x") -> x | D73: =IF(A73="","",LEFT(A73,1)*100) -> 600 | E73: =IF(A73="","",LEFT(A73,3)) -> 605 | F73: =IF(A73="","",VLOOKUP(A73,Items!$A$8:$AJ$701,34,FALSE)) -> 217 | G73: =IF(A73="","",VLOOKUP(A73,Items!$A$8:$J$701,3,FALSE)) -> L.F. | H73: =IF(OR($F73="",$F73=0),"",I73/$F73) -> 14 | I73: =IF($A73="","",VLOOKUP($A73,Items!$A$8:$J$701,5,FALSE)) -> 3038 | J73: =IF(OR($F73="",$F73=0),"",K73/$F73) -> 11.71 | K73: =IF($A73="","",VLOOKUP($A73,Items!$A$8:$J$701,7,FALSE)) -> 2541.07 | L73: =IF(OR($F73="",$F73=0),"",M73/$F73) -> 12 | M73: =IF($A73="","",VLOOKUP($A73,Items!$A$8:$J$701,9,FALSE)) -> 2604 | N73: =IF(OR($F73="",$F73=0),"",O73/$F73) -> 34.4 | O73: =IF($A73="","",VLOOKUP($A73,Items!$A$8:$K$701,11,FALSE)) -> 7464.8
A74: =IF(Items!A74="","",Items!A74) -> 605-06121 | B74: =IF(Items!B74="","",Items!B74) -> CURB, CONCRETE, B | C74: x | D74: 600 | E74: 605 | F74: =IF(A74="","",VLOOKUP(A74,Items!$A$8:$AJ$701,34,FALSE)) -> 1442 | G74: =IF(A74="","",VLOOKUP(A74,Items!$A$8:$J$701,3,FALSE)) -> L.F. | H74: 15 | I74: =IF($A74="","",VLOOKUP($A74,Items!$A$8:$J$701,5,FALSE)) -> 21630 | J74: 8.37 | K74: =IF($A74="","",VLOOKUP($A74,Items!$A$8:$J$701,7,FALSE)) -> 12069.54 | L74: 16.5 | M74: =IF($A74="","",VLOOKUP($A74,Items!$A$8:$J$701,9,FALSE)) -> 23793 | N74: 17.9 | O74: =IF($A74="","",VLOOKUP($A74,Items!$A$8:$K$701,11,FALSE)) -> 25811.8
A75: =IF(Items!A75="","",Items!A75) -> 605-06140 | B75: =IF(Items!B75="","",Items!B75) -> CURB AND GUTTER, CONCRETE | C75: x | D75: 600 | E75: 605 | F75: =IF(A75="","",VLOOKUP(A75,Items!$A$8:$AJ$701,34,FALSE)) -> 42 | G75: =IF(A75="","",VLOOKUP(A75,Items!$A$8:$J$701,3,FALSE)) -> L.F. | H75: 21 | I75: =IF($A75="","",VLOOKUP($A75,Items!$A$8:$J$701,5,FALSE)) -> 882 | J75: 26.69 | K75: =IF($A75="","",VLOOKUP($A75,Items!$A$8:$J$701,7,FALSE)) -> 1120.98 | L75: 50 | M75: =IF($A75="","",VLOOKUP($A75,Items!$A$8:$J$701,9,FALSE)) -> 2100 | N75: 37.3 | O75: =IF($A75="","",VLOOKUP($A75,Items!$A$8:$K$701,11,FALSE)) -> 1566.6
A76: =IF(Items!A76="","",Items!A76) -> 605-06145 | B76: =IF(Items!B76="","",Items!B76) -> CURB AND GUTTER, B, CONCRETE | C76: x | D76: 600 | E76: 605 | F76: =IF(A76="","",VLOOKUP(A76,Items!$A$8:$AJ$701,34,FALSE)) -> 177 | G76: =IF(A76="","",VLOOKUP(A76,Items!$A$8:$J$701,3,FALSE)) -> L.F. | H76: 20 | I76: =IF($A76="","",VLOOKUP($A76,Items!$A$8:$J$701,5,FALSE)) -> 3540 | J76: 20.59 | K76: =IF($A76="","",VLOOKUP($A76,Items!$A$8:$J$701,7,FALSE)) -> 3644.43 | L76: 30 | M76: =IF($A76="","",VLOOKUP($A76,Items!$A$8:$J$701,9,FALSE)) -> 5310 | N76: 32.75 | O76: =IF($A76="","",VLOOKUP($A76,Items!$A$8:$K$701,11,FALSE)) -> 5796.75
A77: =IF(Items!A77="","",Items!A77) -> 605-06245 | B77: =IF(Items!B77="","",Items!B77) -> CENTER CURB, B, CONCRETE | C77: x | D77: 600 | E77: 605 | F77: =IF(A77="","",VLOOKUP(A77,Items!$A$8:$AJ$701,34,FALSE)) -> 4255 | G77: =IF(A77="","",VLOOKUP(A77,Items!$A$8:$J$701,3,FALSE)) -> S.Y. | H77: 36 | I77: =IF($A77="","",VLOOKUP($A77,Items!$A$8:$J$701,5,FALSE)) -> 153180 | J77: 51.8 | K77: =IF($A77="","",VLOOKUP($A77,Items!$A$8:$J$701,7,FALSE)) -> 220409 | L77: 50 | M77: =IF($A77="","",VLOOKUP($A77,Items!$A$8:$J$701,9,FALSE)) -> 212750 | N77: 52.75 | O77: =IF($A77="","",VLOOKUP($A77,Items!$A$8:$K$701,11,FALSE)) -> 224451.25
A78: =IF(Items!A78="","",Items!A78) -> 610-07487 | B78: =IF(Items!B78="","",Items!B78) -> HMA FOR APPROACHES, TYPE B | C78: x | D78: 600 | E78: 610 | F78: =IF(A78="","",VLOOKUP(A78,Items!$A$8:$AJ$701,34,FALSE)) -> 1776 | G78: =IF(A78="","",VLOOKUP(A78,Items!$A$8:$J$701,3,FALSE)) -> TON | H78: 73.5 | I78: =IF($A78="","",VLOOKUP($A78,Items!$A$8:$J$701,5,FALSE)) -> 130536 | J78: 73.5 | K78: =IF($A78="","",VLOOKUP($A78,Items!$A$8:$J$701,7,FALSE)) -> 130536 | L78: 84 | M78: =IF($A78="","",VLOOKUP($A78,Items!$A$8:$J$701,9,FALSE)) -> 149184 | N78: 83 | O78: =IF($A78="","",VLOOKUP($A78,Items!$A$8:$K$701,11,FALSE)) -> 147408
A79: =IF(Items!A79="","",Items!A79) -> 610-09108 | B79: =IF(Items!B79="","",Items!B79) -> PCCP FOR APPROACHES, 9 IN. | C79: x | D79: 600 | E79: 610 | F79: =IF(A79="","",VLOOKUP(A79,Items!$A$8:$AJ$701,34,FALSE)) -> 2088 | G79: =IF(A79="","",VLOOKUP(A79,Items!$A$8:$J$701,3,FALSE)) -> S.Y. | H79: 55 | I79: =IF($A79="","",VLOOKUP($A79,Items!$A$8:$J$701,5,FALSE)) -> 114840 | J79: 45.43 | K79: =IF($A79="","",VLOOKUP($A79,Items!$A$8:$J$701,7,FALSE)) -> 94857.84 | L79: 45 | M79: =IF($A79="","",VLOOKUP($A79,Items!$A$8:$J$701,9,FALSE)) -> 93960 | N79: 59.5 | O79: =IF($A79="","",VLOOKUP($A79,Items!$A$8:$K$701,11,FALSE)) -> 124236
A80: =IF(Items!A80="","",Items!A80) -> 611-06497 | B80: =IF(Items!B80="","",Items!B80) -> MAILBOX ASSEMBLY, SINGLE | C80: x | D80: 600 | E80: 611 | F80: =IF(A80="","",VLOOKUP(A80,Items!$A$8:$AJ$701,34,FALSE)) -> 2 | G80: =IF(A80="","",VLOOKUP(A80,Items!$A$8:$J$701,3,FALSE)) -> EACH | H80: 215 | I80: =IF($A80="","",VLOOKUP($A80,Items!$A$8:$J$701,5,FALSE)) -> 430 | J80: 150 | K80: =IF($A80="","",VLOOKUP($A80,Items!$A$8:$J$701,7,FALSE)) -> 300 | L80: 215 | M80: =IF($A80="","",VLOOKUP($A80,Items!$A$8:$J$701,9,FALSE)) -> 430 | N80: 215 | O80: =IF($A80="","",VLOOKUP($A80,Items!$A$8:$K$701,11,FALSE)) -> 430
A81: =IF(Items!A81="","",Items!A81) -> 611-06498 | B81: =IF(Items!B81="","",Items!B81) -> MAILBOX ASSEMBLY, DOUBLE | C81: x | D81: 600 | E81: 611 | F81: =IF(A81="","",VLOOKUP(A81,Items!$A$8:$AJ$701,34,FALSE)) -> 1 | G81: =IF(A81="","",VLOOKUP(A81,Items!$A$8:$J$701,3,FALSE)) -> EACH | H81: 275 | I81: =IF($A81="","",VLOOKUP($A81,Items!$A$8:$J$701,5,FALSE)) -> 275 | J81: 170 | K81: =IF($A81="","",VLOOKUP($A81,Items!$A$8:$J$701,7,FALSE)) -> 170 | L81: 275 | M81: =IF($A81="","",VLOOKUP($A81,Items!$A$8:$J$701,9,FALSE)) -> 275 | N81: 275 | O81: =IF($A81="","",VLOOKUP($A81,Items!$A$8:$K$701,11,FALSE)) -> 275
A82: =IF(Items!A82="","",Items!A82) -> 615-06490 | B82: =IF(Items!B82="","",Items!B82) -> RIGHT OF WAY MARKER | C82: x | D82: 600 | E82: 615 | F82: =IF(A82="","",VLOOKUP(A82,Items!$A$8:$AJ$701,34,FALSE)) -> 61 | G82: =IF(A82="","",VLOOKUP(A82,Items!$A$8:$J$701,3,FALSE)) -> EACH | H82: 137 | I82: =IF($A82="","",VLOOKUP($A82,Items!$A$8:$J$701,5,FALSE)) -> 8357 | J82: 140 | K82: =IF($A82="","",VLOOKUP($A82,Items!$A$8:$J$701,7,FALSE)) -> 8540 | L82: 137 | M82: =IF($A82="","",VLOOKUP($A82,Items!$A$8:$J$701,9,FALSE)) -> 8357 | N82: 137 | O82: =IF($A82="","",VLOOKUP($A82,Items!$A$8:$K$701,11,FALSE)) -> 8357
A83: =IF(Items!A83="","",Items!A83) -> 615-06500 | B83: =IF(Items!B83="","",Items!B83) -> MONUMENT, A | C83: x | D83: 600 | E83: 615 | F83: =IF(A83="","",VLOOKUP(A83,Items!$A$8:$AJ$701,34,FALSE)) -> 2 | G83: =IF(A83="","",VLOOKUP(A83,Items!$A$8:$J$701,3,FALSE)) -> EACH | H83: 650 | I83: =IF($A83="","",VLOOKUP($A83,Items!$A$8:$J$701,5,FALSE)) -> 1300 | J83: 580 | K83: =IF($A83="","",VLOOKUP($A83,Items!$A$8:$J$701,7,FALSE)) -> 1160 | L83: 650 | M83: =IF($A83="","",VLOOKUP($A83,Items!$A$8:$J$701,9,FALSE)) -> 1300 | N83: 650 | O83: =IF($A83="","",VLOOKUP($A83,Items!$A$8:$K$701,11,FALSE)) -> 1300
A84: =IF(Items!A84="","",Items!A84) -> 615-06505 | B84: =IF(Items!B84="","",Items!B84) -> MONUMENT, B | C84: x | D84: 600 | E84: 615 | F84: =IF(A84="","",VLOOKUP(A84,Items!$A$8:$AJ$701,34,FALSE)) -> 6 | G84: =IF(A84="","",VLOOKUP(A84,Items!$A$8:$J$701,3,FALSE)) -> EACH | H84: 755 | I84: =IF($A84="","",VLOOKUP($A84,Items!$A$8:$J$701,5,FALSE)) -> 4530 | J84: 580 | K84: =IF($A84="","",VLOOKUP($A84,Items!$A$8:$J$701,7,FALSE)) -> 3480 | L84: 755 | M84: =IF($A84="","",VLOOKUP($A84,Items!$A$8:$J$701,9,FALSE)) -> 4530 | N84: 755 | O84: =IF($A84="","",VLOOKUP($A84,Items!$A$8:$K$701,11,FALSE)) -> 4530
A85: =IF(Items!A85="","",Items!A85) -> 615-06510 | B85: =IF(Items!B85="","",Items!B85) -> MONUMENT, C | C85: x | D85: 600 | E85: 615 | F85: =IF(A85="","",VLOOKUP(A85,Items!$A$8:$AJ$701,34,FALSE)) -> 2 | G85: =IF(A85="","",VLOOKUP(A85,Items!$A$8:$J$701,3,FALSE)) -> EACH | H85: 555 | I85: =IF($A85="","",VLOOKUP($A85,Items!$A$8:$J$701,5,FALSE)) -> 1110 | J85: 360 | K85: =IF($A85="","",VLOOKUP($A85,Items!$A$8:$J$701,7,FALSE)) -> 720 | L85: 555 | M85: =IF($A85="","",VLOOKUP($A85,Items!$A$8:$J$701,9,FALSE)) -> 1110 | N85: 555 | O85: =IF($A85="","",VLOOKUP($A85,Items!$A$8:$K$701,11,FALSE)) -> 1110
A86: =IF(Items!A86="","",Items!A86) -> 615-06515 | B86: =IF(Items!B86="","",Items!B86) -> MONUMENT, D | C86: x | D86: 600 | E86: 615 | F86: =IF(A86="","",VLOOKUP(A86,Items!$A$8:$AJ$701,34,FALSE)) -> 48 | G86: =IF(A86="","",VLOOKUP(A86,Items!$A$8:$J$701,3,FALSE)) -> EACH | H86: 135 | I86: =IF($A86="","",VLOOKUP($A86,Items!$A$8:$J$701,5,FALSE)) -> 6480 | J86: 230 | K86: =IF($A86="","",VLOOKUP($A86,Items!$A$8:$J$701,7,FALSE)) -> 11040 | L86: 135 | M86: =IF($A86="","",VLOOKUP($A86,Items!$A$8:$J$701,9,FALSE)) -> 6480 | N86: 135 | O86: =IF($A86="","",VLOOKUP($A86,Items!$A$8:$K$701,11,FALSE)) -> 6480
A87: =IF(Items!A87="","",Items!A87) -> 615-06520 | B87: =IF(Items!B87="","",Items!B87) -> MONUMENT, RE ESTABLISH | C87: x | D87: 600 | E87: 615 | F87: =IF(A87="","",VLOOKUP(A87,Items!$A$8:$AJ$701,34,FALSE)) -> 1 | G87: =IF(A87="","",VLOOKUP(A87,Items!$A$8:$J$701,3,FALSE)) -> EACH | H87: 1500 | I87: =IF($A87="","",VLOOKUP($A87,Items!$A$8:$J$701,5,FALSE)) -> 1500 | J87: 580 | K87: =IF($A87="","",VLOOKUP($A87,Items!$A$8:$J$701,7,FALSE)) -> 580 | L87: 1500 | M87: =IF($A87="","",VLOOKUP($A87,Items!$A$8:$J$701,9,FALSE)) -> 1500 | N87: 1500 | O87: =IF($A87="","",VLOOKUP($A87,Items!$A$8:$K$701,11,FALSE)) -> 1500
A88: =IF(Items!A88="","",Items!A88) -> 615-06535 | B88: =IF(Items!B88="","",Items!B88) -> BENCH MARK POST, RESET | C88: x | D88: 600 | E88: 615 | F88: =IF(A88="","",VLOOKUP(A88,Items!$A$8:$AJ$701,34,FALSE)) -> 1 | G88: =IF(A88="","",VLOOKUP(A88,Items!$A$8:$J$701,3,FALSE)) -> EACH | H88: 1000 | I88: =IF($A88="","",VLOOKUP($A88,Items!$A$8:$J$701,5,FALSE)) -> 1000 | J88: 630 | K88: =IF($A88="","",VLOOKUP($A88,Items!$A$8:$J$701,7,FALSE)) -> 630 | L88: 1000 | M88: =IF($A88="","",VLOOKUP($A88,Items!$A$8:$J$701,9,FALSE)) -> 1000 | N88: 1000 | O88: =IF($A88="","",VLOOKUP($A88,Items!$A$8:$K$701,11,FALSE)) -> 1000
A89: =IF(Items!A89="","",Items!A89) -> 616-02320 | B89: =IF(Items!B89="","",Items!B89) -> GEOTEXTILES | C89: x | D89: 600 | E89: 616 | F89: =IF(A89="","",VLOOKUP(A89,Items!$A$8:$AJ$701,34,FALSE)) -> 1282 | G89: =IF(A89="","",VLOOKUP(A89,Items!$A$8:$J$701,3,FALSE)) -> S.Y. | H89: 1.55 | I89: =IF($A89="","",VLOOKUP($A89,Items!$A$8:$J$701,5,FALSE)) -> 1987.1 | J89: 2.38 | K89: =IF($A89="","",VLOOKUP($A89,Items!$A$8:$J$701,7,FALSE)) -> 3051.16 | L89: 1.25 | M89: =IF($A89="","",VLOOKUP($A89,Items!$A$8:$J$701,9,FALSE)) -> 1602.5 | N89: 1.25 | O89: =IF($A89="","",VLOOKUP($A89,Items!$A$8:$K$701,11,FALSE)) -> 1602.5
A90: =IF(Items!A90="","",Items!A90) -> 616-05688 | B90: =IF(Items!B90="","",Items!B90) -> RIPRAP, CLASS 1 | C90: x | D90: 600 | E90: 616 | F90: =IF(A90="","",VLOOKUP(A90,Items!$A$8:$AJ$701,34,FALSE)) -> 77 | G90: =IF(A90="","",VLOOKUP(A90,Items!$A$8:$J$701,3,FALSE)) -> TON | H90: 57 | I90: =IF($A90="","",VLOOKUP($A90,Items!$A$8:$J$701,5,FALSE)) -> 4389 | J90: 38.72 | K90: =IF($A90="","",VLOOKUP($A90,Items!$A$8:$J$701,7,FALSE)) -> 2981.44 | L90: 43 | M90: =IF($A90="","",VLOOKUP($A90,Items!$A$8:$J$701,9,FALSE)) -> 3311 | N90: 42.05 | O90: =IF($A90="","",VLOOKUP($A90,Items!$A$8:$K$701,11,FALSE)) -> 3237.85
A91: =IF(Items!A91="","",Items!A91) -> 616-06405 | B91: =IF(Items!B91="","",Items!B91) -> RIPRAP, REVETMENT | C91: x | D91: 600 | E91: 616 | F91: =IF(A91="","",VLOOKUP(A91,Items!$A$8:$AJ$701,34,FALSE)) -> 445 | G91: =IF(A91="","",VLOOKUP(A91,Items!$A$8:$J$701,3,FALSE)) -> TON | H91: 41 | I91: =IF($A91="","",VLOOKUP($A91,Items!$A$8:$J$701,5,FALSE)) -> 18245 | J91: 33.89 | K91: =IF($A91="","",VLOOKUP($A91,Items!$A$8:$J$701,7,FALSE)) -> 15081.05 | L91: 37 | M91: =IF($A91="","",VLOOKUP($A91,Items!$A$8:$J$701,9,FALSE)) -> 16465 | N91: 36.2 | O91: =IF($A91="","",VLOOKUP($A91,Items!$A$8:$K$701,11,FALSE)) -> 16109
A92: =IF(Items!A92="","",Items!A92) -> 616-06451 | B92: =IF(Items!B92="","",Items!B92) -> RIPRAP, UNIFORM | C92: x | D92: 600 | E92: 616 | F92: =IF(A92="","",VLOOKUP(A92,Items!$A$8:$AJ$701,34,FALSE)) -> 62 | G92: =IF(A92="","",VLOOKUP(A92,Items!$A$8:$J$701,3,FALSE)) -> TON | H92: 41 | I92: =IF($A92="","",VLOOKUP($A92,Items!$A$8:$J$701,5,FALSE)) -> 2542 | J92: 51.69 | K92: =IF($A92="","",VLOOKUP($A92,Items!$A$8:$J$701,7,FALSE)) -> 3204.78 | L92: 44 | M92: =IF($A92="","",VLOOKUP($A92,Items!$A$8:$J$701,9,FALSE)) -> 2728 | N92: 43.1 | O92: =IF($A92="","",VLOOKUP($A92,Items!$A$8:$K$701,11,FALSE)) -> 2672.2
A93: =IF(Items!A93="","",Items!A93) -> 619-11052 | B93: =IF(Items!B93="","",Items!B93) -> CLEAN STEEL BRIDGE, QP-2, BR. NO. , | C93: x | D93: 600 | E93: 619 | F93: =IF(A93="","",VLOOKUP(A93,Items!$A$8:$AJ$701,34,FALSE)) -> 2 | G93: =IF(A93="","",VLOOKUP(A93,Items!$A$8:$J$701,3,FALSE)) -> L.S. | H93: 40000 | I93: =IF($A93="","",VLOOKUP($A93,Items!$A$8:$J$701,5,FALSE)) -> 80000 | J93: 50000 | K93: =IF($A93="","",VLOOKUP($A93,Items!$A$8:$J$701,7,FALSE)) -> 100000 | L93: 56000 | M93: =IF($A93="","",VLOOKUP($A93,Items!$A$8:$J$701,9,FALSE)) -> 112000 | N93: 40000 | O93: =IF($A93="","",VLOOKUP($A93,Items!$A$8:$K$701,11,FALSE)) -> 80000
A94: =IF(Items!A94="","",Items!A94) -> 619-51859 | B94: =IF(Items!B94="","",Items!B94) -> PAINT STEEL BRIDGE , STR. NO. 2 | C94: x | D94: 600 | E94: 619 | F94: =IF(A94="","",VLOOKUP(A94,Items!$A$8:$AJ$701,34,FALSE)) -> 2 | G94: =IF(A94="","",VLOOKUP(A94,Items!$A$8:$J$701,3,FALSE)) -> L.S. | H94: 15000 | I94: =IF($A94="","",VLOOKUP($A94,Items!$A$8:$J$701,5,FALSE)) -> 30000 | J94: 25000 | K94: =IF($A94="","",VLOOKUP($A94,Items!$A$8:$J$701,7,FALSE)) -> 50000 | L94: 5000 | M94: =IF($A94="","",VLOOKUP($A94,Items!$A$8:$J$701,9,FALSE)) -> 10000 | N94: 15000 | O94: =IF($A94="","",VLOOKUP($A94,Items!$A$8:$K$701,11,FALSE)) -> 30000
A95: =IF(Items!A95="","",Items!A95) -> 621-01004 | B95: =IF(Items!B95="","",Items!B95) -> MOBILIZATION AND DEMOBILIZATION FOR SEEDING | C95: x | D95: 600 | E95: 621 | F95: =IF(A95="","",VLOOKUP(A95,Items!$A$8:$AJ$701,34,FALSE)) -> 3 | G95: =IF(A95="","",VLOOKUP(A95,Items!$A$8:$J$701,3,FALSE)) -> EACH | H95: 400 | I95: =IF($A95="","",VLOOKUP($A95,Items!$A$8:$J$701,5,FALSE)) -> 1200 | J95: 400 | K95: =IF($A95="","",VLOOKUP($A95,Items!$A$8:$J$701,7,FALSE)) -> 1200 | L95: 575 | M95: =IF($A95="","",VLOOKUP($A95,Items!$A$8:$J$701,9,FALSE)) -> 1725 | N95: 400 | O95: =IF($A95="","",VLOOKUP($A95,Items!$A$8:$K$701,11,FALSE)) -> 1200
A96: =IF(Items!A96="","",Items!A96) -> 621-02770 | B96: =IF(Items!B96="","",Items!B96) -> EROSION CONTROL BLANKET | C96: x | D96: 600 | E96: 621 | F96: =IF(A96="","",VLOOKUP(A96,Items!$A$8:$AJ$701,34,FALSE)) -> 66315 | G96: =IF(A96="","",VLOOKUP(A96,Items!$A$8:$J$701,3,FALSE)) -> S.Y. | H96: 0.65 | I96: =IF($A96="","",VLOOKUP($A96,Items!$A$8:$J$701,5,FALSE)) -> 43104.75 | J96: 0.65 | K96: =IF($A96="","",VLOOKUP($A96,Items!$A$8:$J$701,7,FALSE)) -> 43104.75 | L96: 1.15 | M96: =IF($A96="","",VLOOKUP($A96,Items!$A$8:$J$701,9,FALSE)) -> 76262.25 | N96: 0.25 | O96: =IF($A96="","",VLOOKUP($A96,Items!$A$8:$K$701,11,FALSE)) -> 16578.75
A97: =IF(Items!A97="","",Items!A97) -> 621-06545 | B97: =IF(Items!B97="","",Items!B97) -> FERTILIZER | C97: x | D97: 600 | E97: 621 | F97: =IF(A97="","",VLOOKUP(A97,Items!$A$8:$AJ$701,34,FALSE)) -> 6 | G97: =IF(A97="","",VLOOKUP(A97,Items!$A$8:$J$701,3,FALSE)) -> TON | H97: 600 | I97: =IF($A97="","",VLOOKUP($A97,Items!$A$8:$J$701,5,FALSE)) -> 3600 | J97: 600 | K97: =IF($A97="","",VLOOKUP($A97,Items!$A$8:$J$701,7,FALSE)) -> 3600 | L97: 985 | M97: =IF($A97="","",VLOOKUP($A97,Items!$A$8:$J$701,9,FALSE)) -> 5910 | N97: 600 | O97: =IF($A97="","",VLOOKUP($A97,Items!$A$8:$K$701,11,FALSE)) -> 3600
A98: =IF(Items!A98="","",Items!A98) -> 621-06553 | B98: =IF(Items!B98="","",Items!B98) -> SEED MIXTURE, R | C98: x | D98: 600 | E98: 621 | F98: =IF(A98="","",VLOOKUP(A98,Items!$A$8:$AJ$701,34,FALSE)) -> 2000 | G98: =IF(A98="","",VLOOKUP(A98,Items!$A$8:$J$701,3,FALSE)) -> LBS | H98: 3.4 | I98: =IF($A98="","",VLOOKUP($A98,Items!$A$8:$J$701,5,FALSE)) -> 6800 | J98: 3.4 | K98: =IF($A98="","",VLOOKUP($A98,Items!$A$8:$J$701,7,FALSE)) -> 6800 | L98: 2.73 | M98: =IF($A98="","",VLOOKUP($A98,Items!$A$8:$J$701,9,FALSE)) -> 5460 | N98: 3.4 | O98: =IF($A98="","",VLOOKUP($A98,Items!$A$8:$K$701,11,FALSE)) -> 6800
A99: =IF(Items!A99="","",Items!A99) -> 621-06557 | B99: =IF(Items!B99="","",Items!B99) -> SEED MIXTURE, T | C99: x | D99: 600 | E99: 621 | F99: =IF(A99="","",VLOOKUP(A99,Items!$A$8:$AJ$701,34,FALSE)) -> 1088 | G99: =IF(A99="","",VLOOKUP(A99,Items!$A$8:$J$701,3,FALSE)) -> LBS | H99: 2.5 | I99: =IF($A99="","",VLOOKUP($A99,Items!$A$8:$J$701,5,FALSE)) -> 2720 | J99: 2.5 | K99: =IF($A99="","",VLOOKUP($A99,Items!$A$8:$J$701,7,FALSE)) -> 2720 | L99: 2.2 | M99: =IF($A99="","",VLOOKUP($A99,Items!$A$8:$J$701,9,FALSE)) -> 2393.6 | N99: 2.5 | O99: =IF($A99="","",VLOOKUP($A99,Items!$A$8:$K$701,11,FALSE)) -> 2720
A100: =IF(Items!A100="","",Items!A100) -> 621-06565 | B100: =IF(Items!B100="","",Items!B100) -> MULCHING MATERIAL | C100: x | D100: 600 | E100: 621 | F100: =IF(A100="","",VLOOKUP(A100,Items!$A$8:$AJ$701,34,FALSE)) -> 29 | G100: =IF(A100="","",VLOOKUP(A100,Items!$A$8:$J$701,3,FALSE)) -> TON | H100: 400 | I100: =IF($A100="","",VLOOKUP($A100,Items!$A$8:$J$701,5,FALSE)) -> 11600 | J100: 400 | K100: =IF($A100="","",VLOOKUP($A100,Items!$A$8:$J$701,7,FALSE)) -> 11600 | L100: 345 | M100: =IF($A100="","",VLOOKUP($A100,Items!$A$8:$J$701,9,FALSE)) -> 10005 | N100: 400 | O100: =IF($A100="","",VLOOKUP($A100,Items!$A$8:$K$701,11,FALSE)) -> 11600
A101: =IF(Items!A101="","",Items!A101) -> 621-06567 | B101: =IF(Items!B101="","",Items!B101) -> WATER | C101: x | D101: 600 | E101: 621 | F101: =IF(A101="","",VLOOKUP(A101,Items!$A$8:$AJ$701,34,FALSE)) -> 253 | G101: =IF(A101="","",VLOOKUP(A101,Items!$A$8:$J$701,3,FALSE)) -> M.G. | H101: 1 | I101: =IF($A101="","",VLOOKUP($A101,Items!$A$8:$J$701,5,FALSE)) -> 253 | J101: 1 | K101: =IF($A101="","",VLOOKUP($A101,Items!$A$8:$J$701,7,FALSE)) -> 253 | L101: 1 | M101: =IF($A101="","",VLOOKUP($A101,Items!$A$8:$J$701,9,FALSE)) -> 253 | N101: 1 | O101: =IF($A101="","",VLOOKUP($A101,Items!$A$8:$K$701,11,FALSE)) -> 253
A102: =IF(Items!A102="","",Items!A102) -> 621-06574 | B102: =IF(Items!B102="","",Items!B102) -> SODDING | C102: x | D102: 600 | E102: 621 | F102: =IF(A102="","",VLOOKUP(A102,Items!$A$8:$AJ$701,34,FALSE)) -> 3864 | G102: =IF(A102="","",VLOOKUP(A102,Items!$A$8:$J$701,3,FALSE)) -> S.Y. | H102: 2.98 | I102: =IF($A102="","",VLOOKUP($A102,Items!$A$8:$J$701,5,FALSE)) -> 11514.72 | J102: 2.98 | K102: =IF($A102="","",VLOOKUP($A102,Items!$A$8:$J$701,7,FALSE)) -> 11514.72 | L102: 3.11 | M102: =IF($A102="","",VLOOKUP($A102,Items!$A$8:$J$701,9,FALSE)) -> 12017.04 | N102: 1 | O102: =IF($A102="","",VLOOKUP($A102,Items!$A$8:$K$701,11,FALSE)) -> 3864
A103: =IF(Items!A103="","",Items!A103) -> 621-06575 | B103: =IF(Items!B103="","",Items!B103) -> SODDING, NURSERY | C103: x | D103: 600 | E103: 621 | F103: =IF(A103="","",VLOOKUP(A103,Items!$A$8:$AJ$701,34,FALSE)) -> 66315 | G103: =IF(A103="","",VLOOKUP(A103,Items!$A$8:$J$701,3,FALSE)) -> S.Y. | H103: 2.98 | I103: =IF($A103="","",VLOOKUP($A103,Items!$A$8:$J$701,5,FALSE)) -> 197618.7 | J103: 3.21 | K103: =IF($A103="","",VLOOKUP($A103,Items!$A$8:$J$701,7,FALSE)) -> 212871.15 | L103: 3.11 | M103: =IF($A103="","",VLOOKUP($A103,Items!$A$8:$J$701,9,FALSE)) -> 206239.65 | N103: 1 | O103: =IF($A103="","",VLOOKUP($A103,Items!$A$8:$K$701,11,FALSE)) -> 66315
A104: =IF(Items!A104="","",Items!A104) -> 628-08524 | B104: =IF(Items!B104="","",Items!B104) -> CELLULAR TELEPHONE/RADIO, ADDITIONAL | C104: x | D104: 600 | E104: 628 | F104: =IF(A104="","",VLOOKUP(A104,Items!$A$8:$AJ$701,34,FALSE)) -> 1 | G104: =IF(A104="","",VLOOKUP(A104,Items!$A$8:$J$701,3,FALSE)) -> $ | H104: 1 | I104: =IF($A104="","",VLOOKUP($A104,Items!$A$8:$J$701,5,FALSE)) -> 1 | J104: 1 | K104: =IF($A104="","",VLOOKUP($A104,Items!$A$8:$J$701,7,FALSE)) -> 1 | L104: 1 | M104: =IF($A104="","",VLOOKUP($A104,Items!$A$8:$J$701,9,FALSE)) -> 1 | N104: 1 | O104: =IF($A104="","",VLOOKUP($A104,Items!$A$8:$K$701,11,FALSE)) -> 1
A105: =IF(Items!A105="","",Items!A105) -> 628-09403 | B105: =IF(Items!B105="","",Items!B105) -> FIELD OFFICE, C | C105: x | D105: 600 | E105: 628 | F105: =IF(A105="","",VLOOKUP(A105,Items!$A$8:$AJ$701,34,FALSE)) -> 15 | G105: =IF(A105="","",VLOOKUP(A105,Items!$A$8:$J$701,3,FALSE)) -> MONTH | H105: 2300 | I105: =IF($A105="","",VLOOKUP($A105,Items!$A$8:$J$701,5,FALSE)) -> 34500 | J105: 2628.33 | K105: =IF($A105="","",VLOOKUP($A105,Items!$A$8:$J$701,7,FALSE)) -> 39424.95 | L105: 2800 | M105: =IF($A105="","",VLOOKUP($A105,Items!$A$8:$J$701,9,FALSE)) -> 42000 | N105: 2300 | O105: =IF($A105="","",VLOOKUP($A105,Items!$A$8:$K$701,11,FALSE)) -> 34500
A106: =IF(Items!A106="","",Items!A106) -> 628-09407 | B106: =IF(Items!B106="","",Items!B106) -> FIELD OFFICE COMPUTER SYSTEM, | C106: x | D106: 600 | E106: 628 | F106: =IF(A106="","",VLOOKUP(A106,Items!$A$8:$AJ$701,34,FALSE)) -> 30 | G106: =IF(A106="","",VLOOKUP(A106,Items!$A$8:$J$701,3,FALSE)) -> MONTH | H106: 100 | I106: =IF($A106="","",VLOOKUP($A106,Items!$A$8:$J$701,5,FALSE)) -> 3000 | J106: 200 | K106: =IF($A106="","",VLOOKUP($A106,Items!$A$8:$J$701,7,FALSE)) -> 6000 | L106: 165 | M106: =IF($A106="","",VLOOKUP($A106,Items!$A$8:$J$701,9,FALSE)) -> 4950 | N106: 130 | O106: =IF($A106="","",VLOOKUP($A106,Items!$A$8:$K$701,11,FALSE)) -> 3900
A107: =IF(Items!A107="","",Items!A107) -> 628-11007 | B107: =IF(Items!B107="","",Items!B107) -> CELLULAR TELEPHONE/RADIO SERVICE, 750 | C107: x | D107: 600 | E107: 628 | F107: =IF(A107="","",VLOOKUP(A107,Items!$A$8:$AJ$701,34,FALSE)) -> 60 | G107: =IF(A107="","",VLOOKUP(A107,Items!$A$8:$J$701,3,FALSE)) -> MONTH | H107: 100 | I107: =IF($A107="","",VLOOKUP($A107,Items!$A$8:$J$701,5,FALSE)) -> 6000 | J107: 100 | K107: =IF($A107="","",VLOOKUP($A107,Items!$A$8:$J$701,7,FALSE)) -> 6000 | L107: 150 | M107: =IF($A107="","",VLOOKUP($A107,Items!$A$8:$J$701,9,FALSE)) -> 9000 | N107: 66.25 | O107: =IF($A107="","",VLOOKUP($A107,Items!$A$8:$K$701,11,FALSE)) -> 3975
A108: =IF(Items!A108="","",Items!A108) -> 628-11068 | B108: =IF(Items!B108="","",Items!B108) -> CELLULAR TELEPHONE/RADIO | C108: x | D108: 600 | E108: 628 | F108: =IF(A108="","",VLOOKUP(A108,Items!$A$8:$AJ$701,34,FALSE)) -> 4 | G108: =IF(A108="","",VLOOKUP(A108,Items!$A$8:$J$701,3,FALSE)) -> EACH | H108: 200 | I108: =IF($A108="","",VLOOKUP($A108,Items!$A$8:$J$701,5,FALSE)) -> 800 | J108: 100 | K108: =IF($A108="","",VLOOKUP($A108,Items!$A$8:$J$701,7,FALSE)) -> 400 | L108: 70 | M108: =IF($A108="","",VLOOKUP($A108,Items!$A$8:$J$701,9,FALSE)) -> 280 | N108: 100 | O108: =IF($A108="","",VLOOKUP($A108,Items!$A$8:$K$701,11,FALSE)) -> 400
A109: =IF(Items!A109="","",Items!A109) -> 702-51863 | B109: =IF(Items!B109="","",Items!B109) -> FIELD DRILLED HOLE IN CONCRETE | C109: x | D109: 700 | E109: 702 | F109: =IF(A109="","",VLOOKUP(A109,Items!$A$8:$AJ$701,34,FALSE)) -> 158 | G109: =IF(A109="","",VLOOKUP(A109,Items!$A$8:$J$701,3,FALSE)) -> EACH | H109: 17 | I109: =IF($A109="","",VLOOKUP($A109,Items!$A$8:$J$701,5,FALSE)) -> 2686 | J109: 14.6 | K109: =IF($A109="","",VLOOKUP($A109,Items!$A$8:$J$701,7,FALSE)) -> 2306.8 | L109: 55 | M109: =IF($A109="","",VLOOKUP($A109,Items!$A$8:$J$701,9,FALSE)) -> 8690 | N109: 12.65 | O109: =IF($A109="","",VLOOKUP($A109,Items!$A$8:$K$701,11,FALSE)) -> 1998.7
A110: =IF(Items!A110="","",Items!A110) -> 702-90915 | B110: =IF(Items!B110="","",Items!B110) -> CONCRETE, A | C110: x | D110: 700 | E110: 702 | F110: =IF(A110="","",VLOOKUP(A110,Items!$A$8:$AJ$701,34,FALSE)) -> 47.4 | G110: =IF(A110="","",VLOOKUP(A110,Items!$A$8:$J$701,3,FALSE)) -> C.Y. | H110: 475 | I110: =IF($A110="","",VLOOKUP($A110,Items!$A$8:$J$701,5,FALSE)) -> 22515 | J110: 735.1200422 | K110: =IF($A110="","",VLOOKUP($A110,Items!$A$8:$J$701,7,FALSE)) -> 34844.69 | L110: 700 | M110: =IF($A110="","",VLOOKUP($A110,Items!$A$8:$J$701,9,FALSE)) -> 33180 | N110: 900 | O110: =IF($A110="","",VLOOKUP($A110,Items!$A$8:$K$701,11,FALSE)) -> 42660
A111: =IF(Items!A111="","",Items!A111) -> 703-06029 | B111: =IF(Items!B111="","",Items!B111) -> REINFORCING BARS, EPOXY COATED | C111: x | D111: 700 | E111: 703 | F111: =IF(A111="","",VLOOKUP(A111,Items!$A$8:$AJ$701,34,FALSE)) -> 3869 | G111: =IF(A111="","",VLOOKUP(A111,Items!$A$8:$J$701,3,FALSE)) -> LBS | H111: 2 | I111: =IF($A111="","",VLOOKUP($A111,Items!$A$8:$J$701,5,FALSE)) -> 7738 | J111: 1.07 | K111: =IF($A111="","",VLOOKUP($A111,Items!$A$8:$J$701,7,FALSE)) -> 4139.83 | L111: 4 | M111: =IF($A111="","",VLOOKUP($A111,Items!$A$8:$J$701,9,FALSE)) -> 15476 | N111: 2 | O111: =IF($A111="","",VLOOKUP($A111,Items!$A$8:$K$701,11,FALSE)) -> 7738
A112: =IF(Items!A112="","",Items!A112) -> 706-09545 | B112: =IF(Items!B112="","",Items!B112) -> COARSE AGGREGATE, NO. 8 | C112: x | D112: 700 | E112: 706 | F112: =IF(A112="","",VLOOKUP(A112,Items!$A$8:$AJ$701,34,FALSE)) -> 400 | G112: =IF(A112="","",VLOOKUP(A112,Items!$A$8:$J$701,3,FALSE)) -> C.Y. | H112: 32 | I112: =IF($A112="","",VLOOKUP($A112,Items!$A$8:$J$701,5,FALSE)) -> 12800 | J112: 29.41 | K112: =IF($A112="","",VLOOKUP($A112,Items!$A$8:$J$701,7,FALSE)) -> 11764 | L112: 45 | M112: =IF($A112="","",VLOOKUP($A112,Items!$A$8:$J$701,9,FALSE)) -> 18000 | N112: 43.9 | O112: =IF($A112="","",VLOOKUP($A112,Items!$A$8:$K$701,11,FALSE)) -> 17560
A113: =IF(Items!A113="","",Items!A113) -> 709-51821 | B113: =IF(Items!B113="","",Items!B113) -> SURFACE SEAL | C113: x | D113: 700 | E113: 709 | F113: =IF(A113="","",VLOOKUP(A113,Items!$A$8:$AJ$701,34,FALSE)) -> 1 | G113: =IF(A113="","",VLOOKUP(A113,Items!$A$8:$J$701,3,FALSE)) -> L.S. | H113: 9000 | I113: =IF($A113="","",VLOOKUP($A113,Items!$A$8:$J$701,5,FALSE)) -> 9000 | J113: 10000 | K113: =IF($A113="","",VLOOKUP($A113,Items!$A$8:$J$701,7,FALSE)) -> 10000 | L113: 8500 | M113: =IF($A113="","",VLOOKUP($A113,Items!$A$8:$J$701,9,FALSE)) -> 8500 | N113: 7500 | O113: =IF($A113="","",VLOOKUP($A113,Items!$A$8:$K$701,11,FALSE)) -> 7500
A114: =IF(Items!A114="","",Items!A114) -> 714-11175 | B114: =IF(Items!B114="","",Items!B114) -> STRUCTURE, REINFORCED CONCRETE BOX | C114: x | D114: 700 | E114: 714 | F114: =IF(A114="","",VLOOKUP(A114,Items!$A$8:$AJ$701,34,FALSE)) -> 225 | G114: =IF(A114="","",VLOOKUP(A114,Items!$A$8:$J$701,3,FALSE)) -> L.F. | H114: 550 | I114: =IF($A114="","",VLOOKUP($A114,Items!$A$8:$J$701,5,FALSE)) -> 123750 | J114: 450 | K114: =IF($A114="","",VLOOKUP($A114,Items!$A$8:$J$701,7,FALSE)) -> 101250 | L114: 395 | M114: =IF($A114="","",VLOOKUP($A114,Items!$A$8:$J$701,9,FALSE)) -> 88875 | N114: 395 | O114: =IF($A114="","",VLOOKUP($A114,Items!$A$8:$K$701,11,FALSE)) -> 88875
A115: =IF(Items!A115="","",Items!A115) -> 714-11311 | B115: =IF(Items!B115="","",Items!B115) -> STRUCTURE, REINFORCED CONCRETE BOX | C115: x | D115: 700 | E115: 714 | F115: =IF(A115="","",VLOOKUP(A115,Items!$A$8:$AJ$701,34,FALSE)) -> 137 | G115: =IF(A115="","",VLOOKUP(A115,Items!$A$8:$J$701,3,FALSE)) -> L.F. | H115: 725 | I115: =IF($A115="","",VLOOKUP($A115,Items!$A$8:$J$701,5,FALSE)) -> 99325 | J115: 625 | K115: =IF($A115="","",VLOOKUP($A115,Items!$A$8:$J$701,7,FALSE)) -> 85625 | L115: 575 | M115: =IF($A115="","",VLOOKUP($A115,Items!$A$8:$J$701,9,FALSE)) -> 78775 | N115: 572 | O115: =IF($A115="","",VLOOKUP($A115,Items!$A$8:$K$701,11,FALSE)) -> 78364
A116: =IF(Items!A116="","",Items!A116) -> 715-04555 | B116: =IF(Items!B116="","",Items!B116) -> PIPE END SECTION, MIN. AREA 5.1 SQ. FT. | C116: x | D116: 700 | E116: 715 | F116: =IF(A116="","",VLOOKUP(A116,Items!$A$8:$AJ$701,34,FALSE)) -> 8 | G116: =IF(A116="","",VLOOKUP(A116,Items!$A$8:$J$701,3,FALSE)) -> EACH | H116: 993.5 | I116: =IF($A116="","",VLOOKUP($A116,Items!$A$8:$J$701,5,FALSE)) -> 7948 | J116: 676.34 | K116: =IF($A116="","",VLOOKUP($A116,Items!$A$8:$J$701,7,FALSE)) -> 5410.72 | L116: 817 | M116: =IF($A116="","",VLOOKUP($A116,Items!$A$8:$J$701,9,FALSE)) -> 6536 | N116: 816.65 | O116: =IF($A116="","",VLOOKUP($A116,Items!$A$8:$K$701,11,FALSE)) -> 6533.2
A117: =IF(Items!A117="","",Items!A117) -> 715-05032 | B117: =IF(Items!B117="","",Items!B117) -> PIPE, TYPE 2, CIRCULAR, 15 IN. | C117: x | D117: 700 | E117: 715 | F117: =IF(A117="","",VLOOKUP(A117,Items!$A$8:$AJ$701,34,FALSE)) -> 961 | G117: =IF(A117="","",VLOOKUP(A117,Items!$A$8:$J$701,3,FALSE)) -> L.F. | H117: 27 | I117: =IF($A117="","",VLOOKUP($A117,Items!$A$8:$J$701,5,FALSE)) -> 25947 | J117: 29.83 | K117: =IF($A117="","",VLOOKUP($A117,Items!$A$8:$J$701,7,FALSE)) -> 28666.63 | L117: 36.5 | M117: =IF($A117="","",VLOOKUP($A117,Items!$A$8:$J$701,9,FALSE)) -> 35076.5 | N117: 36.02 | O117: =IF($A117="","",VLOOKUP($A117,Items!$A$8:$K$701,11,FALSE)) -> 34615.22
A118: =IF(Items!A118="","",Items!A118) -> 715-05048 | B118: =IF(Items!B118="","",Items!B118) -> PIPE, TYPE 4, CIRCULAR, 6 IN. | C118: x | D118: 700 | E118: 715 | F118: =IF(A118="","",VLOOKUP(A118,Items!$A$8:$AJ$701,34,FALSE)) -> 16505 | G118: =IF(A118="","",VLOOKUP(A118,Items!$A$8:$J$701,3,FALSE)) -> L.F. | H118: 3.75 | I118: =IF($A118="","",VLOOKUP($A118,Items!$A$8:$J$701,5,FALSE)) -> 61893.75 | J118: 3.27 | K118: =IF($A118="","",VLOOKUP($A118,Items!$A$8:$J$701,7,FALSE)) -> 53971.35 | L118: 5 | M118: =IF($A118="","",VLOOKUP($A118,Items!$A$8:$J$701,9,FALSE)) -> 82525 | N118: 3.75 | O118: =IF($A118="","",VLOOKUP($A118,Items!$A$8:$K$701,11,FALSE)) -> 61893.75
A119: =IF(Items!A119="","",Items!A119) -> 715-05053 | B119: =IF(Items!B119="","",Items!B119) -> PIPE, UNDERDRAIN OUTLET, 6 IN. | C119: x | D119: 700 | E119: 715 | F119: =IF(A119="","",VLOOKUP(A119,Items!$A$8:$AJ$701,34,FALSE)) -> 775 | G119: =IF(A119="","",VLOOKUP(A119,Items!$A$8:$J$701,3,FALSE)) -> L.F. | H119: 18 | I119: =IF($A119="","",VLOOKUP($A119,Items!$A$8:$J$701,5,FALSE)) -> 13950 | J119: 9.77 | K119: =IF($A119="","",VLOOKUP($A119,Items!$A$8:$J$701,7,FALSE)) -> 7571.75 | L119: 12 | M119: =IF($A119="","",VLOOKUP($A119,Items!$A$8:$J$701,9,FALSE)) -> 9300 | N119: 18 | O119: =IF($A119="","",VLOOKUP($A119,Items!$A$8:$K$701,11,FALSE)) -> 13950
A120: =IF(Items!A120="","",Items!A120) -> 715-05121 | B120: =IF(Items!B120="","",Items!B120) -> PIPE, TYPE 1, CIRCULAR, 18 IN. | C120: x | D120: 700 | E120: 715 | F120: =IF(A120="","",VLOOKUP(A120,Items!$A$8:$AJ$701,34,FALSE)) -> 114 | G120: =IF(A120="","",VLOOKUP(A120,Items!$A$8:$J$701,3,FALSE)) -> L.F. | H120: 34 | I120: =IF($A120="","",VLOOKUP($A120,Items!$A$8:$J$701,5,FALSE)) -> 3876 | J120: 34.48 | K120: =IF($A120="","",VLOOKUP($A120,Items!$A$8:$J$701,7,FALSE)) -> 3930.72 | L120: 42 | M120: =IF($A120="","",VLOOKUP($A120,Items!$A$8:$J$701,9,FALSE)) -> 4788 | N120: 41.57 | O120: =IF($A120="","",VLOOKUP($A120,Items!$A$8:$K$701,11,FALSE)) -> 4738.98
A121: =IF(Items!A121="","",Items!A121) -> 715-05149 | B121: =IF(Items!B121="","",Items!B121) -> PIPE, TYPE 2, CIRCULAR, 12 IN. | C121: x | D121: 700 | E121: 715 | F121: =IF(A121="","",VLOOKUP(A121,Items!$A$8:$AJ$701,34,FALSE)) -> 210 | G121: =IF(A121="","",VLOOKUP(A121,Items!$A$8:$J$701,3,FALSE)) -> L.F. | H121: 23 | I121: =IF($A121="","",VLOOKUP($A121,Items!$A$8:$J$701,5,FALSE)) -> 4830 | J121: 30.8 | K121: =IF($A121="","",VLOOKUP($A121,Items!$A$8:$J$701,7,FALSE)) -> 6468 | L121: 34.5 | M121: =IF($A121="","",VLOOKUP($A121,Items!$A$8:$J$701,9,FALSE)) -> 7245 | N121: 34.09 | O121: =IF($A121="","",VLOOKUP($A121,Items!$A$8:$K$701,11,FALSE)) -> 7158.9
A122: =IF(Items!A122="","",Items!A122) -> 715-05152 | B122: =IF(Items!B122="","",Items!B122) -> PIPE, TYPE 2, CIRCULAR, 18 IN. | C122: x | D122: 700 | E122: 715 | F122: =IF(A122="","",VLOOKUP(A122,Items!$A$8:$AJ$701,34,FALSE)) -> 409 | G122: =IF(A122="","",VLOOKUP(A122,Items!$A$8:$J$701,3,FALSE)) -> L.F. | H122: 34 | I122: =IF($A122="","",VLOOKUP($A122,Items!$A$8:$J$701,5,FALSE)) -> 13906 | J122: 36.63 | K122: =IF($A122="","",VLOOKUP($A122,Items!$A$8:$J$701,7,FALSE)) -> 14981.67 | L122: 40 | M122: =IF($A122="","",VLOOKUP($A122,Items!$A$8:$J$701,9,FALSE)) -> 16360 | N122: 39.18 | O122: =IF($A122="","",VLOOKUP($A122,Items!$A$8:$K$701,11,FALSE)) -> 16024.62
A123: =IF(Items!A123="","",Items!A123) -> 715-05154 | B123: =IF(Items!B123="","",Items!B123) -> PIPE, TYPE 2, CIRCULAR, 24 IN. , SMOOTH | C123: x | D123: 700 | E123: 715 | F123: =IF(A123="","",VLOOKUP(A123,Items!$A$8:$AJ$701,34,FALSE)) -> 1037 | G123: =IF(A123="","",VLOOKUP(A123,Items!$A$8:$J$701,3,FALSE)) -> L.F. | H123: 45 | I123: =IF($A123="","",VLOOKUP($A123,Items!$A$8:$J$701,5,FALSE)) -> 46665 | J123: 46.13 | K123: =IF($A123="","",VLOOKUP($A123,Items!$A$8:$J$701,7,FALSE)) -> 47836.81 | L123: 46 | M123: =IF($A123="","",VLOOKUP($A123,Items!$A$8:$J$701,9,FALSE)) -> 47702 | N123: 45.78 | O123: =IF($A123="","",VLOOKUP($A123,Items!$A$8:$K$701,11,FALSE)) -> 47473.86
A124: =IF(Items!A124="","",Items!A124) -> 715-05156 | B124: =IF(Items!B124="","",Items!B124) -> PIPE, TYPE 2, CIRCULAR, 30 IN. | C124: x | D124: 700 | E124: 715 | F124: =IF(A124="","",VLOOKUP(A124,Items!$A$8:$AJ$701,34,FALSE)) -> 130 | G124: =IF(A124="","",VLOOKUP(A124,Items!$A$8:$J$701,3,FALSE)) -> L.F. | H124: 55 | I124: =IF($A124="","",VLOOKUP($A124,Items!$A$8:$J$701,5,FALSE)) -> 7150 | J124: 53.44 | K124: =IF($A124="","",VLOOKUP($A124,Items!$A$8:$J$701,7,FALSE)) -> 6947.2 | L124: 52.5 | M124: =IF($A124="","",VLOOKUP($A124,Items!$A$8:$J$701,9,FALSE)) -> 6825 | N124: 52.17 | O124: =IF($A124="","",VLOOKUP($A124,Items!$A$8:$K$701,11,FALSE)) -> 6782.1
A125: =IF(Items!A125="","",Items!A125) -> 715-05169 | B125: =IF(Items!B125="","",Items!B125) -> PIPE, TYPE 3, CIRCULAR, 15 IN. | C125: x | D125: 700 | E125: 715 | F125: =IF(A125="","",VLOOKUP(A125,Items!$A$8:$AJ$701,34,FALSE)) -> 319 | G125: =IF(A125="","",VLOOKUP(A125,Items!$A$8:$J$701,3,FALSE)) -> L.F. | H125: 27 | I125: =IF($A125="","",VLOOKUP($A125,Items!$A$8:$J$701,5,FALSE)) -> 8613 | J125: 26.94 | K125: =IF($A125="","",VLOOKUP($A125,Items!$A$8:$J$701,7,FALSE)) -> 8593.86 | L125: 35.5 | M125: =IF($A125="","",VLOOKUP($A125,Items!$A$8:$J$701,9,FALSE)) -> 11324.5 | N125: 35.15 | O125: =IF($A125="","",VLOOKUP($A125,Items!$A$8:$K$701,11,FALSE)) -> 11212.85
A126: =IF(Items!A126="","",Items!A126) -> 715-05171 | B126: =IF(Items!B126="","",Items!B126) -> PIPE, TYPE 3, CIRCULAR, 18 IN. | C126: x | D126: 700 | E126: 715 | F126: =IF(A126="","",VLOOKUP(A126,Items!$A$8:$AJ$701,34,FALSE)) -> 88 | G126: =IF(A126="","",VLOOKUP(A126,Items!$A$8:$J$701,3,FALSE)) -> L.F. | H126: 34 | I126: =IF($A126="","",VLOOKUP($A126,Items!$A$8:$J$701,5,FALSE)) -> 2992 | J126: 33.11 | K126: =IF($A126="","",VLOOKUP($A126,Items!$A$8:$J$701,7,FALSE)) -> 2913.68 | L126: 36.5 | M126: =IF($A126="","",VLOOKUP($A126,Items!$A$8:$J$701,9,FALSE)) -> 3212 | N126: 36.16 | O126: =IF($A126="","",VLOOKUP($A126,Items!$A$8:$K$701,11,FALSE)) -> 3182.08
A127: =IF(Items!A127="","",Items!A127) -> 715-05236 | B127: =IF(Items!B127="","",Items!B127) -> PIPE, TYPE 1, DEFORMED, MIN. AREA 0.47 M2 | C127: x | D127: 700 | E127: 715 | F127: =IF(A127="","",VLOOKUP(A127,Items!$A$8:$AJ$701,34,FALSE)) -> 308 | G127: =IF(A127="","",VLOOKUP(A127,Items!$A$8:$J$701,3,FALSE)) -> L.F. | H127: 117.08 | I127: =IF($A127="","",VLOOKUP($A127,Items!$A$8:$J$701,5,FALSE)) -> 36060.64 | J127: 79.24 | K127: =IF($A127="","",VLOOKUP($A127,Items!$A$8:$J$701,7,FALSE)) -> 24405.92 | L127: 71 | M127: =IF($A127="","",VLOOKUP($A127,Items!$A$8:$J$701,9,FALSE)) -> 21868 | N127: 70.9 | O127: =IF($A127="","",VLOOKUP($A127,Items!$A$8:$K$701,11,FALSE)) -> 21837.2
A128: =IF(Items!A128="","",Items!A128) -> 715-06471 | B128: =IF(Items!B128="","",Items!B128) -> PIPE END SECTION, MIN. AREA .31 M2 | C128: x | D128: 700 | E128: 715 | F128: =IF(A128="","",VLOOKUP(A128,Items!$A$8:$AJ$701,34,FALSE)) -> 2 | G128: =IF(A128="","",VLOOKUP(A128,Items!$A$8:$J$701,3,FALSE)) -> EACH | H128: 700 | I128: =IF($A128="","",VLOOKUP($A128,Items!$A$8:$J$701,5,FALSE)) -> 1400 | J128: 571.34 | K128: =IF($A128="","",VLOOKUP($A128,Items!$A$8:$J$701,7,FALSE)) -> 1142.68 | L128: 565 | M128: =IF($A128="","",VLOOKUP($A128,Items!$A$8:$J$701,9,FALSE)) -> 1130 | N128: 565.04 | O128: =IF($A128="","",VLOOKUP($A128,Items!$A$8:$K$701,11,FALSE)) -> 1130.08
A129: =IF(Items!A129="","",Items!A129) -> 715-08243 | B129: =IF(Items!B129="","",Items!B129) -> PIPE, TYPE 3, DEFORMED, MIN. AREA 3.3 SQ. FT. | C129: x | D129: 700 | E129: 715 | F129: =IF(A129="","",VLOOKUP(A129,Items!$A$8:$AJ$701,34,FALSE)) -> 48 | G129: =IF(A129="","",VLOOKUP(A129,Items!$A$8:$J$701,3,FALSE)) -> L.F. | H129: 98.81 | I129: =IF($A129="","",VLOOKUP($A129,Items!$A$8:$J$701,5,FALSE)) -> 4742.88 | J129: 66.31 | K129: =IF($A129="","",VLOOKUP($A129,Items!$A$8:$J$701,7,FALSE)) -> 3182.88 | L129: 57 | M129: =IF($A129="","",VLOOKUP($A129,Items!$A$8:$J$701,9,FALSE)) -> 2736 | N129: 56.45 | O129: =IF($A129="","",VLOOKUP($A129,Items!$A$8:$K$701,11,FALSE)) -> 2709.6
A130: =IF(Items!A130="","",Items!A130) -> 715-09064 | B130: =IF(Items!B130="","",Items!B130) -> VIDEO INSPECTION FOR PIPE | C130: x | D130: 700 | E130: 715 | F130: =IF(A130="","",VLOOKUP(A130,Items!$A$8:$AJ$701,34,FALSE)) -> 2792 | G130: =IF(A130="","",VLOOKUP(A130,Items!$A$8:$J$701,3,FALSE)) -> L.F. | H130: 1.25 | I130: =IF($A130="","",VLOOKUP($A130,Items!$A$8:$J$701,5,FALSE)) -> 3490 | J130: 2 | K130: =IF($A130="","",VLOOKUP($A130,Items!$A$8:$J$701,7,FALSE)) -> 5584 | L130: 1.5 | M130: =IF($A130="","",VLOOKUP($A130,Items!$A$8:$J$701,9,FALSE)) -> 4188 | N130: 1.45 | O130: =IF($A130="","",VLOOKUP($A130,Items!$A$8:$K$701,11,FALSE)) -> 4048.4
A131: =IF(Items!A131="","",Items!A131) -> 715-09769 | B131: =IF(Items!B131="","",Items!B131) -> PIPE, TYPE 3, DEFORMED, MIN. AREA 5.1 | C131: x | D131: 700 | E131: 715 | F131: =IF(A131="","",VLOOKUP(A131,Items!$A$8:$AJ$701,34,FALSE)) -> 240 | G131: =IF(A131="","",VLOOKUP(A131,Items!$A$8:$J$701,3,FALSE)) -> L.F. | H131: 141.48 | I131: =IF($A131="","",VLOOKUP($A131,Items!$A$8:$J$701,5,FALSE)) -> 33955.2 | J131: 67.02 | K131: =IF($A131="","",VLOOKUP($A131,Items!$A$8:$J$701,7,FALSE)) -> 16084.8 | L131: 68.5 | M131: =IF($A131="","",VLOOKUP($A131,Items!$A$8:$J$701,9,FALSE)) -> 16440 | N131: 68.06 | O131: =IF($A131="","",VLOOKUP($A131,Items!$A$8:$K$701,11,FALSE)) -> 16334.4
A132: =IF(Items!A132="","",Items!A132) -> 715-46005 | B132: =IF(Items!B132="","",Items!B132) -> PIPE END SECTION, 15 IN. | C132: x | D132: 700 | E132: 715 | F132: =IF(A132="","",VLOOKUP(A132,Items!$A$8:$AJ$701,34,FALSE)) -> 14 | G132: =IF(A132="","",VLOOKUP(A132,Items!$A$8:$J$701,3,FALSE)) -> EACH | H132: 347 | I132: =IF($A132="","",VLOOKUP($A132,Items!$A$8:$J$701,5,FALSE)) -> 4858 | J132: 308.28 | K132: =IF($A132="","",VLOOKUP($A132,Items!$A$8:$J$701,7,FALSE)) -> 4315.92 | L132: 336 | M132: =IF($A132="","",VLOOKUP($A132,Items!$A$8:$J$701,9,FALSE)) -> 4704 | N132: 335.93 | O132: =IF($A132="","",VLOOKUP($A132,Items!$A$8:$K$701,11,FALSE)) -> 4703.02
A133: =IF(Items!A133="","",Items!A133) -> 715-46010 | B133: =IF(Items!B133="","",Items!B133) -> PIPE END SECTION, 18 IN. | C133: x | D133: 700 | E133: 715 | F133: =IF(A133="","",VLOOKUP(A133,Items!$A$8:$AJ$701,34,FALSE)) -> 5 | G133: =IF(A133="","",VLOOKUP(A133,Items!$A$8:$J$701,3,FALSE)) -> EACH | H133: 400 | I133: =IF($A133="","",VLOOKUP($A133,Items!$A$8:$J$701,5,FALSE)) -> 2000 | J133: 331.27 | K133: =IF($A133="","",VLOOKUP($A133,Items!$A$8:$J$701,7,FALSE)) -> 1656.35 | L133: 402 | M133: =IF($A133="","",VLOOKUP($A133,Items!$A$8:$J$701,9,FALSE)) -> 2010 | N133: 401.63 | O133: =IF($A133="","",VLOOKUP($A133,Items!$A$8:$K$701,11,FALSE)) -> 2008.15
A134: =IF(Items!A134="","",Items!A134) -> 715-46020 | B134: =IF(Items!B134="","",Items!B134) -> PIPE END SECTION, 24 IN. | C134: x | D134: 700 | E134: 715 | F134: =IF(A134="","",VLOOKUP(A134,Items!$A$8:$AJ$701,34,FALSE)) -> 4 | G134: =IF(A134="","",VLOOKUP(A134,Items!$A$8:$J$701,3,FALSE)) -> EACH | H134: 475 | I134: =IF($A134="","",VLOOKUP($A134,Items!$A$8:$J$701,5,FALSE)) -> 1900 | J134: 596.92 | K134: =IF($A134="","",VLOOKUP($A134,Items!$A$8:$J$701,7,FALSE)) -> 2387.68 | L134: 468 | M134: =IF($A134="","",VLOOKUP($A134,Items!$A$8:$J$701,9,FALSE)) -> 1872 | N134: 467.33 | O134: =IF($A134="","",VLOOKUP($A134,Items!$A$8:$K$701,11,FALSE)) -> 1869.32
A135: =IF(Items!A135="","",Items!A135) -> 715-46030 | B135: =IF(Items!B135="","",Items!B135) -> PIPE END SECTION, 30 IN. | C135: x | D135: 700 | E135: 715 | F135: =IF(A135="","",VLOOKUP(A135,Items!$A$8:$AJ$701,34,FALSE)) -> 1 | G135: =IF(A135="","",VLOOKUP(A135,Items!$A$8:$J$701,3,FALSE)) -> EACH | H135: 605 | I135: =IF($A135="","",VLOOKUP($A135,Items!$A$8:$J$701,5,FALSE)) -> 605 | J135: 665.4 | K135: =IF($A135="","",VLOOKUP($A135,Items!$A$8:$J$701,7,FALSE)) -> 665.4 | L135: 600 | M135: =IF($A135="","",VLOOKUP($A135,Items!$A$8:$J$701,9,FALSE)) -> 600 | N135: 596.9 | O135: =IF($A135="","",VLOOKUP($A135,Items!$A$8:$K$701,11,FALSE)) -> 596.9
A136: =IF(Items!A136="","",Items!A136) -> 718-06529 | B136: =IF(Items!B136="","",Items!B136) -> OUTLET PROTECTOR, 2 | C136: x | D136: 700 | E136: 718 | F136: =IF(A136="","",VLOOKUP(A136,Items!$A$8:$AJ$701,34,FALSE)) -> 6 | G136: =IF(A136="","",VLOOKUP(A136,Items!$A$8:$J$701,3,FALSE)) -> EACH | H136: 850 | I136: =IF($A136="","",VLOOKUP($A136,Items!$A$8:$J$701,5,FALSE)) -> 5100 | J136: 729.18 | K136: =IF($A136="","",VLOOKUP($A136,Items!$A$8:$J$701,7,FALSE)) -> 4375.08 | L136: 850 | M136: =IF($A136="","",VLOOKUP($A136,Items!$A$8:$J$701,9,FALSE)) -> 5100 | N136: 850 | O136: =IF($A136="","",VLOOKUP($A136,Items!$A$8:$K$701,11,FALSE)) -> 5100
A137: =IF(Items!A137="","",Items!A137) -> 718-06531 | B137: =IF(Items!B137="","",Items!B137) -> OUTLET PROTECTOR, 3 | C137: =IF(A137="","","x") -> x | D137: =IF(A137="","",LEFT(A137,1)*100) -> 700 | E137: =IF(A137="","",LEFT(A137,3)) -> 718 | F137: =IF(A137="","",VLOOKUP(A137,Items!$A$8:$AJ$701,34,FALSE)) -> 30 | G137: =IF(A137="","",VLOOKUP(A137,Items!$A$8:$J$701,3,FALSE)) -> EACH | H137: =IF(OR($F137="",$F137=0),"",I137/$F137) -> 800 | I137: =IF($A137="","",VLOOKUP($A137,Items!$A$8:$J$701,5,FALSE)) -> 24000 | J137: =IF(OR($F137="",$F137=0),"",K137/$F137) -> 704.86 | K137: =IF($A137="","",VLOOKUP($A137,Items!$A$8:$J$701,7,FALSE)) -> 21145.8 | L137: =IF(OR($F137="",$F137=0),"",M137/$F137) -> 550 | M137: =IF($A137="","",VLOOKUP($A137,Items!$A$8:$J$701,9,FALSE)) -> 16500 | N137: =IF(OR($F137="",$F137=0),"",O137/$F137) -> 800 | O137: =IF($A137="","",VLOOKUP($A137,Items!$A$8:$K$701,11,FALSE)) -> 24000
A138: =IF(Items!A138="","",Items!A138) -> 718-06532 | B138: =IF(Items!B138="","",Items!B138) -> VIDEO INSPECTION FOR UNDERDRAINS | C138: x | D138: 700 | E138: 718 | F138: =IF(A138="","",VLOOKUP(A138,Items!$A$8:$AJ$701,34,FALSE)) -> 3000 | G138: =IF(A138="","",VLOOKUP(A138,Items!$A$8:$J$701,3,FALSE)) -> L.F. | H138: 1.1 | I138: =IF($A138="","",VLOOKUP($A138,Items!$A$8:$J$701,5,FALSE)) -> 3300 | J138: 1 | K138: =IF($A138="","",VLOOKUP($A138,Items!$A$8:$J$701,7,FALSE)) -> 3000 | L138: 1 | M138: =IF($A138="","",VLOOKUP($A138,Items!$A$8:$J$701,9,FALSE)) -> 3000 | N138: 1.15 | O138: =IF($A138="","",VLOOKUP($A138,Items!$A$8:$K$701,11,FALSE)) -> 3450
A139: =IF(Items!A139="","",Items!A139) -> 718-52610 | B139: =IF(Items!B139="","",Items!B139) -> AGGREGATE FOR UNDERDRAINS | C139: x | D139: 700 | E139: 718 | F139: =IF(A139="","",VLOOKUP(A139,Items!$A$8:$AJ$701,34,FALSE)) -> 1496 | G139: =IF(A139="","",VLOOKUP(A139,Items!$A$8:$J$701,3,FALSE)) -> C.Y. | H139: 33 | I139: =IF($A139="","",VLOOKUP($A139,Items!$A$8:$J$701,5,FALSE)) -> 49368 | J139: 31.03 | K139: =IF($A139="","",VLOOKUP($A139,Items!$A$8:$J$701,7,FALSE)) -> 46420.88 | L139: 25 | M139: =IF($A139="","",VLOOKUP($A139,Items!$A$8:$J$701,9,FALSE)) -> 37400 | N139: 33 | O139: =IF($A139="","",VLOOKUP($A139,Items!$A$8:$K$701,11,FALSE)) -> 49368
A140: =IF(Items!A140="","",Items!A140) -> 720-44000 | B140: =IF(Items!B140="","",Items!B140) -> CASTING, ADJUST TO GRADE | C140: x | D140: 700 | E140: 720 | F140: =IF(A140="","",VLOOKUP(A140,Items!$A$8:$AJ$701,34,FALSE)) -> 8 | G140: =IF(A140="","",VLOOKUP(A140,Items!$A$8:$J$701,3,FALSE)) -> EACH | H140: 445 | I140: =IF($A140="","",VLOOKUP($A140,Items!$A$8:$J$701,5,FALSE)) -> 3560 | J140: 680.33 | K140: =IF($A140="","",VLOOKUP($A140,Items!$A$8:$J$701,7,FALSE)) -> 5442.64 | L140: 331 | M140: =IF($A140="","",VLOOKUP($A140,Items!$A$8:$J$701,9,FALSE)) -> 2648 | N140: 330.99 | O140: =IF($A140="","",VLOOKUP($A140,Items!$A$8:$K$701,11,FALSE)) -> 2647.92
A141: =IF(Items!A141="","",Items!A141) -> 720-45025 | B141: =IF(Items!B141="","",Items!B141) -> INLET, D6 | C141: x | D141: 700 | E141: 720 | F141: =IF(A141="","",VLOOKUP(A141,Items!$A$8:$AJ$701,34,FALSE)) -> 1 | G141: =IF(A141="","",VLOOKUP(A141,Items!$A$8:$J$701,3,FALSE)) -> EACH | H141: 2340 | I141: =IF($A141="","",VLOOKUP($A141,Items!$A$8:$J$701,5,FALSE)) -> 2340 | J141: 2046.02 | K141: =IF($A141="","",VLOOKUP($A141,Items!$A$8:$J$701,7,FALSE)) -> 2046.02 | L141: 1315 | M141: =IF($A141="","",VLOOKUP($A141,Items!$A$8:$J$701,9,FALSE)) -> 1315 | N141: 1315.23 | O141: =IF($A141="","",VLOOKUP($A141,Items!$A$8:$K$701,11,FALSE)) -> 1315.23
A142: =IF(Items!A142="","",Items!A142) -> 720-45030 | B142: =IF(Items!B142="","",Items!B142) -> INLET, E7 | C142: x | D142: 700 | E142: 720 | F142: =IF(A142="","",VLOOKUP(A142,Items!$A$8:$AJ$701,34,FALSE)) -> 1 | G142: =IF(A142="","",VLOOKUP(A142,Items!$A$8:$J$701,3,FALSE)) -> EACH | H142: 1400 | I142: =IF($A142="","",VLOOKUP($A142,Items!$A$8:$J$701,5,FALSE)) -> 1400 | J142: 1661.32 | K142: =IF($A142="","",VLOOKUP($A142,Items!$A$8:$J$701,7,FALSE)) -> 1661.32 | L142: 1105 | M142: =IF($A142="","",VLOOKUP($A142,Items!$A$8:$J$701,9,FALSE)) -> 1105 | N142: 1101.7 | O142: =IF($A142="","",VLOOKUP($A142,Items!$A$8:$K$701,11,FALSE)) -> 1101.7
A143: =IF(Items!A143="","",Items!A143) -> 720-45035 | B143: =IF(Items!B143="","",Items!B143) -> INLET, F7 | C143: x | D143: 700 | E143: 720 | F143: =IF(A143="","",VLOOKUP(A143,Items!$A$8:$AJ$701,34,FALSE)) -> 3 | G143: =IF(A143="","",VLOOKUP(A143,Items!$A$8:$J$701,3,FALSE)) -> EACH | H143: 1390 | I143: =IF($A143="","",VLOOKUP($A143,Items!$A$8:$J$701,5,FALSE)) -> 4170 | J143: 1661.31 | K143: =IF($A143="","",VLOOKUP($A143,Items!$A$8:$J$701,7,FALSE)) -> 4983.93 | L143: 1103 | M143: =IF($A143="","",VLOOKUP($A143,Items!$A$8:$J$701,9,FALSE)) -> 3309 | N143: 1102.8 | O143: =IF($A143="","",VLOOKUP($A143,Items!$A$8:$K$701,11,FALSE)) -> 3308.4
A144: =IF(Items!A144="","",Items!A144) -> 720-45040 | B144: =IF(Items!B144="","",Items!B144) -> INLET, G7 | C144: x | D144: 700 | E144: 720 | F144: =IF(A144="","",VLOOKUP(A144,Items!$A$8:$AJ$701,34,FALSE)) -> 2 | G144: =IF(A144="","",VLOOKUP(A144,Items!$A$8:$J$701,3,FALSE)) -> EACH | H144: 2225 | I144: =IF($A144="","",VLOOKUP($A144,Items!$A$8:$J$701,5,FALSE)) -> 4450 | J144: 2009.02 | K144: =IF($A144="","",VLOOKUP($A144,Items!$A$8:$J$701,7,FALSE)) -> 4018.04 | L144: 2378 | M144: =IF($A144="","",VLOOKUP($A144,Items!$A$8:$J$701,9,FALSE)) -> 4756 | N144: 2378.55 | O144: =IF($A144="","",VLOOKUP($A144,Items!$A$8:$K$701,11,FALSE)) -> 4757.1
A145: =IF(Items!A145="","",Items!A145) -> 720-45140 | B145: =IF(Items!B145="","",Items!B145) -> INLET, G7, MODIFIED | C145: x | D145: 700 | E145: 720 | F145: =IF(A145="","",VLOOKUP(A145,Items!$A$8:$AJ$701,34,FALSE)) -> 1 | G145: =IF(A145="","",VLOOKUP(A145,Items!$A$8:$J$701,3,FALSE)) -> EACH | H145: 2400 | I145: =IF($A145="","",VLOOKUP($A145,Items!$A$8:$J$701,5,FALSE)) -> 2400 | J145: 2401.09 | K145: =IF($A145="","",VLOOKUP($A145,Items!$A$8:$J$701,7,FALSE)) -> 2401.09 | L145: 1725 | M145: =IF($A145="","",VLOOKUP($A145,Items!$A$8:$J$701,9,FALSE)) -> 1725 | N145: 1721.49 | O145: =IF($A145="","",VLOOKUP($A145,Items!$A$8:$K$701,11,FALSE)) -> 1721.49
A146: =IF(Items!A146="","",Items!A146) -> 720-45510 | B146: =IF(Items!B146="","",Items!B146) -> MANHOLE, C4, MODIFIED | C146: x | D146: 700 | E146: 720 | F146: =IF(A146="","",VLOOKUP(A146,Items!$A$8:$AJ$701,34,FALSE)) -> 2 | G146: =IF(A146="","",VLOOKUP(A146,Items!$A$8:$J$701,3,FALSE)) -> EACH | H146: 2600 | I146: =IF($A146="","",VLOOKUP($A146,Items!$A$8:$J$701,5,FALSE)) -> 5200 | J146: 2410.76 | K146: =IF($A146="","",VLOOKUP($A146,Items!$A$8:$J$701,7,FALSE)) -> 4821.52 | L146: 1836.5 | M146: =IF($A146="","",VLOOKUP($A146,Items!$A$8:$J$701,9,FALSE)) -> 3673 | N146: 1836.5 | O146: =IF($A146="","",VLOOKUP($A146,Items!$A$8:$K$701,11,FALSE)) -> 3673
A147: =IF(Items!A147="","",Items!A147) -> 720-95409 | B147: =IF(Items!B147="","",Items!B147) -> MANHOLE, J4, MODIFIED | C147: x | D147: 700 | E147: 720 | F147: =IF(A147="","",VLOOKUP(A147,Items!$A$8:$AJ$701,34,FALSE)) -> 2 | G147: =IF(A147="","",VLOOKUP(A147,Items!$A$8:$J$701,3,FALSE)) -> EACH | H147: 3200 | I147: =IF($A147="","",VLOOKUP($A147,Items!$A$8:$J$701,5,FALSE)) -> 6400 | J147: 3483.01 | K147: =IF($A147="","",VLOOKUP($A147,Items!$A$8:$J$701,7,FALSE)) -> 6966.02 | L147: 1787 | M147: =IF($A147="","",VLOOKUP($A147,Items!$A$8:$J$701,9,FALSE)) -> 3574 | N147: 1787.22 | O147: =IF($A147="","",VLOOKUP($A147,Items!$A$8:$K$701,11,FALSE)) -> 3574.44
A148: =IF(Items!A148="","",Items!A148) -> 720-97865 | B148: =IF(Items!B148="","",Items!B148) -> MANHOLE, C2, MODIFIED | C148: x | D148: 700 | E148: 720 | F148: =IF(A148="","",VLOOKUP(A148,Items!$A$8:$AJ$701,34,FALSE)) -> 4 | G148: =IF(A148="","",VLOOKUP(A148,Items!$A$8:$J$701,3,FALSE)) -> EACH | H148: 3700 | I148: =IF($A148="","",VLOOKUP($A148,Items!$A$8:$J$701,5,FALSE)) -> 14800 | J148: 2629.8 | K148: =IF($A148="","",VLOOKUP($A148,Items!$A$8:$J$701,7,FALSE)) -> 10519.2 | L148: 2030 | M148: =IF($A148="","",VLOOKUP($A148,Items!$A$8:$J$701,9,FALSE)) -> 8120 | N148: 2030.3 | O148: =IF($A148="","",VLOOKUP($A148,Items!$A$8:$K$701,11,FALSE)) -> 8121.2
A149: =IF(Items!A149="","",Items!A149) -> 720-98555 | B149: =IF(Items!B149="","",Items!B149) -> INLET, C15 | C149: x | D149: 700 | E149: 720 | F149: =IF(A149="","",VLOOKUP(A149,Items!$A$8:$AJ$701,34,FALSE)) -> 1 | G149: =IF(A149="","",VLOOKUP(A149,Items!$A$8:$J$701,3,FALSE)) -> EACH | H149: 2075 | I149: =IF($A149="","",VLOOKUP($A149,Items!$A$8:$J$701,5,FALSE)) -> 2075 | J149: 2511.1 | K149: =IF($A149="","",VLOOKUP($A149,Items!$A$8:$J$701,7,FALSE)) -> 2511.1 | L149: 1777 | M149: =IF($A149="","",VLOOKUP($A149,Items!$A$8:$J$701,9,FALSE)) -> 1777 | N149: 1776.98 | O149: =IF($A149="","",VLOOKUP($A149,Items!$A$8:$K$701,11,FALSE)) -> 1776.98
A150: =IF(Items!A150="","",Items!A150) -> 723-08608 | B150: =IF(Items!B150="","",Items!B150) -> WINGWALL | C150: x | D150: 700 | E150: 723 | F150: =IF(A150="","",VLOOKUP(A150,Items!$A$8:$AJ$701,34,FALSE)) -> 608 | G150: =IF(A150="","",VLOOKUP(A150,Items!$A$8:$J$701,3,FALSE)) -> S.F. | H150: 90 | I150: =IF($A150="","",VLOOKUP($A150,Items!$A$8:$J$701,5,FALSE)) -> 54720 | J150: 51.26 | K150: =IF($A150="","",VLOOKUP($A150,Items!$A$8:$J$701,7,FALSE)) -> 31166.08 | L150: 87 | M150: =IF($A150="","",VLOOKUP($A150,Items!$A$8:$J$701,9,FALSE)) -> 52896 | N150: 86.99 | O150: =IF($A150="","",VLOOKUP($A150,Items!$A$8:$K$701,11,FALSE)) -> 52889.92
A151: =IF(Items!A151="","",Items!A151) -> 727-90308 | B151: =IF(Items!B151="","",Items!B151) -> EPOXY INJECTION, CRACK PREPARATION | C151: x | D151: 700 | E151: 727 | F151: =IF(A151="","",VLOOKUP(A151,Items!$A$8:$AJ$701,34,FALSE)) -> 119 | G151: =IF(A151="","",VLOOKUP(A151,Items!$A$8:$J$701,3,FALSE)) -> L.F. | H151: 40.37 | I151: =IF($A151="","",VLOOKUP($A151,Items!$A$8:$J$701,5,FALSE)) -> 4804.03 | J151: 34.08 | K151: =IF($A151="","",VLOOKUP($A151,Items!$A$8:$J$701,7,FALSE)) -> 4055.52 | L151: 59.6 | M151: =IF($A151="","",VLOOKUP($A151,Items!$A$8:$J$701,9,FALSE)) -> 7092.4 | N151: 93 | O151: =IF($A151="","",VLOOKUP($A151,Items!$A$8:$K$701,11,FALSE)) -> 11067
A152: =IF(Items!A152="","",Items!A152) -> 727-90309 | B152: =IF(Items!B152="","",Items!B152) -> EPOXY INJECTION, EPOXY MATERIAL | C152: x | D152: 700 | E152: 727 | F152: =IF(A152="","",VLOOKUP(A152,Items!$A$8:$AJ$701,34,FALSE)) -> 15 | G152: =IF(A152="","",VLOOKUP(A152,Items!$A$8:$J$701,3,FALSE)) -> GAL | H152: 54 | I152: =IF($A152="","",VLOOKUP($A152,Items!$A$8:$J$701,5,FALSE)) -> 810 | J152: 53.34 | K152: =IF($A152="","",VLOOKUP($A152,Items!$A$8:$J$701,7,FALSE)) -> 800.1 | L152: 54 | M152: =IF($A152="","",VLOOKUP($A152,Items!$A$8:$J$701,9,FALSE)) -> 810 | N152: 85 | O152: =IF($A152="","",VLOOKUP($A152,Items!$A$8:$K$701,11,FALSE)) -> 1275
A153: =IF(Items!A153="","",Items!A153) -> 727-93560 | B153: =IF(Items!B153="","",Items!B153) -> EPOXY INJECTION, FURNISHING EQUIPMENT | C153: x | D153: 700 | E153: 727 | F153: =IF(A153="","",VLOOKUP(A153,Items!$A$8:$AJ$701,34,FALSE)) -> 1 | G153: =IF(A153="","",VLOOKUP(A153,Items!$A$8:$J$701,3,FALSE)) -> L.S. | H153: 200 | I153: =IF($A153="","",VLOOKUP($A153,Items!$A$8:$J$701,5,FALSE)) -> 200 | J153: 500 | K153: =IF($A153="","",VLOOKUP($A153,Items!$A$8:$J$701,7,FALSE)) -> 500 | L153: 200 | M153: =IF($A153="","",VLOOKUP($A153,Items!$A$8:$J$701,9,FALSE)) -> 200 | N153: 1875 | O153: =IF($A153="","",VLOOKUP($A153,Items!$A$8:$K$701,11,FALSE)) -> 1875
A154: =IF(Items!A154="","",Items!A154) -> 801-02595 | B154: =IF(Items!B154="","",Items!B154) -> CONTROLLER, RESET TIMING | C154: x | D154: 800 | E154: 801 | F154: =IF(A154="","",VLOOKUP(A154,Items!$A$8:$AJ$701,34,FALSE)) -> 3 | G154: =IF(A154="","",VLOOKUP(A154,Items!$A$8:$J$701,3,FALSE)) -> EACH | H154: 155 | I154: =IF($A154="","",VLOOKUP($A154,Items!$A$8:$J$701,5,FALSE)) -> 465 | J154: 155 | K154: =IF($A154="","",VLOOKUP($A154,Items!$A$8:$J$701,7,FALSE)) -> 465 | L154: 155 | M154: =IF($A154="","",VLOOKUP($A154,Items!$A$8:$J$701,9,FALSE)) -> 465 | N154: 155 | O154: =IF($A154="","",VLOOKUP($A154,Items!$A$8:$K$701,11,FALSE)) -> 465
A155: =IF(Items!A155="","",Items!A155) -> 801-03290 | B155: =IF(Items!B155="","",Items!B155) -> CONSTRUCTION SIGN, C | C155: x | D155: 800 | E155: 801 | F155: =IF(A155="","",VLOOKUP(A155,Items!$A$8:$AJ$701,34,FALSE)) -> 12 | G155: =IF(A155="","",VLOOKUP(A155,Items!$A$8:$J$701,3,FALSE)) -> EACH | H155: 140 | I155: =IF($A155="","",VLOOKUP($A155,Items!$A$8:$J$701,5,FALSE)) -> 1680 | J155: 128 | K155: =IF($A155="","",VLOOKUP($A155,Items!$A$8:$J$701,7,FALSE)) -> 1536 | L155: 140 | M155: =IF($A155="","",VLOOKUP($A155,Items!$A$8:$J$701,9,FALSE)) -> 1680 | N155: 153 | O155: =IF($A155="","",VLOOKUP($A155,Items!$A$8:$K$701,11,FALSE)) -> 1836
A156: =IF(Items!A156="","",Items!A156) -> 801-04308 | B156: =IF(Items!B156="","",Items!B156) -> ROAD CLOSURE SIGN ASSEMBLY | C156: x | D156: 800 | E156: 801 | F156: =IF(A156="","",VLOOKUP(A156,Items!$A$8:$AJ$701,34,FALSE)) -> 20 | G156: =IF(A156="","",VLOOKUP(A156,Items!$A$8:$J$701,3,FALSE)) -> EACH | H156: 345 | I156: =IF($A156="","",VLOOKUP($A156,Items!$A$8:$J$701,5,FALSE)) -> 6900 | J156: 110 | K156: =IF($A156="","",VLOOKUP($A156,Items!$A$8:$J$701,7,FALSE)) -> 2200 | L156: 345 | M156: =IF($A156="","",VLOOKUP($A156,Items!$A$8:$J$701,9,FALSE)) -> 6900 | N156: 132 | O156: =IF($A156="","",VLOOKUP($A156,Items!$A$8:$K$701,11,FALSE)) -> 2640
A157: =IF(Items!A157="","",Items!A157) -> 801-06201 | B157: =IF(Items!B157="","",Items!B157) -> TEMPORARY PANEL SIGNS | C157: x | D157: 800 | E157: 801 | F157: =IF(A157="","",VLOOKUP(A157,Items!$A$8:$AJ$701,34,FALSE)) -> 22.5 | G157: =IF(A157="","",VLOOKUP(A157,Items!$A$8:$J$701,3,FALSE)) -> S.Y. | H157: 22 | I157: =IF($A157="","",VLOOKUP($A157,Items!$A$8:$J$701,5,FALSE)) -> 495 | J157: 22 | K157: =IF($A157="","",VLOOKUP($A157,Items!$A$8:$J$701,7,FALSE)) -> 495 | L157: 13.8 | M157: =IF($A157="","",VLOOKUP($A157,Items!$A$8:$J$701,9,FALSE)) -> 310.5 | N157: 22 | O157: =IF($A157="","",VLOOKUP($A157,Items!$A$8:$K$701,11,FALSE)) -> 495
A158: =IF(Items!A158="","",Items!A158) -> 801-06202 | B158: =IF(Items!B158="","",Items!B158) -> TEMPORARY PANEL SIGN SUPPORTS | C158: x | D158: 800 | E158: 801 | F158: =IF(A158="","",VLOOKUP(A158,Items!$A$8:$AJ$701,34,FALSE)) -> 56 | G158: =IF(A158="","",VLOOKUP(A158,Items!$A$8:$J$701,3,FALSE)) -> L.F. | H158: 20 | I158: =IF($A158="","",VLOOKUP($A158,Items!$A$8:$J$701,5,FALSE)) -> 1120 | J158: 20 | K158: =IF($A158="","",VLOOKUP($A158,Items!$A$8:$J$701,7,FALSE)) -> 1120 | L158: 17.7 | M158: =IF($A158="","",VLOOKUP($A158,Items!$A$8:$J$701,9,FALSE)) -> 991.2 | N158: 20 | O158: =IF($A158="","",VLOOKUP($A158,Items!$A$8:$K$701,11,FALSE)) -> 1120
A159: =IF(Items!A159="","",Items!A159) -> 801-06203 | B159: =IF(Items!B159="","",Items!B159) -> TEMPORARY PAVEMENT MARKING, 4 IN. | C159: x | D159: 800 | E159: 801 | F159: =IF(A159="","",VLOOKUP(A159,Items!$A$8:$AJ$701,34,FALSE)) -> 35000 | G159: =IF(A159="","",VLOOKUP(A159,Items!$A$8:$J$701,3,FALSE)) -> L.F. | H159: 0.17 | I159: =IF($A159="","",VLOOKUP($A159,Items!$A$8:$J$701,5,FALSE)) -> 5950 | J159: 0.16 | K159: =IF($A159="","",VLOOKUP($A159,Items!$A$8:$J$701,7,FALSE)) -> 5600 | L159: 0.17 | M159: =IF($A159="","",VLOOKUP($A159,Items!$A$8:$J$701,9,FALSE)) -> 5950 | N159: 0.22 | O159: =IF($A159="","",VLOOKUP($A159,Items!$A$8:$K$701,11,FALSE)) -> 7700
A160: =IF(Items!A160="","",Items!A160) -> 801-06207 | B160: =IF(Items!B160="","",Items!B160) -> TEMPORARY PAVEMENT MARKING, REMOVABLE, 4 IN. | C160: x | D160: 800 | E160: 801 | F160: =IF(A160="","",VLOOKUP(A160,Items!$A$8:$AJ$701,34,FALSE)) -> 64300 | G160: =IF(A160="","",VLOOKUP(A160,Items!$A$8:$J$701,3,FALSE)) -> L.F. | H160: 0.88 | I160: =IF($A160="","",VLOOKUP($A160,Items!$A$8:$J$701,5,FALSE)) -> 56584 | J160: 0.87 | K160: =IF($A160="","",VLOOKUP($A160,Items!$A$8:$J$701,7,FALSE)) -> 55941 | L160: 0.88 | M160: =IF($A160="","",VLOOKUP($A160,Items!$A$8:$J$701,9,FALSE)) -> 56584 | N160: 0.1 | O160: =IF($A160="","",VLOOKUP($A160,Items!$A$8:$K$701,11,FALSE)) -> 6430
A161: =IF(Items!A161="","",Items!A161) -> 801-06211 | B161: =IF(Items!B161="","",Items!B161) -> TEMPORARY PAVEMENT MESSAGE MARKING, REMOVABLE | C161: x | D161: 800 | E161: 801 | F161: =IF(A161="","",VLOOKUP(A161,Items!$A$8:$AJ$701,34,FALSE)) -> 13 | G161: =IF(A161="","",VLOOKUP(A161,Items!$A$8:$J$701,3,FALSE)) -> EACH | H161: 95 | I161: =IF($A161="","",VLOOKUP($A161,Items!$A$8:$J$701,5,FALSE)) -> 1235 | J161: 85 | K161: =IF($A161="","",VLOOKUP($A161,Items!$A$8:$J$701,7,FALSE)) -> 1105 | L161: 95 | M161: =IF($A161="","",VLOOKUP($A161,Items!$A$8:$J$701,9,FALSE)) -> 1235 | N161: 115 | O161: =IF($A161="","",VLOOKUP($A161,Items!$A$8:$K$701,11,FALSE)) -> 1495
A162: =IF(Items!A162="","",Items!A162) -> 801-06218 | B162: =IF(Items!B162="","",Items!B162) -> TEMPORARY TRANSVERSE PAVEMENT MARKING, REMOVA | C162: x | D162: 800 | E162: 801 | F162: =IF(A162="","",VLOOKUP(A162,Items!$A$8:$AJ$701,34,FALSE)) -> 377 | G162: =IF(A162="","",VLOOKUP(A162,Items!$A$8:$J$701,3,FALSE)) -> L.F. | H162: 5 | I162: =IF($A162="","",VLOOKUP($A162,Items!$A$8:$J$701,5,FALSE)) -> 1885 | J162: 4.25 | K162: =IF($A162="","",VLOOKUP($A162,Items!$A$8:$J$701,7,FALSE)) -> 1602.25 | L162: 5 | M162: =IF($A162="","",VLOOKUP($A162,Items!$A$8:$J$701,9,FALSE)) -> 1885 | N162: 5.18 | O162: =IF($A162="","",VLOOKUP($A162,Items!$A$8:$K$701,11,FALSE)) -> 1952.86
A163: =IF(Items!A163="","",Items!A163) -> 801-06539 | B163: =IF(Items!B163="","",Items!B163) -> TEMPORARY TRAFFIC SIGNAL INSTALLATION, MAINTA | C163: x | D163: 800 | E163: 801 | F163: =IF(A163="","",VLOOKUP(A163,Items!$A$8:$AJ$701,34,FALSE)) -> 1 | G163: =IF(A163="","",VLOOKUP(A163,Items!$A$8:$J$701,3,FALSE)) -> L.S. | H163: 4100 | I163: =IF($A163="","",VLOOKUP($A163,Items!$A$8:$J$701,5,FALSE)) -> 4100 | J163: 4100 | K163: =IF($A163="","",VLOOKUP($A163,Items!$A$8:$J$701,7,FALSE)) -> 4100 | L163: 4100 | M163: =IF($A163="","",VLOOKUP($A163,Items!$A$8:$J$701,9,FALSE)) -> 4100 | N163: 4100 | O163: =IF($A163="","",VLOOKUP($A163,Items!$A$8:$K$701,11,FALSE)) -> 4100
A164: =IF(Items!A164="","",Items!A164) -> 801-06625 | B164: =IF(Items!B164="","",Items!B164) -> DETOUR ROUTE MARKER ASSEMBLY | C164: x | D164: 800 | E164: 801 | F164: =IF(A164="","",VLOOKUP(A164,Items!$A$8:$AJ$701,34,FALSE)) -> 15 | G164: =IF(A164="","",VLOOKUP(A164,Items!$A$8:$J$701,3,FALSE)) -> EACH | H164: 89 | I164: =IF($A164="","",VLOOKUP($A164,Items!$A$8:$J$701,5,FALSE)) -> 1335 | J164: 80 | K164: =IF($A164="","",VLOOKUP($A164,Items!$A$8:$J$701,7,FALSE)) -> 1200 | L164: 89 | M164: =IF($A164="","",VLOOKUP($A164,Items!$A$8:$J$701,9,FALSE)) -> 1335 | N164: 89 | O164: =IF($A164="","",VLOOKUP($A164,Items!$A$8:$K$701,11,FALSE)) -> 1335
A165: =IF(Items!A165="","",Items!A165) -> 801-06640 | B165: =IF(Items!B165="","",Items!B165) -> CONSTRUCTION SIGN, A | C165: x | D165: 800 | E165: 801 | F165: =IF(A165="","",VLOOKUP(A165,Items!$A$8:$AJ$701,34,FALSE)) -> 37 | G165: =IF(A165="","",VLOOKUP(A165,Items!$A$8:$J$701,3,FALSE)) -> EACH | H165: 130 | I165: =IF($A165="","",VLOOKUP($A165,Items!$A$8:$J$701,5,FALSE)) -> 4810 | J165: 112 | K165: =IF($A165="","",VLOOKUP($A165,Items!$A$8:$J$701,7,FALSE)) -> 4144 | L165: 130 | M165: =IF($A165="","",VLOOKUP($A165,Items!$A$8:$J$701,9,FALSE)) -> 4810 | N165: 129 | O165: =IF($A165="","",VLOOKUP($A165,Items!$A$8:$K$701,11,FALSE)) -> 4773
A166: =IF(Items!A166="","",Items!A166) -> 801-06645 | B166: =IF(Items!B166="","",Items!B166) -> CONSTRUCTION SIGN, B | C166: x | D166: 800 | E166: 801 | F166: =IF(A166="","",VLOOKUP(A166,Items!$A$8:$AJ$701,34,FALSE)) -> 5 | G166: =IF(A166="","",VLOOKUP(A166,Items!$A$8:$J$701,3,FALSE)) -> EACH | H166: 48 | I166: =IF($A166="","",VLOOKUP($A166,Items!$A$8:$J$701,5,FALSE)) -> 240 | J166: 40 | K166: =IF($A166="","",VLOOKUP($A166,Items!$A$8:$J$701,7,FALSE)) -> 200 | L166: 48 | M166: =IF($A166="","",VLOOKUP($A166,Items!$A$8:$J$701,9,FALSE)) -> 240 | N166: 48 | O166: =IF($A166="","",VLOOKUP($A166,Items!$A$8:$K$701,11,FALSE)) -> 240
A167: =IF(Items!A167="","",Items!A167) -> 801-06710 | B167: =IF(Items!B167="","",Items!B167) -> FLASHING ARROW SIGN | C167: x | D167: 800 | E167: 801 | F167: =IF(A167="","",VLOOKUP(A167,Items!$A$8:$AJ$701,34,FALSE)) -> 30 | G167: =IF(A167="","",VLOOKUP(A167,Items!$A$8:$J$701,3,FALSE)) -> DAY | H167: 10 | I167: =IF($A167="","",VLOOKUP($A167,Items!$A$8:$J$701,5,FALSE)) -> 300 | J167: 10 | K167: =IF($A167="","",VLOOKUP($A167,Items!$A$8:$J$701,7,FALSE)) -> 300 | L167: 10 | M167: =IF($A167="","",VLOOKUP($A167,Items!$A$8:$J$701,9,FALSE)) -> 300 | N167: 10 | O167: =IF($A167="","",VLOOKUP($A167,Items!$A$8:$K$701,11,FALSE)) -> 300
A168: =IF(Items!A168="","",Items!A168) -> 801-06775 | B168: =IF(Items!B168="","",Items!B168) -> MAINTAINING TRAFFIC | C168: x | D168: 800 | E168: 801 | F168: =IF(A168="","",VLOOKUP(A168,Items!$A$8:$AJ$701,34,FALSE)) -> 1 | G168: =IF(A168="","",VLOOKUP(A168,Items!$A$8:$J$701,3,FALSE)) -> L.S. | H168: 41950 | I168: =IF($A168="","",VLOOKUP($A168,Items!$A$8:$J$701,5,FALSE)) -> 41950 | J168: 150000 | K168: =IF($A168="","",VLOOKUP($A168,Items!$A$8:$J$701,7,FALSE)) -> 150000 | L168: 130000 | M168: =IF($A168="","",VLOOKUP($A168,Items!$A$8:$J$701,9,FALSE)) -> 130000 | N168: 175000 | O168: =IF($A168="","",VLOOKUP($A168,Items!$A$8:$K$701,11,FALSE)) -> 175000
A169: =IF(Items!A169="","",Items!A169) -> 801-07023 | B169: =IF(Items!B169="","",Items!B169) -> ENERGY ABSORBIBG TERMINAL, CZ, TL-2 | C169: x | D169: 800 | E169: 801 | F169: =IF(A169="","",VLOOKUP(A169,Items!$A$8:$AJ$701,34,FALSE)) -> 5 | G169: =IF(A169="","",VLOOKUP(A169,Items!$A$8:$J$701,3,FALSE)) -> EACH | H169: 5400 | I169: =IF($A169="","",VLOOKUP($A169,Items!$A$8:$J$701,5,FALSE)) -> 27000 | J169: 5500 | K169: =IF($A169="","",VLOOKUP($A169,Items!$A$8:$J$701,7,FALSE)) -> 27500 | L169: 6900 | M169: =IF($A169="","",VLOOKUP($A169,Items!$A$8:$J$701,9,FALSE)) -> 34500 | N169: 5400 | O169: =IF($A169="","",VLOOKUP($A169,Items!$A$8:$K$701,11,FALSE)) -> 27000
A170: =IF(Items!A170="","",Items!A170) -> 801-07118 | B170: =IF(Items!B170="","",Items!B170) -> BARRICADE, III-A | C170: x | D170: 800 | E170: 801 | F170: =IF(A170="","",VLOOKUP(A170,Items!$A$8:$AJ$701,34,FALSE)) -> 468 | G170: =IF(A170="","",VLOOKUP(A170,Items!$A$8:$J$701,3,FALSE)) -> L.F. | H170: 8.45 | I170: =IF($A170="","",VLOOKUP($A170,Items!$A$8:$J$701,5,FALSE)) -> 3954.6 | J170: 8 | K170: =IF($A170="","",VLOOKUP($A170,Items!$A$8:$J$701,7,FALSE)) -> 3744 | L170: 8.45 | M170: =IF($A170="","",VLOOKUP($A170,Items!$A$8:$J$701,9,FALSE)) -> 3954.6 | N170: 11.1 | O170: =IF($A170="","",VLOOKUP($A170,Items!$A$8:$K$701,11,FALSE)) -> 5194.8
A171: =IF(Items!A171="","",Items!A171) -> 801-07119 | B171: =IF(Items!B171="","",Items!B171) -> BARRICADE, III-B | C171: x | D171: 800 | E171: 801 | F171: =IF(A171="","",VLOOKUP(A171,Items!$A$8:$AJ$701,34,FALSE)) -> 48 | G171: =IF(A171="","",VLOOKUP(A171,Items!$A$8:$J$701,3,FALSE)) -> L.F. | H171: 9.15 | I171: =IF($A171="","",VLOOKUP($A171,Items!$A$8:$J$701,5,FALSE)) -> 439.2 | J171: 8.55 | K171: =IF($A171="","",VLOOKUP($A171,Items!$A$8:$J$701,7,FALSE)) -> 410.4 | L171: 9.15 | M171: =IF($A171="","",VLOOKUP($A171,Items!$A$8:$J$701,9,FALSE)) -> 439.2 | N171: 15.28 | O171: =IF($A171="","",VLOOKUP($A171,Items!$A$8:$K$701,11,FALSE)) -> 733.44
A172: =IF(Items!A172="","",Items!A172) -> 801-08401 | B172: =IF(Items!B172="","",Items!B172) -> TEMPORARY TRAFFIC BARRIER, TYPE 2 | C172: x | D172: 800 | E172: 801 | F172: =IF(A172="","",VLOOKUP(A172,Items!$A$8:$AJ$701,34,FALSE)) -> 9260 | G172: =IF(A172="","",VLOOKUP(A172,Items!$A$8:$J$701,3,FALSE)) -> L.F. | H172: 18.75 | I172: =IF($A172="","",VLOOKUP($A172,Items!$A$8:$J$701,5,FALSE)) -> 173625 | J172: 25.31 | K172: =IF($A172="","",VLOOKUP($A172,Items!$A$8:$J$701,7,FALSE)) -> 234370.6 | L172: 14 | M172: =IF($A172="","",VLOOKUP($A172,Items!$A$8:$J$701,9,FALSE)) -> 129640 | N172: 6 | O172: =IF($A172="","",VLOOKUP($A172,Items!$A$8:$K$701,11,FALSE)) -> 55560
A173: =IF(Items!A173="","",Items!A173) -> 801-08508 | B173: =IF(Items!B173="","",Items!B173) -> TEMPORARY TRAFFIC BARRIER, TYPE 2, ANCHORED | C173: x | D173: 800 | E173: 801 | F173: =IF(A173="","",VLOOKUP(A173,Items!$A$8:$AJ$701,34,FALSE)) -> 252 | G173: =IF(A173="","",VLOOKUP(A173,Items!$A$8:$J$701,3,FALSE)) -> L.F. | H173: 30 | I173: =IF($A173="","",VLOOKUP($A173,Items!$A$8:$J$701,5,FALSE)) -> 7560 | J173: 22.84 | K173: =IF($A173="","",VLOOKUP($A173,Items!$A$8:$J$701,7,FALSE)) -> 5755.68 | L173: 15 | M173: =IF($A173="","",VLOOKUP($A173,Items!$A$8:$J$701,9,FALSE)) -> 3780 | N173: 7 | O173: =IF($A173="","",VLOOKUP($A173,Items!$A$8:$K$701,11,FALSE)) -> 1764
A174: =IF(Items!A174="","",Items!A174) -> 801-94295 | B174: =IF(Items!B174="","",Items!B174) -> SIGNAL HEAD, RELOCATE | C174: x | D174: 800 | E174: 801 | F174: =IF(A174="","",VLOOKUP(A174,Items!$A$8:$AJ$701,34,FALSE)) -> 32 | G174: =IF(A174="","",VLOOKUP(A174,Items!$A$8:$J$701,3,FALSE)) -> EACH | H174: 130 | I174: =IF($A174="","",VLOOKUP($A174,Items!$A$8:$J$701,5,FALSE)) -> 4160 | J174: 130 | K174: =IF($A174="","",VLOOKUP($A174,Items!$A$8:$J$701,7,FALSE)) -> 4160 | L174: 130 | M174: =IF($A174="","",VLOOKUP($A174,Items!$A$8:$J$701,9,FALSE)) -> 4160 | N174: 130 | O174: =IF($A174="","",VLOOKUP($A174,Items!$A$8:$K$701,11,FALSE)) -> 4160
A175: =IF(Items!A175="","",Items!A175) -> 802-05701 | B175: =IF(Items!B175="","",Items!B175) -> SIGN POST, SQUARE, 1, REINFORCED ANCHOR | C175: x | D175: 800 | E175: 802 | F175: =IF(A175="","",VLOOKUP(A175,Items!$A$8:$AJ$701,34,FALSE)) -> 765.5 | G175: =IF(A175="","",VLOOKUP(A175,Items!$A$8:$J$701,3,FALSE)) -> L.F. | H175: 11.3 | I175: =IF($A175="","",VLOOKUP($A175,Items!$A$8:$J$701,5,FALSE)) -> 8650.15 | J175: 11.3 | K175: =IF($A175="","",VLOOKUP($A175,Items!$A$8:$J$701,7,FALSE)) -> 8650.15 | L175: 11.3 | M175: =IF($A175="","",VLOOKUP($A175,Items!$A$8:$J$701,9,FALSE)) -> 8650.15 | N175: 11.3 | O175: =IF($A175="","",VLOOKUP($A175,Items!$A$8:$K$701,11,FALSE)) -> 8650.15
A176: =IF(Items!A176="","",Items!A176) -> 802-05702 | B176: =IF(Items!B176="","",Items!B176) -> SIGN POST SQUARE, 2, REINFORCED ANCHOR BASE | C176: x | D176: 800 | E176: 802 | F176: =IF(A176="","",VLOOKUP(A176,Items!$A$8:$AJ$701,34,FALSE)) -> 211.25 | G176: =IF(A176="","",VLOOKUP(A176,Items!$A$8:$J$701,3,FALSE)) -> L.F. | H176: 11.64998817 | I176: =IF($A176="","",VLOOKUP($A176,Items!$A$8:$J$701,5,FALSE)) -> 2461.06 | J176: 11.64998817 | K176: =IF($A176="","",VLOOKUP($A176,Items!$A$8:$J$701,7,FALSE)) -> 2461.06 | L176: 11.64998817 | M176: =IF($A176="","",VLOOKUP($A176,Items!$A$8:$J$701,9,FALSE)) -> 2461.06 | N176: 11.64998817 | O176: =IF($A176="","",VLOOKUP($A176,Items!$A$8:$K$701,11,FALSE)) -> 2461.06
A177: =IF(Items!A177="","",Items!A177) -> 802-07057 | B177: =IF(Items!B177="","",Items!B177) -> SIGN, PANEL, WITH LEGEND | C177: x | D177: 800 | E177: 802 | F177: =IF(A177="","",VLOOKUP(A177,Items!$A$8:$AJ$701,34,FALSE)) -> 899 | G177: =IF(A177="","",VLOOKUP(A177,Items!$A$8:$J$701,3,FALSE)) -> S.F. | H177: 20 | I177: =IF($A177="","",VLOOKUP($A177,Items!$A$8:$J$701,5,FALSE)) -> 17980 | J177: 20 | K177: =IF($A177="","",VLOOKUP($A177,Items!$A$8:$J$701,7,FALSE)) -> 17980 | L177: 20 | M177: =IF($A177="","",VLOOKUP($A177,Items!$A$8:$J$701,9,FALSE)) -> 17980 | N177: 20 | O177: =IF($A177="","",VLOOKUP($A177,Items!$A$8:$K$701,11,FALSE)) -> 17980
A178: =IF(Items!A178="","",Items!A178) -> 802-07151 | B178: =IF(Items!B178="","",Items!B178) -> WIDE FLANGE SIGN POST SUPPORT FOUNDATION, VII | C178: x | D178: 800 | E178: 802 | F178: =IF(A178="","",VLOOKUP(A178,Items!$A$8:$AJ$701,34,FALSE)) -> 10 | G178: =IF(A178="","",VLOOKUP(A178,Items!$A$8:$J$701,3,FALSE)) -> EACH | H178: 375 | I178: =IF($A178="","",VLOOKUP($A178,Items!$A$8:$J$701,5,FALSE)) -> 3750 | J178: 375 | K178: =IF($A178="","",VLOOKUP($A178,Items!$A$8:$J$701,7,FALSE)) -> 3750 | L178: 375 | M178: =IF($A178="","",VLOOKUP($A178,Items!$A$8:$J$701,9,FALSE)) -> 3750 | N178: 375 | O178: =IF($A178="","",VLOOKUP($A178,Items!$A$8:$K$701,11,FALSE)) -> 3750
A179: =IF(Items!A179="","",Items!A179) -> 802-08456 | B179: =IF(Items!B179="","",Items!B179) -> WIDE FLANGE SIGN POST SUPPORT FOUNDATION, VII | C179: x | D179: 800 | E179: 802 | F179: =IF(A179="","",VLOOKUP(A179,Items!$A$8:$AJ$701,34,FALSE)) -> 12 | G179: =IF(A179="","",VLOOKUP(A179,Items!$A$8:$J$701,3,FALSE)) -> EACH | H179: 385 | I179: =IF($A179="","",VLOOKUP($A179,Items!$A$8:$J$701,5,FALSE)) -> 4620 | J179: 385 | K179: =IF($A179="","",VLOOKUP($A179,Items!$A$8:$J$701,7,FALSE)) -> 4620 | L179: 385 | M179: =IF($A179="","",VLOOKUP($A179,Items!$A$8:$J$701,9,FALSE)) -> 4620 | N179: 385 | O179: =IF($A179="","",VLOOKUP($A179,Items!$A$8:$K$701,11,FALSE)) -> 4620
A180: =IF(Items!A180="","",Items!A180) -> 802-09578 | B180: =IF(Items!B180="","",Items!B180) -> OVERHEAD SIGN STRUCTURE, CANTILEVER, | C180: x | D180: 800 | E180: 802 | F180: =IF(A180="","",VLOOKUP(A180,Items!$A$8:$AJ$701,34,FALSE)) -> 2 | G180: =IF(A180="","",VLOOKUP(A180,Items!$A$8:$J$701,3,FALSE)) -> EACH | H180: 34500 | I180: =IF($A180="","",VLOOKUP($A180,Items!$A$8:$J$701,5,FALSE)) -> 69000 | J180: 34500 | K180: =IF($A180="","",VLOOKUP($A180,Items!$A$8:$J$701,7,FALSE)) -> 69000 | L180: 34500 | M180: =IF($A180="","",VLOOKUP($A180,Items!$A$8:$J$701,9,FALSE)) -> 69000 | N180: 34500 | O180: =IF($A180="","",VLOOKUP($A180,Items!$A$8:$K$701,11,FALSE)) -> 69000
A181: =IF(Items!A181="","",Items!A181) -> 802-09581 | B181: =IF(Items!B181="","",Items!B181) -> CANTILEVER SIGN SUPPORT FOUNDATION, | C181: x | D181: 800 | E181: 802 | F181: =IF(A181="","",VLOOKUP(A181,Items!$A$8:$AJ$701,34,FALSE)) -> 2 | G181: =IF(A181="","",VLOOKUP(A181,Items!$A$8:$J$701,3,FALSE)) -> EACH | H181: 7800 | I181: =IF($A181="","",VLOOKUP($A181,Items!$A$8:$J$701,5,FALSE)) -> 15600 | J181: 7800 | K181: =IF($A181="","",VLOOKUP($A181,Items!$A$8:$J$701,7,FALSE)) -> 15600 | L181: 7800 | M181: =IF($A181="","",VLOOKUP($A181,Items!$A$8:$J$701,9,FALSE)) -> 15600 | N181: 7800 | O181: =IF($A181="","",VLOOKUP($A181,Items!$A$8:$K$701,11,FALSE)) -> 15600
A182: =IF(Items!A182="","",Items!A182) -> 802-09838 | B182: =IF(Items!B182="","",Items!B182) -> SIGN, SHEET, WITH LEGEND 0.08 IN. | C182: x | D182: 800 | E182: 802 | F182: =IF(A182="","",VLOOKUP(A182,Items!$A$8:$AJ$701,34,FALSE)) -> 504.78 | G182: =IF(A182="","",VLOOKUP(A182,Items!$A$8:$J$701,3,FALSE)) -> S.F. | H182: 15 | I182: =IF($A182="","",VLOOKUP($A182,Items!$A$8:$J$701,5,FALSE)) -> 7571.7 | J182: 15 | K182: =IF($A182="","",VLOOKUP($A182,Items!$A$8:$J$701,7,FALSE)) -> 7571.7 | L182: 15 | M182: =IF($A182="","",VLOOKUP($A182,Items!$A$8:$J$701,9,FALSE)) -> 7571.7 | N182: 15 | O182: =IF($A182="","",VLOOKUP($A182,Items!$A$8:$K$701,11,FALSE)) -> 7571.7
A183: =IF(Items!A183="","",Items!A183) -> 802-09840 | B183: =IF(Items!B183="","",Items!B183) -> SIGN, SHEET, WITH LEGEND 0.100 IN | C183: x | D183: 800 | E183: 802 | F183: =IF(A183="","",VLOOKUP(A183,Items!$A$8:$AJ$701,34,FALSE)) -> 104.1 | G183: =IF(A183="","",VLOOKUP(A183,Items!$A$8:$J$701,3,FALSE)) -> S.F. | H183: 18 | I183: =IF($A183="","",VLOOKUP($A183,Items!$A$8:$J$701,5,FALSE)) -> 1873.8 | J183: 18 | K183: =IF($A183="","",VLOOKUP($A183,Items!$A$8:$J$701,7,FALSE)) -> 1873.8 | L183: 18 | M183: =IF($A183="","",VLOOKUP($A183,Items!$A$8:$J$701,9,FALSE)) -> 1873.8 | N183: 18 | O183: =IF($A183="","",VLOOKUP($A183,Items!$A$8:$K$701,11,FALSE)) -> 1873.8
A184: =IF(Items!A184="","",Items!A184) -> 802-09842 | B184: =IF(Items!B184="","",Items!B184) -> SIGN, SHEET, WITH LEGEND 0.125 IN | C184: x | D184: 800 | E184: 802 | F184: =IF(A184="","",VLOOKUP(A184,Items!$A$8:$AJ$701,34,FALSE)) -> 78 | G184: =IF(A184="","",VLOOKUP(A184,Items!$A$8:$J$701,3,FALSE)) -> S.F. | H184: 18 | I184: =IF($A184="","",VLOOKUP($A184,Items!$A$8:$J$701,5,FALSE)) -> 1404 | J184: 18 | K184: =IF($A184="","",VLOOKUP($A184,Items!$A$8:$J$701,7,FALSE)) -> 1404 | L184: 18 | M184: =IF($A184="","",VLOOKUP($A184,Items!$A$8:$J$701,9,FALSE)) -> 1404 | N184: 18 | O184: =IF($A184="","",VLOOKUP($A184,Items!$A$8:$K$701,11,FALSE)) -> 1404
A185: =IF(Items!A185="","",Items!A185) -> 802-74040 | B185: =IF(Items!B185="","",Items!B185) -> SIGN AND SUPPORTS, WIDE FLANGE, REMOVE | C185: x | D185: 800 | E185: 802 | F185: =IF(A185="","",VLOOKUP(A185,Items!$A$8:$AJ$701,34,FALSE)) -> 6 | G185: =IF(A185="","",VLOOKUP(A185,Items!$A$8:$J$701,3,FALSE)) -> EACH | H185: 175 | I185: =IF($A185="","",VLOOKUP($A185,Items!$A$8:$J$701,5,FALSE)) -> 1050 | J185: 175 | K185: =IF($A185="","",VLOOKUP($A185,Items!$A$8:$J$701,7,FALSE)) -> 1050 | L185: 175 | M185: =IF($A185="","",VLOOKUP($A185,Items!$A$8:$J$701,9,FALSE)) -> 1050 | N185: 175 | O185: =IF($A185="","",VLOOKUP($A185,Items!$A$8:$K$701,11,FALSE)) -> 1050
A186: =IF(Items!A186="","",Items!A186) -> 802-76095 | B186: =IF(Items!B186="","",Items!B186) -> STRUCTURAL STEEL, BREAKAWAY | C186: x | D186: 800 | E186: 802 | F186: =IF(A186="","",VLOOKUP(A186,Items!$A$8:$AJ$701,34,FALSE)) -> 4874 | G186: =IF(A186="","",VLOOKUP(A186,Items!$A$8:$J$701,3,FALSE)) -> LBS | H186: 4 | I186: =IF($A186="","",VLOOKUP($A186,Items!$A$8:$J$701,5,FALSE)) -> 19496 | J186: 4 | K186: =IF($A186="","",VLOOKUP($A186,Items!$A$8:$J$701,7,FALSE)) -> 19496 | L186: 4 | M186: =IF($A186="","",VLOOKUP($A186,Items!$A$8:$J$701,9,FALSE)) -> 19496 | N186: 4 | O186: =IF($A186="","",VLOOKUP($A186,Items!$A$8:$K$701,11,FALSE)) -> 19496
A187: =IF(Items!A187="","",Items!A187) -> 804-06771 | B187: =IF(Items!B187="","",Items!B187) -> DELINEATOR POST, FLEXIBLE | C187: x | D187: 800 | E187: 804 | F187: =IF(A187="","",VLOOKUP(A187,Items!$A$8:$AJ$701,34,FALSE)) -> 50 | G187: =IF(A187="","",VLOOKUP(A187,Items!$A$8:$J$701,3,FALSE)) -> EACH | H187: 35 | I187: =IF($A187="","",VLOOKUP($A187,Items!$A$8:$J$701,5,FALSE)) -> 1750 | J187: 33 | K187: =IF($A187="","",VLOOKUP($A187,Items!$A$8:$J$701,7,FALSE)) -> 1650 | L187: 40 | M187: =IF($A187="","",VLOOKUP($A187,Items!$A$8:$J$701,9,FALSE)) -> 2000 | N187: 35 | O187: =IF($A187="","",VLOOKUP($A187,Items!$A$8:$K$701,11,FALSE)) -> 1750
A188: =IF(Items!A188="","",Items!A188) -> 805-01300 | B188: =IF(Items!B188="","",Items!B188) -> TRAFFIC SIGNAL EQUIPMENT, REMOVE | C188: x | D188: 800 | E188: 805 | F188: =IF(A188="","",VLOOKUP(A188,Items!$A$8:$AJ$701,34,FALSE)) -> 2 | G188: =IF(A188="","",VLOOKUP(A188,Items!$A$8:$J$701,3,FALSE)) -> EACH | H188: 1800 | I188: =IF($A188="","",VLOOKUP($A188,Items!$A$8:$J$701,5,FALSE)) -> 3600 | J188: 1800 | K188: =IF($A188="","",VLOOKUP($A188,Items!$A$8:$J$701,7,FALSE)) -> 3600 | L188: 1800 | M188: =IF($A188="","",VLOOKUP($A188,Items!$A$8:$J$701,9,FALSE)) -> 3600 | N188: 1800 | O188: =IF($A188="","",VLOOKUP($A188,Items!$A$8:$K$701,11,FALSE)) -> 3600
A189: =IF(Items!A189="","",Items!A189) -> 805-01815 | B189: =IF(Items!B189="","",Items!B189) -> SIGNAL SUPPORT FOUNDATION, 3 FT. X 12 FT. | C189: x | D189: 800 | E189: 805 | F189: =IF(A189="","",VLOOKUP(A189,Items!$A$8:$AJ$701,34,FALSE)) -> 10 | G189: =IF(A189="","",VLOOKUP(A189,Items!$A$8:$J$701,3,FALSE)) -> EACH | H189: 2010 | I189: =IF($A189="","",VLOOKUP($A189,Items!$A$8:$J$701,5,FALSE)) -> 20100 | J189: 2010 | K189: =IF($A189="","",VLOOKUP($A189,Items!$A$8:$J$701,7,FALSE)) -> 20100 | L189: 2010 | M189: =IF($A189="","",VLOOKUP($A189,Items!$A$8:$J$701,9,FALSE)) -> 20100 | N189: 2010 | O189: =IF($A189="","",VLOOKUP($A189,Items!$A$8:$K$701,11,FALSE)) -> 20100
A190: =IF(Items!A190="","",Items!A190) -> 805-01842 | B190: =IF(Items!B190="","",Items!B190) -> HANDHOLE, SIGNAL | C190: x | D190: 800 | E190: 805 | F190: =IF(A190="","",VLOOKUP(A190,Items!$A$8:$AJ$701,34,FALSE)) -> 21 | G190: =IF(A190="","",VLOOKUP(A190,Items!$A$8:$J$701,3,FALSE)) -> EACH | H190: 700 | I190: =IF($A190="","",VLOOKUP($A190,Items!$A$8:$J$701,5,FALSE)) -> 14700 | J190: 700 | K190: =IF($A190="","",VLOOKUP($A190,Items!$A$8:$J$701,7,FALSE)) -> 14700 | L190: 700 | M190: =IF($A190="","",VLOOKUP($A190,Items!$A$8:$J$701,9,FALSE)) -> 14700 | N190: 700 | O190: =IF($A190="","",VLOOKUP($A190,Items!$A$8:$K$701,11,FALSE)) -> 14700
A191: =IF(Items!A191="","",Items!A191) -> 805-01843 | B191: =IF(Items!B191="","",Items!B191) -> SIGNAL HANDHOLE ADJUST TO GRADE | C191: x | D191: 800 | E191: 805 | F191: =IF(A191="","",VLOOKUP(A191,Items!$A$8:$AJ$701,34,FALSE)) -> 4 | G191: =IF(A191="","",VLOOKUP(A191,Items!$A$8:$J$701,3,FALSE)) -> EACH | H191: 300 | I191: =IF($A191="","",VLOOKUP($A191,Items!$A$8:$J$701,5,FALSE)) -> 1200 | J191: 300 | K191: =IF($A191="","",VLOOKUP($A191,Items!$A$8:$J$701,7,FALSE)) -> 1200 | L191: 300 | M191: =IF($A191="","",VLOOKUP($A191,Items!$A$8:$J$701,9,FALSE)) -> 1200 | N191: 300 | O191: =IF($A191="","",VLOOKUP($A191,Items!$A$8:$K$701,11,FALSE)) -> 1200
A192: =IF(Items!A192="","",Items!A192) -> 805-01844 | B192: =IF(Items!B192="","",Items!B192) -> GALVANIZED STEEL CONDUIT, 2 IN., UNDERGROUND | C192: x | D192: 800 | E192: 805 | F192: =IF(A192="","",VLOOKUP(A192,Items!$A$8:$AJ$701,34,FALSE)) -> 4042 | G192: =IF(A192="","",VLOOKUP(A192,Items!$A$8:$J$701,3,FALSE)) -> L.F. | H192: 11 | I192: =IF($A192="","",VLOOKUP($A192,Items!$A$8:$J$701,5,FALSE)) -> 44462 | J192: 11 | K192: =IF($A192="","",VLOOKUP($A192,Items!$A$8:$J$701,7,FALSE)) -> 44462 | L192: 11 | M192: =IF($A192="","",VLOOKUP($A192,Items!$A$8:$J$701,9,FALSE)) -> 44462 | N192: 11 | O192: =IF($A192="","",VLOOKUP($A192,Items!$A$8:$K$701,11,FALSE)) -> 44462
A193: =IF(Items!A193="","",Items!A193) -> 805-02087 | B193: =IF(Items!B193="","",Items!B193) -> TRANSPORTATION OF SALVAGEABLE SIGNAL EQUIPMEN | C193: x | D193: 800 | E193: 805 | F193: =IF(A193="","",VLOOKUP(A193,Items!$A$8:$AJ$701,34,FALSE)) -> 1 | G193: =IF(A193="","",VLOOKUP(A193,Items!$A$8:$J$701,3,FALSE)) -> L.S. | H193: 500 | I193: =IF($A193="","",VLOOKUP($A193,Items!$A$8:$J$701,5,FALSE)) -> 500 | J193: 500 | K193: =IF($A193="","",VLOOKUP($A193,Items!$A$8:$J$701,7,FALSE)) -> 500 | L193: 500 | M193: =IF($A193="","",VLOOKUP($A193,Items!$A$8:$J$701,9,FALSE)) -> 500 | N193: 500 | O193: =IF($A193="","",VLOOKUP($A193,Items!$A$8:$K$701,11,FALSE)) -> 500
A194: =IF(Items!A194="","",Items!A194) -> 805-02373 | B194: =IF(Items!B194="","",Items!B194) -> INTERCONNECT CABLE, FIBER OPTIC | C194: x | D194: 800 | E194: 805 | F194: =IF(A194="","",VLOOKUP(A194,Items!$A$8:$AJ$701,34,FALSE)) -> 2057 | G194: =IF(A194="","",VLOOKUP(A194,Items!$A$8:$J$701,3,FALSE)) -> L.F. | H194: 2.6 | I194: =IF($A194="","",VLOOKUP($A194,Items!$A$8:$J$701,5,FALSE)) -> 5348.2 | J194: 2.6 | K194: =IF($A194="","",VLOOKUP($A194,Items!$A$8:$J$701,7,FALSE)) -> 5348.2 | L194: 2.6 | M194: =IF($A194="","",VLOOKUP($A194,Items!$A$8:$J$701,9,FALSE)) -> 5348.2 | N194: 2.6 | O194: =IF($A194="","",VLOOKUP($A194,Items!$A$8:$K$701,11,FALSE)) -> 5348.2
A195: =IF(Items!A195="","",Items!A195) -> 805-09539 | B195: =IF(Items!B195="","",Items!B195) -> LOOP DETECTOR DELAY COUNTING AMPLIFIER, | C195: x | D195: 800 | E195: 805 | F195: =IF(A195="","",VLOOKUP(A195,Items!$A$8:$AJ$701,34,FALSE)) -> 2 | G195: =IF(A195="","",VLOOKUP(A195,Items!$A$8:$J$701,3,FALSE)) -> EACH | H195: 1100 | I195: =IF($A195="","",VLOOKUP($A195,Items!$A$8:$J$701,5,FALSE)) -> 2200 | J195: 1100 | K195: =IF($A195="","",VLOOKUP($A195,Items!$A$8:$J$701,7,FALSE)) -> 2200 | L195: 1100 | M195: =IF($A195="","",VLOOKUP($A195,Items!$A$8:$J$701,9,FALSE)) -> 2200 | N195: 1100 | O195: =IF($A195="","",VLOOKUP($A195,Items!$A$8:$K$701,11,FALSE)) -> 2200
A196: =IF(Items!A196="","",Items!A196) -> 805-78109 | B196: =IF(Items!B196="","",Items!B196) -> CONTROLLER AND CABINET, SECONDARY, MENU DRIVE | C196: x | D196: 800 | E196: 805 | F196: =IF(A196="","",VLOOKUP(A196,Items!$A$8:$AJ$701,34,FALSE)) -> 1 | G196: =IF(A196="","",VLOOKUP(A196,Items!$A$8:$J$701,3,FALSE)) -> EACH | H196: 13900 | I196: =IF($A196="","",VLOOKUP($A196,Items!$A$8:$J$701,5,FALSE)) -> 13900 | J196: 13900 | K196: =IF($A196="","",VLOOKUP($A196,Items!$A$8:$J$701,7,FALSE)) -> 13900 | L196: 13900 | M196: =IF($A196="","",VLOOKUP($A196,Items!$A$8:$J$701,9,FALSE)) -> 13900 | N196: 13900 | O196: =IF($A196="","",VLOOKUP($A196,Items!$A$8:$K$701,11,FALSE)) -> 13900
A197: =IF(Items!A197="","",Items!A197) -> 805-78205 | B197: =IF(Items!B197="","",Items!B197) -> TRAFFIC SIGNAL HEAD, 3 FACE, 12.20 IN. RED, A | C197: x | D197: 800 | E197: 805 | F197: =IF(A197="","",VLOOKUP(A197,Items!$A$8:$AJ$701,34,FALSE)) -> 20 | G197: =IF(A197="","",VLOOKUP(A197,Items!$A$8:$J$701,3,FALSE)) -> EACH | H197: 777 | I197: =IF($A197="","",VLOOKUP($A197,Items!$A$8:$J$701,5,FALSE)) -> 15540 | J197: 777 | K197: =IF($A197="","",VLOOKUP($A197,Items!$A$8:$J$701,7,FALSE)) -> 15540 | L197: 777 | M197: =IF($A197="","",VLOOKUP($A197,Items!$A$8:$J$701,9,FALSE)) -> 15540 | N197: 777 | O197: =IF($A197="","",VLOOKUP($A197,Items!$A$8:$K$701,11,FALSE)) -> 15540
A198: =IF(Items!A198="","",Items!A198) -> 805-78230 | B198: =IF(Items!B198="","",Items!B198) -> TRAFFIC SIGNAL HEAD, 5 FACE, 12.20 IN. RED, A | C198: x | D198: 800 | E198: 805 | F198: =IF(A198="","",VLOOKUP(A198,Items!$A$8:$AJ$701,34,FALSE)) -> 4 | G198: =IF(A198="","",VLOOKUP(A198,Items!$A$8:$J$701,3,FALSE)) -> EACH | H198: 1200 | I198: =IF($A198="","",VLOOKUP($A198,Items!$A$8:$J$701,5,FALSE)) -> 4800 | J198: 1200 | K198: =IF($A198="","",VLOOKUP($A198,Items!$A$8:$J$701,7,FALSE)) -> 4800 | L198: 1200 | M198: =IF($A198="","",VLOOKUP($A198,Items!$A$8:$J$701,9,FALSE)) -> 4800 | N198: 1200 | O198: =IF($A198="","",VLOOKUP($A198,Items!$A$8:$K$701,11,FALSE)) -> 4800
A199: =IF(Items!A199="","",Items!A199) -> 805-78415 | B199: =IF(Items!B199="","",Items!B199) -> SPAN CATENARY AND TETHER | C199: x | D199: 800 | E199: 805 | F199: =IF(A199="","",VLOOKUP(A199,Items!$A$8:$AJ$701,34,FALSE)) -> 10 | G199: =IF(A199="","",VLOOKUP(A199,Items!$A$8:$J$701,3,FALSE)) -> EACH | H199: 1740 | I199: =IF($A199="","",VLOOKUP($A199,Items!$A$8:$J$701,5,FALSE)) -> 17400 | J199: 1740 | K199: =IF($A199="","",VLOOKUP($A199,Items!$A$8:$J$701,7,FALSE)) -> 17400 | L199: 1740 | M199: =IF($A199="","",VLOOKUP($A199,Items!$A$8:$J$701,9,FALSE)) -> 17400 | N199: 1740 | O199: =IF($A199="","",VLOOKUP($A199,Items!$A$8:$K$701,11,FALSE)) -> 17400
A200: =IF(Items!A200="","",Items!A200) -> 805-78420 | B200: =IF(Items!B200="","",Items!B200) -> DISCONNECT HANGER | C200: x | D200: 800 | E200: 805 | F200: =IF(A200="","",VLOOKUP(A200,Items!$A$8:$AJ$701,34,FALSE)) -> 10 | G200: =IF(A200="","",VLOOKUP(A200,Items!$A$8:$J$701,3,FALSE)) -> EACH | H200: 340 | I200: =IF($A200="","",VLOOKUP($A200,Items!$A$8:$J$701,5,FALSE)) -> 3400 | J200: 340 | K200: =IF($A200="","",VLOOKUP($A200,Items!$A$8:$J$701,7,FALSE)) -> 3400 | L200: 340 | M200: =IF($A200="","",VLOOKUP($A200,Items!$A$8:$J$701,9,FALSE)) -> 3400 | N200: 340 | O200: =IF($A200="","",VLOOKUP($A200,Items!$A$8:$K$701,11,FALSE)) -> 3400
... 501 more rows

Sheet UT All
E1: =IF(E5="","",VLOOKUP(E3,Result!$B$9:$H$20,6,FALSE)) -> 0 | F1: =IF(F5="","",VLOOKUP(F3,Result!$B$9:$H$20,6,FALSE)) ->  | G1: =IF(G5="","",VLOOKUP(G3,Result!$B$9:$H$20,6,FALSE)) -> 0 | H1: =IF(H5="","",VLOOKUP(H3,Result!$B$9:$H$20,6,FALSE)) ->  | I1: =IF(I5="","",VLOOKUP(I3,Result!$B$9:$H$20,6,FALSE)) -> 0 | J1: =IF(J5="","",VLOOKUP(J3,Result!$B$9:$H$20,6,FALSE)) ->  | K1: =IF(K5="","",VLOOKUP(K3,Result!$B$9:$H$20,6,FALSE)) -> 0 | L1: =IF(L5="","",VLOOKUP(L3,Result!$B$9:$H$20,6,FALSE)) ->  | M1: =IF(M5="","",VLOOKUP(M3,Result!$B$9:$H$20,6,FALSE)) ->  | N1: =IF(N5="","",VLOOKUP(N3,Result!$B$9:$H$20,6,FALSE)) ->  | O1: =IF(O5="","",VLOOKUP(O3,Result!$B$9:$H$20,6,FALSE)) ->  | P1: =IF(P5="","",VLOOKUP(P3,Result!$B$9:$H$20,6,FALSE)) ->  | Q1: =IF(Q5="","",VLOOKUP(Q3,Result!$B$9:$H$20,6,FALSE)) ->  | R1: =IF(R5="","",VLOOKUP(R3,Result!$B$9:$H$20,6,FALSE)) ->  | S1: =IF(S5="","",VLOOKUP(S3,Result!$B$9:$H$20,6,FALSE)) ->  | T1: =IF(T5="","",VLOOKUP(T3,Result!$B$9:$H$20,6,FALSE)) ->  | U1: =IF(U5="","",VLOOKUP(U3,Result!$B$9:$H$20,6,FALSE)) ->  | V1: =IF(V5="","",VLOOKUP(V3,Result!$B$9:$H$20,6,FALSE)) ->  | W1: =IF(W5="","",VLOOKUP(W3,Result!$B$9:$H$20,6,FALSE)) ->  | X1: =IF(X5="","",VLOOKUP(X3,Result!$B$9:$H$20,6,FALSE)) ->  | Y1: =IF(Y5="","",VLOOKUP(Y3,Result!$B$9:$H$20,6,FALSE)) ->  | Z1: =IF(Z5="","",VLOOKUP(Z3,Result!$B$9:$H$20,6,FALSE)) ->  | AA1: =IF(AA5="","",VLOOKUP(AA3,Result!$B$9:$H$20,6,FALSE)) -> 
A2: Letting: | B2: Contract | D2: =MIN(IF(E3:Z3>0,E3:Z3)) -> 10152470.02 | F2: =IF($D2=0,"",F3/$D$2) -> 1 | H2: =IF($D2=0,"",H3/$D$2) -> 1.020901891 | J2: =IF($D2=0,"",J3/$D$2) -> 1.041913936 | L2: =IF($D2=0,"",L3/$D$2) -> 1.137694777 | N2: =IF($D2=0,"",N3/$D$2) -> 0 | P2: =IF($D2=0,"",P3/$D$2) -> 0 | R2: =IF($D2=0,"",R3/$D$2) -> 0 | T2: =IF($D2=0,"",T3/$D$2) -> 0 | V2: =IF($D2=0,"",V3/$D$2) -> 0 | X2: =IF($D2=0,"",X3/$D$2) -> 0 | Z2: =IF($D2=0,"",Z3/$D$2) -> 0 | AB2: =IF($D2=0,"",AB3/$D$2) -> 0 | AD2: =IF($D2=0,"",AD3/$D$2) -> 0 | AF2: =IF($D2=0,"",AF3/$D$2) -> 0 | AH2: =IF($D2=0,"",AH3/$D$2) -> 0
A3: =Result!$C$3 -> 2012-01-12 | B3: =Result!$C$2 -> 30201 | E3: =E5 -> 01. Superior Construction Company | F3: =SUM(F7:F5001) -> 10152470.02 | G3: =G5 -> 02. Walsh Construction Company Ii Llc | H3: =SUM(H7:H5001) -> 10364675.84 | I3: =I5 -> 03. Milestone Contractors, L.P. | J3: =SUM(J7:J5001) -> 10578000 | K3: =K5 -> 04. Rieth-Riley Construction | L3: =SUM(L7:L5001) -> 11550412.12 | M3: =M5 -> 0 | N3: =SUM(N7:N5001) -> 0 | O3: =O5 -> 0 | P3: =SUM(P7:P5001) -> 0 | Q3: =Q5 -> 0 | R3: =SUM(R7:R5001) -> 0 | S3: =S5 -> 0 | T3: =SUM(T7:T5001) -> 0 | U3: =U5 -> 0 | V3: =SUM(V7:V5001) -> 0 | W3: =W5 -> 0 | X3: =SUM(X7:X5001) -> 0 | Y3: =Y5 -> 0 | Z3: =SUM(Z7:Z5001) -> 0 | AA3: =AA5 -> 0 | AB3: =SUM(AB7:AB5001) -> 0 | AC3: =AC5 -> 0 | AD3: =SUM(AD7:AD5001) -> 0 | AE3: =AE5 -> 0 | AF3: =SUM(AF7:AF5001) -> 0 | AG3: =AG5 -> 0 | AH3: =SUM(AH7:AH5001) -> 0
E4: Contractor | F4: Data
E5: 01. Superior Construction Company | G5: 02. Walsh Construction Company Ii Llc | I5: 03. Milestone Contractors, L.P. | K5: 04. Rieth-Riley Construction
A6: Pay item | B6: Description | C6: Quantity | D6: Unit | E6: Unit $ | F6: Amount $ | G6: Unit $ | H6: Amount $ | I6: Unit $ | J6: Amount $ | K6: Unit $ | L6: Amount $
A7: 105-06845 | B7: CONSTRUCTION ENGINEERING | C7: 1 | D7: L.S. | E7: 296000 | F7: 296000 | G7: 197827.14 | H7: 197827.14 | I7: 70000 | J7: 70000 | K7: 200000 | L7: 200000
A8: 105-09645 | B8: CONSTRUCTION ENGINEERING AND INSPECTION | C8: 1 | D8: L.S. | E8: 12000 | F8: 12000 | G8: 75000 | H8: 75000 | I8: 25000 | J8: 25000 | K8: 20000 | L8: 20000
A9: 109-08359 | B9: LIQUIDATED DAMAGES | C9: 1 | D9: $ | E9: 1 | F9: 1 | G9: 1 | H9: 1 | I9: 1 | J9: 1 | K9: 1 | L9: 1
A10: 109-08360 | B10: CONTRACT LIENS | C10: 1 | D10: $ | E10: 1 | F10: 1 | G10: 1 | H10: 1 | I10: 1 | J10: 1 | K10: 1 | L10: 1
A11: 109-08443 | B11: QUALITY ADJUSTMENTS, TEMPORARY TRAFFIC CONTRO | C11: 1 | D11: $ | E11: 1 | F11: 1 | G11: 1 | H11: 1 | I11: 1 | J11: 1 | K11: 1 | L11: 1
A12: 109-08444 | B12: QUALITY ADJUSTMENTS, FAILED MATERIALS | C12: 1 | D12: $ | E12: 1 | F12: 1 | G12: 1 | H12: 1 | I12: 1 | J12: 1 | K12: 1 | L12: 1
A13: 109-08463 | B13: PROJECT ESTIMATE ADJUSTMENT | C13: 1 | D13: $ | E13: 1 | F13: 1 | G13: 1 | H13: 1 | I13: 1 | J13: 1 | K13: 1 | L13: 1
A14: 109-09377 | B14: QUALITY ADJUSTMENT, PAVEMENT TRAFFIC | C14: 1 | D14: $ | E14: 1 | F14: 1 | G14: 1 | H14: 1 | I14: 1 | J14: 1 | K14: 1 | L14: 1
A15: 109-09489 | B15: PAYMENT ADJUSTMENT, PG ASPHALT BINDER | C15: 1 | D15: $ | E15: 1 | F15: 1 | G15: 1 | H15: 1 | I15: 1 | J15: 1 | K15: 1 | L15: 1
A16: 110-01001 | B16: MOBILIZATION AND DEMOBILIZATION | C16: 1 | D16: L.S. | E16: 532000 | F16: 532000 | G16: 518000 | H16: 518000 | I16: 528244.17 | J16: 528244.17 | K16: 1100000 | L16: 1100000
A17: 201-52370 | B17: CLEARING RIGHT OF WAY | C17: 1 | D17: L.S. | E17: 200000 | F17: 200000 | G17: 207000 | H17: 207000 | I17: 50000 | J17: 50000 | K17: 150000 | L17: 150000
A18: 201-90788 | B18: DEBRIS, REMOVE | C18: 1 | D18: L.S. | E18: 12000 | F18: 12000 | G18: 50000 | H18: 50000 | I18: 7000 | J18: 7000 | K18: 6400 | L18: 6400
A19: 202-01405 | B19: CONTAMINATED SOIL, REMOVE AND DISPOSE | C19: 20 | D19: C.Y. | E19: 200 | F19: 4000 | G19: 240.49 | H19: 4809.8 | I19: 150.52 | J19: 3010.4 | K19: 150.55 | L19: 3011
A20: 202-02240 | B20: PAVEMENT, REMOVE | C20: 28674 | D20: S.Y. | E20: 7.5 | F20: 215055 | G20: 6.34 | H20: 181793.16 | I20: 10 | J20: 286740 | K20: 9.3 | L20: 266668.2
A21: 202-02271 | B21: HEADWALL, REMOVE | C21: 16 | D21: EACH | E21: 400 | F21: 6400 | G21: 149.19 | H21: 2387.04 | I21: 122 | J21: 1952 | K21: 120 | L21: 1920
A22: 202-02272 | B22: PAVED SIDE DITCH, REMOVE | C22: 344 | D22: L.F. | E22: 20 | F22: 6880 | G22: 11.51 | H22: 3959.44 | I22: 5 | J22: 1720 | K22: 4.1 | L22: 1410.4
A23: 202-02279 | B23: CURB AND GUTTER, REMOVE | C23: 961 | D23: L.F. | E23: 12 | F23: 11532 | G23: 3.84 | H23: 3690.24 | I23: 3 | J23: 2883 | K23: 2.85 | L23: 2738.85
A24: 202-74045 | B24: SIGNS AND SUPPORTS, CHANNEL POSTS, REMOVE | C24: 74 | D24: EACH | E24: 30 | F24: 2220 | G24: 30 | H24: 2220 | I24: 30 | J24: 2220 | K24: 30 | L24: 2220
A25: 202-74080 | B25: OVERHEAD SIGN STRUCTURE, CANTILEVER, REMOVE | C25: 2 | D25: EACH | E25: 1600 | F25: 3200 | G25: 1600 | H25: 3200 | I25: 1600 | J25: 3200 | K25: 1600 | L25: 3200
A26: 202-82066 | B26: SIGN CIRCUITRY, CANTILEVERS, REMOVE | C26: 2 | D26: EACH | E26: 250 | F26: 500 | G26: 250 | H26: 500 | I26: 250 | J26: 500 | K26: 250 | L26: 500
A27: 202-86946 | B27: HANDHOLE, REMOVE | C27: 3 | D27: EACH | E27: 125 | F27: 375 | G27: 125 | H27: 375 | I27: 125 | J27: 375 | K27: 125 | L27: 375
A28: 202-92222 | B28: TESTING FOR CONTAMINATED MATERIALS, TPH (SOIL | C28: 5 | D28: EACH | E28: 1000 | F28: 5000 | G28: 500 | H28: 2500 | I28: 600 | J28: 3000 | K28: 750 | L28: 3750
A29: 202-93763 | B29: LIGHT STANDARD AND FOUNDATION,REMOVE | C29: 8 | D29: EACH | E29: 350 | F29: 2800 | G29: 350 | H29: 2800 | I29: 350 | J29: 2800 | K29: 350 | L29: 2800
A30: 202-95579 | B30: SERVICE POINT, REMOVE | C30: 2 | D30: EACH | E30: 150 | F30: 300 | G30: 150 | H30: 300 | I30: 150 | J30: 300 | K30: 150 | L30: 300
A31: 202-96035 | B31: CONCRETE WALL, REMOVE | C31: 20 | D31: L.F. | E31: 100 | F31: 2000 | G31: 87.28 | H31: 1745.6 | I31: 170 | J31: 3400 | K31: 170 | L31: 3400
A32: 202-96133 | B32: PIPE, REMOVE | C32: 1108 | D32: L.F. | E32: 2 | F32: 2216 | G32: 8.76 | H32: 9706.08 | I32: 13 | J32: 14404 | K32: 12.4 | L32: 13739.2
A33: 202-99187 | B33: FENCE, FARM FIELD, REMOVE | C33: 2579 | D33: L.F. | E33: 2.75 | F33: 7092.25 | G33: 1.8 | H33: 4642.2 | I33: 2.75 | J33: 7092.25 | K33: 2.75 | L33: 7092.25
A34: 203-02000 | B34: EXCAVATION, COMMON | C34: 41965 | D34: C.Y. | E34: 8 | F34: 335720 | G34: 13 | H34: 545545 | I34: 12 | J34: 503580 | K34: 15 | L34: 629475
A35: 203-02070 | B35: BORROW | C35: 9115 | D35: C.Y. | E35: 0.01 | F35: 91.15 | G35: 0.01 | H35: 91.15 | I35: 15 | J35: 136725 | K35: 0.1 | L35: 911.5
A36: 205-03371 | B36: SEDIMENT REMOVE | C36: 2051 | D36: C.Y. | E36: 10 | F36: 20510 | G36: 7.67 | H36: 15731.17 | I36: 16 | J36: 32816 | K36: 0.1 | L36: 205.1
A37: 205-06931 | B37: TEMPORARY CHECK DAM, REVETMENT RIPRAP | C37: 253 | D37: TON | E37: 65 | F37: 16445 | G37: 73.69 | H37: 18643.57 | I37: 45 | J37: 11385 | K37: 52.75 | L37: 13345.75
A38: 205-06932 | B38: TEMPORARY CHECK DAM, STRAW BALES | C38: 402 | D38: L.F. | E38: 15 | F38: 6030 | G38: 9.25 | H38: 3718.5 | I38: 12 | J38: 4824 | K38: 11.75 | L38: 4723.5
A39: 205-06933 | B39: TEMPORARY DITCH INLET PROTECTION | C39: 7 | D39: EACH | E39: 120 | F39: 840 | G39: 85 | H39: 595 | I39: 125 | J39: 875 | K39: 175 | L39: 1225
A40: 205-06934 | B40: TEMPORARY MULCHING | C40: 73 | D40: TON | E40: 400 | F40: 29200 | G40: 400 | H40: 29200 | I40: 345 | J40: 25185 | K40: 400 | L40: 29200
A41: 205-06936 | B41: TEMPORARY SEDIMENT TRAP | C41: 20 | D41: TON | E41: 82 | F41: 1640 | G41: 154.11 | H41: 3082.2 | I41: 65 | J41: 1300 | K41: 75.6 | L41: 1512
A42: 205-06937 | B42: TEMPORARY SILT FENCE | C42: 18458 | D42: L.F. | E42: 1.5 | F42: 27687 | G42: 1.98 | H42: 36546.84 | I42: 1.5 | J42: 27687 | K42: 1 | L42: 18458
A43: 205-09543 | B43: NO 2 STONE | C43: 150 | D43: TON | E43: 55 | F43: 8250 | G43: 51.18 | H43: 7677 | I43: 30 | J43: 4500 | K43: 28.6 | L43: 4290
A44: 207-08263 | B44: SUBGRADE TREATMENT, TYPE IA | C44: 102662 | D44: S.Y. | E44: 4.5 | F44: 461979 | G44: 5.23 | H44: 536922.26 | I44: 5.95 | J44: 610838.9 | K44: 5.75 | L44: 590306.5
C45: 9100 | D45: S.Y. | E45: 15 | F45: 136500 | G45: 14.54 | H45: 132314 | I45: 16.1 | J45: 146510 | K45: 16.1 | L45: 146510
A46: 207-08267 | B46: SUBGRADE TREATMENT, TYPE IIIA | C46: 5305 | D46: S.Y. | E46: 8 | F46: 42440 | G46: 12.07 | H46: 64031.35 | I46: 9.5 | J46: 50397.5 | K46: 18.05 | L46: 95755.25
A47: 211-09264 | B47: STRUCTURE BACKFILL, TYPE 1 | C47: 900 | D47: C.Y. | E47: 3 | F47: 2700 | G47: 20.63 | H47: 18567 | I47: 15 | J47: 13500 | K47: 15 | L47: 13500
A48: 211-09265 | B48: STRUCTURE BACKFILL, TYPE 2 | C48: 1251 | D48: C.Y. | E48: 25 | F48: 31275 | G48: 23.86 | H48: 29848.86 | I48: 15 | J48: 18765 | K48: 15 | L48: 18765
A49: 213-09269 | B49: FLOWABLE BACKFILL, NON-REMOVEABLE | C49: 613 | D49: C.Y. | E49: 80 | F49: 49040 | G49: 90.22 | H49: 55304.86 | I49: 90 | J49: 55170 | K49: 85.15 | L49: 52196.95
A50: 301-07448 | B50: COMPACTED AGGREGATE, NO. 53, BASE | C50: 7516 | D50: TON | E50: 17 | F50: 127772 | G50: 17.59 | H50: 132206.44 | I50: 18 | J50: 135288 | K50: 18.5 | L50: 139046
A51: 302-06464 | B51: SUBBASE FOR PCCP | C51: 24464 | D51: C.Y. | E51: 37.5 | F51: 917400 | G51: 29.93 | H51: 732207.52 | I51: 35 | J51: 856240 | K51: 40.75 | L51: 996908
A52: 303-08210 | B52: COMPACTED AGGREGATE NO. 53, TEMPORARY FOR DRI | C52: 30 | D52: TON | E52: 75 | F52: 2250 | G52: 50.62 | H52: 1518.6 | I52: 50 | J52: 1500 | K52: 36.7 | L52: 1101
A53: 306-08034 | B53: MILLING, ASPHALT, 1 1/2 IN. | C53: 3039 | D53: S.Y. | E53: 3 | F53: 9117 | G53: 1.11 | H53: 3373.29 | I53: 8 | J53: 24312 | K53: 2.65 | L53: 8053.35
A54: 402-07784 | B54: HMA SURFACE, TYPE D | C54: 268 | D54: TON | E54: 87.75 | F54: 23517 | G54: 87.75 | H54: 23517 | I54: 125 | J54: 33500 | K54: 97.5 | L54: 26130
A55: 402-07785 | B55: HMA INTERMEDIATE, TYPE D | C55: 67 | D55: TON | E55: 89.85 | F55: 6019.95 | G55: 89.85 | H55: 6019.95 | I55: 100 | J55: 6700 | K55: 94.5 | L55: 6331.5
A56: 402-10083 | B56: HMA FOR TEMPORARY PAVEMENT, A | C56: 2241 | D56: TON | E56: 68.84 | F56: 154270.44 | G56: 68.84 | H56: 154270.44 | I56: 85 | J56: 190485 | K56: 96.5 | L56: 216256.5
A57: 406-05520 | B57: ASPHALT MATERIAL FOR TACK COAT | C57: 6 | D57: TON | E57: 600 | F57: 3600 | G57: 600 | H57: 3600 | I57: 100 | J57: 600 | K57: 1 | L57: 6
A58: 501-06321 | B58: QC/QA PCCP, 10 IN. | C58: 93599 | D58: S.Y. | E58: 33.9 | F58: 3173006.1 | G58: 33.09 | H58: 3097190.91 | I58: 36 | J58: 3369564 | K58: 38 | L58: 3556762
A59: 503-05240 | B59: D-1 CONTRACTION JOINT | C59: 53189 | D59: L.F. | E59: 9 | F59: 478701 | G59: 10.25 | H59: 545187.25 | I59: 8 | J59: 425512 | K59: 11.05 | L59: 587738.45
A60: 601-01522 | B60: GUARDRAIL TRANSITION TYPE TGB | C60: 2 | D60: EACH | E60: 2100 | F60: 4200 | G60: 1900 | H60: 3800 | I60: 2100 | J60: 4200 | K60: 2100 | L60: 4200
A61: 601-01701 | B61: GUARDRAIL TERMINAL SYSTEM, W BEAM, CURVED, 2 | C61: 2 | D61: EACH | E61: 1865 | F61: 3730 | G61: 1800 | H61: 3600 | I61: 1865 | J61: 3730 | K61: 1865 | L61: 3730
A62: 601-01848 | B62: GUARDRAIL TERMINAL SYSTEM, W-BEAM, CURVED, 5 | C62: 1 | D62: EACH | E62: 2065 | F62: 2065 | G62: 1800 | H62: 1800 | I62: 2065 | J62: 2065 | K62: 2065 | L62: 2065
A63: 601-02241 | B63: GUARDRAIL, REMOVE | C63: 1325 | D63: L.F. | E63: 4.5 | F63: 5962.5 | G63: 4 | H63: 5300 | I63: 4.5 | J63: 5962.5 | K63: 4.5 | L63: 5962.5
A64: 601-05071 | B64: GUARDRAIL TERMINAL SYSTEM, W-BEAM, CURVED, 7 | C64: 1 | D64: EACH | E64: 2500 | F64: 2500 | G64: 1800 | H64: 1800 | I64: 2500 | J64: 2500 | K64: 2500 | L64: 2500
A65: 601-06854 | B65: GUARDRAIL, W-BEAM, NESTED | C65: 5 | D65: EACH | E65: 2800 | F65: 14000 | G65: 2300 | H65: 11500 | I65: 2800 | J65: 14000 | K65: 2800 | L65: 14000
A66: 601-08433 | B66: GUARDRAIL END TREATMENT, TYPE OS, SPARE PARTS | C66: 1 | D66: EACH | E66: 610 | F66: 610 | G66: 1200 | H66: 1200 | I66: 610 | J66: 610 | K66: 610 | L66: 610
A67: 601-08434 | B67: GUARDRAIL END TREATMENT, TYPE OS, SPARE PARTS | C67: 1 | D67: EACH | E67: 110 | F67: 110 | G67: 1400 | H67: 1400 | I67: 110 | J67: 110 | K67: 110 | L67: 110
A68: 601-09149 | B68: IMPACT ATTENUATOR, CR1, W1, TL-3 | C68: 2 | D68: EACH | E68: 33300 | F68: 66600 | G68: 25500 | H68: 51000 | I68: 33300 | J68: 66600 | K68: 33000 | L68: 66000
A69: 601-94689 | B69: GUARDRAIL END TREATMENT, OS | C69: 15 | D69: EACH | E69: 2635 | F69: 39525 | G69: 2700 | H69: 40500 | I69: 2635 | J69: 39525 | K69: 2635 | L69: 39525
A70: 601-99105 | B70: GUARDRAIL, W BEAM, 6 FT. 3 IN. SPACING | C70: 3583 | D70: L.F. | E70: 18.75 | F70: 67181.25 | G70: 18 | H70: 64494 | I70: 18.75 | J70: 67181.25 | K70: 18.75 | L70: 67181.25
A71: 601-99123 | B71: GUARDRAIL TRANSITION, GP | C71: 4 | D71: EACH | E71: 3100 | F71: 12400 | G71: 2400 | H71: 9600 | I71: 3100 | J71: 12400 | K71: 3100 | L71: 12400
A72: 603-06040 | B72: FENCE, FARM FIELD, 47 IN. | C72: 2579 | D72: L.F. | E72: 7.25 | F72: 18697.75 | G72: 5.1 | H72: 13152.9 | I72: 7.25 | J72: 18697.75 | K72: 7.25 | L72: 18697.75
A73: 605-06090 | B73: CURB, INTEGRAL, CONCRETE | C73: 217 | D73: L.F. | E73: 14 | F73: 3038 | G73: 11.71 | H73: 2541.07 | I73: 12 | J73: 2604 | K73: 34.4 | L73: 7464.8
A74: 605-06121 | B74: CURB, CONCRETE, B | C74: 1442 | D74: L.F. | E74: 15 | F74: 21630 | G74: 8.37 | H74: 12069.54 | I74: 16.5 | J74: 23793 | K74: 17.9 | L74: 25811.8
A75: 605-06140 | B75: CURB AND GUTTER, CONCRETE | C75: 42 | D75: L.F. | E75: 21 | F75: 882 | G75: 26.69 | H75: 1120.98 | I75: 50 | J75: 2100 | K75: 37.3 | L75: 1566.6
A76: 605-06145 | B76: CURB AND GUTTER, B, CONCRETE | C76: 177 | D76: L.F. | E76: 20 | F76: 3540 | G76: 20.59 | H76: 3644.43 | I76: 30 | J76: 5310 | K76: 32.75 | L76: 5796.75
A77: 605-06245 | B77: CENTER CURB, B, CONCRETE | C77: 4255 | D77: S.Y. | E77: 36 | F77: 153180 | G77: 51.8 | H77: 220409 | I77: 50 | J77: 212750 | K77: 52.75 | L77: 224451.25
A78: 610-07487 | B78: HMA FOR APPROACHES, TYPE B | C78: 1776 | D78: TON | E78: 73.5 | F78: 130536 | G78: 73.5 | H78: 130536 | I78: 84 | J78: 149184 | K78: 83 | L78: 147408
A79: 610-09108 | B79: PCCP FOR APPROACHES, 9 IN. | C79: 2088 | D79: S.Y. | E79: 55 | F79: 114840 | G79: 45.43 | H79: 94857.84 | I79: 45 | J79: 93960 | K79: 59.5 | L79: 124236
A80: 611-06497 | B80: MAILBOX ASSEMBLY, SINGLE | C80: 2 | D80: EACH | E80: 215 | F80: 430 | G80: 150 | H80: 300 | I80: 215 | J80: 430 | K80: 215 | L80: 430
A81: 611-06498 | B81: MAILBOX ASSEMBLY, DOUBLE | C81: 1 | D81: EACH | E81: 275 | F81: 275 | G81: 170 | H81: 170 | I81: 275 | J81: 275 | K81: 275 | L81: 275
A82: 615-06490 | B82: RIGHT OF WAY MARKER | C82: 61 | D82: EACH | E82: 137 | F82: 8357 | G82: 140 | H82: 8540 | I82: 137 | J82: 8357 | K82: 137 | L82: 8357
A83: 615-06500 | B83: MONUMENT, A | C83: 2 | D83: EACH | E83: 650 | F83: 1300 | G83: 580 | H83: 1160 | I83: 650 | J83: 1300 | K83: 650 | L83: 1300
A84: 615-06505 | B84: MONUMENT, B | C84: 6 | D84: EACH | E84: 755 | F84: 4530 | G84: 580 | H84: 3480 | I84: 755 | J84: 4530 | K84: 755 | L84: 4530
A85: 615-06510 | B85: MONUMENT, C | C85: 2 | D85: EACH | E85: 555 | F85: 1110 | G85: 360 | H85: 720 | I85: 555 | J85: 1110 | K85: 555 | L85: 1110
A86: 615-06515 | B86: MONUMENT, D | C86: 48 | D86: EACH | E86: 135 | F86: 6480 | G86: 230 | H86: 11040 | I86: 135 | J86: 6480 | K86: 135 | L86: 6480
A87: 615-06520 | B87: MONUMENT, RE ESTABLISH | C87: 1 | D87: EACH | E87: 1500 | F87: 1500 | G87: 580 | H87: 580 | I87: 1500 | J87: 1500 | K87: 1500 | L87: 1500
A88: 615-06535 | B88: BENCH MARK POST, RESET | C88: 1 | D88: EACH | E88: 1000 | F88: 1000 | G88: 630 | H88: 630 | I88: 1000 | J88: 1000 | K88: 1000 | L88: 1000
A89: 616-02320 | B89: GEOTEXTILES | C89: 1282 | D89: S.Y. | E89: 1.55 | F89: 1987.1 | G89: 2.38 | H89: 3051.16 | I89: 1.25 | J89: 1602.5 | K89: 1.25 | L89: 1602.5
A90: 616-05688 | B90: RIPRAP, CLASS 1 | C90: 77 | D90: TON | E90: 57 | F90: 4389 | G90: 38.72 | H90: 2981.44 | I90: 43 | J90: 3311 | K90: 42.05 | L90: 3237.85
A91: 616-06405 | B91: RIPRAP, REVETMENT | C91: 445 | D91: TON | E91: 41 | F91: 18245 | G91: 33.89 | H91: 15081.05 | I91: 37 | J91: 16465 | K91: 36.2 | L91: 16109
A92: 616-06451 | B92: RIPRAP, UNIFORM | C92: 62 | D92: TON | E92: 41 | F92: 2542 | G92: 51.69 | H92: 3204.78 | I92: 44 | J92: 2728 | K92: 43.1 | L92: 2672.2
A93: 619-11052 | B93: CLEAN STEEL BRIDGE, QP-2, BR. NO. , | C93: 1 | D93: L.S. | E93: 80000 | F93: 80000 | G93: 100000 | H93: 100000 | I93: 112000 | J93: 112000 | K93: 80000 | L93: 80000
A94: 619-51859 | B94: PAINT STEEL BRIDGE , STR. NO. 2 | C94: 1 | D94: L.S. | E94: 30000 | F94: 30000 | G94: 50000 | H94: 50000 | I94: 10000 | J94: 10000 | K94: 30000 | L94: 30000
A95: 621-01004 | B95: MOBILIZATION AND DEMOBILIZATION FOR SEEDING | C95: 3 | D95: EACH | E95: 400 | F95: 1200 | G95: 400 | H95: 1200 | I95: 575 | J95: 1725 | K95: 400 | L95: 1200
A96: 621-02770 | B96: EROSION CONTROL BLANKET | C96: 66315 | D96: S.Y. | E96: 0.65 | F96: 43104.75 | G96: 0.65 | H96: 43104.75 | I96: 1.15 | J96: 76262.25 | K96: 0.25 | L96: 16578.75
A97: 621-06545 | B97: FERTILIZER | C97: 6 | D97: TON | E97: 600 | F97: 3600 | G97: 600 | H97: 3600 | I97: 985 | J97: 5910 | K97: 600 | L97: 3600
A98: 621-06553 | B98: SEED MIXTURE, R | C98: 2000 | D98: LBS | E98: 3.4 | F98: 6800 | G98: 3.4 | H98: 6800 | I98: 2.73 | J98: 5460 | K98: 3.4 | L98: 6800
A99: 621-06557 | B99: SEED MIXTURE, T | C99: 1088 | D99: LBS | E99: 2.5 | F99: 2720 | G99: 2.5 | H99: 2720 | I99: 2.2 | J99: 2393.6 | K99: 2.5 | L99: 2720
A100: 621-06565 | B100: MULCHING MATERIAL | C100: 29 | D100: TON | E100: 400 | F100: 11600 | G100: 400 | H100: 11600 | I100: 345 | J100: 10005 | K100: 400 | L100: 11600
A101: 621-06567 | B101: WATER | C101: 253 | D101: M.G. | E101: 1 | F101: 253 | G101: 1 | H101: 253 | I101: 1 | J101: 253 | K101: 1 | L101: 253
A102: 621-06574 | B102: SODDING | C102: 3864 | D102: S.Y. | E102: 2.98 | F102: 11514.72 | G102: 2.98 | H102: 11514.72 | I102: 3.11 | J102: 12017.04 | K102: 1 | L102: 3864
A103: 621-06575 | B103: SODDING, NURSERY | C103: 66315 | D103: S.Y. | E103: 2.98 | F103: 197618.7 | G103: 3.21 | H103: 212871.15 | I103: 3.11 | J103: 206239.65 | K103: 1 | L103: 66315
A104: 628-08524 | B104: CELLULAR TELEPHONE/RADIO, ADDITIONAL | C104: 1 | D104: $ | E104: 1 | F104: 1 | G104: 1 | H104: 1 | I104: 1 | J104: 1 | K104: 1 | L104: 1
A105: 628-09403 | B105: FIELD OFFICE, C | C105: 15 | D105: MONTH | E105: 2300 | F105: 34500 | G105: 2628.33 | H105: 39424.95 | I105: 2800 | J105: 42000 | K105: 2300 | L105: 34500
A106: 628-09407 | B106: FIELD OFFICE COMPUTER SYSTEM, | C106: 30 | D106: MONTH | E106: 100 | F106: 3000 | G106: 200 | H106: 6000 | I106: 165 | J106: 4950 | K106: 130 | L106: 3900
A107: 628-11007 | B107: CELLULAR TELEPHONE/RADIO SERVICE, 750 | C107: 60 | D107: MONTH | E107: 100 | F107: 6000 | G107: 100 | H107: 6000 | I107: 150 | J107: 9000 | K107: 66.25 | L107: 3975
A108: 628-11068 | B108: CELLULAR TELEPHONE/RADIO | C108: 4 | D108: EACH | E108: 200 | F108: 800 | G108: 100 | H108: 400 | I108: 70 | J108: 280 | K108: 100 | L108: 400
A109: 702-51863 | B109: FIELD DRILLED HOLE IN CONCRETE | C109: 158 | D109: EACH | E109: 17 | F109: 2686 | G109: 14.6 | H109: 2306.8 | I109: 55 | J109: 8690 | K109: 12.65 | L109: 1998.7
A110: 702-90915 | B110: CONCRETE, A | C110: 47.4 | D110: C.Y. | E110: 475 | F110: 22515 | G110: 735.12 | H110: 34844.69 | I110: 700 | J110: 33180 | K110: 900 | L110: 42660
A111: 703-06029 | B111: REINFORCING BARS, EPOXY COATED | C111: 3869 | D111: LBS | E111: 2 | F111: 7738 | G111: 1.07 | H111: 4139.83 | I111: 4 | J111: 15476 | K111: 2 | L111: 7738
A112: 706-09545 | B112: COARSE AGGREGATE, NO. 8 | C112: 400 | D112: C.Y. | E112: 32 | F112: 12800 | G112: 29.41 | H112: 11764 | I112: 45 | J112: 18000 | K112: 43.9 | L112: 17560
A113: 709-51821 | B113: SURFACE SEAL | C113: 1 | D113: L.S. | E113: 9000 | F113: 9000 | G113: 10000 | H113: 10000 | I113: 8500 | J113: 8500 | K113: 7500 | L113: 7500
A114: 714-11175 | B114: STRUCTURE, REINFORCED CONCRETE BOX | C114: 225 | D114: L.F. | E114: 550 | F114: 123750 | G114: 450 | H114: 101250 | I114: 395 | J114: 88875 | K114: 395 | L114: 88875
A115: 714-11311 | B115: STRUCTURE, REINFORCED CONCRETE BOX | C115: 137 | D115: L.F. | E115: 725 | F115: 99325 | G115: 625 | H115: 85625 | I115: 575 | J115: 78775 | K115: 572 | L115: 78364
A116: 715-04555 | B116: PIPE END SECTION, MIN. AREA 5.1 SQ. FT. | C116: 8 | D116: EACH | E116: 993.5 | F116: 7948 | G116: 676.34 | H116: 5410.72 | I116: 817 | J116: 6536 | K116: 816.65 | L116: 6533.2
A117: 715-05032 | B117: PIPE, TYPE 2, CIRCULAR, 15 IN. | C117: 961 | D117: L.F. | E117: 27 | F117: 25947 | G117: 29.83 | H117: 28666.63 | I117: 36.5 | J117: 35076.5 | K117: 36.02 | L117: 34615.22
A118: 715-05048 | B118: PIPE, TYPE 4, CIRCULAR, 6 IN. | C118: 16505 | D118: L.F. | E118: 3.75 | F118: 61893.75 | G118: 3.27 | H118: 53971.35 | I118: 5 | J118: 82525 | K118: 3.75 | L118: 61893.75
A119: 715-05053 | B119: PIPE, UNDERDRAIN OUTLET, 6 IN. | C119: 775 | D119: L.F. | E119: 18 | F119: 13950 | G119: 9.77 | H119: 7571.75 | I119: 12 | J119: 9300 | K119: 18 | L119: 13950
A120: 715-05121 | B120: PIPE, TYPE 1, CIRCULAR, 18 IN. | C120: 114 | D120: L.F. | E120: 34 | F120: 3876 | G120: 34.48 | H120: 3930.72 | I120: 42 | J120: 4788 | K120: 41.57 | L120: 4738.98
A121: 715-05149 | B121: PIPE, TYPE 2, CIRCULAR, 12 IN. | C121: 210 | D121: L.F. | E121: 23 | F121: 4830 | G121: 30.8 | H121: 6468 | I121: 34.5 | J121: 7245 | K121: 34.09 | L121: 7158.9
A122: 715-05152 | B122: PIPE, TYPE 2, CIRCULAR, 18 IN. | C122: 409 | D122: L.F. | E122: 34 | F122: 13906 | G122: 36.63 | H122: 14981.67 | I122: 40 | J122: 16360 | K122: 39.18 | L122: 16024.62
A123: 715-05154 | B123: PIPE, TYPE 2, CIRCULAR, 24 IN. , SMOOTH | C123: 1037 | D123: L.F. | E123: 45 | F123: 46665 | G123: 46.13 | H123: 47836.81 | I123: 46 | J123: 47702 | K123: 45.78 | L123: 47473.86
A124: 715-05156 | B124: PIPE, TYPE 2, CIRCULAR, 30 IN. | C124: 130 | D124: L.F. | E124: 55 | F124: 7150 | G124: 53.44 | H124: 6947.2 | I124: 52.5 | J124: 6825 | K124: 52.17 | L124: 6782.1
A125: 715-05169 | B125: PIPE, TYPE 3, CIRCULAR, 15 IN. | C125: 319 | D125: L.F. | E125: 27 | F125: 8613 | G125: 26.94 | H125: 8593.86 | I125: 35.5 | J125: 11324.5 | K125: 35.15 | L125: 11212.85
A126: 715-05171 | B126: PIPE, TYPE 3, CIRCULAR, 18 IN. | C126: 88 | D126: L.F. | E126: 34 | F126: 2992 | G126: 33.11 | H126: 2913.68 | I126: 36.5 | J126: 3212 | K126: 36.16 | L126: 3182.08
A127: 715-05236 | B127: PIPE, TYPE 1, DEFORMED, MIN. AREA 0.47 M2 | C127: 308 | D127: L.F. | E127: 117.08 | F127: 36060.64 | G127: 79.24 | H127: 24405.92 | I127: 71 | J127: 21868 | K127: 70.9 | L127: 21837.2
A128: 715-06471 | B128: PIPE END SECTION, MIN. AREA .31 M2 | C128: 2 | D128: EACH | E128: 700 | F128: 1400 | G128: 571.34 | H128: 1142.68 | I128: 565 | J128: 1130 | K128: 565.04 | L128: 1130.08
A129: 715-08243 | B129: PIPE, TYPE 3, DEFORMED, MIN. AREA 3.3 SQ. FT. | C129: 48 | D129: L.F. | E129: 98.81 | F129: 4742.88 | G129: 66.31 | H129: 3182.88 | I129: 57 | J129: 2736 | K129: 56.45 | L129: 2709.6
A130: 715-09064 | B130: VIDEO INSPECTION FOR PIPE | C130: 2792 | D130: L.F. | E130: 1.25 | F130: 3490 | G130: 2 | H130: 5584 | I130: 1.5 | J130: 4188 | K130: 1.45 | L130: 4048.4
A131: 715-09769 | B131: PIPE, TYPE 3, DEFORMED, MIN. AREA 5.1 | C131: 240 | D131: L.F. | E131: 141.48 | F131: 33955.2 | G131: 67.02 | H131: 16084.8 | I131: 68.5 | J131: 16440 | K131: 68.06 | L131: 16334.4
A132: 715-46005 | B132: PIPE END SECTION, 15 IN. | C132: 14 | D132: EACH | E132: 347 | F132: 4858 | G132: 308.28 | H132: 4315.92 | I132: 336 | J132: 4704 | K132: 335.93 | L132: 4703.02
A133: 715-46010 | B133: PIPE END SECTION, 18 IN. | C133: 5 | D133: EACH | E133: 400 | F133: 2000 | G133: 331.27 | H133: 1656.35 | I133: 402 | J133: 2010 | K133: 401.63 | L133: 2008.15
A134: 715-46020 | B134: PIPE END SECTION, 24 IN. | C134: 4 | D134: EACH | E134: 475 | F134: 1900 | G134: 596.92 | H134: 2387.68 | I134: 468 | J134: 1872 | K134: 467.33 | L134: 1869.32
A135: 715-46030 | B135: PIPE END SECTION, 30 IN. | C135: 1 | D135: EACH | E135: 605 | F135: 605 | G135: 665.4 | H135: 665.4 | I135: 600 | J135: 600 | K135: 596.9 | L135: 596.9
A136: 718-06529 | B136: OUTLET PROTECTOR, 2 | C136: 6 | D136: EACH | E136: 850 | F136: 5100 | G136: 729.18 | H136: 4375.08 | I136: 850 | J136: 5100 | K136: 850 | L136: 5100
A137: 718-06531 | B137: OUTLET PROTECTOR, 3 | C137: 30 | D137: EACH | E137: 800 | F137: 24000 | G137: 704.86 | H137: 21145.8 | I137: 550 | J137: 16500 | K137: 800 | L137: 24000
A138: 718-06532 | B138: VIDEO INSPECTION FOR UNDERDRAINS | C138: 3000 | D138: L.F. | E138: 1.1 | F138: 3300 | G138: 1 | H138: 3000 | I138: 1 | J138: 3000 | K138: 1.15 | L138: 3450
A139: 718-52610 | B139: AGGREGATE FOR UNDERDRAINS | C139: 1496 | D139: C.Y. | E139: 33 | F139: 49368 | G139: 31.03 | H139: 46420.88 | I139: 25 | J139: 37400 | K139: 33 | L139: 49368
A140: 720-44000 | B140: CASTING, ADJUST TO GRADE | C140: 8 | D140: EACH | E140: 445 | F140: 3560 | G140: 680.33 | H140: 5442.64 | I140: 331 | J140: 2648 | K140: 330.99 | L140: 2647.92
A141: 720-45025 | B141: INLET, D6 | C141: 1 | D141: EACH | E141: 2340 | F141: 2340 | G141: 2046.02 | H141: 2046.02 | I141: 1315 | J141: 1315 | K141: 1315.23 | L141: 1315.23
A142: 720-45030 | B142: INLET, E7 | C142: 1 | D142: EACH | E142: 1400 | F142: 1400 | G142: 1661.32 | H142: 1661.32 | I142: 1105 | J142: 1105 | K142: 1101.7 | L142: 1101.7
A143: 720-45035 | B143: INLET, F7 | C143: 3 | D143: EACH | E143: 1390 | F143: 4170 | G143: 1661.31 | H143: 4983.93 | I143: 1103 | J143: 3309 | K143: 1102.8 | L143: 3308.4
A144: 720-45040 | B144: INLET, G7 | C144: 2 | D144: EACH | E144: 2225 | F144: 4450 | G144: 2009.02 | H144: 4018.04 | I144: 2378 | J144: 4756 | K144: 2378.55 | L144: 4757.1
A145: 720-45140 | B145: INLET, G7, MODIFIED | C145: 1 | D145: EACH | E145: 2400 | F145: 2400 | G145: 2401.09 | H145: 2401.09 | I145: 1725 | J145: 1725 | K145: 1721.49 | L145: 1721.49
A146: 720-45510 | B146: MANHOLE, C4, MODIFIED | C146: 2 | D146: EACH | E146: 2600 | F146: 5200 | G146: 2410.76 | H146: 4821.52 | I146: 1836.5 | J146: 3673 | K146: 1836.5 | L146: 3673
A147: 720-95409 | B147: MANHOLE, J4, MODIFIED | C147: 2 | D147: EACH | E147: 3200 | F147: 6400 | G147: 3483.01 | H147: 6966.02 | I147: 1787 | J147: 3574 | K147: 1787.22 | L147: 3574.44
A148: 720-97865 | B148: MANHOLE, C2, MODIFIED | C148: 4 | D148: EACH | E148: 3700 | F148: 14800 | G148: 2629.8 | H148: 10519.2 | I148: 2030 | J148: 8120 | K148: 2030.3 | L148: 8121.2
A149: 720-98555 | B149: INLET, C15 | C149: 1 | D149: EACH | E149: 2075 | F149: 2075 | G149: 2511.1 | H149: 2511.1 | I149: 1777 | J149: 1777 | K149: 1776.98 | L149: 1776.98
A150: 723-08608 | B150: WINGWALL | C150: 608 | D150: S.F. | E150: 90 | F150: 54720 | G150: 51.26 | H150: 31166.08 | I150: 87 | J150: 52896 | K150: 86.99 | L150: 52889.92
A151: 727-90308 | B151: EPOXY INJECTION, CRACK PREPARATION | C151: 119 | D151: L.F. | E151: 40.37 | F151: 4804.03 | G151: 34.08 | H151: 4055.52 | I151: 59.6 | J151: 7092.4 | K151: 93 | L151: 11067
A152: 727-90309 | B152: EPOXY INJECTION, EPOXY MATERIAL | C152: 15 | D152: GAL | E152: 54 | F152: 810 | G152: 53.34 | H152: 800.1 | I152: 54 | J152: 810 | K152: 85 | L152: 1275
A153: 727-93560 | B153: EPOXY INJECTION, FURNISHING EQUIPMENT | C153: 1 | D153: L.S. | E153: 200 | F153: 200 | G153: 500 | H153: 500 | I153: 200 | J153: 200 | K153: 1875 | L153: 1875
A154: 801-02595 | B154: CONTROLLER, RESET TIMING | C154: 3 | D154: EACH | E154: 155 | F154: 465 | G154: 155 | H154: 465 | I154: 155 | J154: 465 | K154: 155 | L154: 465
A155: 801-03290 | B155: CONSTRUCTION SIGN, C | C155: 12 | D155: EACH | E155: 140 | F155: 1680 | G155: 128 | H155: 1536 | I155: 140 | J155: 1680 | K155: 153 | L155: 1836
A156: 801-04308 | B156: ROAD CLOSURE SIGN ASSEMBLY | C156: 20 | D156: EACH | E156: 345 | F156: 6900 | G156: 110 | H156: 2200 | I156: 345 | J156: 6900 | K156: 132 | L156: 2640
A157: 801-06201 | B157: TEMPORARY PANEL SIGNS | C157: 22.5 | D157: S.Y. | E157: 22 | F157: 495 | G157: 22 | H157: 495 | I157: 13.8 | J157: 310.5 | K157: 22 | L157: 495
A158: 801-06202 | B158: TEMPORARY PANEL SIGN SUPPORTS | C158: 56 | D158: L.F. | E158: 20 | F158: 1120 | G158: 20 | H158: 1120 | I158: 17.7 | J158: 991.2 | K158: 20 | L158: 1120
A159: 801-06203 | B159: TEMPORARY PAVEMENT MARKING, 4 IN. | C159: 35000 | D159: L.F. | E159: 0.17 | F159: 5950 | G159: 0.16 | H159: 5600 | I159: 0.17 | J159: 5950 | K159: 0.22 | L159: 7700
A160: 801-06207 | B160: TEMPORARY PAVEMENT MARKING, REMOVABLE, 4 IN. | C160: 64300 | D160: L.F. | E160: 0.88 | F160: 56584 | G160: 0.87 | H160: 55941 | I160: 0.88 | J160: 56584 | K160: 0.1 | L160: 6430
A161: 801-06211 | B161: TEMPORARY PAVEMENT MESSAGE MARKING, REMOVABLE | C161: 13 | D161: EACH | E161: 95 | F161: 1235 | G161: 85 | H161: 1105 | I161: 95 | J161: 1235 | K161: 115 | L161: 1495
A162: 801-06218 | B162: TEMPORARY TRANSVERSE PAVEMENT MARKING, REMOVA | C162: 377 | D162: L.F. | E162: 5 | F162: 1885 | G162: 4.25 | H162: 1602.25 | I162: 5 | J162: 1885 | K162: 5.18 | L162: 1952.86
A163: 801-06539 | B163: TEMPORARY TRAFFIC SIGNAL INSTALLATION, MAINTA | C163: 1 | D163: L.S. | E163: 4100 | F163: 4100 | G163: 4100 | H163: 4100 | I163: 4100 | J163: 4100 | K163: 4100 | L163: 4100
A164: 801-06625 | B164: DETOUR ROUTE MARKER ASSEMBLY | C164: 15 | D164: EACH | E164: 89 | F164: 1335 | G164: 80 | H164: 1200 | I164: 89 | J164: 1335 | K164: 89 | L164: 1335
A165: 801-06640 | B165: CONSTRUCTION SIGN, A | C165: 37 | D165: EACH | E165: 130 | F165: 4810 | G165: 112 | H165: 4144 | I165: 130 | J165: 4810 | K165: 129 | L165: 4773
A166: 801-06645 | B166: CONSTRUCTION SIGN, B | C166: 5 | D166: EACH | E166: 48 | F166: 240 | G166: 40 | H166: 200 | I166: 48 | J166: 240 | K166: 48 | L166: 240
A167: 801-06710 | B167: FLASHING ARROW SIGN | C167: 30 | D167: DAY | E167: 10 | F167: 300 | G167: 10 | H167: 300 | I167: 10 | J167: 300 | K167: 10 | L167: 300
A168: 801-06775 | B168: MAINTAINING TRAFFIC | C168: 1 | D168: L.S. | E168: 41950 | F168: 41950 | G168: 150000 | H168: 150000 | I168: 130000 | J168: 130000 | K168: 175000 | L168: 175000
A169: 801-07023 | B169: ENERGY ABSORBIBG TERMINAL, CZ, TL-2 | C169: 5 | D169: EACH | E169: 5400 | F169: 27000 | G169: 5500 | H169: 27500 | I169: 6900 | J169: 34500 | K169: 5400 | L169: 27000
A170: 801-07118 | B170: BARRICADE, III-A | C170: 468 | D170: L.F. | E170: 8.45 | F170: 3954.6 | G170: 8 | H170: 3744 | I170: 8.45 | J170: 3954.6 | K170: 11.1 | L170: 5194.8
A171: 801-07119 | B171: BARRICADE, III-B | C171: 48 | D171: L.F. | E171: 9.15 | F171: 439.2 | G171: 8.55 | H171: 410.4 | I171: 9.15 | J171: 439.2 | K171: 15.28 | L171: 733.44
A172: 801-08401 | B172: TEMPORARY TRAFFIC BARRIER, TYPE 2 | C172: 9260 | D172: L.F. | E172: 18.75 | F172: 173625 | G172: 25.31 | H172: 234370.6 | I172: 14 | J172: 129640 | K172: 6 | L172: 55560
A173: 801-08508 | B173: TEMPORARY TRAFFIC BARRIER, TYPE 2, ANCHORED | C173: 252 | D173: L.F. | E173: 30 | F173: 7560 | G173: 22.84 | H173: 5755.68 | I173: 15 | J173: 3780 | K173: 7 | L173: 1764
A174: 801-94295 | B174: SIGNAL HEAD, RELOCATE | C174: 32 | D174: EACH | E174: 130 | F174: 4160 | G174: 130 | H174: 4160 | I174: 130 | J174: 4160 | K174: 130 | L174: 4160
A175: 802-05701 | B175: SIGN POST, SQUARE, 1, REINFORCED ANCHOR | C175: 765.5 | D175: L.F. | E175: 11.3 | F175: 8650.15 | G175: 11.3 | H175: 8650.15 | I175: 11.3 | J175: 8650.15 | K175: 11.3 | L175: 8650.15
A176: 802-05702 | B176: SIGN POST SQUARE, 2, REINFORCED ANCHOR BASE | C176: 211.25 | D176: L.F. | E176: 11.65 | F176: 2461.06 | G176: 11.65 | H176: 2461.06 | I176: 11.65 | J176: 2461.06 | K176: 11.65 | L176: 2461.06
A177: 802-07057 | B177: SIGN, PANEL, WITH LEGEND | C177: 899 | D177: S.F. | E177: 20 | F177: 17980 | G177: 20 | H177: 17980 | I177: 20 | J177: 17980 | K177: 20 | L177: 17980
A178: 802-07151 | B178: WIDE FLANGE SIGN POST SUPPORT FOUNDATION, VII | C178: 10 | D178: EACH | E178: 375 | F178: 3750 | G178: 375 | H178: 3750 | I178: 375 | J178: 3750 | K178: 375 | L178: 3750
A179: 802-08456 | B179: WIDE FLANGE SIGN POST SUPPORT FOUNDATION, VII | C179: 12 | D179: EACH | E179: 385 | F179: 4620 | G179: 385 | H179: 4620 | I179: 385 | J179: 4620 | K179: 385 | L179: 4620
A180: 802-09578 | B180: OVERHEAD SIGN STRUCTURE, CANTILEVER, | C180: 2 | D180: EACH | E180: 34500 | F180: 69000 | G180: 34500 | H180: 69000 | I180: 34500 | J180: 69000 | K180: 34500 | L180: 69000
A181: 802-09581 | B181: CANTILEVER SIGN SUPPORT FOUNDATION, | C181: 2 | D181: EACH | E181: 7800 | F181: 15600 | G181: 7800 | H181: 15600 | I181: 7800 | J181: 15600 | K181: 7800 | L181: 15600
A182: 802-09838 | B182: SIGN, SHEET, WITH LEGEND 0.08 IN. | C182: 504.78 | D182: S.F. | E182: 15 | F182: 7571.7 | G182: 15 | H182: 7571.7 | I182: 15 | J182: 7571.7 | K182: 15 | L182: 7571.7
A183: 802-09840 | B183: SIGN, SHEET, WITH LEGEND 0.100 IN | C183: 104.1 | D183: S.F. | E183: 18 | F183: 1873.8 | G183: 18 | H183: 1873.8 | I183: 18 | J183: 1873.8 | K183: 18 | L183: 1873.8
A184: 802-09842 | B184: SIGN, SHEET, WITH LEGEND 0.125 IN | C184: 78 | D184: S.F. | E184: 18 | F184: 1404 | G184: 18 | H184: 1404 | I184: 18 | J184: 1404 | K184: 18 | L184: 1404
A185: 802-74040 | B185: SIGN AND SUPPORTS, WIDE FLANGE, REMOVE | C185: 6 | D185: EACH | E185: 175 | F185: 1050 | G185: 175 | H185: 1050 | I185: 175 | J185: 1050 | K185: 175 | L185: 1050
A186: 802-76095 | B186: STRUCTURAL STEEL, BREAKAWAY | C186: 4874 | D186: LBS | E186: 4 | F186: 19496 | G186: 4 | H186: 19496 | I186: 4 | J186: 19496 | K186: 4 | L186: 19496
A187: 804-06771 | B187: DELINEATOR POST, FLEXIBLE | C187: 50 | D187: EACH | E187: 35 | F187: 1750 | G187: 33 | H187: 1650 | I187: 40 | J187: 2000 | K187: 35 | L187: 1750
A188: 805-01300 | B188: TRAFFIC SIGNAL EQUIPMENT, REMOVE | C188: 2 | D188: EACH | E188: 1800 | F188: 3600 | G188: 1800 | H188: 3600 | I188: 1800 | J188: 3600 | K188: 1800 | L188: 3600
A189: 805-01815 | B189: SIGNAL SUPPORT FOUNDATION, 3 FT. X 12 FT. | C189: 10 | D189: EACH | E189: 2010 | F189: 20100 | G189: 2010 | H189: 20100 | I189: 2010 | J189: 20100 | K189: 2010 | L189: 20100
A190: 805-01842 | B190: HANDHOLE, SIGNAL | C190: 21 | D190: EACH | E190: 700 | F190: 14700 | G190: 700 | H190: 14700 | I190: 700 | J190: 14700 | K190: 700 | L190: 14700
A191: 805-01843 | B191: SIGNAL HANDHOLE ADJUST TO GRADE | C191: 4 | D191: EACH | E191: 300 | F191: 1200 | G191: 300 | H191: 1200 | I191: 300 | J191: 1200 | K191: 300 | L191: 1200
A192: 805-01844 | B192: GALVANIZED STEEL CONDUIT, 2 IN., UNDERGROUND | C192: 4042 | D192: L.F. | E192: 11 | F192: 44462 | G192: 11 | H192: 44462 | I192: 11 | J192: 44462 | K192: 11 | L192: 44462
A193: 805-02087 | B193: TRANSPORTATION OF SALVAGEABLE SIGNAL EQUIPMEN | C193: 1 | D193: L.S. | E193: 500 | F193: 500 | G193: 500 | H193: 500 | I193: 500 | J193: 500 | K193: 500 | L193: 500
A194: 805-02373 | B194: INTERCONNECT CABLE, FIBER OPTIC | C194: 2057 | D194: L.F. | E194: 2.6 | F194: 5348.2 | G194: 2.6 | H194: 5348.2 | I194: 2.6 | J194: 5348.2 | K194: 2.6 | L194: 5348.2
A195: 805-09539 | B195: LOOP DETECTOR DELAY COUNTING AMPLIFIER, | C195: 2 | D195: EACH | E195: 1100 | F195: 2200 | G195: 1100 | H195: 2200 | I195: 1100 | J195: 2200 | K195: 1100 | L195: 2200
A196: 805-78109 | B196: CONTROLLER AND CABINET, SECONDARY, MENU DRIVE | C196: 1 | D196: EACH | E196: 13900 | F196: 13900 | G196: 13900 | H196: 13900 | I196: 13900 | J196: 13900 | K196: 13900 | L196: 13900
A197: 805-78205 | B197: TRAFFIC SIGNAL HEAD, 3 FACE, 12.20 IN. RED, A | C197: 20 | D197: EACH | E197: 777 | F197: 15540 | G197: 777 | H197: 15540 | I197: 777 | J197: 15540 | K197: 777 | L197: 15540
A198: 805-78230 | B198: TRAFFIC SIGNAL HEAD, 5 FACE, 12.20 IN. RED, A | C198: 4 | D198: EACH | E198: 1200 | F198: 4800 | G198: 1200 | H198: 4800 | I198: 1200 | J198: 4800 | K198: 1200 | L198: 4800
A199: 805-78415 | B199: SPAN CATENARY AND TETHER | C199: 10 | D199: EACH | E199: 1740 | F199: 17400 | G199: 1740 | H199: 17400 | I199: 1740 | J199: 17400 | K199: 1740 | L199: 17400
A200: 805-78420 | B200: DISCONNECT HANGER | C200: 10 | D200: EACH | E200: 340 | F200: 3400 | G200: 340 | H200: 3400 | I200: 340 | J200: 3400 | K200: 340 | L200: 3400
... 48 more rows

Sheet Items (hidden)
A1: 1 | B1: 2 | C1: 3 | D1: 4 | E1: 5 | F1: 6 | G1: 7 | H1: 8 | I1: 9 | J1: 10 | K1: 11 | L1: 12 | M1: 13 | N1: 14 | O1: 15 | P1: 16 | Q1: 17 | R1: 18 | S1: 19 | T1: 20 | U1: 21 | V1: 22 | W1: 23 | X1: 24 | Y1: 25 | Z1: 26 | AA1: 27 | AB1: 28 | AC1: 29 | AD1: 30 | AE1: 31 | AF1: 32 | AG1: 33 | AH1: 34
AH2: Quantity
A3: =Result!$C$2 -> 30201 | B3: =Result!$C$3 -> 2012-01-12 | E3: =E4/$A$4 -> 1 | G3: =G4/$A$4 -> 1.020901891 | I3: =I4/$A$4 -> 1.041913936
A4: =MIN(IF(E4:I4>0,E4:I4)) -> 10152470.02 | D4: =D6 -> 01. Superior Construction Company | E4: =SUM(E8:E5002) -> 10152470.02 | F4: =F6 -> 02. Walsh Construction Company Ii Llc | G4: =SUM(G8:G5002) -> 10364675.84 | H4: =H6 -> 03. Milestone Contractors, L.P. | I4: =SUM(I8:I5002) -> 10578000 | J4: =J6 -> 04. Rieth-Riley Construction | K4: =SUM(K8:K5002) -> 11550412.12 | L4: =L6 -> 0 | M4: =SUM(M8:M5002) -> 0 | N4: =N6 -> 0 | O4: =SUM(O8:O5002) -> 0 | P4: =P6 -> 0 | Q4: =SUM(Q8:Q5002) -> 0 | R4: =R6 -> 0 | S4: =SUM(S8:S5002) -> 0 | T4: =T6 -> 0 | U4: =SUM(U8:U5002) -> 0 | V4: =V6 -> 0 | W4: =SUM(W8:W5002) -> 0 | X4: =X6 -> 0 | Y4: =SUM(Y8:Y5002) -> 0 | Z4: =Z6 -> 0 | AA4: =SUM(AA8:AA5002) -> 0 | AB4: =AB6 -> 0 | AC4: =SUM(AC8:AC5002) -> 0 | AD4: =AD6 -> 0 | AE4: =SUM(AE8:AE5002) -> 0 | AF4: =AF6 -> 0 | AG4: =SUM(AG8:AG5002) -> 0
D5: Contractor | E5: Data
D6: 01. Superior Construction Company | F6: 02. Walsh Construction Company Ii Llc | H6: 03. Milestone Contractors, L.P. | J6: 04. Rieth-Riley Construction
A7: Pay item | B7: Description | C7: Unit | D7: Quant. | E7: Ext. | F7: Quant. | G7: Ext. | H7: Quant. | I7: Ext. | J7: Quant. | K7: Ext.
A8: 105-06845 | B8: CONSTRUCTION ENGINEERING | C8: L.S. | D8: 1 | E8: 296000 | F8: 1 | G8: 197827.14 | H8: 1 | I8: 70000 | J8: 1 | K8: 200000 | AH8: =MAX(F8,H8,J8,L8,N8,P8,R8,T8,V8,X8,Z8) -> 1
A9: 105-09645 | B9: CONSTRUCTION ENGINEERING AND INSPECTION | C9: L.S. | D9: 1 | E9: 12000 | F9: 1 | G9: 75000 | H9: 1 | I9: 25000 | J9: 1 | K9: 20000 | AH9: =MAX(F9,H9,J9,L9,N9,P9,R9,T9,V9,X9,Z9) -> 1
A10: 109-08359 | B10: LIQUIDATED DAMAGES | C10: $ | D10: 1 | E10: 1 | F10: 1 | G10: 1 | H10: 1 | I10: 1 | J10: 1 | K10: 1 | AH10: 1
A11: 109-08360 | B11: CONTRACT LIENS | C11: $ | D11: 1 | E11: 1 | F11: 1 | G11: 1 | H11: 1 | I11: 1 | J11: 1 | K11: 1 | AH11: 1
A12: 109-08443 | B12: QUALITY ADJUSTMENTS, TEMPORARY TRAFFIC CONTRO | C12: $ | D12: 1 | E12: 1 | F12: 1 | G12: 1 | H12: 1 | I12: 1 | J12: 1 | K12: 1 | AH12: 1
A13: 109-08444 | B13: QUALITY ADJUSTMENTS, FAILED MATERIALS | C13: $ | D13: 1 | E13: 1 | F13: 1 | G13: 1 | H13: 1 | I13: 1 | J13: 1 | K13: 1 | AH13: 1
A14: 109-08463 | B14: PROJECT ESTIMATE ADJUSTMENT | C14: $ | D14: 1 | E14: 1 | F14: 1 | G14: 1 | H14: 1 | I14: 1 | J14: 1 | K14: 1 | AH14: 1
A15: 109-09377 | B15: QUALITY ADJUSTMENT, PAVEMENT TRAFFIC | C15: $ | D15: 1 | E15: 1 | F15: 1 | G15: 1 | H15: 1 | I15: 1 | J15: 1 | K15: 1 | AH15: 1
A16: 109-09489 | B16: PAYMENT ADJUSTMENT, PG ASPHALT BINDER | C16: $ | D16: 1 | E16: 1 | F16: 1 | G16: 1 | H16: 1 | I16: 1 | J16: 1 | K16: 1 | AH16: 1
A17: 110-01001 | B17: MOBILIZATION AND DEMOBILIZATION | C17: L.S. | D17: 1 | E17: 532000 | F17: 1 | G17: 518000 | H17: 1 | I17: 528244.17 | J17: 1 | K17: 1100000 | AH17: 1
A18: 201-52370 | B18: CLEARING RIGHT OF WAY | C18: L.S. | D18: 1 | E18: 200000 | F18: 1 | G18: 207000 | H18: 1 | I18: 50000 | J18: 1 | K18: 150000 | AH18: 1
A19: 201-90788 | B19: DEBRIS, REMOVE | C19: L.S. | D19: 1 | E19: 12000 | F19: 1 | G19: 50000 | H19: 1 | I19: 7000 | J19: 1 | K19: 6400 | AH19: 1
A20: 202-01405 | B20: CONTAMINATED SOIL, REMOVE AND DISPOSE | C20: C.Y. | D20: 20 | E20: 4000 | F20: 20 | G20: 4809.8 | H20: 20 | I20: 3010.4 | J20: 20 | K20: 3011 | AH20: 20
A21: 202-02240 | B21: PAVEMENT, REMOVE | C21: S.Y. | D21: 28674 | E21: 215055 | F21: 28674 | G21: 181793.16 | H21: 28674 | I21: 286740 | J21: 28674 | K21: 266668.2 | AH21: 28674
A22: 202-02271 | B22: HEADWALL, REMOVE | C22: EACH | D22: 16 | E22: 6400 | F22: 16 | G22: 2387.04 | H22: 16 | I22: 1952 | J22: 16 | K22: 1920 | AH22: 16
A23: 202-02272 | B23: PAVED SIDE DITCH, REMOVE | C23: L.F. | D23: 344 | E23: 6880 | F23: 344 | G23: 3959.44 | H23: 344 | I23: 1720 | J23: 344 | K23: 1410.4 | AH23: 344
A24: 202-02279 | B24: CURB AND GUTTER, REMOVE | C24: L.F. | D24: 961 | E24: 11532 | F24: 961 | G24: 3690.24 | H24: 961 | I24: 2883 | J24: 961 | K24: 2738.85 | AH24: 961
A25: 202-74045 | B25: SIGNS AND SUPPORTS, CHANNEL POSTS, REMOVE | C25: EACH | D25: 74 | E25: 2220 | F25: 74 | G25: 2220 | H25: 74 | I25: 2220 | J25: 74 | K25: 2220 | AH25: 74
A26: 202-74080 | B26: OVERHEAD SIGN STRUCTURE, CANTILEVER, REMOVE | C26: EACH | D26: 2 | E26: 3200 | F26: 2 | G26: 3200 | H26: 2 | I26: 3200 | J26: 2 | K26: 3200 | AH26: 2
A27: 202-82066 | B27: SIGN CIRCUITRY, CANTILEVERS, REMOVE | C27: EACH | D27: 2 | E27: 500 | F27: 2 | G27: 500 | H27: 2 | I27: 500 | J27: 2 | K27: 500 | AH27: 2
A28: 202-86946 | B28: HANDHOLE, REMOVE | C28: EACH | D28: 3 | E28: 375 | F28: 3 | G28: 375 | H28: 3 | I28: 375 | J28: 3 | K28: 375 | AH28: 3
A29: 202-92222 | B29: TESTING FOR CONTAMINATED MATERIALS, TPH (SOIL | C29: EACH | D29: 5 | E29: 5000 | F29: 5 | G29: 2500 | H29: 5 | I29: 3000 | J29: 5 | K29: 3750 | AH29: 5
A30: 202-93763 | B30: LIGHT STANDARD AND FOUNDATION,REMOVE | C30: EACH | D30: 8 | E30: 2800 | F30: 8 | G30: 2800 | H30: 8 | I30: 2800 | J30: 8 | K30: 2800 | AH30: 8
A31: 202-95579 | B31: SERVICE POINT, REMOVE | C31: EACH | D31: 2 | E31: 300 | F31: 2 | G31: 300 | H31: 2 | I31: 300 | J31: 2 | K31: 300 | AH31: 2
A32: 202-96035 | B32: CONCRETE WALL, REMOVE | C32: L.F. | D32: 20 | E32: 2000 | F32: 20 | G32: 1745.6 | H32: 20 | I32: 3400 | J32: 20 | K32: 3400 | AH32: 20
A33: 202-96133 | B33: PIPE, REMOVE | C33: L.F. | D33: 1108 | E33: 2216 | F33: 1108 | G33: 9706.08 | H33: 1108 | I33: 14404 | J33: 1108 | K33: 13739.2 | AH33: 1108
A34: 202-99187 | B34: FENCE, FARM FIELD, REMOVE | C34: L.F. | D34: 2579 | E34: 7092.25 | F34: 2579 | G34: 4642.2 | H34: 2579 | I34: 7092.25 | J34: 2579 | K34: 7092.25 | AH34: 2579
A35: 203-02000 | B35: EXCAVATION, COMMON | C35: C.Y. | D35: 41965 | E35: 335720 | F35: 41965 | G35: 545545 | H35: 41965 | I35: 503580 | J35: 41965 | K35: 629475 | AH35: 41965
A36: 203-02070 | B36: BORROW | C36: C.Y. | D36: 9115 | E36: 91.15 | F36: 9115 | G36: 91.15 | H36: 9115 | I36: 136725 | J36: 9115 | K36: 911.5 | AH36: 9115
A37: 205-03371 | B37: SEDIMENT REMOVE | C37: C.Y. | D37: 2051 | E37: 20510 | F37: 2051 | G37: 15731.17 | H37: 2051 | I37: 32816 | J37: 2051 | K37: 205.1 | AH37: 2051
A38: 205-06931 | B38: TEMPORARY CHECK DAM, REVETMENT RIPRAP | C38: TON | D38: 253 | E38: 16445 | F38: 253 | G38: 18643.57 | H38: 253 | I38: 11385 | J38: 253 | K38: 13345.75 | AH38: 253
A39: 205-06932 | B39: TEMPORARY CHECK DAM, STRAW BALES | C39: L.F. | D39: 402 | E39: 6030 | F39: 402 | G39: 3718.5 | H39: 402 | I39: 4824 | J39: 402 | K39: 4723.5 | AH39: 402
A40: 205-06933 | B40: TEMPORARY DITCH INLET PROTECTION | C40: EACH | D40: 7 | E40: 840 | F40: 7 | G40: 595 | H40: 7 | I40: 875 | J40: 7 | K40: 1225 | AH40: 7
A41: 205-06934 | B41: TEMPORARY MULCHING | C41: TON | D41: 73 | E41: 29200 | F41: 73 | G41: 29200 | H41: 73 | I41: 25185 | J41: 73 | K41: 29200 | AH41: 73
A42: 205-06936 | B42: TEMPORARY SEDIMENT TRAP | C42: TON | D42: 20 | E42: 1640 | F42: 20 | G42: 3082.2 | H42: 20 | I42: 1300 | J42: 20 | K42: 1512 | AH42: 20
A43: 205-06937 | B43: TEMPORARY SILT FENCE | C43: L.F. | D43: 18458 | E43: 27687 | F43: 18458 | G43: 36546.84 | H43: 18458 | I43: 27687 | J43: 18458 | K43: 18458 | AH43: 18458
A44: 205-09543 | B44: NO 2 STONE | C44: TON | D44: 150 | E44: 8250 | F44: 150 | G44: 7677 | H44: 150 | I44: 4500 | J44: 150 | K44: 4290 | AH44: 150
A45: 207-08263 | B45: SUBGRADE TREATMENT, TYPE IA | C45: S.Y. | D45: 111762 | E45: 598479 | F45: 111762 | G45: 669236.26 | H45: 111762 | I45: 757348.9 | J45: 111762 | K45: 736816.5 | AH45: 111762
A46: 207-08267 | B46: SUBGRADE TREATMENT, TYPE IIIA | C46: S.Y. | D46: 5305 | E46: 42440 | F46: 5305 | G46: 64031.35 | H46: 5305 | I46: 50397.5 | J46: 5305 | K46: 95755.25 | AH46: 5305
A47: 211-09264 | B47: STRUCTURE BACKFILL, TYPE 1 | C47: C.Y. | D47: 900 | E47: 2700 | F47: 900 | G47: 18567 | H47: 900 | I47: 13500 | J47: 900 | K47: 13500 | AH47: 900
A48: 211-09265 | B48: STRUCTURE BACKFILL, TYPE 2 | C48: C.Y. | D48: 1251 | E48: 31275 | F48: 1251 | G48: 29848.86 | H48: 1251 | I48: 18765 | J48: 1251 | K48: 18765 | AH48: 1251
A49: 213-09269 | B49: FLOWABLE BACKFILL, NON-REMOVEABLE | C49: C.Y. | D49: 613 | E49: 49040 | F49: 613 | G49: 55304.86 | H49: 613 | I49: 55170 | J49: 613 | K49: 52196.95 | AH49: 613
A50: 301-07448 | B50: COMPACTED AGGREGATE, NO. 53, BASE | C50: TON | D50: 7516 | E50: 127772 | F50: 7516 | G50: 132206.44 | H50: 7516 | I50: 135288 | J50: 7516 | K50: 139046 | AH50: 7516
A51: 302-06464 | B51: SUBBASE FOR PCCP | C51: C.Y. | D51: 24464 | E51: 917400 | F51: 24464 | G51: 732207.52 | H51: 24464 | I51: 856240 | J51: 24464 | K51: 996908 | AH51: 24464
A52: 303-08210 | B52: COMPACTED AGGREGATE NO. 53, TEMPORARY FOR DRI | C52: TON | D52: 30 | E52: 2250 | F52: 30 | G52: 1518.6 | H52: 30 | I52: 1500 | J52: 30 | K52: 1101 | AH52: 30
A53: 306-08034 | B53: MILLING, ASPHALT, 1 1/2 IN. | C53: S.Y. | D53: 3039 | E53: 9117 | F53: 3039 | G53: 3373.29 | H53: 3039 | I53: 24312 | J53: 3039 | K53: 8053.35 | AH53: 3039
A54: 402-07784 | B54: HMA SURFACE, TYPE D | C54: TON | D54: 268 | E54: 23517 | F54: 268 | G54: 23517 | H54: 268 | I54: 33500 | J54: 268 | K54: 26130 | AH54: 268
A55: 402-07785 | B55: HMA INTERMEDIATE, TYPE D | C55: TON | D55: 67 | E55: 6019.95 | F55: 67 | G55: 6019.95 | H55: 67 | I55: 6700 | J55: 67 | K55: 6331.5 | AH55: 67
A56: 402-10083 | B56: HMA FOR TEMPORARY PAVEMENT, A | C56: TON | D56: 2241 | E56: 154270.44 | F56: 2241 | G56: 154270.44 | H56: 2241 | I56: 190485 | J56: 2241 | K56: 216256.5 | AH56: 2241
A57: 406-05520 | B57: ASPHALT MATERIAL FOR TACK COAT | C57: TON | D57: 6 | E57: 3600 | F57: 6 | G57: 3600 | H57: 6 | I57: 600 | J57: 6 | K57: 6 | AH57: 6
A58: 501-06321 | B58: QC/QA PCCP, 10 IN. | C58: S.Y. | D58: 93599 | E58: 3173006.1 | F58: 93599 | G58: 3097190.91 | H58: 93599 | I58: 3369564 | J58: 93599 | K58: 3556762 | AH58: 93599
A59: 503-05240 | B59: D-1 CONTRACTION JOINT | C59: L.F. | D59: 53189 | E59: 478701 | F59: 53189 | G59: 545187.25 | H59: 53189 | I59: 425512 | J59: 53189 | K59: 587738.45 | AH59: 53189
A60: 601-01522 | B60: GUARDRAIL TRANSITION TYPE TGB | C60: EACH | D60: 2 | E60: 4200 | F60: 2 | G60: 3800 | H60: 2 | I60: 4200 | J60: 2 | K60: 4200 | AH60: 2
A61: 601-01701 | B61: GUARDRAIL TERMINAL SYSTEM, W BEAM, CURVED, 2 | C61: EACH | D61: 2 | E61: 3730 | F61: 2 | G61: 3600 | H61: 2 | I61: 3730 | J61: 2 | K61: 3730 | AH61: 2
A62: 601-01848 | B62: GUARDRAIL TERMINAL SYSTEM, W-BEAM, CURVED, 5 | C62: EACH | D62: 1 | E62: 2065 | F62: 1 | G62: 1800 | H62: 1 | I62: 2065 | J62: 1 | K62: 2065 | AH62: 1
A63: 601-02241 | B63: GUARDRAIL, REMOVE | C63: L.F. | D63: 1325 | E63: 5962.5 | F63: 1325 | G63: 5300 | H63: 1325 | I63: 5962.5 | J63: 1325 | K63: 5962.5 | AH63: 1325
A64: 601-05071 | B64: GUARDRAIL TERMINAL SYSTEM, W-BEAM, CURVED, 7 | C64: EACH | D64: 1 | E64: 2500 | F64: 1 | G64: 1800 | H64: 1 | I64: 2500 | J64: 1 | K64: 2500 | AH64: 1
A65: 601-06854 | B65: GUARDRAIL, W-BEAM, NESTED | C65: EACH | D65: 5 | E65: 14000 | F65: 5 | G65: 11500 | H65: 5 | I65: 14000 | J65: 5 | K65: 14000 | AH65: 5
A66: 601-08433 | B66: GUARDRAIL END TREATMENT, TYPE OS, SPARE PARTS | C66: EACH | D66: 1 | E66: 610 | F66: 1 | G66: 1200 | H66: 1 | I66: 610 | J66: 1 | K66: 610 | AH66: 1
A67: 601-08434 | B67: GUARDRAIL END TREATMENT, TYPE OS, SPARE PARTS | C67: EACH | D67: 1 | E67: 110 | F67: 1 | G67: 1400 | H67: 1 | I67: 110 | J67: 1 | K67: 110 | AH67: 1
A68: 601-09149 | B68: IMPACT ATTENUATOR, CR1, W1, TL-3 | C68: EACH | D68: 2 | E68: 66600 | F68: 2 | G68: 51000 | H68: 2 | I68: 66600 | J68: 2 | K68: 66000 | AH68: 2
A69: 601-94689 | B69: GUARDRAIL END TREATMENT, OS | C69: EACH | D69: 15 | E69: 39525 | F69: 15 | G69: 40500 | H69: 15 | I69: 39525 | J69: 15 | K69: 39525 | AH69: 15
A70: 601-99105 | B70: GUARDRAIL, W BEAM, 6 FT. 3 IN. SPACING | C70: L.F. | D70: 3583 | E70: 67181.25 | F70: 3583 | G70: 64494 | H70: 3583 | I70: 67181.25 | J70: 3583 | K70: 67181.25 | AH70: 3583
A71: 601-99123 | B71: GUARDRAIL TRANSITION, GP | C71: EACH | D71: 4 | E71: 12400 | F71: 4 | G71: 9600 | H71: 4 | I71: 12400 | J71: 4 | K71: 12400 | AH71: 4
A72: 603-06040 | B72: FENCE, FARM FIELD, 47 IN. | C72: L.F. | D72: 2579 | E72: 18697.75 | F72: 2579 | G72: 13152.9 | H72: 2579 | I72: 18697.75 | J72: 2579 | K72: 18697.75 | AH72: 2579
A73: 605-06090 | B73: CURB, INTEGRAL, CONCRETE | C73: L.F. | D73: 217 | E73: 3038 | F73: 217 | G73: 2541.07 | H73: 217 | I73: 2604 | J73: 217 | K73: 7464.8 | AH73: =MAX(F73,H73,J73,L73,N73,P73,R73,T73,V73,X73,Z73) -> 217
A74: 605-06121 | B74: CURB, CONCRETE, B | C74: L.F. | D74: 1442 | E74: 21630 | F74: 1442 | G74: 12069.54 | H74: 1442 | I74: 23793 | J74: 1442 | K74: 25811.8 | AH74: 1442
A75: 605-06140 | B75: CURB AND GUTTER, CONCRETE | C75: L.F. | D75: 42 | E75: 882 | F75: 42 | G75: 1120.98 | H75: 42 | I75: 2100 | J75: 42 | K75: 1566.6 | AH75: 42
A76: 605-06145 | B76: CURB AND GUTTER, B, CONCRETE | C76: L.F. | D76: 177 | E76: 3540 | F76: 177 | G76: 3644.43 | H76: 177 | I76: 5310 | J76: 177 | K76: 5796.75 | AH76: 177
A77: 605-06245 | B77: CENTER CURB, B, CONCRETE | C77: S.Y. | D77: 4255 | E77: 153180 | F77: 4255 | G77: 220409 | H77: 4255 | I77: 212750 | J77: 4255 | K77: 224451.25 | AH77: 4255
A78: 610-07487 | B78: HMA FOR APPROACHES, TYPE B | C78: TON | D78: 1776 | E78: 130536 | F78: 1776 | G78: 130536 | H78: 1776 | I78: 149184 | J78: 1776 | K78: 147408 | AH78: 1776
A79: 610-09108 | B79: PCCP FOR APPROACHES, 9 IN. | C79: S.Y. | D79: 2088 | E79: 114840 | F79: 2088 | G79: 94857.84 | H79: 2088 | I79: 93960 | J79: 2088 | K79: 124236 | AH79: 2088
A80: 611-06497 | B80: MAILBOX ASSEMBLY, SINGLE | C80: EACH | D80: 2 | E80: 430 | F80: 2 | G80: 300 | H80: 2 | I80: 430 | J80: 2 | K80: 430 | AH80: 2
A81: 611-06498 | B81: MAILBOX ASSEMBLY, DOUBLE | C81: EACH | D81: 1 | E81: 275 | F81: 1 | G81: 170 | H81: 1 | I81: 275 | J81: 1 | K81: 275 | AH81: 1
A82: 615-06490 | B82: RIGHT OF WAY MARKER | C82: EACH | D82: 61 | E82: 8357 | F82: 61 | G82: 8540 | H82: 61 | I82: 8357 | J82: 61 | K82: 8357 | AH82: 61
A83: 615-06500 | B83: MONUMENT, A | C83: EACH | D83: 2 | E83: 1300 | F83: 2 | G83: 1160 | H83: 2 | I83: 1300 | J83: 2 | K83: 1300 | AH83: 2
A84: 615-06505 | B84: MONUMENT, B | C84: EACH | D84: 6 | E84: 4530 | F84: 6 | G84: 3480 | H84: 6 | I84: 4530 | J84: 6 | K84: 4530 | AH84: 6
A85: 615-06510 | B85: MONUMENT, C | C85: EACH | D85: 2 | E85: 1110 | F85: 2 | G85: 720 | H85: 2 | I85: 1110 | J85: 2 | K85: 1110 | AH85: 2
A86: 615-06515 | B86: MONUMENT, D | C86: EACH | D86: 48 | E86: 6480 | F86: 48 | G86: 11040 | H86: 48 | I86: 6480 | J86: 48 | K86: 6480 | AH86: 48
A87: 615-06520 | B87: MONUMENT, RE ESTABLISH | C87: EACH | D87: 1 | E87: 1500 | F87: 1 | G87: 580 | H87: 1 | I87: 1500 | J87: 1 | K87: 1500 | AH87: 1
A88: 615-06535 | B88: BENCH MARK POST, RESET | C88: EACH | D88: 1 | E88: 1000 | F88: 1 | G88: 630 | H88: 1 | I88: 1000 | J88: 1 | K88: 1000 | AH88: 1
A89: 616-02320 | B89: GEOTEXTILES | C89: S.Y. | D89: 1282 | E89: 1987.1 | F89: 1282 | G89: 3051.16 | H89: 1282 | I89: 1602.5 | J89: 1282 | K89: 1602.5 | AH89: 1282
A90: 616-05688 | B90: RIPRAP, CLASS 1 | C90: TON | D90: 77 | E90: 4389 | F90: 77 | G90: 2981.44 | H90: 77 | I90: 3311 | J90: 77 | K90: 3237.85 | AH90: 77
A91: 616-06405 | B91: RIPRAP, REVETMENT | C91: TON | D91: 445 | E91: 18245 | F91: 445 | G91: 15081.05 | H91: 445 | I91: 16465 | J91: 445 | K91: 16109 | AH91: 445
A92: 616-06451 | B92: RIPRAP, UNIFORM | C92: TON | D92: 62 | E92: 2542 | F92: 62 | G92: 3204.78 | H92: 62 | I92: 2728 | J92: 62 | K92: 2672.2 | AH92: 62
A93: 619-11052 | B93: CLEAN STEEL BRIDGE, QP-2, BR. NO. , | C93: L.S. | D93: 2 | E93: 80000 | F93: 2 | G93: 100000 | H93: 2 | I93: 112000 | J93: 2 | K93: 80000 | AH93: 2
A94: 619-51859 | B94: PAINT STEEL BRIDGE , STR. NO. 2 | C94: L.S. | D94: 2 | E94: 30000 | F94: 2 | G94: 50000 | H94: 2 | I94: 10000 | J94: 2 | K94: 30000 | AH94: 2
A95: 621-01004 | B95: MOBILIZATION AND DEMOBILIZATION FOR SEEDING | C95: EACH | D95: 3 | E95: 1200 | F95: 3 | G95: 1200 | H95: 3 | I95: 1725 | J95: 3 | K95: 1200 | AH95: 3
A96: 621-02770 | B96: EROSION CONTROL BLANKET | C96: S.Y. | D96: 66315 | E96: 43104.75 | F96: 66315 | G96: 43104.75 | H96: 66315 | I96: 76262.25 | J96: 66315 | K96: 16578.75 | AH96: 66315
A97: 621-06545 | B97: FERTILIZER | C97: TON | D97: 6 | E97: 3600 | F97: 6 | G97: 3600 | H97: 6 | I97: 5910 | J97: 6 | K97: 3600 | AH97: 6
A98: 621-06553 | B98: SEED MIXTURE, R | C98: LBS | D98: 2000 | E98: 6800 | F98: 2000 | G98: 6800 | H98: 2000 | I98: 5460 | J98: 2000 | K98: 6800 | AH98: 2000
A99: 621-06557 | B99: SEED MIXTURE, T | C99: LBS | D99: 1088 | E99: 2720 | F99: 1088 | G99: 2720 | H99: 1088 | I99: 2393.6 | J99: 1088 | K99: 2720 | AH99: 1088
A100: 621-06565 | B100: MULCHING MATERIAL | C100: TON | D100: 29 | E100: 11600 | F100: 29 | G100: 11600 | H100: 29 | I100: 10005 | J100: 29 | K100: 11600 | AH100: 29
A101: 621-06567 | B101: WATER | C101: M.G. | D101: 253 | E101: 253 | F101: 253 | G101: 253 | H101: 253 | I101: 253 | J101: 253 | K101: 253 | AH101: 253
A102: 621-06574 | B102: SODDING | C102: S.Y. | D102: 3864 | E102: 11514.72 | F102: 3864 | G102: 11514.72 | H102: 3864 | I102: 12017.04 | J102: 3864 | K102: 3864 | AH102: 3864
A103: 621-06575 | B103: SODDING, NURSERY | C103: S.Y. | D103: 66315 | E103: 197618.7 | F103: 66315 | G103: 212871.15 | H103: 66315 | I103: 206239.65 | J103: 66315 | K103: 66315 | AH103: 66315
A104: 628-08524 | B104: CELLULAR TELEPHONE/RADIO, ADDITIONAL | C104: $ | D104: 1 | E104: 1 | F104: 1 | G104: 1 | H104: 1 | I104: 1 | J104: 1 | K104: 1 | AH104: 1
A105: 628-09403 | B105: FIELD OFFICE, C | C105: MONTH | D105: 15 | E105: 34500 | F105: 15 | G105: 39424.95 | H105: 15 | I105: 42000 | J105: 15 | K105: 34500 | AH105: 15
A106: 628-09407 | B106: FIELD OFFICE COMPUTER SYSTEM, | C106: MONTH | D106: 30 | E106: 3000 | F106: 30 | G106: 6000 | H106: 30 | I106: 4950 | J106: 30 | K106: 3900 | AH106: 30
A107: 628-11007 | B107: CELLULAR TELEPHONE/RADIO SERVICE, 750 | C107: MONTH | D107: 60 | E107: 6000 | F107: 60 | G107: 6000 | H107: 60 | I107: 9000 | J107: 60 | K107: 3975 | AH107: 60
A108: 628-11068 | B108: CELLULAR TELEPHONE/RADIO | C108: EACH | D108: 4 | E108: 800 | F108: 4 | G108: 400 | H108: 4 | I108: 280 | J108: 4 | K108: 400 | AH108: 4
A109: 702-51863 | B109: FIELD DRILLED HOLE IN CONCRETE | C109: EACH | D109: 158 | E109: 2686 | F109: 158 | G109: 2306.8 | H109: 158 | I109: 8690 | J109: 158 | K109: 1998.7 | AH109: 158
A110: 702-90915 | B110: CONCRETE, A | C110: C.Y. | D110: 47.4 | E110: 22515 | F110: 47.4 | G110: 34844.69 | H110: 47.4 | I110: 33180 | J110: 47.4 | K110: 42660 | AH110: 47.4
A111: 703-06029 | B111: REINFORCING BARS, EPOXY COATED | C111: LBS | D111: 3869 | E111: 7738 | F111: 3869 | G111: 4139.83 | H111: 3869 | I111: 15476 | J111: 3869 | K111: 7738 | AH111: 3869
A112: 706-09545 | B112: COARSE AGGREGATE, NO. 8 | C112: C.Y. | D112: 400 | E112: 12800 | F112: 400 | G112: 11764 | H112: 400 | I112: 18000 | J112: 400 | K112: 17560 | AH112: 400
A113: 709-51821 | B113: SURFACE SEAL | C113: L.S. | D113: 1 | E113: 9000 | F113: 1 | G113: 10000 | H113: 1 | I113: 8500 | J113: 1 | K113: 7500 | AH113: 1
A114: 714-11175 | B114: STRUCTURE, REINFORCED CONCRETE BOX | C114: L.F. | D114: 225 | E114: 123750 | F114: 225 | G114: 101250 | H114: 225 | I114: 88875 | J114: 225 | K114: 88875 | AH114: 225
A115: 714-11311 | B115: STRUCTURE, REINFORCED CONCRETE BOX | C115: L.F. | D115: 137 | E115: 99325 | F115: 137 | G115: 85625 | H115: 137 | I115: 78775 | J115: 137 | K115: 78364 | AH115: 137
A116: 715-04555 | B116: PIPE END SECTION, MIN. AREA 5.1 SQ. FT. | C116: EACH | D116: 8 | E116: 7948 | F116: 8 | G116: 5410.72 | H116: 8 | I116: 6536 | J116: 8 | K116: 6533.2 | AH116: 8
A117: 715-05032 | B117: PIPE, TYPE 2, CIRCULAR, 15 IN. | C117: L.F. | D117: 961 | E117: 25947 | F117: 961 | G117: 28666.63 | H117: 961 | I117: 35076.5 | J117: 961 | K117: 34615.22 | AH117: 961
A118: 715-05048 | B118: PIPE, TYPE 4, CIRCULAR, 6 IN. | C118: L.F. | D118: 16505 | E118: 61893.75 | F118: 16505 | G118: 53971.35 | H118: 16505 | I118: 82525 | J118: 16505 | K118: 61893.75 | AH118: 16505
A119: 715-05053 | B119: PIPE, UNDERDRAIN OUTLET, 6 IN. | C119: L.F. | D119: 775 | E119: 13950 | F119: 775 | G119: 7571.75 | H119: 775 | I119: 9300 | J119: 775 | K119: 13950 | AH119: 775
A120: 715-05121 | B120: PIPE, TYPE 1, CIRCULAR, 18 IN. | C120: L.F. | D120: 114 | E120: 3876 | F120: 114 | G120: 3930.72 | H120: 114 | I120: 4788 | J120: 114 | K120: 4738.98 | AH120: 114
A121: 715-05149 | B121: PIPE, TYPE 2, CIRCULAR, 12 IN. | C121: L.F. | D121: 210 | E121: 4830 | F121: 210 | G121: 6468 | H121: 210 | I121: 7245 | J121: 210 | K121: 7158.9 | AH121: 210
A122: 715-05152 | B122: PIPE, TYPE 2, CIRCULAR, 18 IN. | C122: L.F. | D122: 409 | E122: 13906 | F122: 409 | G122: 14981.67 | H122: 409 | I122: 16360 | J122: 409 | K122: 16024.62 | AH122: 409
A123: 715-05154 | B123: PIPE, TYPE 2, CIRCULAR, 24 IN. , SMOOTH | C123: L.F. | D123: 1037 | E123: 46665 | F123: 1037 | G123: 47836.81 | H123: 1037 | I123: 47702 | J123: 1037 | K123: 47473.86 | AH123: 1037
A124: 715-05156 | B124: PIPE, TYPE 2, CIRCULAR, 30 IN. | C124: L.F. | D124: 130 | E124: 7150 | F124: 130 | G124: 6947.2 | H124: 130 | I124: 6825 | J124: 130 | K124: 6782.1 | AH124: 130
A125: 715-05169 | B125: PIPE, TYPE 3, CIRCULAR, 15 IN. | C125: L.F. | D125: 319 | E125: 8613 | F125: 319 | G125: 8593.86 | H125: 319 | I125: 11324.5 | J125: 319 | K125: 11212.85 | AH125: 319
A126: 715-05171 | B126: PIPE, TYPE 3, CIRCULAR, 18 IN. | C126: L.F. | D126: 88 | E126: 2992 | F126: 88 | G126: 2913.68 | H126: 88 | I126: 3212 | J126: 88 | K126: 3182.08 | AH126: 88
A127: 715-05236 | B127: PIPE, TYPE 1, DEFORMED, MIN. AREA 0.47 M2 | C127: L.F. | D127: 308 | E127: 36060.64 | F127: 308 | G127: 24405.92 | H127: 308 | I127: 21868 | J127: 308 | K127: 21837.2 | AH127: 308
A128: 715-06471 | B128: PIPE END SECTION, MIN. AREA .31 M2 | C128: EACH | D128: 2 | E128: 1400 | F128: 2 | G128: 1142.68 | H128: 2 | I128: 1130 | J128: 2 | K128: 1130.08 | AH128: 2
A129: 715-08243 | B129: PIPE, TYPE 3, DEFORMED, MIN. AREA 3.3 SQ. FT. | C129: L.F. | D129: 48 | E129: 4742.88 | F129: 48 | G129: 3182.88 | H129: 48 | I129: 2736 | J129: 48 | K129: 2709.6 | AH129: 48
A130: 715-09064 | B130: VIDEO INSPECTION FOR PIPE | C130: L.F. | D130: 2792 | E130: 3490 | F130: 2792 | G130: 5584 | H130: 2792 | I130: 4188 | J130: 2792 | K130: 4048.4 | AH130: 2792
A131: 715-09769 | B131: PIPE, TYPE 3, DEFORMED, MIN. AREA 5.1 | C131: L.F. | D131: 240 | E131: 33955.2 | F131: 240 | G131: 16084.8 | H131: 240 | I131: 16440 | J131: 240 | K131: 16334.4 | AH131: 240
A132: 715-46005 | B132: PIPE END SECTION, 15 IN. | C132: EACH | D132: 14 | E132: 4858 | F132: 14 | G132: 4315.92 | H132: 14 | I132: 4704 | J132: 14 | K132: 4703.02 | AH132: 14
A133: 715-46010 | B133: PIPE END SECTION, 18 IN. | C133: EACH | D133: 5 | E133: 2000 | F133: 5 | G133: 1656.35 | H133: 5 | I133: 2010 | J133: 5 | K133: 2008.15 | AH133: 5
A134: 715-46020 | B134: PIPE END SECTION, 24 IN. | C134: EACH | D134: 4 | E134: 1900 | F134: 4 | G134: 2387.68 | H134: 4 | I134: 1872 | J134: 4 | K134: 1869.32 | AH134: 4
A135: 715-46030 | B135: PIPE END SECTION, 30 IN. | C135: EACH | D135: 1 | E135: 605 | F135: 1 | G135: 665.4 | H135: 1 | I135: 600 | J135: 1 | K135: 596.9 | AH135: 1
A136: 718-06529 | B136: OUTLET PROTECTOR, 2 | C136: EACH | D136: 6 | E136: 5100 | F136: 6 | G136: 4375.08 | H136: 6 | I136: 5100 | J136: 6 | K136: 5100 | AH136: 6
A137: 718-06531 | B137: OUTLET PROTECTOR, 3 | C137: EACH | D137: 30 | E137: 24000 | F137: 30 | G137: 21145.8 | H137: 30 | I137: 16500 | J137: 30 | K137: 24000 | AH137: =MAX(F137,H137,J137,L137,N137,P137,R137,T137,V137,X137,Z137) -> 30
A138: 718-06532 | B138: VIDEO INSPECTION FOR UNDERDRAINS | C138: L.F. | D138: 3000 | E138: 3300 | F138: 3000 | G138: 3000 | H138: 3000 | I138: 3000 | J138: 3000 | K138: 3450 | AH138: 3000
A139: 718-52610 | B139: AGGREGATE FOR UNDERDRAINS | C139: C.Y. | D139: 1496 | E139: 49368 | F139: 1496 | G139: 46420.88 | H139: 1496 | I139: 37400 | J139: 1496 | K139: 49368 | AH139: 1496
A140: 720-44000 | B140: CASTING, ADJUST TO GRADE | C140: EACH | D140: 8 | E140: 3560 | F140: 8 | G140: 5442.64 | H140: 8 | I140: 2648 | J140: 8 | K140: 2647.92 | AH140: 8
A141: 720-45025 | B141: INLET, D6 | C141: EACH | D141: 1 | E141: 2340 | F141: 1 | G141: 2046.02 | H141: 1 | I141: 1315 | J141: 1 | K141: 1315.23 | AH141: 1
A142: 720-45030 | B142: INLET, E7 | C142: EACH | D142: 1 | E142: 1400 | F142: 1 | G142: 1661.32 | H142: 1 | I142: 1105 | J142: 1 | K142: 1101.7 | AH142: 1
A143: 720-45035 | B143: INLET, F7 | C143: EACH | D143: 3 | E143: 4170 | F143: 3 | G143: 4983.93 | H143: 3 | I143: 3309 | J143: 3 | K143: 3308.4 | AH143: 3
A144: 720-45040 | B144: INLET, G7 | C144: EACH | D144: 2 | E144: 4450 | F144: 2 | G144: 4018.04 | H144: 2 | I144: 4756 | J144: 2 | K144: 4757.1 | AH144: 2
A145: 720-45140 | B145: INLET, G7, MODIFIED | C145: EACH | D145: 1 | E145: 2400 | F145: 1 | G145: 2401.09 | H145: 1 | I145: 1725 | J145: 1 | K145: 1721.49 | AH145: 1
A146: 720-45510 | B146: MANHOLE, C4, MODIFIED | C146: EACH | D146: 2 | E146: 5200 | F146: 2 | G146: 4821.52 | H146: 2 | I146: 3673 | J146: 2 | K146: 3673 | AH146: 2
A147: 720-95409 | B147: MANHOLE, J4, MODIFIED | C147: EACH | D147: 2 | E147: 6400 | F147: 2 | G147: 6966.02 | H147: 2 | I147: 3574 | J147: 2 | K147: 3574.44 | AH147: 2
A148: 720-97865 | B148: MANHOLE, C2, MODIFIED | C148: EACH | D148: 4 | E148: 14800 | F148: 4 | G148: 10519.2 | H148: 4 | I148: 8120 | J148: 4 | K148: 8121.2 | AH148: 4
A149: 720-98555 | B149: INLET, C15 | C149: EACH | D149: 1 | E149: 2075 | F149: 1 | G149: 2511.1 | H149: 1 | I149: 1777 | J149: 1 | K149: 1776.98 | AH149: 1
A150: 723-08608 | B150: WINGWALL | C150: S.F. | D150: 608 | E150: 54720 | F150: 608 | G150: 31166.08 | H150: 608 | I150: 52896 | J150: 608 | K150: 52889.92 | AH150: 608
A151: 727-90308 | B151: EPOXY INJECTION, CRACK PREPARATION | C151: L.F. | D151: 119 | E151: 4804.03 | F151: 119 | G151: 4055.52 | H151: 119 | I151: 7092.4 | J151: 119 | K151: 11067 | AH151: 119
A152: 727-90309 | B152: EPOXY INJECTION, EPOXY MATERIAL | C152: GAL | D152: 15 | E152: 810 | F152: 15 | G152: 800.1 | H152: 15 | I152: 810 | J152: 15 | K152: 1275 | AH152: 15
A153: 727-93560 | B153: EPOXY INJECTION, FURNISHING EQUIPMENT | C153: L.S. | D153: 1 | E153: 200 | F153: 1 | G153: 500 | H153: 1 | I153: 200 | J153: 1 | K153: 1875 | AH153: 1
A154: 801-02595 | B154: CONTROLLER, RESET TIMING | C154: EACH | D154: 3 | E154: 465 | F154: 3 | G154: 465 | H154: 3 | I154: 465 | J154: 3 | K154: 465 | AH154: 3
A155: 801-03290 | B155: CONSTRUCTION SIGN, C | C155: EACH | D155: 12 | E155: 1680 | F155: 12 | G155: 1536 | H155: 12 | I155: 1680 | J155: 12 | K155: 1836 | AH155: 12
A156: 801-04308 | B156: ROAD CLOSURE SIGN ASSEMBLY | C156: EACH | D156: 20 | E156: 6900 | F156: 20 | G156: 2200 | H156: 20 | I156: 6900 | J156: 20 | K156: 2640 | AH156: 20
A157: 801-06201 | B157: TEMPORARY PANEL SIGNS | C157: S.Y. | D157: 22.5 | E157: 495 | F157: 22.5 | G157: 495 | H157: 22.5 | I157: 310.5 | J157: 22.5 | K157: 495 | AH157: 22.5
A158: 801-06202 | B158: TEMPORARY PANEL SIGN SUPPORTS | C158: L.F. | D158: 56 | E158: 1120 | F158: 56 | G158: 1120 | H158: 56 | I158: 991.2 | J158: 56 | K158: 1120 | AH158: 56
A159: 801-06203 | B159: TEMPORARY PAVEMENT MARKING, 4 IN. | C159: L.F. | D159: 35000 | E159: 5950 | F159: 35000 | G159: 5600 | H159: 35000 | I159: 5950 | J159: 35000 | K159: 7700 | AH159: 35000
A160: 801-06207 | B160: TEMPORARY PAVEMENT MARKING, REMOVABLE, 4 IN. | C160: L.F. | D160: 64300 | E160: 56584 | F160: 64300 | G160: 55941 | H160: 64300 | I160: 56584 | J160: 64300 | K160: 6430 | AH160: 64300
A161: 801-06211 | B161: TEMPORARY PAVEMENT MESSAGE MARKING, REMOVABLE | C161: EACH | D161: 13 | E161: 1235 | F161: 13 | G161: 1105 | H161: 13 | I161: 1235 | J161: 13 | K161: 1495 | AH161: 13
A162: 801-06218 | B162: TEMPORARY TRANSVERSE PAVEMENT MARKING, REMOVA | C162: L.F. | D162: 377 | E162: 1885 | F162: 377 | G162: 1602.25 | H162: 377 | I162: 1885 | J162: 377 | K162: 1952.86 | AH162: 377
A163: 801-06539 | B163: TEMPORARY TRAFFIC SIGNAL INSTALLATION, MAINTA | C163: L.S. | D163: 1 | E163: 4100 | F163: 1 | G163: 4100 | H163: 1 | I163: 4100 | J163: 1 | K163: 4100 | AH163: 1
A164: 801-06625 | B164: DETOUR ROUTE MARKER ASSEMBLY | C164: EACH | D164: 15 | E164: 1335 | F164: 15 | G164: 1200 | H164: 15 | I164: 1335 | J164: 15 | K164: 1335 | AH164: 15
A165: 801-06640 | B165: CONSTRUCTION SIGN, A | C165: EACH | D165: 37 | E165: 4810 | F165: 37 | G165: 4144 | H165: 37 | I165: 4810 | J165: 37 | K165: 4773 | AH165: 37
A166: 801-06645 | B166: CONSTRUCTION SIGN, B | C166: EACH | D166: 5 | E166: 240 | F166: 5 | G166: 200 | H166: 5 | I166: 240 | J166: 5 | K166: 240 | AH166: 5
A167: 801-06710 | B167: FLASHING ARROW SIGN | C167: DAY | D167: 30 | E167: 300 | F167: 30 | G167: 300 | H167: 30 | I167: 300 | J167: 30 | K167: 300 | AH167: 30
A168: 801-06775 | B168: MAINTAINING TRAFFIC | C168: L.S. | D168: 1 | E168: 41950 | F168: 1 | G168: 150000 | H168: 1 | I168: 130000 | J168: 1 | K168: 175000 | AH168: 1
A169: 801-07023 | B169: ENERGY ABSORBIBG TERMINAL, CZ, TL-2 | C169: EACH | D169: 5 | E169: 27000 | F169: 5 | G169: 27500 | H169: 5 | I169: 34500 | J169: 5 | K169: 27000 | AH169: 5
A170: 801-07118 | B170: BARRICADE, III-A | C170: L.F. | D170: 468 | E170: 3954.6 | F170: 468 | G170: 3744 | H170: 468 | I170: 3954.6 | J170: 468 | K170: 5194.8 | AH170: 468
A171: 801-07119 | B171: BARRICADE, III-B | C171: L.F. | D171: 48 | E171: 439.2 | F171: 48 | G171: 410.4 | H171: 48 | I171: 439.2 | J171: 48 | K171: 733.44 | AH171: 48
A172: 801-08401 | B172: TEMPORARY TRAFFIC BARRIER, TYPE 2 | C172: L.F. | D172: 9260 | E172: 173625 | F172: 9260 | G172: 234370.6 | H172: 9260 | I172: 129640 | J172: 9260 | K172: 55560 | AH172: 9260
A173: 801-08508 | B173: TEMPORARY TRAFFIC BARRIER, TYPE 2, ANCHORED | C173: L.F. | D173: 252 | E173: 7560 | F173: 252 | G173: 5755.68 | H173: 252 | I173: 3780 | J173: 252 | K173: 1764 | AH173: 252
A174: 801-94295 | B174: SIGNAL HEAD, RELOCATE | C174: EACH | D174: 32 | E174: 4160 | F174: 32 | G174: 4160 | H174: 32 | I174: 4160 | J174: 32 | K174: 4160 | AH174: 32
A175: 802-05701 | B175: SIGN POST, SQUARE, 1, REINFORCED ANCHOR | C175: L.F. | D175: 765.5 | E175: 8650.15 | F175: 765.5 | G175: 8650.15 | H175: 765.5 | I175: 8650.15 | J175: 765.5 | K175: 8650.15 | AH175: 765.5
A176: 802-05702 | B176: SIGN POST SQUARE, 2, REINFORCED ANCHOR BASE | C176: L.F. | D176: 211.25 | E176: 2461.06 | F176: 211.25 | G176: 2461.06 | H176: 211.25 | I176: 2461.06 | J176: 211.25 | K176: 2461.06 | AH176: 211.25
A177: 802-07057 | B177: SIGN, PANEL, WITH LEGEND | C177: S.F. | D177: 899 | E177: 17980 | F177: 899 | G177: 17980 | H177: 899 | I177: 17980 | J177: 899 | K177: 17980 | AH177: 899
A178: 802-07151 | B178: WIDE FLANGE SIGN POST SUPPORT FOUNDATION, VII | C178: EACH | D178: 10 | E178: 3750 | F178: 10 | G178: 3750 | H178: 10 | I178: 3750 | J178: 10 | K178: 3750 | AH178: 10
A179: 802-08456 | B179: WIDE FLANGE SIGN POST SUPPORT FOUNDATION, VII | C179: EACH | D179: 12 | E179: 4620 | F179: 12 | G179: 4620 | H179: 12 | I179: 4620 | J179: 12 | K179: 4620 | AH179: 12
A180: 802-09578 | B180: OVERHEAD SIGN STRUCTURE, CANTILEVER, | C180: EACH | D180: 2 | E180: 69000 | F180: 2 | G180: 69000 | H180: 2 | I180: 69000 | J180: 2 | K180: 69000 | AH180: 2
A181: 802-09581 | B181: CANTILEVER SIGN SUPPORT FOUNDATION, | C181: EACH | D181: 2 | E181: 15600 | F181: 2 | G181: 15600 | H181: 2 | I181: 15600 | J181: 2 | K181: 15600 | AH181: 2
A182: 802-09838 | B182: SIGN, SHEET, WITH LEGEND 0.08 IN. | C182: S.F. | D182: 504.78 | E182: 7571.7 | F182: 504.78 | G182: 7571.7 | H182: 504.78 | I182: 7571.7 | J182: 504.78 | K182: 7571.7 | AH182: 504.78
A183: 802-09840 | B183: SIGN, SHEET, WITH LEGEND 0.100 IN | C183: S.F. | D183: 104.1 | E183: 1873.8 | F183: 104.1 | G183: 1873.8 | H183: 104.1 | I183: 1873.8 | J183: 104.1 | K183: 1873.8 | AH183: 104.1
A184: 802-09842 | B184: SIGN, SHEET, WITH LEGEND 0.125 IN | C184: S.F. | D184: 78 | E184: 1404 | F184: 78 | G184: 1404 | H184: 78 | I184: 1404 | J184: 78 | K184: 1404 | AH184: 78
A185: 802-74040 | B185: SIGN AND SUPPORTS, WIDE FLANGE, REMOVE | C185: EACH | D185: 6 | E185: 1050 | F185: 6 | G185: 1050 | H185: 6 | I185: 1050 | J185: 6 | K185: 1050 | AH185: 6
A186: 802-76095 | B186: STRUCTURAL STEEL, BREAKAWAY | C186: LBS | D186: 4874 | E186: 19496 | F186: 4874 | G186: 19496 | H186: 4874 | I186: 19496 | J186: 4874 | K186: 19496 | AH186: 4874
A187: 804-06771 | B187: DELINEATOR POST, FLEXIBLE | C187: EACH | D187: 50 | E187: 1750 | F187: 50 | G187: 1650 | H187: 50 | I187: 2000 | J187: 50 | K187: 1750 | AH187: 50
A188: 805-01300 | B188: TRAFFIC SIGNAL EQUIPMENT, REMOVE | C188: EACH | D188: 2 | E188: 3600 | F188: 2 | G188: 3600 | H188: 2 | I188: 3600 | J188: 2 | K188: 3600 | AH188: 2
A189: 805-01815 | B189: SIGNAL SUPPORT FOUNDATION, 3 FT. X 12 FT. | C189: EACH | D189: 10 | E189: 20100 | F189: 10 | G189: 20100 | H189: 10 | I189: 20100 | J189: 10 | K189: 20100 | AH189: 10
A190: 805-01842 | B190: HANDHOLE, SIGNAL | C190: EACH | D190: 21 | E190: 14700 | F190: 21 | G190: 14700 | H190: 21 | I190: 14700 | J190: 21 | K190: 14700 | AH190: 21
A191: 805-01843 | B191: SIGNAL HANDHOLE ADJUST TO GRADE | C191: EACH | D191: 4 | E191: 1200 | F191: 4 | G191: 1200 | H191: 4 | I191: 1200 | J191: 4 | K191: 1200 | AH191: 4
A192: 805-01844 | B192: GALVANIZED STEEL CONDUIT, 2 IN., UNDERGROUND | C192: L.F. | D192: 4042 | E192: 44462 | F192: 4042 | G192: 44462 | H192: 4042 | I192: 44462 | J192: 4042 | K192: 44462 | AH192: 4042
A193: 805-02087 | B193: TRANSPORTATION OF SALVAGEABLE SIGNAL EQUIPMEN | C193: L.S. | D193: 1 | E193: 500 | F193: 1 | G193: 500 | H193: 1 | I193: 500 | J193: 1 | K193: 500 | AH193: 1
A194: 805-02373 | B194: INTERCONNECT CABLE, FIBER OPTIC | C194: L.F. | D194: 2057 | E194: 5348.2 | F194: 2057 | G194: 5348.2 | H194: 2057 | I194: 5348.2 | J194: 2057 | K194: 5348.2 | AH194: 2057
A195: 805-09539 | B195: LOOP DETECTOR DELAY COUNTING AMPLIFIER, | C195: EACH | D195: 2 | E195: 2200 | F195: 2 | G195: 2200 | H195: 2 | I195: 2200 | J195: 2 | K195: 2200 | AH195: 2
A196: 805-78109 | B196: CONTROLLER AND CABINET, SECONDARY, MENU DRIVE | C196: EACH | D196: 1 | E196: 13900 | F196: 1 | G196: 13900 | H196: 1 | I196: 13900 | J196: 1 | K196: 13900 | AH196: 1
A197: 805-78205 | B197: TRAFFIC SIGNAL HEAD, 3 FACE, 12.20 IN. RED, A | C197: EACH | D197: 20 | E197: 15540 | F197: 20 | G197: 15540 | H197: 20 | I197: 15540 | J197: 20 | K197: 15540 | AH197: 20
A198: 805-78230 | B198: TRAFFIC SIGNAL HEAD, 5 FACE, 12.20 IN. RED, A | C198: EACH | D198: 4 | E198: 4800 | F198: 4 | G198: 4800 | H198: 4 | I198: 4800 | J198: 4 | K198: 4800 | AH198: 4
A199: 805-78415 | B199: SPAN CATENARY AND TETHER | C199: EACH | D199: 10 | E199: 17400 | F199: 10 | G199: 17400 | H199: 10 | I199: 17400 | J199: 10 | K199: 17400 | AH199: 10
A200: 805-78420 | B200: DISCONNECT HANGER | C200: EACH | D200: 10 | E200: 3400 | F200: 10 | G200: 3400 | H200: 10 | I200: 3400 | J200: 10 | K200: 3400 | AH200: 10
... 574 more rows

Sheet Result
C1: Enter Data
B2: Contract No. | C2: 30201 | M2: X | N2: =IF(VLOOKUP(M2,A9:C23,3,FALSE)="",C9,VLOOKUP(M2,A9:C23,3,FALSE)) -> 10152470.02
B3: Letting Date | C3: 2012-01-12
B4: CN Estimate | C4: 8223570.01
B5: Engineer Estimate | C5: 9530300
B6: Project Manager | C6: Jim
A7: =IF(A25>1,"Only One Contractor Can Be Awarded","") -> 
A8: Awarded X | B8: Contractor Name | C8: $ Total Bid | D8: % Over Low Bid | E8: Vs CN Estimate | F8: Vs Eng. Est. | G8: Comment
A9: X | B9: =IF('UT All'!E$3="","",'UT All'!E$3) -> 01. Superior Construction Company | C9: =IF('UT All'!$F$3="","",'UT All'!$F$3) -> 10152470.02 | D9: =IF(C9="","",IF($A$25>0,C9/$N$2,C9/$C$9)) -> 1 | E9: =IF(ISTEXT($C$4)=TRUE,"",IF(OR(C9=0,$C$4=0,$C$4=""),"",C9/$C$4-1)) -> 0.2345574985 | F9: =IF(ISTEXT($C$5)=TRUE,"",IF(OR(C9=0,$C$5=0,$C$5=""),"",C9/$C$5-1)) -> 0.06528336149 | H9: =A9 -> X
B10: =IF('UT All'!G$3="","",'UT All'!G$3) -> 02. Walsh Construction Company Ii Llc | C10: =IF('UT All'!$H$3="","",'UT All'!$H$3) -> 10364675.84 | D10: 1.020901891 | E10: 0.2603620845 | F10: 0.08754979801 | H10: =A10 -> 0
B11: =IF('UT All'!I$3="","",'UT All'!I$3) -> 03. Milestone Contractors, L.P. | C11: =IF('UT All'!$J$3="","",'UT All'!$J$3) -> 10578000 | D11: 1.041913936 | E11: 0.2863026626 | F11: 0.1099335803 | H11: 0
B12: =IF('UT All'!K$3="","",'UT All'!K$3) -> 04. Rieth-Riley Construction | C12: =IF('UT All'!$L$3="","",'UT All'!$L$3) -> 11550412.12 | D12: 1.137694777 | E12: 0.4045496185 | F12: 0.2119673169 | H12: 0
B13: =IF('UT All'!M$3="","",'UT All'!M$3) -> 0 | C13: =IF('UT All'!$N$3="","",'UT All'!$N$3) -> 0 | D13: 0 | H13: 0
B14: =IF('UT All'!O$3="","",'UT All'!O$3) -> 0 | C14: =IF('UT All'!$P$3="","",'UT All'!$P$3) -> 0 | D14: 0 | H14: 0
B15: =IF('UT All'!Q$3="","",'UT All'!Q$3) -> 0 | C15: =IF('UT All'!$R$3="","",'UT All'!$R$3) -> 0 | D15: 0 | H15: 0
B16: =IF('UT All'!S$3="","",'UT All'!S$3) -> 0 | C16: =IF('UT All'!$T$3="","",'UT All'!$T$3) -> 0 | D16: 0 | H16: 0
B17: =IF('UT All'!U$3="","",'UT All'!U$3) -> 0 | C17: =IF('UT All'!$V$3="","",'UT All'!$V$3) -> 0 | D17: 0 | H17: 0
B18: =IF('UT All'!W$3="","",'UT All'!W$3) -> 0 | C18: =IF('UT All'!$X$3="","",'UT All'!$X$3) -> 0 | D18: 0 | H18: 0
B19: =IF('UT All'!Y$3="","",'UT All'!Y$3) -> 0 | C19: =IF('UT All'!$Z$3="","",'UT All'!$Z$3) -> 0 | D19: 0 | H19: 0
B20: =IF('UT All'!AA$3="","",'UT All'!AA$3) -> 0 | C20: =IF('UT All'!$AB$3="","",'UT All'!$AB$3) -> 0 | D20: 0 | H20: 0
B21: =IF('UT All'!AA$3="","",'UT All'!AC$3) -> 0 | C21: =IF('UT All'!$AB$3="","",'UT All'!$AD$3) -> 0 | D21: 0 | E21: =IF(ISTEXT($C$4)=TRUE,"",IF(OR(C21=0,$C$4=0,$C$4=""),"",C21/$C$4-1)) ->  | F21: =IF(ISTEXT($C$5)=TRUE,"",IF(OR(C21=0,$C$5=0,$C$5=""),"",C21/$C$5-1)) ->  | H21: =A21 -> 0
B22: =IF('UT All'!AA$3="","",'UT All'!AE$3) -> 0 | C22: =IF('UT All'!$AB$3="","",'UT All'!$AF$3) -> 0 | D22: 0 | H22: 0
B23: =IF('UT All'!AA$3="","",'UT All'!AG$3) -> 0 | C23: =IF('UT All'!$AB$3="","",'UT All'!$AH$3) -> 0 | D23: 0 | H23: 0
A25: =COUNTIF(A9:A23,"X") -> 1 | C25: =COUNT(C9:C23) -> 15

Sheet Start
A1: JOB_NO | B1: PAY_ITEM | C1: PI_DESC | D1: QUANTITY | E1: CODE | F1: UNIT | G1: UNIT_PRC | H1: EXTENSION | Q1: JOB_NO | R1: PAY_ITEM | S1: PI_DESC | T1: QUANTITY | U1: CODE | V1: UNIT | W1: UNIT_PRC | X1: EXTENSION
A2: 35-1035114 | C2: SUPERIOR CONSTRUCTION COMPANY | D2: 1 | E2: 0 | G2: 0 | H2: 0
B3: 105-06845 | C3: CONSTRUCTION ENGINEERING | D3: 1 | E3: 0 | F3: L.S. | G3: 296000 | H3: 296000
B4: 105-09645 | C4: CONSTRUCTION ENGINEERING AND INSPECTION | D4: 1 | E4: 0 | F4: L.S. | G4: 12000 | H4: 12000
B5: 109-08359 | C5: LIQUIDATED DAMAGES | D5: 1 | E5: 0 | F5: $ | G5: 1 | H5: 1
B6: 109-08360 | C6: CONTRACT LIENS | D6: 1 | E6: 0 | F6: $ | G6: 1 | H6: 1
B7: 109-08443 | C7: QUALITY ADJUSTMENTS, TEMPORARY TRAFFIC CONTRO | D7: 1 | E7: 0 | F7: $ | G7: 1 | H7: 1
B8: 109-08444 | C8: QUALITY ADJUSTMENTS, FAILED MATERIALS | D8: 1 | E8: 0 | F8: $ | G8: 1 | H8: 1
B9: 109-08463 | C9: PROJECT ESTIMATE ADJUSTMENT | D9: 1 | E9: 0 | F9: $ | G9: 1 | H9: 1
B10: 109-09377 | C10: QUALITY ADJUSTMENT, PAVEMENT TRAFFIC | D10: 1 | E10: 0 | F10: $ | G10: 1 | H10: 1
B11: 109-09489 | C11: PAYMENT ADJUSTMENT, PG ASPHALT BINDER | D11: 1 | E11: 0 | F11: $ | G11: 1 | H11: 1
B12: 110-01001 | C12: MOBILIZATION AND DEMOBILIZATION | D12: 1 | E12: 0 | F12: L.S. | G12: 532000 | H12: 532000
B13: 201-52370 | C13: CLEARING RIGHT OF WAY | D13: 1 | E13: 0 | F13: L.S. | G13: 200000 | H13: 200000
B14: 201-90788 | C14: DEBRIS, REMOVE | D14: 1 | E14: 0 | F14: L.S. | G14: 12000 | H14: 12000
B15: 202-02240 | C15: PAVEMENT, REMOVE | D15: 28674 | E15: 0 | F15: S.Y. | G15: 7.5 | H15: 215055
B16: 202-02271 | C16: HEADWALL, REMOVE | D16: 16 | E16: 0 | F16: EACH | G16: 400 | H16: 6400
B17: 202-02272 | C17: PAVED SIDE DITCH, REMOVE | D17: 344 | E17: 0 | F17: L.F. | G17: 20 | H17: 6880
B18: 202-02279 | C18: CURB AND GUTTER, REMOVE | D18: 961 | E18: 0 | F18: L.F. | G18: 12 | H18: 11532
B19: 202-74045 | C19: SIGNS AND SUPPORTS, CHANNEL POSTS, REMOVE | D19: 74 | E19: 0 | F19: EACH | G19: 30 | H19: 2220
B20: 202-74080 | C20: OVERHEAD SIGN STRUCTURE, CANTILEVER, REMOVE | D20: 2 | E20: 0 | F20: EACH | G20: 1600 | H20: 3200
B21: 202-82066 | C21: SIGN CIRCUITRY, CANTILEVERS, REMOVE | D21: 2 | E21: 0 | F21: EACH | G21: 250 | H21: 500
B22: 202-86946 | C22: HANDHOLE, REMOVE | D22: 3 | E22: 0 | F22: EACH | G22: 125 | H22: 375
B23: 202-93763 | C23: LIGHT STANDARD AND FOUNDATION,REMOVE | D23: 8 | E23: 0 | F23: EACH | G23: 350 | H23: 2800
B24: 202-96035 | C24: CONCRETE WALL, REMOVE | D24: 20 | E24: 0 | F24: L.F. | G24: 100 | H24: 2000
B25: 202-96133 | C25: PIPE, REMOVE | D25: 1108 | E25: 0 | F25: L.F. | G25: 2 | H25: 2216
B26: 202-99187 | C26: FENCE, FARM FIELD, REMOVE | D26: 2579 | E26: 0 | F26: L.F. | G26: 2.75 | H26: 7092.25
B27: 203-02000 | C27: EXCAVATION, COMMON | D27: 41965 | E27: 0 | F27: C.Y. | G27: 8 | H27: 335720
B28: 203-02070 | C28: BORROW | D28: 9115 | E28: 0 | F28: C.Y. | G28: 0.01 | H28: 91.15
B29: 205-03371 | C29: SEDIMENT REMOVE | D29: 2051 | E29: 0 | F29: C.Y. | G29: 10 | H29: 20510
B30: 205-06931 | C30: TEMPORARY CHECK DAM, REVETMENT RIPRAP | D30: 253 | E30: 0 | F30: TON | G30: 65 | H30: 16445
B31: 205-06932 | C31: TEMPORARY CHECK DAM, STRAW BALES | D31: 402 | E31: 0 | F31: L.F. | G31: 15 | H31: 6030
B32: 205-06933 | C32: TEMPORARY DITCH INLET PROTECTION | D32: 7 | E32: 0 | F32: EACH | G32: 120 | H32: 840
B33: 205-06934 | C33: TEMPORARY MULCHING | D33: 73 | E33: 0 | F33: TON | G33: 400 | H33: 29200
B34: 205-06936 | C34: TEMPORARY SEDIMENT TRAP | D34: 20 | E34: 0 | F34: TON | G34: 82 | H34: 1640
B35: 205-06937 | C35: TEMPORARY SILT FENCE | D35: 18458 | E35: 0 | F35: L.F. | G35: 1.5 | H35: 27687
B36: 205-09543 | C36: NO 2 STONE | D36: 150 | E36: 0 | F36: TON | G36: 55 | H36: 8250
B37: 207-08263 | C37: SUBGRADE TREATMENT, TYPE IA | D37: 102662 | E37: 0 | F37: S.Y. | G37: 4.5 | H37: 461979
B38: 207-08263 | C38: SUBGRADE TREATMENT, TYPE IA | D38: 9100 | E38: 0 | F38: S.Y. | G38: 15 | H38: 136500
B39: 207-08267 | C39: SUBGRADE TREATMENT, TYPE IIIA | D39: 5305 | E39: 0 | F39: S.Y. | G39: 8 | H39: 42440
B40: 211-09264 | C40: STRUCTURE BACKFILL, TYPE 1 | D40: 900 | E40: 0 | F40: C.Y. | G40: 3 | H40: 2700
B41: 211-09265 | C41: STRUCTURE BACKFILL, TYPE 2 | D41: 1251 | E41: 0 | F41: C.Y. | G41: 25 | H41: 31275
B42: 213-09269 | C42: FLOWABLE BACKFILL, NON-REMOVEABLE | D42: 613 | E42: 0 | F42: C.Y. | G42: 80 | H42: 49040
B43: 301-07448 | C43: COMPACTED AGGREGATE, NO. 53, BASE | D43: 7516 | E43: 0 | F43: TON | G43: 17 | H43: 127772
B44: 302-06464 | C44: SUBBASE FOR PCCP | D44: 24464 | E44: 0 | F44: C.Y. | G44: 37.5 | H44: 917400
B45: 303-08210 | C45: COMPACTED AGGREGATE NO. 53, TEMPORARY FOR DRI | D45: 30 | E45: 0 | F45: TON | G45: 75 | H45: 2250
B46: 306-08034 | C46: MILLING, ASPHALT, 1 1/2 IN. | D46: 3039 | E46: 0 | F46: S.Y. | G46: 3 | H46: 9117
B47: 402-07784 | C47: HMA SURFACE, TYPE D | D47: 268 | E47: 0 | F47: TON | G47: 87.75 | H47: 23517
B48: 402-07785 | C48: HMA INTERMEDIATE, TYPE D | D48: 67 | E48: 0 | F48: TON | G48: 89.85 | H48: 6019.95
B49: 402-10083 | C49: HMA FOR TEMPORARY PAVEMENT, A | D49: 2241 | E49: 0 | F49: TON | G49: 68.84 | H49: 154270.44
B50: 501-06321 | C50: QC/QA PCCP, 10 IN. | D50: 93599 | E50: 0 | F50: S.Y. | G50: 33.9 | H50: 3173006.1
B51: 503-05240 | C51: D-1 CONTRACTION JOINT | D51: 53189 | E51: 0 | F51: L.F. | G51: 9 | H51: 478701
B52: 601-01522 | C52: GUARDRAIL TRANSITION TYPE TGB | D52: 2 | E52: 0 | F52: EACH | G52: 2100 | H52: 4200
B53: 601-01701 | C53: GUARDRAIL TERMINAL SYSTEM, W BEAM, CURVED, 2 | D53: 2 | E53: 0 | F53: EACH | G53: 1865 | H53: 3730
B54: 601-01848 | C54: GUARDRAIL TERMINAL SYSTEM, W-BEAM, CURVED, 5 | D54: 1 | E54: 0 | F54: EACH | G54: 2065 | H54: 2065
B55: 601-02241 | C55: GUARDRAIL, REMOVE | D55: 1325 | E55: 0 | F55: L.F. | G55: 4.5 | H55: 5962.5
B56: 601-05071 | C56: GUARDRAIL TERMINAL SYSTEM, W-BEAM, CURVED, 7 | D56: 1 | E56: 0 | F56: EACH | G56: 2500 | H56: 2500
B57: 601-06854 | C57: GUARDRAIL, W-BEAM, NESTED | D57: 5 | E57: 0 | F57: EACH | G57: 2800 | H57: 14000
B58: 601-08433 | C58: GUARDRAIL END TREATMENT, TYPE OS, SPARE PARTS | D58: 1 | E58: 0 | F58: EACH | G58: 610 | H58: 610
B59: 601-08434 | C59: GUARDRAIL END TREATMENT, TYPE OS, SPARE PARTS | D59: 1 | E59: 0 | F59: EACH | G59: 110 | H59: 110
B60: 601-09149 | C60: IMPACT ATTENUATOR, CR1, W1, TL-3 | D60: 2 | E60: 0 | F60: EACH | G60: 33300 | H60: 66600
B61: 601-94689 | C61: GUARDRAIL END TREATMENT, OS | D61: 15 | E61: 0 | F61: EACH | G61: 2635 | H61: 39525
B62: 601-99105 | C62: GUARDRAIL, W BEAM, 6 FT. 3 IN. SPACING | D62: 3583 | E62: 0 | F62: L.F. | G62: 18.75 | H62: 67181.25
B63: 601-99123 | C63: GUARDRAIL TRANSITION, GP | D63: 4 | E63: 0 | F63: EACH | G63: 3100 | H63: 12400
B64: 603-06040 | C64: FENCE, FARM FIELD, 47 IN. | D64: 2579 | E64: 0 | F64: L.F. | G64: 7.25 | H64: 18697.75
B65: 605-06090 | C65: CURB, INTEGRAL, CONCRETE | D65: 217 | E65: 0 | F65: L.F. | G65: 14 | H65: 3038
B66: 605-06121 | C66: CURB, CONCRETE, B | D66: 1442 | E66: 0 | F66: L.F. | G66: 15 | H66: 21630
B67: 605-06140 | C67: CURB AND GUTTER, CONCRETE | D67: 42 | E67: 0 | F67: L.F. | G67: 21 | H67: 882
B68: 605-06145 | C68: CURB AND GUTTER, B, CONCRETE | D68: 177 | E68: 0 | F68: L.F. | G68: 20 | H68: 3540
B69: 605-06245 | C69: CENTER CURB, B, CONCRETE | D69: 4255 | E69: 0 | F69: S.Y. | G69: 36 | H69: 153180
B70: 610-07487 | C70: HMA FOR APPROACHES, TYPE B | D70: 1776 | E70: 0 | F70: TON | G70: 73.5 | H70: 130536
B71: 610-09108 | C71: PCCP FOR APPROACHES, 9 IN. | D71: 2088 | E71: 0 | F71: S.Y. | G71: 55 | H71: 114840
B72: 611-06497 | C72: MAILBOX ASSEMBLY, SINGLE | D72: 2 | E72: 0 | F72: EACH | G72: 215 | H72: 430
B73: 611-06498 | C73: MAILBOX ASSEMBLY, DOUBLE | D73: 1 | E73: 0 | F73: EACH | G73: 275 | H73: 275
B74: 615-06490 | C74: RIGHT OF WAY MARKER | D74: 61 | E74: 0 | F74: EACH | G74: 137 | H74: 8357
B75: 615-06500 | C75: MONUMENT, A | D75: 2 | E75: 0 | F75: EACH | G75: 650 | H75: 1300
B76: 615-06505 | C76: MONUMENT, B | D76: 6 | E76: 0 | F76: EACH | G76: 755 | H76: 4530
B77: 615-06510 | C77: MONUMENT, C | D77: 2 | E77: 0 | F77: EACH | G77: 555 | H77: 1110
B78: 615-06515 | C78: MONUMENT, D | D78: 48 | E78: 0 | F78: EACH | G78: 135 | H78: 6480
B79: 615-06520 | C79: MONUMENT, RE ESTABLISH | D79: 1 | E79: 0 | F79: EACH | G79: 1500 | H79: 1500
B80: 615-06535 | C80: BENCH MARK POST, RESET | D80: 1 | E80: 0 | F80: EACH | G80: 1000 | H80: 1000
B81: 616-02320 | C81: GEOTEXTILES | D81: 1282 | E81: 0 | F81: S.Y. | G81: 1.55 | H81: 1987.1
B82: 616-05688 | C82: RIPRAP, CLASS 1 | D82: 77 | E82: 0 | F82: TON | G82: 57 | H82: 4389
B83: 616-06405 | C83: RIPRAP, REVETMENT | D83: 445 | E83: 0 | F83: TON | G83: 41 | H83: 18245
B84: 616-06451 | C84: RIPRAP, UNIFORM | D84: 62 | E84: 0 | F84: TON | G84: 41 | H84: 2542
B85: 619-11052 | C85: CLEAN STEEL BRIDGE, QP-2, BR. NO. , | D85: 1 | E85: 0 | F85: L.S. | G85: 40000 | H85: 40000
B86: 619-11052 | C86: CLEAN STEEL BRIDGE, QP-2, BR. NO. , | D86: 1 | E86: 0 | F86: L.S. | G86: 40000 | H86: 40000
B87: 619-51859 | C87: PAINT STEEL BRIDGE , STR. NO. 2 | D87: 1 | E87: 0 | F87: L.S. | G87: 15000 | H87: 15000
B88: 619-51859 | C88: PAINT STEEL BRIDGE , STR. NO. 2 | D88: 1 | E88: 0 | F88: L.S. | G88: 15000 | H88: 15000
B89: 621-01004 | C89: MOBILIZATION AND DEMOBILIZATION FOR SEEDING | D89: 3 | E89: 0 | F89: EACH | G89: 400 | H89: 1200
B90: 621-02770 | C90: EROSION CONTROL BLANKET | D90: 66315 | E90: 0 | F90: S.Y. | G90: 0.65 | H90: 43104.75
B91: 621-06545 | C91: FERTILIZER | D91: 6 | E91: 0 | F91: TON | G91: 600 | H91: 3600
B92: 621-06557 | C92: SEED MIXTURE, T | D92: 1088 | E92: 0 | F92: LBS | G92: 2.5 | H92: 2720
B93: 621-06565 | C93: MULCHING MATERIAL | D93: 29 | E93: 0 | F93: TON | G93: 400 | H93: 11600
B94: 621-06567 | C94: WATER | D94: 253 | E94: 0 | F94: M.G. | G94: 1 | H94: 253
B95: 621-06574 | C95: SODDING | D95: 3864 | E95: 0 | F95: S.Y. | G95: 2.98 | H95: 11514.72
B96: 621-06575 | C96: SODDING, NURSERY | D96: 66315 | E96: 0 | F96: S.Y. | G96: 2.98 | H96: 197618.7
B97: 628-08524 | C97: CELLULAR TELEPHONE/RADIO, ADDITIONAL | D97: 1 | E97: 0 | F97: $ | G97: 1 | H97: 1
B98: 628-09403 | C98: FIELD OFFICE, C | D98: 15 | E98: 0 | F98: MONTH | G98: 2300 | H98: 34500
B99: 628-09407 | C99: FIELD OFFICE COMPUTER SYSTEM, | D99: 30 | E99: 0 | F99: MONTH | G99: 100 | H99: 3000
B100: 628-11007 | C100: CELLULAR TELEPHONE/RADIO SERVICE, 750 | D100: 60 | E100: 0 | F100: MONTH | G100: 100 | H100: 6000
B101: 628-11068 | C101: CELLULAR TELEPHONE/RADIO | D101: 4 | E101: 0 | F101: EACH | G101: 200 | H101: 800
B102: 702-51863 | C102: FIELD DRILLED HOLE IN CONCRETE | D102: 158 | E102: 0 | F102: EACH | G102: 17 | H102: 2686
B103: 702-90915 | C103: CONCRETE, A | D103: 47.4 | E103: 0 | F103: C.Y. | G103: 475 | H103: 22515
B104: 703-06029 | C104: REINFORCING BARS, EPOXY COATED | D104: 3869 | E104: 0 | F104: LBS | G104: 2 | H104: 7738
B105: 706-09545 | C105: COARSE AGGREGATE, NO. 8 | D105: 400 | E105: 0 | F105: C.Y. | G105: 32 | H105: 12800
B106: 709-51821 | C106: SURFACE SEAL | D106: 1 | E106: 0 | F106: L.S. | G106: 9000 | H106: 9000
B107: 714-11175 | C107: STRUCTURE, REINFORCED CONCRETE BOX | D107: 225 | E107: 0 | F107: L.F. | G107: 550 | H107: 123750
B108: 714-11311 | C108: STRUCTURE, REINFORCED CONCRETE BOX | D108: 137 | E108: 0 | F108: L.F. | G108: 725 | H108: 99325
B109: 715-04555 | C109: PIPE END SECTION, MIN. AREA 5.1 SQ. FT. | D109: 8 | E109: 0 | F109: EACH | G109: 993.5 | H109: 7948
B110: 715-05032 | C110: PIPE, TYPE 2, CIRCULAR, 15 IN. | D110: 961 | E110: 0 | F110: L.F. | G110: 27 | H110: 25947
B111: 715-05048 | C111: PIPE, TYPE 4, CIRCULAR, 6 IN. | D111: 16505 | E111: 0 | F111: L.F. | G111: 3.75 | H111: 61893.75
B112: 715-05053 | C112: PIPE, UNDERDRAIN OUTLET, 6 IN. | D112: 775 | E112: 0 | F112: L.F. | G112: 18 | H112: 13950
B113: 715-05121 | C113: PIPE, TYPE 1, CIRCULAR, 18 IN. | D113: 114 | E113: 0 | F113: L.F. | G113: 34 | H113: 3876
B114: 715-05149 | C114: PIPE, TYPE 2, CIRCULAR, 12 IN. | D114: 210 | E114: 0 | F114: L.F. | G114: 23 | H114: 4830
B115: 715-05152 | C115: PIPE, TYPE 2, CIRCULAR, 18 IN. | D115: 409 | E115: 0 | F115: L.F. | G115: 34 | H115: 13906
B116: 715-05154 | C116: PIPE, TYPE 2, CIRCULAR, 24 IN. , SMOOTH | D116: 1037 | E116: 0 | F116: L.F. | G116: 45 | H116: 46665
B117: 715-05156 | C117: PIPE, TYPE 2, CIRCULAR, 30 IN. | D117: 130 | E117: 0 | F117: L.F. | G117: 55 | H117: 7150
B118: 715-05169 | C118: PIPE, TYPE 3, CIRCULAR, 15 IN. | D118: 319 | E118: 0 | F118: L.F. | G118: 27 | H118: 8613
B119: 715-05171 | C119: PIPE, TYPE 3, CIRCULAR, 18 IN. | D119: 88 | E119: 0 | F119: L.F. | G119: 34 | H119: 2992
B120: 715-05236 | C120: PIPE, TYPE 1, DEFORMED, MIN. AREA 0.47 M2 | D120: 308 | E120: 0 | F120: L.F. | G120: 117.08 | H120: 36060.64
B121: 715-06471 | C121: PIPE END SECTION, MIN. AREA .31 M2 | D121: 2 | E121: 0 | F121: EACH | G121: 700 | H121: 1400
B122: 715-08243 | C122: PIPE, TYPE 3, DEFORMED, MIN. AREA 3.3 SQ. FT. | D122: 48 | E122: 0 | F122: L.F. | G122: 98.81 | H122: 4742.88
B123: 715-09064 | C123: VIDEO INSPECTION FOR PIPE | D123: 2792 | E123: 0 | F123: L.F. | G123: 1.25 | H123: 3490
B124: 715-09769 | C124: PIPE, TYPE 3, DEFORMED, MIN. AREA 5.1 | D124: 240 | E124: 0 | F124: L.F. | G124: 141.48 | H124: 33955.2
B125: 715-46005 | C125: PIPE END SECTION, 15 IN. | D125: 14 | E125: 0 | F125: EACH | G125: 347 | H125: 4858
B126: 715-46010 | C126: PIPE END SECTION, 18 IN. | D126: 5 | E126: 0 | F126: EACH | G126: 400 | H126: 2000
B127: 715-46020 | C127: PIPE END SECTION, 24 IN. | D127: 4 | E127: 0 | F127: EACH | G127: 475 | H127: 1900
B128: 715-46030 | C128: PIPE END SECTION, 30 IN. | D128: 1 | E128: 0 | F128: EACH | G128: 605 | H128: 605
B129: 718-06529 | C129: OUTLET PROTECTOR, 2 | D129: 6 | E129: 0 | F129: EACH | G129: 850 | H129: 5100
B130: 718-06531 | C130: OUTLET PROTECTOR, 3 | D130: 30 | E130: 0 | F130: EACH | G130: 800 | H130: 24000
B131: 718-06532 | C131: VIDEO INSPECTION FOR UNDERDRAINS | D131: 3000 | E131: 0 | F131: L.F. | G131: 1.1 | H131: 3300
B132: 718-52610 | C132: AGGREGATE FOR UNDERDRAINS | D132: 1496 | E132: 0 | F132: C.Y. | G132: 33 | H132: 49368
B133: 720-44000 | C133: CASTING, ADJUST TO GRADE | D133: 8 | E133: 0 | F133: EACH | G133: 445 | H133: 3560
B134: 720-45025 | C134: INLET, D6 | D134: 1 | E134: 0 | F134: EACH | G134: 2340 | H134: 2340
B135: 720-45030 | C135: INLET, E7 | D135: 1 | E135: 0 | F135: EACH | G135: 1400 | H135: 1400
B136: 720-45035 | C136: INLET, F7 | D136: 3 | E136: 0 | F136: EACH | G136: 1390 | H136: 4170
B137: 720-45040 | C137: INLET, G7 | D137: 2 | E137: 0 | F137: EACH | G137: 2225 | H137: 4450
B138: 720-45510 | C138: MANHOLE, C4, MODIFIED | D138: 2 | E138: 0 | F138: EACH | G138: 2600 | H138: 5200
B139: 720-95409 | C139: MANHOLE, J4, MODIFIED | D139: 2 | E139: 0 | F139: EACH | G139: 3200 | H139: 6400
B140: 720-97865 | C140: MANHOLE, C2, MODIFIED | D140: 4 | E140: 0 | F140: EACH | G140: 3700 | H140: 14800
B141: 720-98555 | C141: INLET, C15 | D141: 1 | E141: 0 | F141: EACH | G141: 2075 | H141: 2075
B142: 723-08608 | C142: WINGWALL | D142: 608 | E142: 0 | F142: S.F. | G142: 90 | H142: 54720
B143: 727-90308 | C143: EPOXY INJECTION, CRACK PREPARATION | D143: 119 | E143: 0 | F143: L.F. | G143: 40.37 | H143: 4804.03
B144: 727-90309 | C144: EPOXY INJECTION, EPOXY MATERIAL | D144: 15 | E144: 0 | F144: GAL | G144: 54 | H144: 810
B145: 727-93560 | C145: EPOXY INJECTION, FURNISHING EQUIPMENT | D145: 1 | E145: 0 | F145: L.S. | G145: 200 | H145: 200
B146: 801-02595 | C146: CONTROLLER, RESET TIMING | D146: 3 | E146: 0 | F146: EACH | G146: 155 | H146: 465
B147: 801-03290 | C147: CONSTRUCTION SIGN, C | D147: 12 | E147: 0 | F147: EACH | G147: 140 | H147: 1680
B148: 801-04308 | C148: ROAD CLOSURE SIGN ASSEMBLY | D148: 20 | E148: 0 | F148: EACH | G148: 345 | H148: 6900
B149: 801-06201 | C149: TEMPORARY PANEL SIGNS | D149: 22.5 | E149: 0 | F149: S.Y. | G149: 22 | H149: 495
B150: 801-06202 | C150: TEMPORARY PANEL SIGN SUPPORTS | D150: 56 | E150: 0 | F150: L.F. | G150: 20 | H150: 1120
B151: 801-06203 | C151: TEMPORARY PAVEMENT MARKING, 4 IN. | D151: 35000 | E151: 0 | F151: L.F. | G151: 0.17 | H151: 5950
B152: 801-06207 | C152: TEMPORARY PAVEMENT MARKING, REMOVABLE, 4 IN. | D152: 64300 | E152: 0 | F152: L.F. | G152: 0.88 | H152: 56584
B153: 801-06211 | C153: TEMPORARY PAVEMENT MESSAGE MARKING, REMOVABLE | D153: 13 | E153: 0 | F153: EACH | G153: 95 | H153: 1235
B154: 801-06218 | C154: TEMPORARY TRANSVERSE PAVEMENT MARKING, REMOVA | D154: 377 | E154: 0 | F154: L.F. | G154: 5 | H154: 1885
B155: 801-06640 | C155: CONSTRUCTION SIGN, A | D155: 37 | E155: 0 | F155: EACH | G155: 130 | H155: 4810
B156: 801-06645 | C156: CONSTRUCTION SIGN, B | D156: 5 | E156: 0 | F156: EACH | G156: 48 | H156: 240
B157: 801-06710 | C157: FLASHING ARROW SIGN | D157: 30 | E157: 0 | F157: DAY | G157: 10 | H157: 300
B158: 801-06775 | C158: MAINTAINING TRAFFIC | D158: 1 | E158: 0 | F158: L.S. | G158: 41950 | H158: 41950
B159: 801-07118 | C159: BARRICADE, III-A | D159: 468 | E159: 0 | F159: L.F. | G159: 8.45 | H159: 3954.6
B160: 801-07119 | C160: BARRICADE, III-B | D160: 48 | E160: 0 | F160: L.F. | G160: 9.15 | H160: 439.2
B161: 801-08401 | C161: TEMPORARY TRAFFIC BARRIER, TYPE 2 | D161: 9260 | E161: 0 | F161: L.F. | G161: 18.75 | H161: 173625
B162: 801-08508 | C162: TEMPORARY TRAFFIC BARRIER, TYPE 2, ANCHORED | D162: 252 | E162: 0 | F162: L.F. | G162: 30 | H162: 7560
B163: 801-94295 | C163: SIGNAL HEAD, RELOCATE | D163: 32 | E163: 0 | F163: EACH | G163: 130 | H163: 4160
B164: 802-05701 | C164: SIGN POST, SQUARE, 1, REINFORCED ANCHOR | D164: 765.5 | E164: 0 | F164: L.F. | G164: 11.3 | H164: 8650.15
B165: 802-05702 | C165: SIGN POST SQUARE, 2, REINFORCED ANCHOR BASE | D165: 211.25 | E165: 0 | F165: L.F. | G165: 11.65 | H165: 2461.06
B166: 802-07057 | C166: SIGN, PANEL, WITH LEGEND | D166: 899 | E166: 0 | F166: S.F. | G166: 20 | H166: 17980
B167: 802-07151 | C167: WIDE FLANGE SIGN POST SUPPORT FOUNDATION, VII | D167: 10 | E167: 0 | F167: EACH | G167: 375 | H167: 3750
B168: 802-08456 | C168: WIDE FLANGE SIGN POST SUPPORT FOUNDATION, VII | D168: 12 | E168: 0 | F168: EACH | G168: 385 | H168: 4620
B169: 802-09578 | C169: OVERHEAD SIGN STRUCTURE, CANTILEVER, | D169: 2 | E169: 0 | F169: EACH | G169: 34500 | H169: 69000
B170: 802-09581 | C170: CANTILEVER SIGN SUPPORT FOUNDATION, | D170: 2 | E170: 0 | F170: EACH | G170: 7800 | H170: 15600
B171: 802-09838 | C171: SIGN, SHEET, WITH LEGEND 0.08 IN. | D171: 504.78 | E171: 0 | F171: S.F. | G171: 15 | H171: 7571.7
B172: 802-09840 | C172: SIGN, SHEET, WITH LEGEND 0.100 IN | D172: 104.1 | E172: 0 | F172: S.F. | G172: 18 | H172: 1873.8
B173: 802-09842 | C173: SIGN, SHEET, WITH LEGEND 0.125 IN | D173: 78 | E173: 0 | F173: S.F. | G173: 18 | H173: 1404
B174: 802-74040 | C174: SIGN AND SUPPORTS, WIDE FLANGE, REMOVE | D174: 6 | E174: 0 | F174: EACH | G174: 175 | H174: 1050
B175: 802-76095 | C175: STRUCTURAL STEEL, BREAKAWAY | D175: 4874 | E175: 0 | F175: LBS | G175: 4 | H175: 19496
B176: 804-06771 | C176: DELINEATOR POST, FLEXIBLE | D176: 50 | E176: 0 | F176: EACH | G176: 35 | H176: 1750
B177: 805-01300 | C177: TRAFFIC SIGNAL EQUIPMENT, REMOVE | D177: 2 | E177: 0 | F177: EACH | G177: 1800 | H177: 3600
B178: 805-01842 | C178: HANDHOLE, SIGNAL | D178: 21 | E178: 0 | F178: EACH | G178: 700 | H178: 14700
B179: 805-01843 | C179: SIGNAL HANDHOLE ADJUST TO GRADE | D179: 4 | E179: 0 | F179: EACH | G179: 300 | H179: 1200
B180: 805-01844 | C180: GALVANIZED STEEL CONDUIT, 2 IN., UNDERGROUND | D180: 4042 | E180: 0 | F180: L.F. | G180: 11 | H180: 44462
B181: 805-02087 | C181: TRANSPORTATION OF SALVAGEABLE SIGNAL EQUIPMEN | D181: 1 | E181: 0 | F181: L.S. | G181: 500 | H181: 500
B182: 805-02373 | C182: INTERCONNECT CABLE, FIBER OPTIC | D182: 2057 | E182: 0 | F182: L.F. | G182: 2.6 | H182: 5348.2
B183: 805-09539 | C183: LOOP DETECTOR DELAY COUNTING AMPLIFIER, | D183: 2 | E183: 0 | F183: EACH | G183: 1100 | H183: 2200
B184: 805-78109 | C184: CONTROLLER AND CABINET, SECONDARY, MENU DRIVE | D184: 1 | E184: 0 | F184: EACH | G184: 13900 | H184: 13900
B185: 805-78205 | C185: TRAFFIC SIGNAL HEAD, 3 FACE, 12.20 IN. RED, A | D185: 20 | E185: 0 | F185: EACH | G185: 777 | H185: 15540
B186: 805-78230 | C186: TRAFFIC SIGNAL HEAD, 5 FACE, 12.20 IN. RED, A | D186: 4 | E186: 0 | F186: EACH | G186: 1200 | H186: 4800
B187: 805-78415 | C187: SPAN CATENARY AND TETHER | D187: 10 | E187: 0 | F187: EACH | G187: 1740 | H187: 17400
B188: 805-78420 | C188: DISCONNECT HANGER | D188: 10 | E188: 0 | F188: EACH | G188: 340 | H188: 3400
B189: 805-78467 | C189: SIGNAL CABLE, 3C 8GA. | D189: 55 | E189: 0 | F189: L.F. | G189: 3 | H189: 165
B190: 805-78470 | C190: SIGNAL CABLE, ROADWAY LOOP, 1C 14GA. | D190: 6552 | E190: 0 | F190: L.F. | G190: 0.32 | H190: 2096.64
B191: 805-78485 | C191: SIGNAL CABLE, 5C 14GA. | D191: 538 | E191: 0 | F191: L.F. | G191: 1.2 | H191: 645.6
B192: 805-78490 | C192: SIGNAL CABLE, 7C 14GA. | D192: 2486 | E192: 0 | F192: L.F. | G192: 1.6 | H192: 3977.6
B193: 805-78510 | C193: SIGNAL CABLE, 2C 16GA., SHIELDED | D193: 7814 | E193: 0 | F193: L.F. | G193: 0.8 | H193: 6251.2
B194: 805-78785 | C194: SIGNAL DETECTOR HOUSING | D194: 17 | E194: 0 | F194: EACH | G194: 410 | H194: 6970
B195: 805-78795 | C195: SAW CUT FOR ROADWAY LOOP AND SEALER | D195: 2336 | E195: 0 | F195: L.F. | G195: 8 | H195: 18688
B196: 805-78925 | C196: CONTROLLER CABINET FOUNDATION, P1 | D196: 1 | E196: 0 | F196: EACH | G196: 710 | H196: 710
B197: 805-81060 | C197: SIGNAL STRAIN POLE, STEEL, 36 FT. | D197: 10 | E197: 0 | F197: EACH | G197: 5210 | H197: 52100
B198: 805-86890 | C198: POLE CIRCUIT CABLE, 1C NO. 10 THW OR TW STRAN | D198: 840 | E198: 0 | F198: L.F. | G198: 0.88 | H198: 739.2
B199: 805-92504 | C199: LOOP DETECTOR DELAY AMPLIFIER, 2 CHANNEL | D199: 10 | E199: 0 | F199: EACH | G199: 298 | H199: 2980
B200: 807-02191 | C200: HANDHOLE, LIGHTING | D200: 3 | E200: 0 | F200: EACH | G200: 700 | H200: 2100
... 785 more rows

Sheet Start2 (hidden)
A1: JOB_NO | B1: PAY_ITEM | C1: PI_DESC | D1: QUANTITY | E1: CODE | F1: UNIT | G1: UNIT_PRC | H1: EXTENSION | I1: Rank | J1: Rank2 | K1: Contractor | L1: Main Sec | M1: Sub Sec. No. | N1: Section | O1: Sub-Section | X1: JOB_NO | Y1: PAY_ITEM | Z1: PI_DESC | AA1: QUANTITY | AB1: CODE | AC1: UNIT | AD1: UNIT_PRC | AE1: EXTENSION
A2: =IF(Start!A2="","",Start!A2) -> 35-1035114 | B2: =IF(Start!B2="","",Start!B2) ->  | C2: =IF(Start!C2="","",Start!C2) -> SUPERIOR CONSTRUCTION COMPANY | D2: =IF(Start!D2="","",Start!D2) -> 1 | E2: =IF(Start!E2="","",Start!E2) -> 0 | F2: =IF(Start!F2="","",Start!F2) ->  | G2: =IF(Start!G2="","",Start!G2) -> 0 | H2: =IF(Start!H2="","",Start!H2) -> 0 | I2: =IF(AND(A2="",B2="",C2=""),"",IF(AND(A2<>"",B2="",G2=0,H2=0),D2,I1)) -> 1 | J2: =IF(I2="","",LOOKUP(I2,{1,"01";2,"02";3,"03";4,"04";5,"05";6,"06";7,"07";8,"08";9,"09";10,"10";11,"11";12,"12";13,"13";14,"14";15,"15"})) -> 01 | K2: =IF(AND(A2<>"",B2=""),J2&". "&PROPER(C2),IF(AND(A2="",B2<>""),PROPER(K1),"")) -> 01. Superior Construction Company | L2: =IF(B2="","",LEFT(B2,1)*100) ->  | M2: =IF(B2="","",LEFT(B2,3)*1) ->  | N2: =IF(B2="","",VLOOKUP(M2,Sections!$A$2:$D$200,3,FALSE)) ->  | O2: =IF(B2="","",VLOOKUP(M2,Sections!$A$2:$D$200,4,FALSE)) -> 
A3: =IF(Start!A3="","",Start!A3) ->  | B3: =IF(Start!B3="","",Start!B3) -> 105-06845 | C3: =IF(Start!C3="","",Start!C3) -> CONSTRUCTION ENGINEERING | D3: =IF(Start!D3="","",Start!D3) -> 1 | E3: =IF(Start!E3="","",Start!E3) -> 0 | F3: =IF(Start!F3="","",Start!F3) -> L.S. | G3: =IF(Start!G3="","",Start!G3) -> 296000 | H3: =IF(Start!H3="","",Start!H3) -> 296000 | I3: =IF(AND(A3="",B3="",C3=""),"",IF(AND(A3<>"",B3="",G3=0,H3=0),D3,I2)) -> 1 | J3: =IF(I3="","",LOOKUP(I3,{1,"01";2,"02";3,"03";4,"04";5,"05";6,"06";7,"07";8,"08";9,"09";10,"10";11,"11";12,"12";13,"13";14,"14";15,"15"})) -> 01 | K3: =IF(AND(A3<>"",B3=""),J3&". "&PROPER(C3),IF(AND(A3="",B3<>""),PROPER(K2),"")) -> 01. Superior Construction Company | L3: =IF(B3="","",LEFT(B3,1)*100) -> 100 | M3: =IF(B3="","",LEFT(B3,3)*1) -> 105 | N3: =IF(B3="","",VLOOKUP(M3,Sections!$A$2:$D$200,3,FALSE)) -> General Provisions | O3: =IF(B3="","",VLOOKUP(M3,Sections!$A$2:$D$200,4,FALSE)) -> Control Of Work
A4: =IF(Start!A4="","",Start!A4) ->  | B4: =IF(Start!B4="","",Start!B4) -> 105-09645 | C4: =IF(Start!C4="","",Start!C4) -> CONSTRUCTION ENGINEERING AND INSPECTION | D4: =IF(Start!D4="","",Start!D4) -> 1 | E4: =IF(Start!E4="","",Start!E4) -> 0 | F4: =IF(Start!F4="","",Start!F4) -> L.S. | G4: =IF(Start!G4="","",Start!G4) -> 12000 | H4: =IF(Start!H4="","",Start!H4) -> 12000 | I4: 1 | J4: =IF(I4="","",LOOKUP(I4,{1,"01";2,"02";3,"03";4,"04";5,"05";6,"06";7,"07";8,"08";9,"09";10,"10";11,"11";12,"12";13,"13";14,"14";15,"15"})) -> 01 | K4: 01. Superior Construction Company | L4: 100 | M4: 105 | N4: =IF(B4="","",VLOOKUP(M4,Sections!$A$2:$D$200,3,FALSE)) -> General Provisions | O4: =IF(B4="","",VLOOKUP(M4,Sections!$A$2:$D$200,4,FALSE)) -> Control Of Work
A5: =IF(Start!A5="","",Start!A5) ->  | B5: =IF(Start!B5="","",Start!B5) -> 109-08359 | C5: =IF(Start!C5="","",Start!C5) -> LIQUIDATED DAMAGES | D5: =IF(Start!D5="","",Start!D5) -> 1 | E5: =IF(Start!E5="","",Start!E5) -> 0 | F5: =IF(Start!F5="","",Start!F5) -> $ | G5: =IF(Start!G5="","",Start!G5) -> 1 | H5: =IF(Start!H5="","",Start!H5) -> 1 | I5: 1 | J5: =IF(I5="","",LOOKUP(I5,{1,"01";2,"02";3,"03";4,"04";5,"05";6,"06";7,"07";8,"08";9,"09";10,"10";11,"11";12,"12";13,"13";14,"14";15,"15"})) -> 01 | K5: 01. Superior Construction Company | L5: 100 | M5: 109 | N5: =IF(B5="","",VLOOKUP(M5,Sections!$A$2:$D$200,3,FALSE)) -> General Provisions | O5: =IF(B5="","",VLOOKUP(M5,Sections!$A$2:$D$200,4,FALSE)) -> Measurement And Payment
A6: =IF(Start!A6="","",Start!A6) ->  | B6: =IF(Start!B6="","",Start!B6) -> 109-08360 | C6: =IF(Start!C6="","",Start!C6) -> CONTRACT LIENS | D6: =IF(Start!D6="","",Start!D6) -> 1 | E6: =IF(Start!E6="","",Start!E6) -> 0 | F6: =IF(Start!F6="","",Start!F6) -> $ | G6: =IF(Start!G6="","",Start!G6) -> 1 | H6: =IF(Start!H6="","",Start!H6) -> 1 | I6: 1 | J6: =IF(I6="","",LOOKUP(I6,{1,"01";2,"02";3,"03";4,"04";5,"05";6,"06";7,"07";8,"08";9,"09";10,"10";11,"11";12,"12";13,"13";14,"14";15,"15"})) -> 01 | K6: 01. Superior Construction Company | L6: 100 | M6: 109 | N6: =IF(B6="","",VLOOKUP(M6,Sections!$A$2:$D$200,3,FALSE)) -> General Provisions | O6: =IF(B6="","",VLOOKUP(M6,Sections!$A$2:$D$200,4,FALSE)) -> Measurement And Payment
A7: =IF(Start!A7="","",Start!A7) ->  | B7: =IF(Start!B7="","",Start!B7) -> 109-08443 | C7: =IF(Start!C7="","",Start!C7) -> QUALITY ADJUSTMENTS, TEMPORARY TRAFFIC CONTRO | D7: =IF(Start!D7="","",Start!D7) -> 1 | E7: =IF(Start!E7="","",Start!E7) -> 0 | F7: =IF(Start!F7="","",Start!F7) -> $ | G7: =IF(Start!G7="","",Start!G7) -> 1 | H7: =IF(Start!H7="","",Start!H7) -> 1 | I7: 1 | J7: =IF(I7="","",LOOKUP(I7,{1,"01";2,"02";3,"03";4,"04";5,"05";6,"06";7,"07";8,"08";9,"09";10,"10";11,"11";12,"12";13,"13";14,"14";15,"15"})) -> 01 | K7: 01. Superior Construction Company | L7: 100 | M7: 109 | N7: =IF(B7="","",VLOOKUP(M7,Sections!$A$2:$D$200,3,FALSE)) -> General Provisions | O7: =IF(B7="","",VLOOKUP(M7,Sections!$A$2:$D$200,4,FALSE)) -> Measurement And Payment
A8: =IF(Start!A8="","",Start!A8) ->  | B8: =IF(Start!B8="","",Start!B8) -> 109-08444 | C8: =IF(Start!C8="","",Start!C8) -> QUALITY ADJUSTMENTS, FAILED MATERIALS | D8: =IF(Start!D8="","",Start!D8) -> 1 | E8: =IF(Start!E8="","",Start!E8) -> 0 | F8: =IF(Start!F8="","",Start!F8) -> $ | G8: =IF(Start!G8="","",Start!G8) -> 1 | H8: =IF(Start!H8="","",Start!H8) -> 1 | I8: 1 | J8: =IF(I8="","",LOOKUP(I8,{1,"01";2,"02";3,"03";4,"04";5,"05";6,"06";7,"07";8,"08";9,"09";10,"10";11,"11";12,"12";13,"13";14,"14";15,"15"})) -> 01 | K8: 01. Superior Construction Company | L8: 100 | M8: 109 | N8: =IF(B8="","",VLOOKUP(M8,Sections!$A$2:$D$200,3,FALSE)) -> General Provisions | O8: =IF(B8="","",VLOOKUP(M8,Sections!$A$2:$D$200,4,FALSE)) -> Measurement And Payment
A9: =IF(Start!A9="","",Start!A9) ->  | B9: =IF(Start!B9="","",Start!B9) -> 109-08463 | C9: =IF(Start!C9="","",Start!C9) -> PROJECT ESTIMATE ADJUSTMENT | D9: =IF(Start!D9="","",Start!D9) -> 1 | E9: =IF(Start!E9="","",Start!E9) -> 0 | F9: =IF(Start!F9="","",Start!F9) -> $ | G9: =IF(Start!G9="","",Start!G9) -> 1 | H9: =IF(Start!H9="","",Start!H9) -> 1 | I9: 1 | J9: =IF(I9="","",LOOKUP(I9,{1,"01";2,"02";3,"03";4,"04";5,"05";6,"06";7,"07";8,"08";9,"09";10,"10";11,"11";12,"12";13,"13";14,"14";15,"15"})) -> 01 | K9: 01. Superior Construction Company | L9: 100 | M9: 109 | N9: =IF(B9="","",VLOOKUP(M9,Sections!$A$2:$D$200,3,FALSE)) -> General Provisions | O9: =IF(B9="","",VLOOKUP(M9,Sections!$A$2:$D$200,4,FALSE)) -> Measurement And Payment
A10: =IF(Start!A10="","",Start!A10) ->  | B10: =IF(Start!B10="","",Start!B10) -> 109-09377 | C10: =IF(Start!C10="","",Start!C10) -> QUALITY ADJUSTMENT, PAVEMENT TRAFFIC | D10: =IF(Start!D10="","",Start!D10) -> 1 | E10: =IF(Start!E10="","",Start!E10) -> 0 | F10: =IF(Start!F10="","",Start!F10) -> $ | G10: =IF(Start!G10="","",Start!G10) -> 1 | H10: =IF(Start!H10="","",Start!H10) -> 1 | I10: 1 | J10: =IF(I10="","",LOOKUP(I10,{1,"01";2,"02";3,"03";4,"04";5,"05";6,"06";7,"07";8,"08";9,"09";10,"10";11,"11";12,"12";13,"13";14,"14";15,"15"})) -> 01 | K10: 01. Superior Construction Company | L10: 100 | M10: 109 | N10: =IF(B10="","",VLOOKUP(M10,Sections!$A$2:$D$200,3,FALSE)) -> General Provisions | O10: =IF(B10="","",VLOOKUP(M10,Sections!$A$2:$D$200,4,FALSE)) -> Measurement And Payment
A11: =IF(Start!A11="","",Start!A11) ->  | B11: =IF(Start!B11="","",Start!B11) -> 109-09489 | C11: =IF(Start!C11="","",Start!C11) -> PAYMENT ADJUSTMENT, PG ASPHALT BINDER | D11: =IF(Start!D11="","",Start!D11) -> 1 | E11: =IF(Start!E11="","",Start!E11) -> 0 | F11: =IF(Start!F11="","",Start!F11) -> $ | G11: =IF(Start!G11="","",Start!G11) -> 1 | H11: =IF(Start!H11="","",Start!H11) -> 1 | I11: 1 | J11: =IF(I11="","",LOOKUP(I11,{1,"01";2,"02";3,"03";4,"04";5,"05";6,"06";7,"07";8,"08";9,"09";10,"10";11,"11";12,"12";13,"13";14,"14";15,"15"})) -> 01 | K11: 01. Superior Construction Company | L11: 100 | M11: 109 | N11: =IF(B11="","",VLOOKUP(M11,Sections!$A$2:$D$200,3,FALSE)) -> General Provisions | O11: =IF(B11="","",VLOOKUP(M11,Sections!$A$2:$D$200,4,FALSE)) -> Measurement And Payment
A12: =IF(Start!A12="","",Start!A12) ->  | B12: =IF(Start!B12="","",Start!B12) -> 110-01001 | C12: =IF(Start!C12="","",Start!C12) -> MOBILIZATION AND DEMOBILIZATION | D12: =IF(Start!D12="","",Start!D12) -> 1 | E12: =IF(Start!E12="","",Start!E12) -> 0 | F12: =IF(Start!F12="","",Start!F12) -> L.S. | G12: =IF(Start!G12="","",Start!G12) -> 532000 | H12: =IF(Start!H12="","",Start!H12) -> 532000 | I12: 1 | J12: =IF(I12="","",LOOKUP(I12,{1,"01";2,"02";3,"03";4,"04";5,"05";6,"06";7,"07";8,"08";9,"09";10,"10";11,"11";12,"12";13,"13";14,"14";15,"15"})) -> 01 | K12: 01. Superior Construction Company | L12: 100 | M12: 110 | N12: =IF(B12="","",VLOOKUP(M12,Sections!$A$2:$D$200,3,FALSE)) -> General Provisions | O12: =IF(B12="","",VLOOKUP(M12,Sections!$A$2:$D$200,4,FALSE)) -> Mobilization And Demobilization
A13: =IF(Start!A13="","",Start!A13) ->  | B13: =IF(Start!B13="","",Start!B13) -> 201-52370 | C13: =IF(Start!C13="","",Start!C13) -> CLEARING RIGHT OF WAY | D13: =IF(Start!D13="","",Start!D13) -> 1 | E13: =IF(Start!E13="","",Start!E13) -> 0 | F13: =IF(Start!F13="","",Start!F13) -> L.S. | G13: =IF(Start!G13="","",Start!G13) -> 200000 | H13: =IF(Start!H13="","",Start!H13) -> 200000 | I13: 1 | J13: =IF(I13="","",LOOKUP(I13,{1,"01";2,"02";3,"03";4,"04";5,"05";6,"06";7,"07";8,"08";9,"09";10,"10";11,"11";12,"12";13,"13";14,"14";15,"15"})) -> 01 | K13: 01. Superior Construction Company | L13: 200 | M13: 201 | N13: =IF(B13="","",VLOOKUP(M13,Sections!$A$2:$D$200,3,FALSE)) -> Earthwork | O13: =IF(B13="","",VLOOKUP(M13,Sections!$A$2:$D$200,4,FALSE)) -> Clearing And Grubbing
A14: =IF(Start!A14="","",Start!A14) ->  | B14: =IF(Start!B14="","",Start!B14) -> 201-90788 | C14: =IF(Start!C14="","",Start!C14) -> DEBRIS, REMOVE | D14: =IF(Start!D14="","",Start!D14) -> 1 | E14: =IF(Start!E14="","",Start!E14) -> 0 | F14: =IF(Start!F14="","",Start!F14) -> L.S. | G14: =IF(Start!G14="","",Start!G14) -> 12000 | H14: =IF(Start!H14="","",Start!H14) -> 12000 | I14: 1 | J14: =IF(I14="","",LOOKUP(I14,{1,"01";2,"02";3,"03";4,"04";5,"05";6,"06";7,"07";8,"08";9,"09";10,"10";11,"11";12,"12";13,"13";14,"14";15,"15"})) -> 01 | K14: 01. Superior Construction Company | L14: 200 | M14: 201 | N14: =IF(B14="","",VLOOKUP(M14,Sections!$A$2:$D$200,3,FALSE)) -> Earthwork | O14: =IF(B14="","",VLOOKUP(M14,Sections!$A$2:$D$200,4,FALSE)) -> Clearing And Grubbing
A15: =IF(Start!A15="","",Start!A15) ->  | B15: =IF(Start!B15="","",Start!B15) -> 202-02240 | C15: =IF(Start!C15="","",Start!C15) -> PAVEMENT, REMOVE | D15: =IF(Start!D15="","",Start!D15) -> 28674 | E15: =IF(Start!E15="","",Start!E15) -> 0 | F15: =IF(Start!F15="","",Start!F15) -> S.Y. | G15: =IF(Start!G15="","",Start!G15) -> 7.5 | H15: =IF(Start!H15="","",Start!H15) -> 215055 | I15: 1 | J15: =IF(I15="","",LOOKUP(I15,{1,"01";2,"02";3,"03";4,"04";5,"05";6,"06";7,"07";8,"08";9,"09";10,"10";11,"11";12,"12";13,"13";14,"14";15,"15"})) -> 01 | K15: 01. Superior Construction Company | L15: 200 | M15: 202 | N15: =IF(B15="","",VLOOKUP(M15,Sections!$A$2:$D$200,3,FALSE)) -> Earthwork | O15: =IF(B15="","",VLOOKUP(M15,Sections!$A$2:$D$200,4,FALSE)) -> Removal Of Structures And Obstructions
A16: =IF(Start!A16="","",Start!A16) ->  | B16: =IF(Start!B16="","",Start!B16) -> 202-02271 | C16: =IF(Start!C16="","",Start!C16) -> HEADWALL, REMOVE | D16: =IF(Start!D16="","",Start!D16) -> 16 | E16: =IF(Start!E16="","",Start!E16) -> 0 | F16: =IF(Start!F16="","",Start!F16) -> EACH | G16: =IF(Start!G16="","",Start!G16) -> 400 | H16: =IF(Start!H16="","",Start!H16) -> 6400 | I16: 1 | J16: =IF(I16="","",LOOKUP(I16,{1,"01";2,"02";3,"03";4,"04";5,"05";6,"06";7,"07";8,"08";9,"09";10,"10";11,"11";12,"12";13,"13";14,"14";15,"15"})) -> 01 | K16: 01. Superior Construction Company | L16: 200 | M16: 202 | N16: =IF(B16="","",VLOOKUP(M16,Sections!$A$2:$D$200,3,FALSE)) -> Earthwork | O16: =IF(B16="","",VLOOKUP(M16,Sections!$A$2:$D$200,4,FALSE)) -> Removal Of Structures And Obstructions
A17: =IF(Start!A17="","",Start!A17) ->  | B17: =IF(Start!B17="","",Start!B17) -> 202-02272 | C17: =IF(Start!C17="","",Start!C17) -> PAVED SIDE DITCH, REMOVE | D17: =IF(Start!D17="","",Start!D17) -> 344 | E17: =IF(Start!E17="","",Start!E17) -> 0 | F17: =IF(Start!F17="","",Start!F17) -> L.F. | G17: =IF(Start!G17="","",Start!G17) -> 20 | H17: =IF(Start!H17="","",Start!H17) -> 6880 | I17: 1 | J17: =IF(I17="","",LOOKUP(I17,{1,"01";2,"02";3,"03";4,"04";5,"05";6,"06";7,"07";8,"08";9,"09";10,"10";11,"11";12,"12";13,"13";14,"14";15,"15"})) -> 01 | K17: 01. Superior Construction Company | L17: 200 | M17: 202 | N17: =IF(B17="","",VLOOKUP(M17,Sections!$A$2:$D$200,3,FALSE)) -> Earthwork | O17: =IF(B17="","",VLOOKUP(M17,Sections!$A$2:$D$200,4,FALSE)) -> Removal Of Structures And Obstructions
A18: =IF(Start!A18="","",Start!A18) ->  | B18: =IF(Start!B18="","",Start!B18) -> 202-02279 | C18: =IF(Start!C18="","",Start!C18) -> CURB AND GUTTER, REMOVE | D18: =IF(Start!D18="","",Start!D18) -> 961 | E18: =IF(Start!E18="","",Start!E18) -> 0 | F18: =IF(Start!F18="","",Start!F18) -> L.F. | G18: =IF(Start!G18="","",Start!G18) -> 12 | H18: =IF(Start!H18="","",Start!H18) -> 11532 | I18: 1 | J18: =IF(I18="","",LOOKUP(I18,{1,"01";2,"02";3,"03";4,"04";5,"05";6,"06";7,"07";8,"08";9,"09";10,"10";11,"11";12,"12";13,"13";14,"14";15,"15"})) -> 01 | K18: 01. Superior Construction Company | L18: 200 | M18: 202 | N18: =IF(B18="","",VLOOKUP(M18,Sections!$A$2:$D$200,3,FALSE)) -> Earthwork | O18: =IF(B18="","",VLOOKUP(M18,Sections!$A$2:$D$200,4,FALSE)) -> Removal Of Structures And Obstructions
A19: =IF(Start!A19="","",Start!A19) ->  | B19: =IF(Start!B19="","",Start!B19) -> 202-74045 | C19: =IF(Start!C19="","",Start!C19) -> SIGNS AND SUPPORTS, CHANNEL POSTS, REMOVE | D19: =IF(Start!D19="","",Start!D19) -> 74 | E19: =IF(Start!E19="","",Start!E19) -> 0 | F19: =IF(Start!F19="","",Start!F19) -> EACH | G19: =IF(Start!G19="","",Start!G19) -> 30 | H19: =IF(Start!H19="","",Start!H19) -> 2220 | I19: 1 | J19: =IF(I19="","",LOOKUP(I19,{1,"01";2,"02";3,"03";4,"04";5,"05";6,"06";7,"07";8,"08";9,"09";10,"10";11,"11";12,"12";13,"13";14,"14";15,"15"})) -> 01 | K19: 01. Superior Construction Company | L19: 200 | M19: 202 | N19: =IF(B19="","",VLOOKUP(M19,Sections!$A$2:$D$200,3,FALSE)) -> Earthwork | O19: =IF(B19="","",VLOOKUP(M19,Sections!$A$2:$D$200,4,FALSE)) -> Removal Of Structures And Obstructions
A20: =IF(Start!A20="","",Start!A20) ->  | B20: =IF(Start!B20="","",Start!B20) -> 202-74080 | C20: =IF(Start!C20="","",Start!C20) -> OVERHEAD SIGN STRUCTURE, CANTILEVER, REMOVE | D20: =IF(Start!D20="","",Start!D20) -> 2 | E20: =IF(Start!E20="","",Start!E20) -> 0 | F20: =IF(Start!F20="","",Start!F20) -> EACH | G20: =IF(Start!G20="","",Start!G20) -> 1600 | H20: =IF(Start!H20="","",Start!H20) -> 3200 | I20: 1 | J20: =IF(I20="","",LOOKUP(I20,{1,"01";2,"02";3,"03";4,"04";5,"05";6,"06";7,"07";8,"08";9,"09";10,"10";11,"11";12,"12";13,"13";14,"14";15,"15"})) -> 01 | K20: 01. Superior Construction Company | L20: 200 | M20: 202 | N20: =IF(B20="","",VLOOKUP(M20,Sections!$A$2:$D$200,3,FALSE)) -> Earthwork | O20: =IF(B20="","",VLOOKUP(M20,Sections!$A$2:$D$200,4,FALSE)) -> Removal Of Structures And Obstructions
A21: =IF(Start!A21="","",Start!A21) ->  | B21: =IF(Start!B21="","",Start!B21) -> 202-82066 | C21: =IF(Start!C21="","",Start!C21) -> SIGN CIRCUITRY, CANTILEVERS, REMOVE | D21: =IF(Start!D21="","",Start!D21) -> 2 | E21: =IF(Start!E21="","",Start!E21) -> 0 | F21: =IF(Start!F21="","",Start!F21) -> EACH | G21: =IF(Start!G21="","",Start!G21) -> 250 | H21: =IF(Start!H21="","",Start!H21) -> 500 | I21: 1 | J21: =IF(I21="","",LOOKUP(I21,{1,"01";2,"02";3,"03";4,"04";5,"05";6,"06";7,"07";8,"08";9,"09";10,"10";11,"11";12,"12";13,"13";14,"14";15,"15"})) -> 01 | K21: 01. Superior Construction Company | L21: 200 | M21: 202 | N21: =IF(B21="","",VLOOKUP(M21,Sections!$A$2:$D$200,3,FALSE)) -> Earthwork | O21: =IF(B21="","",VLOOKUP(M21,Sections!$A$2:$D$200,4,FALSE)) -> Removal Of Structures And Obstructions
A22: =IF(Start!A22="","",Start!A22) ->  | B22: =IF(Start!B22="","",Start!B22) -> 202-86946 | C22: =IF(Start!C22="","",Start!C22) -> HANDHOLE, REMOVE | D22: =IF(Start!D22="","",Start!D22) -> 3 | E22: =IF(Start!E22="","",Start!E22) -> 0 | F22: =IF(Start!F22="","",Start!F22) -> EACH | G22: =IF(Start!G22="","",Start!G22) -> 125 | H22: =IF(Start!H22="","",Start!H22) -> 375 | I22: 1 | J22: =IF(I22="","",LOOKUP(I22,{1,"01";2,"02";3,"03";4,"04";5,"05";6,"06";7,"07";8,"08";9,"09";10,"10";11,"11";12,"12";13,"13";14,"14";15,"15"})) -> 01 | K22: 01. Superior Construction Company | L22: 200 | M22: 202 | N22: =IF(B22="","",VLOOKUP(M22,Sections!$A$2:$D$200,3,FALSE)) -> Earthwork | O22: =IF(B22="","",VLOOKUP(M22,Sections!$A$2:$D$200,4,FALSE)) -> Removal Of Structures And Obstructions
A23: =IF(Start!A23="","",Start!A23) ->  | B23: =IF(Start!B23="","",Start!B23) -> 202-93763 | C23: =IF(Start!C23="","",Start!C23) -> LIGHT STANDARD AND FOUNDATION,REMOVE | D23: =IF(Start!D23="","",Start!D23) -> 8 | E23: =IF(Start!E23="","",Start!E23) -> 0 | F23: =IF(Start!F23="","",Start!F23) -> EACH | G23: =IF(Start!G23="","",Start!G23) -> 350 | H23: =IF(Start!H23="","",Start!H23) -> 2800 | I23: 1 | J23: =IF(I23="","",LOOKUP(I23,{1,"01";2,"02";3,"03";4,"04";5,"05";6,"06";7,"07";8,"08";9,"09";10,"10";11,"11";12,"12";13,"13";14,"14";15,"15"})) -> 01 | K23: 01. Superior Construction Company | L23: 200 | M23: 202 | N23: =IF(B23="","",VLOOKUP(M23,Sections!$A$2:$D$200,3,FALSE)) -> Earthwork | O23: =IF(B23="","",VLOOKUP(M23,Sections!$A$2:$D$200,4,FALSE)) -> Removal Of Structures And Obstructions
A24: =IF(Start!A24="","",Start!A24) ->  | B24: =IF(Start!B24="","",Start!B24) -> 202-96035 | C24: =IF(Start!C24="","",Start!C24) -> CONCRETE WALL, REMOVE | D24: =IF(Start!D24="","",Start!D24) -> 20 | E24: =IF(Start!E24="","",Start!E24) -> 0 | F24: =IF(Start!F24="","",Start!F24) -> L.F. | G24: =IF(Start!G24="","",Start!G24) -> 100 | H24: =IF(Start!H24="","",Start!H24) -> 2000 | I24: 1 | J24: =IF(I24="","",LOOKUP(I24,{1,"01";2,"02";3,"03";4,"04";5,"05";6,"06";7,"07";8,"08";9,"09";10,"10";11,"11";12,"12";13,"13";14,"14";15,"15"})) -> 01 | K24: 01. Superior Construction Company | L24: 200 | M24: 202 | N24: =IF(B24="","",VLOOKUP(M24,Sections!$A$2:$D$200,3,FALSE)) -> Earthwork | O24: =IF(B24="","",VLOOKUP(M24,Sections!$A$2:$D$200,4,FALSE)) -> Removal Of Structures And Obstructions
A25: =IF(Start!A25="","",Start!A25) ->  | B25: =IF(Start!B25="","",Start!B25) -> 202-96133 | C25: =IF(Start!C25="","",Start!C25) -> PIPE, REMOVE | D25: =IF(Start!D25="","",Start!D25) -> 1108 | E25: =IF(Start!E25="","",Start!E25) -> 0 | F25: =IF(Start!F25="","",Start!F25) -> L.F. | G25: =IF(Start!G25="","",Start!G25) -> 2 | H25: =IF(Start!H25="","",Start!H25) -> 2216 | I25: 1 | J25: =IF(I25="","",LOOKUP(I25,{1,"01";2,"02";3,"03";4,"04";5,"05";6,"06";7,"07";8,"08";9,"09";10,"10";11,"11";12,"12";13,"13";14,"14";15,"15"})) -> 01 | K25: 01. Superior Construction Company | L25: 200 | M25: 202 | N25: =IF(B25="","",VLOOKUP(M25,Sections!$A$2:$D$200,3,FALSE)) -> Earthwork | O25: =IF(B25="","",VLOOKUP(M25,Sections!$A$2:$D$200,4,FALSE)) -> Removal Of Structures And Obstructions
A26: =IF(Start!A26="","",Start!A26) ->  | B26: =IF(Start!B26="","",Start!B26) -> 202-99187 | C26: =IF(Start!C26="","",Start!C26) -> FENCE, FARM FIELD, REMOVE | D26: =IF(Start!D26="","",Start!D26) -> 2579 | E26: =IF(Start!E26="","",Start!E26) -> 0 | F26: =IF(Start!F26="","",Start!F26) -> L.F. | G26: =IF(Start!G26="","",Start!G26) -> 2.75 | H26: =IF(Start!H26="","",Start!H26) -> 7092.25 | I26: 1 | J26: =IF(I26="","",LOOKUP(I26,{1,"01";2,"02";3,"03";4,"04";5,"05";6,"06";7,"07";8,"08";9,"09";10,"10";11,"11";12,"12";13,"13";14,"14";15,"15"})) -> 01 | K26: 01. Superior Construction Company | L26: 200 | M26: 202 | N26: =IF(B26="","",VLOOKUP(M26,Sections!$A$2:$D$200,3,FALSE)) -> Earthwork | O26: =IF(B26="","",VLOOKUP(M26,Sections!$A$2:$D$200,4,FALSE)) -> Removal Of Structures And Obstructions
A27: =IF(Start!A27="","",Start!A27) ->  | B27: =IF(Start!B27="","",Start!B27) -> 203-02000 | C27: =IF(Start!C27="","",Start!C27) -> EXCAVATION, COMMON | D27: =IF(Start!D27="","",Start!D27) -> 41965 | E27: =IF(Start!E27="","",Start!E27) -> 0 | F27: =IF(Start!F27="","",Start!F27) -> C.Y. | G27: =IF(Start!G27="","",Start!G27) -> 8 | H27: =IF(Start!H27="","",Start!H27) -> 335720 | I27: 1 | J27: =IF(I27="","",LOOKUP(I27,{1,"01";2,"02";3,"03";4,"04";5,"05";6,"06";7,"07";8,"08";9,"09";10,"10";11,"11";12,"12";13,"13";14,"14";15,"15"})) -> 01 | K27: 01. Superior Construction Company | L27: 200 | M27: 203 | N27: =IF(B27="","",VLOOKUP(M27,Sections!$A$2:$D$200,3,FALSE)) -> Earthwork | O27: =IF(B27="","",VLOOKUP(M27,Sections!$A$2:$D$200,4,FALSE)) -> Excavation And Embankment
A28: =IF(Start!A28="","",Start!A28) ->  | B28: =IF(Start!B28="","",Start!B28) -> 203-02070 | C28: =IF(Start!C28="","",Start!C28) -> BORROW | D28: =IF(Start!D28="","",Start!D28) -> 9115 | E28: =IF(Start!E28="","",Start!E28) -> 0 | F28: =IF(Start!F28="","",Start!F28) -> C.Y. | G28: =IF(Start!G28="","",Start!G28) -> 0.01 | H28: =IF(Start!H28="","",Start!H28) -> 91.15 | I28: 1 | J28: =IF(I28="","",LOOKUP(I28,{1,"01";2,"02";3,"03";4,"04";5,"05";6,"06";7,"07";8,"08";9,"09";10,"10";11,"11";12,"12";13,"13";14,"14";15,"15"})) -> 01 | K28: 01. Superior Construction Company | L28: 200 | M28: 203 | N28: =IF(B28="","",VLOOKUP(M28,Sections!$A$2:$D$200,3,FALSE)) -> Earthwork | O28: =IF(B28="","",VLOOKUP(M28,Sections!$A$2:$D$200,4,FALSE)) -> Excavation And Embankment
A29: =IF(Start!A29="","",Start!A29) ->  | B29: =IF(Start!B29="","",Start!B29) -> 205-03371 | C29: =IF(Start!C29="","",Start!C29) -> SEDIMENT REMOVE | D29: =IF(Start!D29="","",Start!D29) -> 2051 | E29: =IF(Start!E29="","",Start!E29) -> 0 | F29: =IF(Start!F29="","",Start!F29) -> C.Y. | G29: =IF(Start!G29="","",Start!G29) -> 10 | H29: =IF(Start!H29="","",Start!H29) -> 20510 | I29: 1 | J29: =IF(I29="","",LOOKUP(I29,{1,"01";2,"02";3,"03";4,"04";5,"05";6,"06";7,"07";8,"08";9,"09";10,"10";11,"11";12,"12";13,"13";14,"14";15,"15"})) -> 01 | K29: 01. Superior Construction Company | L29: 200 | M29: 205 | N29: =IF(B29="","",VLOOKUP(M29,Sections!$A$2:$D$200,3,FALSE)) -> Earthwork | O29: =IF(B29="","",VLOOKUP(M29,Sections!$A$2:$D$200,4,FALSE)) -> Temporary Erosion And Sediment Control
A30: =IF(Start!A30="","",Start!A30) ->  | B30: =IF(Start!B30="","",Start!B30) -> 205-06931 | C30: =IF(Start!C30="","",Start!C30) -> TEMPORARY CHECK DAM, REVETMENT RIPRAP | D30: =IF(Start!D30="","",Start!D30) -> 253 | E30: =IF(Start!E30="","",Start!E30) -> 0 | F30: =IF(Start!F30="","",Start!F30) -> TON | G30: =IF(Start!G30="","",Start!G30) -> 65 | H30: =IF(Start!H30="","",Start!H30) -> 16445 | I30: 1 | J30: =IF(I30="","",LOOKUP(I30,{1,"01";2,"02";3,"03";4,"04";5,"05";6,"06";7,"07";8,"08";9,"09";10,"10";11,"11";12,"12";13,"13";14,"14";15,"15"})) -> 01 | K30: 01. Superior Construction Company | L30: 200 | M30: 205 | N30: =IF(B30="","",VLOOKUP(M30,Sections!$A$2:$D$200,3,FALSE)) -> Earthwork | O30: =IF(B30="","",VLOOKUP(M30,Sections!$A$2:$D$200,4,FALSE)) -> Temporary Erosion And Sediment Control
A31: =IF(Start!A31="","",Start!A31) ->  | B31: =IF(Start!B31="","",Start!B31) -> 205-06932 | C31: =IF(Start!C31="","",Start!C31) -> TEMPORARY CHECK DAM, STRAW BALES | D31: =IF(Start!D31="","",Start!D31) -> 402 | E31: =IF(Start!E31="","",Start!E31) -> 0 | F31: =IF(Start!F31="","",Start!F31) -> L.F. | G31: =IF(Start!G31="","",Start!G31) -> 15 | H31: =IF(Start!H31="","",Start!H31) -> 6030 | I31: 1 | J31: =IF(I31="","",LOOKUP(I31,{1,"01";2,"02";3,"03";4,"04";5,"05";6,"06";7,"07";8,"08";9,"09";10,"10";11,"11";12,"12";13,"13";14,"14";15,"15"})) -> 01 | K31: 01. Superior Construction Company | L31: 200 | M31: 205 | N31: =IF(B31="","",VLOOKUP(M31,Sections!$A$2:$D$200,3,FALSE)) -> Earthwork | O31: =IF(B31="","",VLOOKUP(M31,Sections!$A$2:$D$200,4,FALSE)) -> Temporary Erosion And Sediment Control
A32: =IF(Start!A32="","",Start!A32) ->  | B32: =IF(Start!B32="","",Start!B32) -> 205-06933 | C32: =IF(Start!C32="","",Start!C32) -> TEMPORARY DITCH INLET PROTECTION | D32: =IF(Start!D32="","",Start!D32) -> 7 | E32: =IF(Start!E32="","",Start!E32) -> 0 | F32: =IF(Start!F32="","",Start!F32) -> EACH | G32: =IF(Start!G32="","",Start!G32) -> 120 | H32: =IF(Start!H32="","",Start!H32) -> 840 | I32: 1 | J32: =IF(I32="","",LOOKUP(I32,{1,"01";2,"02";3,"03";4,"04";5,"05";6,"06";7,"07";8,"08";9,"09";10,"10";11,"11";12,"12";13,"13";14,"14";15,"15"})) -> 01 | K32: 01. Superior Construction Company | L32: 200 | M32: 205 | N32: =IF(B32="","",VLOOKUP(M32,Sections!$A$2:$D$200,3,FALSE)) -> Earthwork | O32: =IF(B32="","",VLOOKUP(M32,Sections!$A$2:$D$200,4,FALSE)) -> Temporary Erosion And Sediment Control
A33: =IF(Start!A33="","",Start!A33) ->  | B33: =IF(Start!B33="","",Start!B33) -> 205-06934 | C33: =IF(Start!C33="","",Start!C33) -> TEMPORARY MULCHING | D33: =IF(Start!D33="","",Start!D33) -> 73 | E33: =IF(Start!E33="","",Start!E33) -> 0 | F33: =IF(Start!F33="","",Start!F33) -> TON | G33: =IF(Start!G33="","",Start!G33) -> 400 | H33: =IF(Start!H33="","",Start!H33) -> 29200 | I33: 1 | J33: =IF(I33="","",LOOKUP(I33,{1,"01";2,"02";3,"03";4,"04";5,"05";6,"06";7,"07";8,"08";9,"09";10,"10";11,"11";12,"12";13,"13";14,"14";15,"15"})) -> 01 | K33: 01. Superior Construction Company | L33: 200 | M33: 205 | N33: =IF(B33="","",VLOOKUP(M33,Sections!$A$2:$D$200,3,FALSE)) -> Earthwork | O33: =IF(B33="","",VLOOKUP(M33,Sections!$A$2:$D$200,4,FALSE)) -> Temporary Erosion And Sediment Control
A34: =IF(Start!A34="","",Start!A34) ->  | B34: =IF(Start!B34="","",Start!B34) -> 205-06936 | C34: =IF(Start!C34="","",Start!C34) -> TEMPORARY SEDIMENT TRAP | D34: =IF(Start!D34="","",Start!D34) -> 20 | E34: =IF(Start!E34="","",Start!E34) -> 0 | F34: =IF(Start!F34="","",Start!F34) -> TON | G34: =IF(Start!G34="","",Start!G34) -> 82 | H34: =IF(Start!H34="","",Start!H34) -> 1640 | I34: 1 | J34: =IF(I34="","",LOOKUP(I34,{1,"01";2,"02";3,"03";4,"04";5,"05";6,"06";7,"07";8,"08";9,"09";10,"10";11,"11";12,"12";13,"13";14,"14";15,"15"})) -> 01 | K34: 01. Superior Construction Company | L34: 200 | M34: 205 | N34: =IF(B34="","",VLOOKUP(M34,Sections!$A$2:$D$200,3,FALSE)) -> Earthwork | O34: =IF(B34="","",VLOOKUP(M34,Sections!$A$2:$D$200,4,FALSE)) -> Temporary Erosion And Sediment Control
A35: =IF(Start!A35="","",Start!A35) ->  | B35: =IF(Start!B35="","",Start!B35) -> 205-06937 | C35: =IF(Start!C35="","",Start!C35) -> TEMPORARY SILT FENCE | D35: =IF(Start!D35="","",Start!D35) -> 18458 | E35: =IF(Start!E35="","",Start!E35) -> 0 | F35: =IF(Start!F35="","",Start!F35) -> L.F. | G35: =IF(Start!G35="","",Start!G35) -> 1.5 | H35: =IF(Start!H35="","",Start!H35) -> 27687 | I35: 1 | J35: =IF(I35="","",LOOKUP(I35,{1,"01";2,"02";3,"03";4,"04";5,"05";6,"06";7,"07";8,"08";9,"09";10,"10";11,"11";12,"12";13,"13";14,"14";15,"15"})) -> 01 | K35: 01. Superior Construction Company | L35: 200 | M35: 205 | N35: =IF(B35="","",VLOOKUP(M35,Sections!$A$2:$D$200,3,FALSE)) -> Earthwork | O35: =IF(B35="","",VLOOKUP(M35,Sections!$A$2:$D$200,4,FALSE)) -> Temporary Erosion And Sediment Control
A36: =IF(Start!A36="","",Start!A36) ->  | B36: =IF(Start!B36="","",Start!B36) -> 205-09543 | C36: =IF(Start!C36="","",Start!C36) -> NO 2 STONE | D36: =IF(Start!D36="","",Start!D36) -> 150 | E36: =IF(Start!E36="","",Start!E36) -> 0 | F36: =IF(Start!F36="","",Start!F36) -> TON | G36: =IF(Start!G36="","",Start!G36) -> 55 | H36: =IF(Start!H36="","",Start!H36) -> 8250 | I36: 1 | J36: =IF(I36="","",LOOKUP(I36,{1,"01";2,"02";3,"03";4,"04";5,"05";6,"06";7,"07";8,"08";9,"09";10,"10";11,"11";12,"12";13,"13";14,"14";15,"15"})) -> 01 | K36: 01. Superior Construction Company | L36: 200 | M36: 205 | N36: =IF(B36="","",VLOOKUP(M36,Sections!$A$2:$D$200,3,FALSE)) -> Earthwork | O36: =IF(B36="","",VLOOKUP(M36,Sections!$A$2:$D$200,4,FALSE)) -> Temporary Erosion And Sediment Control
A37: =IF(Start!A37="","",Start!A37) ->  | B37: =IF(Start!B37="","",Start!B37) -> 207-08263 | C37: =IF(Start!C37="","",Start!C37) -> SUBGRADE TREATMENT, TYPE IA | D37: =IF(Start!D37="","",Start!D37) -> 102662 | E37: =IF(Start!E37="","",Start!E37) -> 0 | F37: =IF(Start!F37="","",Start!F37) -> S.Y. | G37: =IF(Start!G37="","",Start!G37) -> 4.5 | H37: =IF(Start!H37="","",Start!H37) -> 461979 | I37: 1 | J37: =IF(I37="","",LOOKUP(I37,{1,"01";2,"02";3,"03";4,"04";5,"05";6,"06";7,"07";8,"08";9,"09";10,"10";11,"11";12,"12";13,"13";14,"14";15,"15"})) -> 01 | K37: 01. Superior Construction Company | L37: 200 | M37: 207 | N37: =IF(B37="","",VLOOKUP(M37,Sections!$A$2:$D$200,3,FALSE)) -> Earthwork | O37: =IF(B37="","",VLOOKUP(M37,Sections!$A$2:$D$200,4,FALSE)) -> Subgrade
A38: =IF(Start!A38="","",Start!A38) ->  | B38: =IF(Start!B38="","",Start!B38) -> 207-08263 | C38: =IF(Start!C38="","",Start!C38) -> SUBGRADE TREATMENT, TYPE IA | D38: =IF(Start!D38="","",Start!D38) -> 9100 | E38: =IF(Start!E38="","",Start!E38) -> 0 | F38: =IF(Start!F38="","",Start!F38) -> S.Y. | G38: =IF(Start!G38="","",Start!G38) -> 15 | H38: =IF(Start!H38="","",Start!H38) -> 136500 | I38: 1 | J38: =IF(I38="","",LOOKUP(I38,{1,"01";2,"02";3,"03";4,"04";5,"05";6,"06";7,"07";8,"08";9,"09";10,"10";11,"11";12,"12";13,"13";14,"14";15,"15"})) -> 01 | K38: 01. Superior Construction Company | L38: 200 | M38: 207 | N38: =IF(B38="","",VLOOKUP(M38,Sections!$A$2:$D$200,3,FALSE)) -> Earthwork | O38: =IF(B38="","",VLOOKUP(M38,Sections!$A$2:$D$200,4,FALSE)) -> Subgrade
A39: =IF(Start!A39="","",Start!A39) ->  | B39: =IF(Start!B39="","",Start!B39) -> 207-08267 | C39: =IF(Start!C39="","",Start!C39) -> SUBGRADE TREATMENT, TYPE IIIA | D39: =IF(Start!D39="","",Start!D39) -> 5305 | E39: =IF(Start!E39="","",Start!E39) -> 0 | F39: =IF(Start!F39="","",Start!F39) -> S.Y. | G39: =IF(Start!G39="","",Start!G39) -> 8 | H39: =IF(Start!H39="","",Start!H39) -> 42440 | I39: 1 | J39: =IF(I39="","",LOOKUP(I39,{1,"01";2,"02";3,"03";4,"04";5,"05";6,"06";7,"07";8,"08";9,"09";10,"10";11,"11";12,"12";13,"13";14,"14";15,"15"})) -> 01 | K39: 01. Superior Construction Company | L39: 200 | M39: 207 | N39: =IF(B39="","",VLOOKUP(M39,Sections!$A$2:$D$200,3,FALSE)) -> Earthwork | O39: =IF(B39="","",VLOOKUP(M39,Sections!$A$2:$D$200,4,FALSE)) -> Subgrade
A40: =IF(Start!A40="","",Start!A40) ->  | B40: =IF(Start!B40="","",Start!B40) -> 211-09264 | C40: =IF(Start!C40="","",Start!C40) -> STRUCTURE BACKFILL, TYPE 1 | D40: =IF(Start!D40="","",Start!D40) -> 900 | E40: =IF(Start!E40="","",Start!E40) -> 0 | F40: =IF(Start!F40="","",Start!F40) -> C.Y. | G40: =IF(Start!G40="","",Start!G40) -> 3 | H40: =IF(Start!H40="","",Start!H40) -> 2700 | I40: 1 | J40: =IF(I40="","",LOOKUP(I40,{1,"01";2,"02";3,"03";4,"04";5,"05";6,"06";7,"07";8,"08";9,"09";10,"10";11,"11";12,"12";13,"13";14,"14";15,"15"})) -> 01 | K40: 01. Superior Construction Company | L40: 200 | M40: 211 | N40: =IF(B40="","",VLOOKUP(M40,Sections!$A$2:$D$200,3,FALSE)) -> Earthwork | O40: =IF(B40="","",VLOOKUP(M40,Sections!$A$2:$D$200,4,FALSE)) -> B Borrow And Structure Backfill
A41: =IF(Start!A41="","",Start!A41) ->  | B41: =IF(Start!B41="","",Start!B41) -> 211-09265 | C41: =IF(Start!C41="","",Start!C41) -> STRUCTURE BACKFILL, TYPE 2 | D41: =IF(Start!D41="","",Start!D41) -> 1251 | E41: =IF(Start!E41="","",Start!E41) -> 0 | F41: =IF(Start!F41="","",Start!F41) -> C.Y. | G41: =IF(Start!G41="","",Start!G41) -> 25 | H41: =IF(Start!H41="","",Start!H41) -> 31275 | I41: 1 | J41: =IF(I41="","",LOOKUP(I41,{1,"01";2,"02";3,"03";4,"04";5,"05";6,"06";7,"07";8,"08";9,"09";10,"10";11,"11";12,"12";13,"13";14,"14";15,"15"})) -> 01 | K41: 01. Superior Construction Company | L41: 200 | M41: 211 | N41: =IF(B41="","",VLOOKUP(M41,Sections!$A$2:$D$200,3,FALSE)) -> Earthwork | O41: =IF(B41="","",VLOOKUP(M41,Sections!$A$2:$D$200,4,FALSE)) -> B Borrow And Structure Backfill
A42: =IF(Start!A42="","",Start!A42) ->  | B42: =IF(Start!B42="","",Start!B42) -> 213-09269 | C42: =IF(Start!C42="","",Start!C42) -> FLOWABLE BACKFILL, NON-REMOVEABLE | D42: =IF(Start!D42="","",Start!D42) -> 613 | E42: =IF(Start!E42="","",Start!E42) -> 0 | F42: =IF(Start!F42="","",Start!F42) -> C.Y. | G42: =IF(Start!G42="","",Start!G42) -> 80 | H42: =IF(Start!H42="","",Start!H42) -> 49040 | I42: 1 | J42: =IF(I42="","",LOOKUP(I42,{1,"01";2,"02";3,"03";4,"04";5,"05";6,"06";7,"07";8,"08";9,"09";10,"10";11,"11";12,"12";13,"13";14,"14";15,"15"})) -> 01 | K42: 01. Superior Construction Company | L42: 200 | M42: 213 | N42: =IF(B42="","",VLOOKUP(M42,Sections!$A$2:$D$200,3,FALSE)) -> Earthwork | O42: =IF(B42="","",VLOOKUP(M42,Sections!$A$2:$D$200,4,FALSE)) -> Flowable Backfill
A43: =IF(Start!A43="","",Start!A43) ->  | B43: =IF(Start!B43="","",Start!B43) -> 301-07448 | C43: =IF(Start!C43="","",Start!C43) -> COMPACTED AGGREGATE, NO. 53, BASE | D43: =IF(Start!D43="","",Start!D43) -> 7516 | E43: =IF(Start!E43="","",Start!E43) -> 0 | F43: =IF(Start!F43="","",Start!F43) -> TON | G43: =IF(Start!G43="","",Start!G43) -> 17 | H43: =IF(Start!H43="","",Start!H43) -> 127772 | I43: 1 | J43: =IF(I43="","",LOOKUP(I43,{1,"01";2,"02";3,"03";4,"04";5,"05";6,"06";7,"07";8,"08";9,"09";10,"10";11,"11";12,"12";13,"13";14,"14";15,"15"})) -> 01 | K43: 01. Superior Construction Company | L43: 300 | M43: 301 | N43: =IF(B43="","",VLOOKUP(M43,Sections!$A$2:$D$200,3,FALSE)) -> Aggregate Pavement And Bases | O43: =IF(B43="","",VLOOKUP(M43,Sections!$A$2:$D$200,4,FALSE)) -> Aggregate Base
A44: =IF(Start!A44="","",Start!A44) ->  | B44: =IF(Start!B44="","",Start!B44) -> 302-06464 | C44: =IF(Start!C44="","",Start!C44) -> SUBBASE FOR PCCP | D44: =IF(Start!D44="","",Start!D44) -> 24464 | E44: =IF(Start!E44="","",Start!E44) -> 0 | F44: =IF(Start!F44="","",Start!F44) -> C.Y. | G44: =IF(Start!G44="","",Start!G44) -> 37.5 | H44: =IF(Start!H44="","",Start!H44) -> 917400 | I44: 1 | J44: =IF(I44="","",LOOKUP(I44,{1,"01";2,"02";3,"03";4,"04";5,"05";6,"06";7,"07";8,"08";9,"09";10,"10";11,"11";12,"12";13,"13";14,"14";15,"15"})) -> 01 | K44: 01. Superior Construction Company | L44: 300 | M44: 302 | N44: =IF(B44="","",VLOOKUP(M44,Sections!$A$2:$D$200,3,FALSE)) -> Aggregate Pavement And Bases | O44: =IF(B44="","",VLOOKUP(M44,Sections!$A$2:$D$200,4,FALSE)) -> Subbase
A45: =IF(Start!A45="","",Start!A45) ->  | B45: =IF(Start!B45="","",Start!B45) -> 303-08210 | C45: =IF(Start!C45="","",Start!C45) -> COMPACTED AGGREGATE NO. 53, TEMPORARY FOR DRI | D45: =IF(Start!D45="","",Start!D45) -> 30 | E45: =IF(Start!E45="","",Start!E45) -> 0 | F45: =IF(Start!F45="","",Start!F45) -> TON | G45: =IF(Start!G45="","",Start!G45) -> 75 | H45: =IF(Start!H45="","",Start!H45) -> 2250 | I45: 1 | J45: =IF(I45="","",LOOKUP(I45,{1,"01";2,"02";3,"03";4,"04";5,"05";6,"06";7,"07";8,"08";9,"09";10,"10";11,"11";12,"12";13,"13";14,"14";15,"15"})) -> 01 | K45: 01. Superior Construction Company | L45: 300 | M45: 303 | N45: =IF(B45="","",VLOOKUP(M45,Sections!$A$2:$D$200,3,FALSE)) -> Aggregate Pavement And Bases | O45: =IF(B45="","",VLOOKUP(M45,Sections!$A$2:$D$200,4,FALSE)) -> Aggregate Pavements Or Shoulders
A46: =IF(Start!A46="","",Start!A46) ->  | B46: =IF(Start!B46="","",Start!B46) -> 306-08034 | C46: =IF(Start!C46="","",Start!C46) -> MILLING, ASPHALT, 1 1/2 IN. | D46: =IF(Start!D46="","",Start!D46) -> 3039 | E46: =IF(Start!E46="","",Start!E46) -> 0 | F46: =IF(Start!F46="","",Start!F46) -> S.Y. | G46: =IF(Start!G46="","",Start!G46) -> 3 | H46: =IF(Start!H46="","",Start!H46) -> 9117 | I46: 1 | J46: =IF(I46="","",LOOKUP(I46,{1,"01";2,"02";3,"03";4,"04";5,"05";6,"06";7,"07";8,"08";9,"09";10,"10";11,"11";12,"12";13,"13";14,"14";15,"15"})) -> 01 | K46: 01. Superior Construction Company | L46: 300 | M46: 306 | N46: =IF(B46="","",VLOOKUP(M46,Sections!$A$2:$D$200,3,FALSE)) -> Aggregate Pavement And Bases | O46: =IF(B46="","",VLOOKUP(M46,Sections!$A$2:$D$200,4,FALSE)) -> Milling
A47: =IF(Start!A47="","",Start!A47) ->  | B47: =IF(Start!B47="","",Start!B47) -> 402-07784 | C47: =IF(Start!C47="","",Start!C47) -> HMA SURFACE, TYPE D | D47: =IF(Start!D47="","",Start!D47) -> 268 | E47: =IF(Start!E47="","",Start!E47) -> 0 | F47: =IF(Start!F47="","",Start!F47) -> TON | G47: =IF(Start!G47="","",Start!G47) -> 87.75 | H47: =IF(Start!H47="","",Start!H47) -> 23517 | I47: 1 | J47: =IF(I47="","",LOOKUP(I47,{1,"01";2,"02";3,"03";4,"04";5,"05";6,"06";7,"07";8,"08";9,"09";10,"10";11,"11";12,"12";13,"13";14,"14";15,"15"})) -> 01 | K47: 01. Superior Construction Company | L47: 400 | M47: 402 | N47: =IF(B47="","",VLOOKUP(M47,Sections!$A$2:$D$200,3,FALSE)) -> Asphalt Pavements | O47: =IF(B47="","",VLOOKUP(M47,Sections!$A$2:$D$200,4,FALSE)) -> Hot Mix Asphalt, HMA, Pavement
A48: =IF(Start!A48="","",Start!A48) ->  | B48: =IF(Start!B48="","",Start!B48) -> 402-07785 | C48: =IF(Start!C48="","",Start!C48) -> HMA INTERMEDIATE, TYPE D | D48: =IF(Start!D48="","",Start!D48) -> 67 | E48: =IF(Start!E48="","",Start!E48) -> 0 | F48: =IF(Start!F48="","",Start!F48) -> TON | G48: =IF(Start!G48="","",Start!G48) -> 89.85 | H48: =IF(Start!H48="","",Start!H48) -> 6019.95 | I48: 1 | J48: =IF(I48="","",LOOKUP(I48,{1,"01";2,"02";3,"03";4,"04";5,"05";6,"06";7,"07";8,"08";9,"09";10,"10";11,"11";12,"12";13,"13";14,"14";15,"15"})) -> 01 | K48: 01. Superior Construction Company | L48: 400 | M48: 402 | N48: =IF(B48="","",VLOOKUP(M48,Sections!$A$2:$D$200,3,FALSE)) -> Asphalt Pavements | O48: =IF(B48="","",VLOOKUP(M48,Sections!$A$2:$D$200,4,FALSE)) -> Hot Mix Asphalt, HMA, Pavement
A49: =IF(Start!A49="","",Start!A49) ->  | B49: =IF(Start!B49="","",Start!B49) -> 402-10083 | C49: =IF(Start!C49="","",Start!C49) -> HMA FOR TEMPORARY PAVEMENT, A | D49: =IF(Start!D49="","",Start!D49) -> 2241 | E49: =IF(Start!E49="","",Start!E49) -> 0 | F49: =IF(Start!F49="","",Start!F49) -> TON | G49: =IF(Start!G49="","",Start!G49) -> 68.84 | H49: =IF(Start!H49="","",Start!H49) -> 154270.44 | I49: 1 | J49: =IF(I49="","",LOOKUP(I49,{1,"01";2,"02";3,"03";4,"04";5,"05";6,"06";7,"07";8,"08";9,"09";10,"10";11,"11";12,"12";13,"13";14,"14";15,"15"})) -> 01 | K49: 01. Superior Construction Company | L49: 400 | M49: 402 | N49: =IF(B49="","",VLOOKUP(M49,Sections!$A$2:$D$200,3,FALSE)) -> Asphalt Pavements | O49: =IF(B49="","",VLOOKUP(M49,Sections!$A$2:$D$200,4,FALSE)) -> Hot Mix Asphalt, HMA, Pavement
A50: =IF(Start!A50="","",Start!A50) ->  | B50: =IF(Start!B50="","",Start!B50) -> 501-06321 | C50: =IF(Start!C50="","",Start!C50) -> QC/QA PCCP, 10 IN. | D50: =IF(Start!D50="","",Start!D50) -> 93599 | E50: =IF(Start!E50="","",Start!E50) -> 0 | F50: =IF(Start!F50="","",Start!F50) -> S.Y. | G50: =IF(Start!G50="","",Start!G50) -> 33.9 | H50: =IF(Start!H50="","",Start!H50) -> 3173006.1 | I50: 1 | J50: =IF(I50="","",LOOKUP(I50,{1,"01";2,"02";3,"03";4,"04";5,"05";6,"06";7,"07";8,"08";9,"09";10,"10";11,"11";12,"12";13,"13";14,"14";15,"15"})) -> 01 | K50: 01. Superior Construction Company | L50: 500 | M50: 501 | N50: =IF(B50="","",VLOOKUP(M50,Sections!$A$2:$D$200,3,FALSE)) -> Concrete Pavement | O50: =IF(B50="","",VLOOKUP(M50,Sections!$A$2:$D$200,4,FALSE)) -> Quality Control/Quality Assurance, QC/QA, Portland Cement Concrete Pavement, PCCP
A51: =IF(Start!A51="","",Start!A51) ->  | B51: =IF(Start!B51="","",Start!B51) -> 503-05240 | C51: =IF(Start!C51="","",Start!C51) -> D-1 CONTRACTION JOINT | D51: =IF(Start!D51="","",Start!D51) -> 53189 | E51: =IF(Start!E51="","",Start!E51) -> 0 | F51: =IF(Start!F51="","",Start!F51) -> L.F. | G51: =IF(Start!G51="","",Start!G51) -> 9 | H51: =IF(Start!H51="","",Start!H51) -> 478701 | I51: 1 | J51: =IF(I51="","",LOOKUP(I51,{1,"01";2,"02";3,"03";4,"04";5,"05";6,"06";7,"07";8,"08";9,"09";10,"10";11,"11";12,"12";13,"13";14,"14";15,"15"})) -> 01 | K51: 01. Superior Construction Company | L51: 500 | M51: 503 | N51: =IF(B51="","",VLOOKUP(M51,Sections!$A$2:$D$200,3,FALSE)) -> Concrete Pavement | O51: =IF(B51="","",VLOOKUP(M51,Sections!$A$2:$D$200,4,FALSE)) -> PCCP Joints
A52: =IF(Start!A52="","",Start!A52) ->  | B52: =IF(Start!B52="","",Start!B52) -> 601-01522 | C52: =IF(Start!C52="","",Start!C52) -> GUARDRAIL TRANSITION TYPE TGB | D52: =IF(Start!D52="","",Start!D52) -> 2 | E52: =IF(Start!E52="","",Start!E52) -> 0 | F52: =IF(Start!F52="","",Start!F52) -> EACH | G52: =IF(Start!G52="","",Start!G52) -> 2100 | H52: =IF(Start!H52="","",Start!H52) -> 4200 | I52: 1 | J52: =IF(I52="","",LOOKUP(I52,{1,"01";2,"02";3,"03";4,"04";5,"05";6,"06";7,"07";8,"08";9,"09";10,"10";11,"11";12,"12";13,"13";14,"14";15,"15"})) -> 01 | K52: 01. Superior Construction Company | L52: 600 | M52: 601 | N52: =IF(B52="","",VLOOKUP(M52,Sections!$A$2:$D$200,3,FALSE)) -> Incidental Construction | O52: =IF(B52="","",VLOOKUP(M52,Sections!$A$2:$D$200,4,FALSE)) -> Guardrail
A53: =IF(Start!A53="","",Start!A53) ->  | B53: =IF(Start!B53="","",Start!B53) -> 601-01701 | C53: =IF(Start!C53="","",Start!C53) -> GUARDRAIL TERMINAL SYSTEM, W BEAM, CURVED, 2 | D53: =IF(Start!D53="","",Start!D53) -> 2 | E53: =IF(Start!E53="","",Start!E53) -> 0 | F53: =IF(Start!F53="","",Start!F53) -> EACH | G53: =IF(Start!G53="","",Start!G53) -> 1865 | H53: =IF(Start!H53="","",Start!H53) -> 3730 | I53: 1 | J53: =IF(I53="","",LOOKUP(I53,{1,"01";2,"02";3,"03";4,"04";5,"05";6,"06";7,"07";8,"08";9,"09";10,"10";11,"11";12,"12";13,"13";14,"14";15,"15"})) -> 01 | K53: 01. Superior Construction Company | L53: 600 | M53: 601 | N53: =IF(B53="","",VLOOKUP(M53,Sections!$A$2:$D$200,3,FALSE)) -> Incidental Construction | O53: =IF(B53="","",VLOOKUP(M53,Sections!$A$2:$D$200,4,FALSE)) -> Guardrail
A54: =IF(Start!A54="","",Start!A54) ->  | B54: =IF(Start!B54="","",Start!B54) -> 601-01848 | C54: =IF(Start!C54="","",Start!C54) -> GUARDRAIL TERMINAL SYSTEM, W-BEAM, CURVED, 5 | D54: =IF(Start!D54="","",Start!D54) -> 1 | E54: =IF(Start!E54="","",Start!E54) -> 0 | F54: =IF(Start!F54="","",Start!F54) -> EACH | G54: =IF(Start!G54="","",Start!G54) -> 2065 | H54: =IF(Start!H54="","",Start!H54) -> 2065 | I54: 1 | J54: =IF(I54="","",LOOKUP(I54,{1,"01";2,"02";3,"03";4,"04";5,"05";6,"06";7,"07";8,"08";9,"09";10,"10";11,"11";12,"12";13,"13";14,"14";15,"15"})) -> 01 | K54: 01. Superior Construction Company | L54: 600 | M54: 601 | N54: =IF(B54="","",VLOOKUP(M54,Sections!$A$2:$D$200,3,FALSE)) -> Incidental Construction | O54: =IF(B54="","",VLOOKUP(M54,Sections!$A$2:$D$200,4,FALSE)) -> Guardrail
A55: =IF(Start!A55="","",Start!A55) ->  | B55: =IF(Start!B55="","",Start!B55) -> 601-02241 | C55: =IF(Start!C55="","",Start!C55) -> GUARDRAIL, REMOVE | D55: =IF(Start!D55="","",Start!D55) -> 1325 | E55: =IF(Start!E55="","",Start!E55) -> 0 | F55: =IF(Start!F55="","",Start!F55) -> L.F. | G55: =IF(Start!G55="","",Start!G55) -> 4.5 | H55: =IF(Start!H55="","",Start!H55) -> 5962.5 | I55: 1 | J55: =IF(I55="","",LOOKUP(I55,{1,"01";2,"02";3,"03";4,"04";5,"05";6,"06";7,"07";8,"08";9,"09";10,"10";11,"11";12,"12";13,"13";14,"14";15,"15"})) -> 01 | K55: 01. Superior Construction Company | L55: 600 | M55: 601 | N55: =IF(B55="","",VLOOKUP(M55,Sections!$A$2:$D$200,3,FALSE)) -> Incidental Construction | O55: =IF(B55="","",VLOOKUP(M55,Sections!$A$2:$D$200,4,FALSE)) -> Guardrail
A56: =IF(Start!A56="","",Start!A56) ->  | B56: =IF(Start!B56="","",Start!B56) -> 601-05071 | C56: =IF(Start!C56="","",Start!C56) -> GUARDRAIL TERMINAL SYSTEM, W-BEAM, CURVED, 7 | D56: =IF(Start!D56="","",Start!D56) -> 1 | E56: =IF(Start!E56="","",Start!E56) -> 0 | F56: =IF(Start!F56="","",Start!F56) -> EACH | G56: =IF(Start!G56="","",Start!G56) -> 2500 | H56: =IF(Start!H56="","",Start!H56) -> 2500 | I56: 1 | J56: =IF(I56="","",LOOKUP(I56,{1,"01";2,"02";3,"03";4,"04";5,"05";6,"06";7,"07";8,"08";9,"09";10,"10";11,"11";12,"12";13,"13";14,"14";15,"15"})) -> 01 | K56: 01. Superior Construction Company | L56: 600 | M56: 601 | N56: =IF(B56="","",VLOOKUP(M56,Sections!$A$2:$D$200,3,FALSE)) -> Incidental Construction | O56: =IF(B56="","",VLOOKUP(M56,Sections!$A$2:$D$200,4,FALSE)) -> Guardrail
A57: =IF(Start!A57="","",Start!A57) ->  | B57: =IF(Start!B57="","",Start!B57) -> 601-06854 | C57: =IF(Start!C57="","",Start!C57) -> GUARDRAIL, W-BEAM, NESTED | D57: =IF(Start!D57="","",Start!D57) -> 5 | E57: =IF(Start!E57="","",Start!E57) -> 0 | F57: =IF(Start!F57="","",Start!F57) -> EACH | G57: =IF(Start!G57="","",Start!G57) -> 2800 | H57: =IF(Start!H57="","",Start!H57) -> 14000 | I57: 1 | J57: =IF(I57="","",LOOKUP(I57,{1,"01";2,"02";3,"03";4,"04";5,"05";6,"06";7,"07";8,"08";9,"09";10,"10";11,"11";12,"12";13,"13";14,"14";15,"15"})) -> 01 | K57: 01. Superior Construction Company | L57: 600 | M57: 601 | N57: =IF(B57="","",VLOOKUP(M57,Sections!$A$2:$D$200,3,FALSE)) -> Incidental Construction | O57: =IF(B57="","",VLOOKUP(M57,Sections!$A$2:$D$200,4,FALSE)) -> Guardrail
A58: =IF(Start!A58="","",Start!A58) ->  | B58: =IF(Start!B58="","",Start!B58) -> 601-08433 | C58: =IF(Start!C58="","",Start!C58) -> GUARDRAIL END TREATMENT, TYPE OS, SPARE PARTS | D58: =IF(Start!D58="","",Start!D58) -> 1 | E58: =IF(Start!E58="","",Start!E58) -> 0 | F58: =IF(Start!F58="","",Start!F58) -> EACH | G58: =IF(Start!G58="","",Start!G58) -> 610 | H58: =IF(Start!H58="","",Start!H58) -> 610 | I58: 1 | J58: =IF(I58="","",LOOKUP(I58,{1,"01";2,"02";3,"03";4,"04";5,"05";6,"06";7,"07";8,"08";9,"09";10,"10";11,"11";12,"12";13,"13";14,"14";15,"15"})) -> 01 | K58: 01. Superior Construction Company | L58: 600 | M58: 601 | N58: =IF(B58="","",VLOOKUP(M58,Sections!$A$2:$D$200,3,FALSE)) -> Incidental Construction | O58: =IF(B58="","",VLOOKUP(M58,Sections!$A$2:$D$200,4,FALSE)) -> Guardrail
A59: =IF(Start!A59="","",Start!A59) ->  | B59: =IF(Start!B59="","",Start!B59) -> 601-08434 | C59: =IF(Start!C59="","",Start!C59) -> GUARDRAIL END TREATMENT, TYPE OS, SPARE PARTS | D59: =IF(Start!D59="","",Start!D59) -> 1 | E59: =IF(Start!E59="","",Start!E59) -> 0 | F59: =IF(Start!F59="","",Start!F59) -> EACH | G59: =IF(Start!G59="","",Start!G59) -> 110 | H59: =IF(Start!H59="","",Start!H59) -> 110 | I59: 1 | J59: =IF(I59="","",LOOKUP(I59,{1,"01";2,"02";3,"03";4,"04";5,"05";6,"06";7,"07";8,"08";9,"09";10,"10";11,"11";12,"12";13,"13";14,"14";15,"15"})) -> 01 | K59: 01. Superior Construction Company | L59: 600 | M59: 601 | N59: =IF(B59="","",VLOOKUP(M59,Sections!$A$2:$D$200,3,FALSE)) -> Incidental Construction | O59: =IF(B59="","",VLOOKUP(M59,Sections!$A$2:$D$200,4,FALSE)) -> Guardrail
A60: =IF(Start!A60="","",Start!A60) ->  | B60: =IF(Start!B60="","",Start!B60) -> 601-09149 | C60: =IF(Start!C60="","",Start!C60) -> IMPACT ATTENUATOR, CR1, W1, TL-3 | D60: =IF(Start!D60="","",Start!D60) -> 2 | E60: =IF(Start!E60="","",Start!E60) -> 0 | F60: =IF(Start!F60="","",Start!F60) -> EACH | G60: =IF(Start!G60="","",Start!G60) -> 33300 | H60: =IF(Start!H60="","",Start!H60) -> 66600 | I60: 1 | J60: =IF(I60="","",LOOKUP(I60,{1,"01";2,"02";3,"03";4,"04";5,"05";6,"06";7,"07";8,"08";9,"09";10,"10";11,"11";12,"12";13,"13";14,"14";15,"15"})) -> 01 | K60: 01. Superior Construction Company | L60: 600 | M60: 601 | N60: =IF(B60="","",VLOOKUP(M60,Sections!$A$2:$D$200,3,FALSE)) -> Incidental Construction | O60: =IF(B60="","",VLOOKUP(M60,Sections!$A$2:$D$200,4,FALSE)) -> Guardrail
A61: =IF(Start!A61="","",Start!A61) ->  | B61: =IF(Start!B61="","",Start!B61) -> 601-94689 | C61: =IF(Start!C61="","",Start!C61) -> GUARDRAIL END TREATMENT, OS | D61: =IF(Start!D61="","",Start!D61) -> 15 | E61: =IF(Start!E61="","",Start!E61) -> 0 | F61: =IF(Start!F61="","",Start!F61) -> EACH | G61: =IF(Start!G61="","",Start!G61) -> 2635 | H61: =IF(Start!H61="","",Start!H61) -> 39525 | I61: 1 | J61: =IF(I61="","",LOOKUP(I61,{1,"01";2,"02";3,"03";4,"04";5,"05";6,"06";7,"07";8,"08";9,"09";10,"10";11,"11";12,"12";13,"13";14,"14";15,"15"})) -> 01 | K61: 01. Superior Construction Company | L61: 600 | M61: 601 | N61: =IF(B61="","",VLOOKUP(M61,Sections!$A$2:$D$200,3,FALSE)) -> Incidental Construction | O61: =IF(B61="","",VLOOKUP(M61,Sections!$A$2:$D$200,4,FALSE)) -> Guardrail
A62: =IF(Start!A62="","",Start!A62) ->  | B62: =IF(Start!B62="","",Start!B62) -> 601-99105 | C62: =IF(Start!C62="","",Start!C62) -> GUARDRAIL, W BEAM, 6 FT. 3 IN. SPACING | D62: =IF(Start!D62="","",Start!D62) -> 3583 | E62: =IF(Start!E62="","",Start!E62) -> 0 | F62: =IF(Start!F62="","",Start!F62) -> L.F. | G62: =IF(Start!G62="","",Start!G62) -> 18.75 | H62: =IF(Start!H62="","",Start!H62) -> 67181.25 | I62: 1 | J62: =IF(I62="","",LOOKUP(I62,{1,"01";2,"02";3,"03";4,"04";5,"05";6,"06";7,"07";8,"08";9,"09";10,"10";11,"11";12,"12";13,"13";14,"14";15,"15"})) -> 01 | K62: 01. Superior Construction Company | L62: 600 | M62: 601 | N62: =IF(B62="","",VLOOKUP(M62,Sections!$A$2:$D$200,3,FALSE)) -> Incidental Construction | O62: =IF(B62="","",VLOOKUP(M62,Sections!$A$2:$D$200,4,FALSE)) -> Guardrail
A63: =IF(Start!A63="","",Start!A63) ->  | B63: =IF(Start!B63="","",Start!B63) -> 601-99123 | C63: =IF(Start!C63="","",Start!C63) -> GUARDRAIL TRANSITION, GP | D63: =IF(Start!D63="","",Start!D63) -> 4 | E63: =IF(Start!E63="","",Start!E63) -> 0 | F63: =IF(Start!F63="","",Start!F63) -> EACH | G63: =IF(Start!G63="","",Start!G63) -> 3100 | H63: =IF(Start!H63="","",Start!H63) -> 12400 | I63: 1 | J63: =IF(I63="","",LOOKUP(I63,{1,"01";2,"02";3,"03";4,"04";5,"05";6,"06";7,"07";8,"08";9,"09";10,"10";11,"11";12,"12";13,"13";14,"14";15,"15"})) -> 01 | K63: 01. Superior Construction Company | L63: 600 | M63: 601 | N63: =IF(B63="","",VLOOKUP(M63,Sections!$A$2:$D$200,3,FALSE)) -> Incidental Construction | O63: =IF(B63="","",VLOOKUP(M63,Sections!$A$2:$D$200,4,FALSE)) -> Guardrail
A64: =IF(Start!A64="","",Start!A64) ->  | B64: =IF(Start!B64="","",Start!B64) -> 603-06040 | C64: =IF(Start!C64="","",Start!C64) -> FENCE, FARM FIELD, 47 IN. | D64: =IF(Start!D64="","",Start!D64) -> 2579 | E64: =IF(Start!E64="","",Start!E64) -> 0 | F64: =IF(Start!F64="","",Start!F64) -> L.F. | G64: =IF(Start!G64="","",Start!G64) -> 7.25 | H64: =IF(Start!H64="","",Start!H64) -> 18697.75 | I64: 1 | J64: =IF(I64="","",LOOKUP(I64,{1,"01";2,"02";3,"03";4,"04";5,"05";6,"06";7,"07";8,"08";9,"09";10,"10";11,"11";12,"12";13,"13";14,"14";15,"15"})) -> 01 | K64: 01. Superior Construction Company | L64: 600 | M64: 603 | N64: =IF(B64="","",VLOOKUP(M64,Sections!$A$2:$D$200,3,FALSE)) -> Incidental Construction | O64: =IF(B64="","",VLOOKUP(M64,Sections!$A$2:$D$200,4,FALSE)) -> Fences
A65: =IF(Start!A65="","",Start!A65) ->  | B65: =IF(Start!B65="","",Start!B65) -> 605-06090 | C65: =IF(Start!C65="","",Start!C65) -> CURB, INTEGRAL, CONCRETE | D65: =IF(Start!D65="","",Start!D65) -> 217 | E65: =IF(Start!E65="","",Start!E65) -> 0 | F65: =IF(Start!F65="","",Start!F65) -> L.F. | G65: =IF(Start!G65="","",Start!G65) -> 14 | H65: =IF(Start!H65="","",Start!H65) -> 3038 | I65: 1 | J65: =IF(I65="","",LOOKUP(I65,{1,"01";2,"02";3,"03";4,"04";5,"05";6,"06";7,"07";8,"08";9,"09";10,"10";11,"11";12,"12";13,"13";14,"14";15,"15"})) -> 01 | K65: 01. Superior Construction Company | L65: 600 | M65: 605 | N65: =IF(B65="","",VLOOKUP(M65,Sections!$A$2:$D$200,3,FALSE)) -> Incidental Construction | O65: =IF(B65="","",VLOOKUP(M65,Sections!$A$2:$D$200,4,FALSE)) -> Curbing
A66: =IF(Start!A66="","",Start!A66) ->  | B66: =IF(Start!B66="","",Start!B66) -> 605-06121 | C66: =IF(Start!C66="","",Start!C66) -> CURB, CONCRETE, B | D66: =IF(Start!D66="","",Start!D66) -> 1442 | E66: =IF(Start!E66="","",Start!E66) -> 0 | F66: =IF(Start!F66="","",Start!F66) -> L.F. | G66: =IF(Start!G66="","",Start!G66) -> 15 | H66: =IF(Start!H66="","",Start!H66) -> 21630 | I66: 1 | J66: =IF(I66="","",LOOKUP(I66,{1,"01";2,"02";3,"03";4,"04";5,"05";6,"06";7,"07";8,"08";9,"09";10,"10";11,"11";12,"12";13,"13";14,"14";15,"15"})) -> 01 | K66: 01. Superior Construction Company | L66: 600 | M66: 605 | N66: =IF(B66="","",VLOOKUP(M66,Sections!$A$2:$D$200,3,FALSE)) -> Incidental Construction | O66: =IF(B66="","",VLOOKUP(M66,Sections!$A$2:$D$200,4,FALSE)) -> Curbing
A67: =IF(Start!A67="","",Start!A67) ->  | B67: =IF(Start!B67="","",Start!B67) -> 605-06140 | C67: =IF(Start!C67="","",Start!C67) -> CURB AND GUTTER, CONCRETE | D67: =IF(Start!D67="","",Start!D67) -> 42 | E67: =IF(Start!E67="","",Start!E67) -> 0 | F67: =IF(Start!F67="","",Start!F67) -> L.F. | G67: =IF(Start!G67="","",Start!G67) -> 21 | H67: =IF(Start!H67="","",Start!H67) -> 882 | I67: =IF(AND(A67="",B67="",C67=""),"",IF(AND(A67<>"",B67="",G67=0,H67=0),D67,I66)) -> 1 | J67: =IF(I67="","",LOOKUP(I67,{1,"01";2,"02";3,"03";4,"04";5,"05";6,"06";7,"07";8,"08";9,"09";10,"10";11,"11";12,"12";13,"13";14,"14";15,"15"})) -> 01 | K67: =IF(AND(A67<>"",B67=""),J67&". "&PROPER(C67),IF(AND(A67="",B67<>""),PROPER(K66),"")) -> 01. Superior Construction Company | L67: =IF(B67="","",LEFT(B67,1)*100) -> 600 | M67: =IF(B67="","",LEFT(B67,3)*1) -> 605 | N67: =IF(B67="","",VLOOKUP(M67,Sections!$A$2:$D$200,3,FALSE)) -> Incidental Construction | O67: =IF(B67="","",VLOOKUP(M67,Sections!$A$2:$D$200,4,FALSE)) -> Curbing
A68: =IF(Start!A68="","",Start!A68) ->  | B68: =IF(Start!B68="","",Start!B68) -> 605-06145 | C68: =IF(Start!C68="","",Start!C68) -> CURB AND GUTTER, B, CONCRETE | D68: =IF(Start!D68="","",Start!D68) -> 177 | E68: =IF(Start!E68="","",Start!E68) -> 0 | F68: =IF(Start!F68="","",Start!F68) -> L.F. | G68: =IF(Start!G68="","",Start!G68) -> 20 | H68: =IF(Start!H68="","",Start!H68) -> 3540 | I68: 1 | J68: =IF(I68="","",LOOKUP(I68,{1,"01";2,"02";3,"03";4,"04";5,"05";6,"06";7,"07";8,"08";9,"09";10,"10";11,"11";12,"12";13,"13";14,"14";15,"15"})) -> 01 | K68: 01. Superior Construction Company | L68: 600 | M68: 605 | N68: =IF(B68="","",VLOOKUP(M68,Sections!$A$2:$D$200,3,FALSE)) -> Incidental Construction | O68: =IF(B68="","",VLOOKUP(M68,Sections!$A$2:$D$200,4,FALSE)) -> Curbing
A69: =IF(Start!A69="","",Start!A69) ->  | B69: =IF(Start!B69="","",Start!B69) -> 605-06245 | C69: =IF(Start!C69="","",Start!C69) -> CENTER CURB, B, CONCRETE | D69: =IF(Start!D69="","",Start!D69) -> 4255 | E69: =IF(Start!E69="","",Start!E69) -> 0 | F69: =IF(Start!F69="","",Start!F69) -> S.Y. | G69: =IF(Start!G69="","",Start!G69) -> 36 | H69: =IF(Start!H69="","",Start!H69) -> 153180 | I69: 1 | J69: =IF(I69="","",LOOKUP(I69,{1,"01";2,"02";3,"03";4,"04";5,"05";6,"06";7,"07";8,"08";9,"09";10,"10";11,"11";12,"12";13,"13";14,"14";15,"15"})) -> 01 | K69: 01. Superior Construction Company | L69: 600 | M69: 605 | N69: =IF(B69="","",VLOOKUP(M69,Sections!$A$2:$D$200,3,FALSE)) -> Incidental Construction | O69: =IF(B69="","",VLOOKUP(M69,Sections!$A$2:$D$200,4,FALSE)) -> Curbing
A70: =IF(Start!A70="","",Start!A70) ->  | B70: =IF(Start!B70="","",Start!B70) -> 610-07487 | C70: =IF(Start!C70="","",Start!C70) -> HMA FOR APPROACHES, TYPE B | D70: =IF(Start!D70="","",Start!D70) -> 1776 | E70: =IF(Start!E70="","",Start!E70) -> 0 | F70: =IF(Start!F70="","",Start!F70) -> TON | G70: =IF(Start!G70="","",Start!G70) -> 73.5 | H70: =IF(Start!H70="","",Start!H70) -> 130536 | I70: 1 | J70: =IF(I70="","",LOOKUP(I70,{1,"01";2,"02";3,"03";4,"04";5,"05";6,"06";7,"07";8,"08";9,"09";10,"10";11,"11";12,"12";13,"13";14,"14";15,"15"})) -> 01 | K70: 01. Superior Construction Company | L70: 600 | M70: 610 | N70: =IF(B70="","",VLOOKUP(M70,Sections!$A$2:$D$200,3,FALSE)) -> Incidental Construction | O70: =IF(B70="","",VLOOKUP(M70,Sections!$A$2:$D$200,4,FALSE)) -> Approaches And Crossovers
A71: =IF(Start!A71="","",Start!A71) ->  | B71: =IF(Start!B71="","",Start!B71) -> 610-09108 | C71: =IF(Start!C71="","",Start!C71) -> PCCP FOR APPROACHES, 9 IN. | D71: =IF(Start!D71="","",Start!D71) -> 2088 | E71: =IF(Start!E71="","",Start!E71) -> 0 | F71: =IF(Start!F71="","",Start!F71) -> S.Y. | G71: =IF(Start!G71="","",Start!G71) -> 55 | H71: =IF(Start!H71="","",Start!H71) -> 114840 | I71: 1 | J71: =IF(I71="","",LOOKUP(I71,{1,"01";2,"02";3,"03";4,"04";5,"05";6,"06";7,"07";8,"08";9,"09";10,"10";11,"11";12,"12";13,"13";14,"14";15,"15"})) -> 01 | K71: 01. Superior Construction Company | L71: 600 | M71: 610 | N71: =IF(B71="","",VLOOKUP(M71,Sections!$A$2:$D$200,3,FALSE)) -> Incidental Construction | O71: =IF(B71="","",VLOOKUP(M71,Sections!$A$2:$D$200,4,FALSE)) -> Approaches And Crossovers
A72: =IF(Start!A72="","",Start!A72) ->  | B72: =IF(Start!B72="","",Start!B72) -> 611-06497 | C72: =IF(Start!C72="","",Start!C72) -> MAILBOX ASSEMBLY, SINGLE | D72: =IF(Start!D72="","",Start!D72) -> 2 | E72: =IF(Start!E72="","",Start!E72) -> 0 | F72: =IF(Start!F72="","",Start!F72) -> EACH | G72: =IF(Start!G72="","",Start!G72) -> 215 | H72: =IF(Start!H72="","",Start!H72) -> 430 | I72: 1 | J72: =IF(I72="","",LOOKUP(I72,{1,"01";2,"02";3,"03";4,"04";5,"05";6,"06";7,"07";8,"08";9,"09";10,"10";11,"11";12,"12";13,"13";14,"14";15,"15"})) -> 01 | K72: 01. Superior Construction Company | L72: 600 | M72: 611 | N72: =IF(B72="","",VLOOKUP(M72,Sections!$A$2:$D$200,3,FALSE)) -> Incidental Construction | O72: =IF(B72="","",VLOOKUP(M72,Sections!$A$2:$D$200,4,FALSE)) -> Mailbox Installations
A73: =IF(Start!A73="","",Start!A73) ->  | B73: =IF(Start!B73="","",Start!B73) -> 611-06498 | C73: =IF(Start!C73="","",Start!C73) -> MAILBOX ASSEMBLY, DOUBLE | D73: =IF(Start!D73="","",Start!D73) -> 1 | E73: =IF(Start!E73="","",Start!E73) -> 0 | F73: =IF(Start!F73="","",Start!F73) -> EACH | G73: =IF(Start!G73="","",Start!G73) -> 275 | H73: =IF(Start!H73="","",Start!H73) -> 275 | I73: 1 | J73: =IF(I73="","",LOOKUP(I73,{1,"01";2,"02";3,"03";4,"04";5,"05";6,"06";7,"07";8,"08";9,"09";10,"10";11,"11";12,"12";13,"13";14,"14";15,"15"})) -> 01 | K73: 01. Superior Construction Company | L73: 600 | M73: 611 | N73: =IF(B73="","",VLOOKUP(M73,Sections!$A$2:$D$200,3,FALSE)) -> Incidental Construction | O73: =IF(B73="","",VLOOKUP(M73,Sections!$A$2:$D$200,4,FALSE)) -> Mailbox Installations
A74: =IF(Start!A74="","",Start!A74) ->  | B74: =IF(Start!B74="","",Start!B74) -> 615-06490 | C74: =IF(Start!C74="","",Start!C74) -> RIGHT OF WAY MARKER | D74: =IF(Start!D74="","",Start!D74) -> 61 | E74: =IF(Start!E74="","",Start!E74) -> 0 | F74: =IF(Start!F74="","",Start!F74) -> EACH | G74: =IF(Start!G74="","",Start!G74) -> 137 | H74: =IF(Start!H74="","",Start!H74) -> 8357 | I74: 1 | J74: =IF(I74="","",LOOKUP(I74,{1,"01";2,"02";3,"03";4,"04";5,"05";6,"06";7,"07";8,"08";9,"09";10,"10";11,"11";12,"12";13,"13";14,"14";15,"15"})) -> 01 | K74: 01. Superior Construction Company | L74: 600 | M74: 615 | N74: =IF(B74="","",VLOOKUP(M74,Sections!$A$2:$D$200,3,FALSE)) -> Incidental Construction | O74: =IF(B74="","",VLOOKUP(M74,Sections!$A$2:$D$200,4,FALSE)) -> Monuments, Markers, And Parking Barriers
A75: =IF(Start!A75="","",Start!A75) ->  | B75: =IF(Start!B75="","",Start!B75) -> 615-06500 | C75: =IF(Start!C75="","",Start!C75) -> MONUMENT, A | D75: =IF(Start!D75="","",Start!D75) -> 2 | E75: =IF(Start!E75="","",Start!E75) -> 0 | F75: =IF(Start!F75="","",Start!F75) -> EACH | G75: =IF(Start!G75="","",Start!G75) -> 650 | H75: =IF(Start!H75="","",Start!H75) -> 1300 | I75: 1 | J75: =IF(I75="","",LOOKUP(I75,{1,"01";2,"02";3,"03";4,"04";5,"05";6,"06";7,"07";8,"08";9,"09";10,"10";11,"11";12,"12";13,"13";14,"14";15,"15"})) -> 01 | K75: 01. Superior Construction Company | L75: 600 | M75: 615 | N75: =IF(B75="","",VLOOKUP(M75,Sections!$A$2:$D$200,3,FALSE)) -> Incidental Construction | O75: =IF(B75="","",VLOOKUP(M75,Sections!$A$2:$D$200,4,FALSE)) -> Monuments, Markers, And Parking Barriers
A76: =IF(Start!A76="","",Start!A76) ->  | B76: =IF(Start!B76="","",Start!B76) -> 615-06505 | C76: =IF(Start!C76="","",Start!C76) -> MONUMENT, B | D76: =IF(Start!D76="","",Start!D76) -> 6 | E76: =IF(Start!E76="","",Start!E76) -> 0 | F76: =IF(Start!F76="","",Start!F76) -> EACH | G76: =IF(Start!G76="","",Start!G76) -> 755 | H76: =IF(Start!H76="","",Start!H76) -> 4530 | I76: 1 | J76: =IF(I76="","",LOOKUP(I76,{1,"01";2,"02";3,"03";4,"04";5,"05";6,"06";7,"07";8,"08";9,"09";10,"10";11,"11";12,"12";13,"13";14,"14";15,"15"})) -> 01 | K76: 01. Superior Construction Company | L76: 600 | M76: 615 | N76: =IF(B76="","",VLOOKUP(M76,Sections!$A$2:$D$200,3,FALSE)) -> Incidental Construction | O76: =IF(B76="","",VLOOKUP(M76,Sections!$A$2:$D$200,4,FALSE)) -> Monuments, Markers, And Parking Barriers
A77: =IF(Start!A77="","",Start!A77) ->  | B77: =IF(Start!B77="","",Start!B77) -> 615-06510 | C77: =IF(Start!C77="","",Start!C77) -> MONUMENT, C | D77: =IF(Start!D77="","",Start!D77) -> 2 | E77: =IF(Start!E77="","",Start!E77) -> 0 | F77: =IF(Start!F77="","",Start!F77) -> EACH | G77: =IF(Start!G77="","",Start!G77) -> 555 | H77: =IF(Start!H77="","",Start!H77) -> 1110 | I77: 1 | J77: =IF(I77="","",LOOKUP(I77,{1,"01";2,"02";3,"03";4,"04";5,"05";6,"06";7,"07";8,"08";9,"09";10,"10";11,"11";12,"12";13,"13";14,"14";15,"15"})) -> 01 | K77: 01. Superior Construction Company | L77: 600 | M77: 615 | N77: =IF(B77="","",VLOOKUP(M77,Sections!$A$2:$D$200,3,FALSE)) -> Incidental Construction | O77: =IF(B77="","",VLOOKUP(M77,Sections!$A$2:$D$200,4,FALSE)) -> Monuments, Markers, And Parking Barriers
A78: =IF(Start!A78="","",Start!A78) ->  | B78: =IF(Start!B78="","",Start!B78) -> 615-06515 | C78: =IF(Start!C78="","",Start!C78) -> MONUMENT, D | D78: =IF(Start!D78="","",Start!D78) -> 48 | E78: =IF(Start!E78="","",Start!E78) -> 0 | F78: =IF(Start!F78="","",Start!F78) -> EACH | G78: =IF(Start!G78="","",Start!G78) -> 135 | H78: =IF(Start!H78="","",Start!H78) -> 6480 | I78: 1 | J78: =IF(I78="","",LOOKUP(I78,{1,"01";2,"02";3,"03";4,"04";5,"05";6,"06";7,"07";8,"08";9,"09";10,"10";11,"11";12,"12";13,"13";14,"14";15,"15"})) -> 01 | K78: 01. Superior Construction Company | L78: 600 | M78: 615 | N78: =IF(B78="","",VLOOKUP(M78,Sections!$A$2:$D$200,3,FALSE)) -> Incidental Construction | O78: =IF(B78="","",VLOOKUP(M78,Sections!$A$2:$D$200,4,FALSE)) -> Monuments, Markers, And Parking Barriers
A79: =IF(Start!A79="","",Start!A79) ->  | B79: =IF(Start!B79="","",Start!B79) -> 615-06520 | C79: =IF(Start!C79="","",Start!C79) -> MONUMENT, RE ESTABLISH | D79: =IF(Start!D79="","",Start!D79) -> 1 | E79: =IF(Start!E79="","",Start!E79) -> 0 | F79: =IF(Start!F79="","",Start!F79) -> EACH | G79: =IF(Start!G79="","",Start!G79) -> 1500 | H79: =IF(Start!H79="","",Start!H79) -> 1500 | I79: 1 | J79: =IF(I79="","",LOOKUP(I79,{1,"01";2,"02";3,"03";4,"04";5,"05";6,"06";7,"07";8,"08";9,"09";10,"10";11,"11";12,"12";13,"13";14,"14";15,"15"})) -> 01 | K79: 01. Superior Construction Company | L79: 600 | M79: 615 | N79: =IF(B79="","",VLOOKUP(M79,Sections!$A$2:$D$200,3,FALSE)) -> Incidental Construction | O79: =IF(B79="","",VLOOKUP(M79,Sections!$A$2:$D$200,4,FALSE)) -> Monuments, Markers, And Parking Barriers
A80: =IF(Start!A80="","",Start!A80) ->  | B80: =IF(Start!B80="","",Start!B80) -> 615-06535 | C80: =IF(Start!C80="","",Start!C80) -> BENCH MARK POST, RESET | D80: =IF(Start!D80="","",Start!D80) -> 1 | E80: =IF(Start!E80="","",Start!E80) -> 0 | F80: =IF(Start!F80="","",Start!F80) -> EACH | G80: =IF(Start!G80="","",Start!G80) -> 1000 | H80: =IF(Start!H80="","",Start!H80) -> 1000 | I80: 1 | J80: =IF(I80="","",LOOKUP(I80,{1,"01";2,"02";3,"03";4,"04";5,"05";6,"06";7,"07";8,"08";9,"09";10,"10";11,"11";12,"12";13,"13";14,"14";15,"15"})) -> 01 | K80: 01. Superior Construction Company | L80: 600 | M80: 615 | N80: =IF(B80="","",VLOOKUP(M80,Sections!$A$2:$D$200,3,FALSE)) -> Incidental Construction | O80: =IF(B80="","",VLOOKUP(M80,Sections!$A$2:$D$200,4,FALSE)) -> Monuments, Markers, And Parking Barriers
A81: =IF(Start!A81="","",Start!A81) ->  | B81: =IF(Start!B81="","",Start!B81) -> 616-02320 | C81: =IF(Start!C81="","",Start!C81) -> GEOTEXTILES | D81: =IF(Start!D81="","",Start!D81) -> 1282 | E81: =IF(Start!E81="","",Start!E81) -> 0 | F81: =IF(Start!F81="","",Start!F81) -> S.Y. | G81: =IF(Start!G81="","",Start!G81) -> 1.55 | H81: =IF(Start!H81="","",Start!H81) -> 1987.1 | I81: 1 | J81: =IF(I81="","",LOOKUP(I81,{1,"01";2,"02";3,"03";4,"04";5,"05";6,"06";7,"07";8,"08";9,"09";10,"10";11,"11";12,"12";13,"13";14,"14";15,"15"})) -> 01 | K81: 01. Superior Construction Company | L81: 600 | M81: 616 | N81: =IF(B81="","",VLOOKUP(M81,Sections!$A$2:$D$200,3,FALSE)) -> Incidental Construction | O81: =IF(B81="","",VLOOKUP(M81,Sections!$A$2:$D$200,4,FALSE)) -> Riprap And Slopewall
A82: =IF(Start!A82="","",Start!A82) ->  | B82: =IF(Start!B82="","",Start!B82) -> 616-05688 | C82: =IF(Start!C82="","",Start!C82) -> RIPRAP, CLASS 1 | D82: =IF(Start!D82="","",Start!D82) -> 77 | E82: =IF(Start!E82="","",Start!E82) -> 0 | F82: =IF(Start!F82="","",Start!F82) -> TON | G82: =IF(Start!G82="","",Start!G82) -> 57 | H82: =IF(Start!H82="","",Start!H82) -> 4389 | I82: 1 | J82: =IF(I82="","",LOOKUP(I82,{1,"01";2,"02";3,"03";4,"04";5,"05";6,"06";7,"07";8,"08";9,"09";10,"10";11,"11";12,"12";13,"13";14,"14";15,"15"})) -> 01 | K82: 01. Superior Construction Company | L82: 600 | M82: 616 | N82: =IF(B82="","",VLOOKUP(M82,Sections!$A$2:$D$200,3,FALSE)) -> Incidental Construction | O82: =IF(B82="","",VLOOKUP(M82,Sections!$A$2:$D$200,4,FALSE)) -> Riprap And Slopewall
A83: =IF(Start!A83="","",Start!A83) ->  | B83: =IF(Start!B83="","",Start!B83) -> 616-06405 | C83: =IF(Start!C83="","",Start!C83) -> RIPRAP, REVETMENT | D83: =IF(Start!D83="","",Start!D83) -> 445 | E83: =IF(Start!E83="","",Start!E83) -> 0 | F83: =IF(Start!F83="","",Start!F83) -> TON | G83: =IF(Start!G83="","",Start!G83) -> 41 | H83: =IF(Start!H83="","",Start!H83) -> 18245 | I83: 1 | J83: =IF(I83="","",LOOKUP(I83,{1,"01";2,"02";3,"03";4,"04";5,"05";6,"06";7,"07";8,"08";9,"09";10,"10";11,"11";12,"12";13,"13";14,"14";15,"15"})) -> 01 | K83: 01. Superior Construction Company | L83: 600 | M83: 616 | N83: =IF(B83="","",VLOOKUP(M83,Sections!$A$2:$D$200,3,FALSE)) -> Incidental Construction | O83: =IF(B83="","",VLOOKUP(M83,Sections!$A$2:$D$200,4,FALSE)) -> Riprap And Slopewall
A84: =IF(Start!A84="","",Start!A84) ->  | B84: =IF(Start!B84="","",Start!B84) -> 616-06451 | C84: =IF(Start!C84="","",Start!C84) -> RIPRAP, UNIFORM | D84: =IF(Start!D84="","",Start!D84) -> 62 | E84: =IF(Start!E84="","",Start!E84) -> 0 | F84: =IF(Start!F84="","",Start!F84) -> TON | G84: =IF(Start!G84="","",Start!G84) -> 41 | H84: =IF(Start!H84="","",Start!H84) -> 2542 | I84: 1 | J84: =IF(I84="","",LOOKUP(I84,{1,"01";2,"02";3,"03";4,"04";5,"05";6,"06";7,"07";8,"08";9,"09";10,"10";11,"11";12,"12";13,"13";14,"14";15,"15"})) -> 01 | K84: 01. Superior Construction Company | L84: 600 | M84: 616 | N84: =IF(B84="","",VLOOKUP(M84,Sections!$A$2:$D$200,3,FALSE)) -> Incidental Construction | O84: =IF(B84="","",VLOOKUP(M84,Sections!$A$2:$D$200,4,FALSE)) -> Riprap And Slopewall
A85: =IF(Start!A85="","",Start!A85) ->  | B85: =IF(Start!B85="","",Start!B85) -> 619-11052 | C85: =IF(Start!C85="","",Start!C85) -> CLEAN STEEL BRIDGE, QP-2, BR. NO. , | D85: =IF(Start!D85="","",Start!D85) -> 1 | E85: =IF(Start!E85="","",Start!E85) -> 0 | F85: =IF(Start!F85="","",Start!F85) -> L.S. | G85: =IF(Start!G85="","",Start!G85) -> 40000 | H85: =IF(Start!H85="","",Start!H85) -> 40000 | I85: 1 | J85: =IF(I85="","",LOOKUP(I85,{1,"01";2,"02";3,"03";4,"04";5,"05";6,"06";7,"07";8,"08";9,"09";10,"10";11,"11";12,"12";13,"13";14,"14";15,"15"})) -> 01 | K85: 01. Superior Construction Company | L85: 600 | M85: 619 | N85: =IF(B85="","",VLOOKUP(M85,Sections!$A$2:$D$200,3,FALSE)) -> Incidental Construction | O85: =IF(B85="","",VLOOKUP(M85,Sections!$A$2:$D$200,4,FALSE)) -> Painting Bridge Steel
A86: =IF(Start!A86="","",Start!A86) ->  | B86: =IF(Start!B86="","",Start!B86) -> 619-11052 | C86: =IF(Start!C86="","",Start!C86) -> CLEAN STEEL BRIDGE, QP-2, BR. NO. , | D86: =IF(Start!D86="","",Start!D86) -> 1 | E86: =IF(Start!E86="","",Start!E86) -> 0 | F86: =IF(Start!F86="","",Start!F86) -> L.S. | G86: =IF(Start!G86="","",Start!G86) -> 40000 | H86: =IF(Start!H86="","",Start!H86) -> 40000 | I86: 1 | J86: =IF(I86="","",LOOKUP(I86,{1,"01";2,"02";3,"03";4,"04";5,"05";6,"06";7,"07";8,"08";9,"09";10,"10";11,"11";12,"12";13,"13";14,"14";15,"15"})) -> 01 | K86: 01. Superior Construction Company | L86: 600 | M86: 619 | N86: =IF(B86="","",VLOOKUP(M86,Sections!$A$2:$D$200,3,FALSE)) -> Incidental Construction | O86: =IF(B86="","",VLOOKUP(M86,Sections!$A$2:$D$200,4,FALSE)) -> Painting Bridge Steel
A87: =IF(Start!A87="","",Start!A87) ->  | B87: =IF(Start!B87="","",Start!B87) -> 619-51859 | C87: =IF(Start!C87="","",Start!C87) -> PAINT STEEL BRIDGE , STR. NO. 2 | D87: =IF(Start!D87="","",Start!D87) -> 1 | E87: =IF(Start!E87="","",Start!E87) -> 0 | F87: =IF(Start!F87="","",Start!F87) -> L.S. | G87: =IF(Start!G87="","",Start!G87) -> 15000 | H87: =IF(Start!H87="","",Start!H87) -> 15000 | I87: 1 | J87: =IF(I87="","",LOOKUP(I87,{1,"01";2,"02";3,"03";4,"04";5,"05";6,"06";7,"07";8,"08";9,"09";10,"10";11,"11";12,"12";13,"13";14,"14";15,"15"})) -> 01 | K87: 01. Superior Construction Company | L87: 600 | M87: 619 | N87: =IF(B87="","",VLOOKUP(M87,Sections!$A$2:$D$200,3,FALSE)) -> Incidental Construction | O87: =IF(B87="","",VLOOKUP(M87,Sections!$A$2:$D$200,4,FALSE)) -> Painting Bridge Steel
